Workbook

Sheet Riskk (hidden)
A1: LSL | B1: UPSW | H1: =COUNT(H3:H26) -> 0 | I1: FALSE
A2: LSL | B2: Userid | H2: Main/sub | I2: Caption | J2: On Action | K2: NewGroup
A3: 3 | B3: UserLevel
A4: 2010-09-09T15:20:33 | B4: LoginTime
B5: LogoutTime
A6: MYR | B6: Global Ccy

Sheet Main
K1: DatePart1 | S1: T+3
K2: 5 | S2: T+10
A3: UTMC EXPORE FILE | S3: http://192.168.82.6:8099/RiskkSvc
F6: Asset Class | G6: Map Asset Class | K6: Asset Class Code | L6: Asset Class Name | N6: Transaction Code | O6: Transaction Description
B7: Report Date | C7: 2021-12-31 | F7: BND | G7: BO | K7: EQ | L7: Equities | N7: NS | O7: INVESTMENT
B8: Fund Group Code | C8: EPFGroup | F8: O-BND | G8: BO | K8: BO | L8: Bonds | N8: XS | O8: INVESTMENT REVERSAL
B9: EPF IPD Code | C9: IPD014 | F9: CSH | G9: MM | K9: MM | L9: Money Markets | N9: XC | O9: COOLING OFF CANCELLATION
B10: IPD Name | C10: Nomura Asset Management Malaysia Sdn Bhd | F10: O-CSH | G10: MM | K10: CA | L10: Cash/Receivable/Payable | N10: RE | O10: REDEMPTION
F11: EQT | G11: EQ | K11: FU | L11: Funds | N11: XR | O11: REDEMPTION REVERSAL
B12: Prepared By (Name) | C12: Nomura | F12: O-EQT | G12: EQ | K12: AL | L12: Alternatives | N12: DP | O12: DISTRIBUTION PAYOUT
B13: Prepared By (Designation) | C13: Associate | F13: TBI | G13: CA | K13: DE | L13: Derivatives | N13: XD | O13: DISTRIBUTION PAYOUT REVERSAL
B14: Prepared By (Date) | C14: 2022-03-21 | F14: CIS | G14: MM | N14: DV | O14: DISTRIBUTION REINVESTED
B15: Verified By (Name) | C15: Nomura | F15: DCI | N15: XV | O15: DISTRIBUTION REINVESTED REVERSAL
B16: Verified By (Designation) | C16: Manager | F16: DEV | G16: DE | N16: CP | O16: CAPITAL REPAYMENT
B17: Verified By (Date) | C17: 2022-03-21 | F17: FRX | N17: US | O17: UNIT SPLIT
B18: Export Period | C18: T+10 | F18: OTC | N18: UX | O18: UNIT SPLIT REVERSAL
F19: OTH | N19: SI | O19: SWITCH IN
F20: PRO | N20: XI | O20: SWITCH IN REVERSAL
F21: STP | G21: DE | N21: SO | O21: SWITCH OUT
F22: FU | G22: FU | N22: XO | O22: SWITCH OUT REVERSAL
F23: FWD | N23: TI | O23: TRANSFER IN
N24: RI | O24: TRANSFER IN REVERSAL
N25: TO | O25: TRANSFER OUT
N26: RO | O26: TRANSFER OUT REVERSAL
N27: JI | O27: ADJUSTMENT IN
N28: JO | O28: ADJUSTMENT OUT
N29: HO | O29: SHIFT OUT
N30: XH | O30: SHIFT OUT REVERSAL

Sheet UTMC001
A1: IPD014 | B1: Nomura Asset Management Malaysia Sdn Bhd

Sheet UTMC002
A1: IPD014 | B1: UTMC001 | C1: 1 | D1: 2 | E1: Nomura | F1: Associate | G1: 2022-03-21 | H1: Nomura | I1: Manager | J1: 2022-03-21
A2: IPD014 | B2: UTMC002 | C2: 18 | D2: 10 | E2: Nomura | F2: Associate | G2: 2022-03-21 | H2: Nomura | I2: Manager | J2: 2022-03-21
A3: IPD014 | B3: UTMC003 | C3: 112 | D3: 8 | E3: Nomura | F3: Associate | G3: 2022-03-21 | H3: Nomura | I3: Manager | J3: 2022-03-21
A4: IPD014 | B4: UTMC004 | C4: 19 | D4: 9 | E4: Nomura | F4: Associate | G4: 2022-03-21 | H4: Nomura | I4: Manager | J4: 2022-03-21
A5: IPD014 | B5: UTMC005 | C5: 15 | D5: 5 | E5: Nomura | F5: Associate | G5: 2022-03-21 | H5: Nomura | I5: Manager | J5: 2022-03-21
A6: IPD014 | B6: UTMC006 | C6: 10 | D6: 5 | E6: Nomura | F6: Associate | G6: 2022-03-21 | H6: Nomura | I6: Manager | J6: 2022-03-21
A7: IPD014 | B7: UTMC007 | C7: 5 | D7: 5 | E7: Nomura | F7: Associate | G7: 2022-03-21 | H7: Nomura | I7: Manager | J7: 2022-03-21
A8: IPD014 | B8: UTMC008 | C8: 6 | D8: 6 | E8: Nomura | F8: Associate | G8: 2022-03-21 | H8: Nomura | I8: Manager | J8: 2022-03-21
A9: IPD014 | B9: UTMC009 | C9: 6 | D9: 5 | E9: Nomura | F9: Associate | G9: 2022-03-21 | H9: Nomura | I9: Manager | J9: 2022-03-21
A10: IPD014 | B10: UTMC010 | C10: 266 | D10: 18 | E10: Nomura | F10: Associate | G10: 2022-03-21 | H10: Nomura | I10: Manager | J10: 2022-03-21
A11: IPD014 | B11: UTMC011 | C11: 101 | D11: 14 | E11: Nomura | F11: Associate | G11: 2022-03-21 | H11: Nomura | I11: Manager | J11: 2022-03-21
A12: IPD014 | B12: UTMC012 | C12: 31 | D12: 7 | E12: Nomura | F12: Associate | G12: 2022-03-21 | H12: Nomura | I12: Manager | J12: 2022-03-21
A13: IPD014 | B13: UTMC013 | C13: 197 | D13: 15 | E13: Nomura | F13: Associate | G13: 2022-03-21 | H13: Nomura | I13: Manager | J13: 2022-03-21
A14: IPD014 | B14: UTMC014 | C14: 0 | D14: 11 | E14: Nomura | F14: Associate | G14: 2022-03-21 | H14: Nomura | I14: Manager | J14: 2022-03-21
A15: IPD014 | B15: UTMC015 | C15: 123 | D15: 9 | E15: Nomura | F15: Associate | G15: 2022-03-21 | H15: Nomura | I15: Manager | J15: 2022-03-21
A16: IPD014 | B16: UTMC016 | C16: 391 | D16: 5 | E16: Nomura | F16: Associate | G16: 2022-03-21 | H16: Nomura | I16: Manager | J16: 2022-03-21
A17: IPD014 | B17: UTMC017 | C17: 8 | D17: 5 | E17: Nomura | F17: Associate | G17: 2022-03-21 | H17: Nomura | I17: Manager | J17: 2022-03-21
A18: IPD014 | B18: UTMC018 | C18: 391 | D18: 4 | E18: Nomura | F18: Associate | G18: 2022-03-21 | H18: Nomura | I18: Manager | J18: 2022-03-21

Sheet UTMC003
A1: IPD014 | B1: 461019-10-5331 | C1: N/A | D1: C | E1: 3000-01-01 | F1: 1946-10-19 | G1: M | H1: 2021-12-31
A2: IPD014 | B2: 4295-W | C2: N/A | D2: C | E2: 3000-01-01 | F2: 3000-01-01 | G2: F | H2: 2021-12-31
A3: IPD014 | B3: 5132-A | C3: N/A | D3: C | E3: 3000-01-01 | F3: 3000-01-01 | G3: F | H3: 2021-12-31
A4: IPD014 | B4: 425172-T | C4: N/A | D4: C | E4: 3000-01-01 | F4: 3000-01-01 | G4: F | H4: 2021-12-31
A5: IPD014 | B5: 62605-U | C5: N/A | D5: C | E5: 3000-01-01 | F5: 3000-01-01 | G5: F | H5: 2021-12-31
A6: IPD014 | B6: 62605-U | C6: N/A | D6: C | E6: 3000-01-01 | F6: 3000-01-01 | G6: F | H6: 2021-12-31
A7: IPD014 | B7: 290163-X | C7: N/A | D7: C | E7: 3000-01-01 | F7: 3000-01-01 | G7: F | H7: 2021-12-31
A8: IPD014 | B8: 239101-T | C8: N/A | D8: C | E8: 3000-01-01 | F8: 3000-01-01 | G8: F | H8: 2021-12-31
A9: IPD014 | B9: N/A | C9: N/A | D9: C | E9: 3000-01-01 | F9: 3000-01-01 | G9: F | H9: 2021-12-31
A10: IPD014 | B10: N/A | C10: N/A | D10: C | E10: 3000-01-01 | F10: 3000-01-01 | G10: F | H10: 2021-12-31
A11: IPD014 | B11: 267011M | C11: N/A | D11: C | E11: 3000-01-01 | F11: 3000-01-01 | G11: F | H11: 2021-12-31
A12: IPD014 | B12: 45723-K | C12: N/A | D12: C | E12: 3000-01-01 | F12: 3000-01-01 | G12: F | H12: 2021-12-31
A13: IPD014 | B13: 43905-X | C13: N/A | D13: C | E13: 3000-01-01 | F13: 3000-01-01 | G13: F | H13: 2021-12-31
A14: IPD014 | B14: 391323-V | C14: N/A | D14: C | E14: 3000-01-01 | F14: 3000-01-01 | G14: F | H14: 2021-12-31
A15: IPD014 | B15: 763590-H | C15: N/A | D15: C | E15: 3000-01-01 | F15: 3000-01-01 | G15: F | H15: 2021-12-31
A16: IPD014 | B16: 763590-H | C16: N/A | D16: C | E16: 3000-01-01 | F16: 3000-01-01 | G16: F | H16: 2021-12-31
A17: IPD014 | B17: 522891-X | C17: N/A | D17: C | E17: 3000-01-01 | F17: 3000-01-01 | G17: F | H17: 2021-12-31
A18: IPD014 | B18: 772427-V | C18: N/A | D18: C | E18: 3000-01-01 | F18: 3000-01-01 | G18: F | H18: 2021-12-31
A19: IPD014 | B19: N/A | C19: N/A | D19: C | E19: 3000-01-01 | F19: 3000-01-01 | G19: F | H19: 2021-12-31
A20: IPD014 | B20: N/A | C20: N/A | D20: C | E20: 3000-01-01 | F20: 3000-01-01 | G20: F | H20: 2021-12-31
A21: IPD014 | B21: 1097826-H | C21: N/A | D21: C | E21: 3000-01-01 | F21: 3000-01-01 | G21: F | H21: 2021-12-31
A22: IPD014 | B22: 198725-M | C22: N/A | D22: C | E22: 3000-01-01 | F22: 3000-01-01 | G22: F | H22: 2021-12-31
A23: IPD014 | B23: 410285-W | C23: N/A | D23: C | E23: 3000-01-01 | F23: 3000-01-01 | G23: F | H23: 2021-12-31
A24: IPD014 | B24: 001281-T | C24: N/A | D24: C | E24: 3000-01-01 | F24: 3000-01-01 | G24: F | H24: 2021-12-31
A25: IPD014 | B25: 238969-K | C25: N/A | D25: C | E25: 3000-01-01 | F25: 3000-01-01 | G25: F | H25: 2021-12-31
A26: IPD014 | B26: 238969-K | D26: C | E26: 3000-01-01 | F26: 3000-01-01 | G26: F | H26: 2021-12-31
A27: IPD014 | B27: 782978-H | C27: N/A | D27: C | E27: 3000-01-01 | F27: 3000-01-01 | G27: F | H27: 2021-12-31
A28: IPD014 | B28: 782978-H | C28: N/A | D28: C | E28: 3000-01-01 | F28: 3000-01-01 | G28: F | H28: 2021-12-31
A29: IPD014 | B29: 901914V | C29: N/A | D29: C | E29: 3000-01-01 | F29: 3000-01-01 | G29: F | H29: 2021-12-31
A30: IPD014 | B30: 752101-D | C30: N/A | D30: C | E30: 3000-01-01 | F30: 3000-01-01 | G30: F | H30: 2021-12-31
A31: IPD014 | B31: 677895-K | C31: N/A | D31: C | E31: 3000-01-01 | F31: 3000-01-01 | G31: F | H31: 2021-12-31
A32: IPD014 | B32: 641378-W | C32: N/A | D32: C | E32: 3000-01-01 | F32: 3000-01-01 | G32: F | H32: 2021-12-31
A33: IPD014 | B33: 1287915-P | C33: N/A | D33: C | E33: 3000-01-01 | F33: 3000-01-01 | G33: F | H33: 2021-12-31
A34: IPD014 | B34: 4442 | C34: N/A | D34: C | E34: 3000-01-01 | F34: 3000-01-01 | G34: F | H34: 2021-12-31
A35: IPD014 | B35: 820821-01-5845 | C35: N/A | D35: C | E35: 3000-01-01 | F35: 3000-01-01 | G35: M | H35: 2021-12-31
A36: IPD014 | B36: 569602-K | C36: N/A | D36: C | E36: 3000-01-01 | F36: 3000-01-01 | G36: F | H36: 2021-12-31
A37: IPD014 | B37: 569602-K | C37: N/A | D37: C | E37: 3000-01-01 | F37: 3000-01-01 | G37: F | H37: 2021-12-31
A38: IPD014 | B38: 569605-D | C38: N/A | D38: C | E38: 3000-01-01 | F38: 3000-01-01 | G38: F | H38: 2021-12-31
A39: IPD014 | B39: 569605-D | C39: N/A | D39: C | E39: 3000-01-01 | F39: 3000-01-01 | G39: F | H39: 2021-12-31
A40: IPD014 | B40: 1213177-V | C40: N/A | D40: C | E40: 3000-01-01 | F40: 3000-01-01 | G40: F | H40: 2021-12-31
A41: IPD014 | B41: 384869-U | C41: N/A | D41: C | E41: 3000-01-01 | F41: 3000-01-01 | G41: F | H41: 2021-12-31
A42: IPD014 | B42: 137156-U | C42: N/A | D42: C | E42: 3000-01-01 | F42: 3000-01-01 | G42: F | H42: 2021-12-31
A43: IPD014 | B43: 911025-10-5587 | C43: N/A | D43: C | E43: 3000-01-01 | F43: 1991-10-25 | G43: M | H43: 2021-12-31
A44: IPD014 | B44: 14730-X | C44: N/A | D44: C | E44: 3000-01-01 | F44: 3000-01-01 | G44: F | H44: 2021-12-31
A45: IPD014 | B45: 46983W | C45: N/A | D45: C | E45: 3000-01-01 | F45: 3000-01-01 | G45: F | H45: 2021-12-31
A46: IPD014 | B46: 46983W | C46: N/A | D46: C | E46: 3000-01-01 | F46: 3000-01-01 | G46: F | H46: 2021-12-31
A47: IPD014 | B47: 1155142-M | C47: N/A | D47: C | E47: 3000-01-01 | F47: 3000-01-01 | G47: F | H47: 2021-12-31
A48: IPD014 | B48: 1155142-M | C48: N/A | D48: C | E48: 3000-01-01 | F48: 3000-01-01 | G48: F | H48: 2021-12-31
A49: IPD014 | B49: 1256244-P | C49: N/A | D49: C | E49: 3000-01-01 | F49: 3000-01-01 | G49: F | H49: 2021-12-31
A50: IPD014 | B50: 1256244-P | C50: N/A | D50: C | E50: 3000-01-01 | F50: 3000-01-01 | G50: F | H50: 2021-12-31
A51: IPD014 | B51: 22772-A | C51: N/A | D51: C | E51: 3000-01-01 | F51: 3000-01-01 | G51: F | H51: 2021-12-31
A52: IPD014 | B52: 748695-A | C52: N/A | D52: C | E52: 3000-01-01 | F52: 3000-01-01 | G52: F | H52: 2021-12-31
A53: IPD014 | B53: 838564-T | C53: N/A | D53: C | E53: 3000-01-01 | F53: 3000-01-01 | G53: F | H53: 2021-12-31
A54: IPD014 | B54: 839320-V | C54: N/A | D54: C | E54: 3000-01-01 | F54: 3000-01-01 | G54: F | H54: 2021-12-31
A55: IPD014 | B55: 720429-14-5268 | C55: N/A | D55: C | E55: 3000-01-01 | F55: 3000-01-01 | G55: F | H55: 2021-12-31
A56: IPD014 | B56: 720429-14-5268 | C56: N/A | D56: C | E56: 3000-01-01 | F56: 3000-01-01 | G56: F | H56: 2021-12-31
A57: IPD014 | B57: 570409-K | C57: N/A | D57: C | E57: 3000-01-01 | F57: 3000-01-01 | G57: F | H57: 2021-12-31
A58: IPD014 | B58: 570409-K | C58: N/A | D58: C | E58: 3000-01-01 | F58: 3000-01-01 | G58: F | H58: 2021-12-31
A59: IPD014 | B59: 570409-K | C59: N/A | D59: C | E59: 3000-01-01 | F59: 3000-01-01 | G59: F | H59: 2021-12-31
A60: IPD014 | B60: 891354-D | C60: N/A | D60: C | E60: 3000-01-01 | F60: 3000-01-01 | G60: F | H60: 2021-12-31
A61: IPD014 | B61: E4366172F | C61: N/A | D61: C | E61: 3000-01-01 | F61: 1971-06-29 | G61: M | H61: 2021-12-31
A62: IPD014 | B62: 2678-V | C62: N/A | D62: C | E62: 3000-01-01 | F62: 3000-01-01 | G62: F | H62: 2021-12-31
A63: IPD014 | B63: 2678-V | C63: N/A | D63: C | E63: 3000-01-01 | F63: 3000-01-01 | G63: F | H63: 2021-12-31
A64: IPD014 | B64: 21555-D | C64: N/A | D64: C | E64: 3000-01-01 | F64: 3000-01-01 | G64: F | H64: 2021-12-31
A65: IPD014 | B65: 3392-U | C65: N/A | D65: C | E65: 3000-01-01 | F65: 3000-01-01 | G65: F | H65: 2021-12-31
A66: IPD014 | B66: 5199-X | C66: N/A | D66: C | E66: 3000-01-01 | F66: 3000-01-01 | G66: F | H66: 2021-12-31
A67: IPD014 | B67: 490804-K | C67: N/A | D67: C | E67: 3000-01-01 | F67: 3000-01-01 | G67: F | H67: 2021-12-31
A68: IPD014 | B68: 490804-K | C68: N/A | D68: C | E68: 3000-01-01 | F68: 3000-01-01 | G68: F | H68: 2021-12-31
A69: IPD014 | B69: 7218-D | C69: N/A | D69: C | E69: 3000-01-01 | F69: 3000-01-01 | G69: F | H69: 2021-12-31
A70: IPD014 | B70: 818100-D | C70: N/A | D70: C | E70: 3000-01-01 | F70: 3000-01-01 | G70: F | H70: 2021-12-31
A71: IPD014 | B71: 810446-U | C71: N/A | D71: C | E71: 3000-01-01 | F71: 3000-01-01 | G71: F | H71: 2021-12-31
A72: IPD014 | B72: TKN1141014 | C72: N/A | D72: C | E72: 3000-01-01 | F72: 3000-01-01 | G72: F | H72: 2021-12-31
A73: IPD014 | B73: 10001054018 | D73: C | E73: 3000-01-01 | F73: 3000-01-01 | G73: F | H73: 2021-12-31
A74: IPD014 | B74: 8700-M | C74: N/A | D74: C | E74: 3000-01-01 | F74: 3000-01-01 | G74: F | H74: 2021-12-31
A75: IPD014 | B75: N/A | C75: N/A | D75: C | E75: 3000-01-01 | F75: 3000-01-01 | G75: F | H75: 2021-12-31
A76: IPD014 | B76: N/A | C76: N/A | D76: C | E76: 3000-01-01 | F76: 3000-01-01 | G76: F | H76: 2021-12-31
A77: IPD014 | B77: N/A | C77: N/A | D77: C | E77: 3000-01-01 | F77: 3000-01-01 | G77: F | H77: 2021-12-31
A78: IPD014 | B78: N/A | C78: N/A | D78: C | E78: 3000-01-01 | F78: 3000-01-01 | G78: F | H78: 2021-12-31
A79: IPD014 | B79: N/A | C79: N/A | D79: C | E79: 3000-01-01 | F79: 3000-01-01 | G79: F | H79: 2021-12-31
A80: IPD014 | B80: N/A | C80: N/A | D80: C | E80: 3000-01-01 | F80: 3000-01-01 | G80: F | H80: 2021-12-31
A81: IPD014 | B81: 9825-V | C81: N/A | D81: C | E81: 3000-01-01 | F81: 3000-01-01 | G81: F | H81: 2021-12-31
A82: IPD014 | B82: 90278-P | C82: N/A | D82: C | E82: 3000-01-01 | F82: 3000-01-01 | G82: F | H82: 2021-12-31
A83: IPD014 | B83: 17540-D | C83: N/A | D83: C | E83: 3000-01-01 | F83: 3000-01-01 | G83: F | H83: 2021-12-31
A84: IPD014 | B84: 570132-T | C84: N/A | D84: C | E84: 3000-01-01 | F84: 3000-01-01 | G84: F | H84: 2021-12-31
A85: IPD014 | B85: 194990-K | C85: N/A | D85: C | E85: 3000-01-01 | F85: 3000-01-01 | G85: F | H85: 2021-12-31
A86: IPD014 | B86: 194990-K | C86: N/A | D86: C | E86: 3000-01-01 | F86: 3000-01-01 | G86: F | H86: 2021-12-31
A87: IPD014 | B87: 825511-X | C87: N/A | D87: C | E87: 3000-01-01 | F87: 3000-01-01 | G87: F | H87: 2021-12-31
A88: IPD014 | B88: 825511-X | C88: N/A | D88: C | E88: 3000-01-01 | F88: 3000-01-01 | G88: F | H88: 2021-12-31
A89: IPD014 | B89: 101067-P | C89: N/A | D89: C | E89: 3000-01-01 | F89: 3000-01-01 | G89: F | H89: 2021-12-31
A90: IPD014 | B90: 101067-P | C90: N/A | D90: C | E90: 3000-01-01 | F90: 3000-01-01 | G90: F | H90: 2021-12-31
A91: IPD014 | B91: 101067-P | C91: N/A | D91: C | E91: 3000-01-01 | F91: 3000-01-01 | G91: F | H91: 2021-12-31
A92: IPD014 | B92: LL08072 | C92: N/A | D92: C | E92: 3000-01-01 | F92: 3000-01-01 | G92: F | H92: 2021-12-31
A93: IPD014 | B93: 1078667-U | C93: N/A | D93: C | E93: 3000-01-01 | F93: 3000-01-01 | G93: F | H93: 2021-12-31
A94: IPD014 | B94: 30686-K | C94: N/A | D94: C | E94: 3000-01-01 | F94: 3000-01-01 | G94: F | H94: 2021-12-31
A95: IPD014 | B95: 948454-K | C95: N/A | D95: C | E95: 3000-01-01 | F95: 3000-01-01 | G95: F | H95: 2021-12-31
A96: IPD014 | B96: 203074-U | C96: N/A | D96: C | E96: 3000-01-01 | F96: 3000-01-01 | G96: F | H96: 2021-12-31
A97: IPD014 | B97: 693235-T | C97: N/A | D97: C | E97: 3000-01-01 | F97: 3000-01-01 | G97: F | H97: 2021-12-31
A98: IPD014 | B98: 3813-K | C98: N/A | D98: C | E98: 3000-01-01 | F98: 3000-01-01 | G98: F | H98: 2021-12-31
A99: IPD014 | B99: N/A | D99: C | E99: 3000-01-01 | F99: 3000-01-01 | G99: F | H99: 2021-12-31
A100: IPD014 | B100: N/A | D100: C | E100: 3000-01-01 | F100: 3000-01-01 | G100: F | H100: 2021-12-31
A101: IPD014 | B101: N/A | D101: C | E101: 3000-01-01 | F101: 3000-01-01 | G101: F | H101: 2021-12-31
A102: IPD014 | B102: N/A | D102: C | E102: 3000-01-01 | F102: 3000-01-01 | G102: F | H102: 2021-12-31
A103: IPD014 | B103: N/A | D103: C | E103: 3000-01-01 | F103: 3000-01-01 | G103: F | H103: 2021-12-31
A104: IPD014 | B104: N/A | D104: C | E104: 3000-01-01 | F104: 3000-01-01 | G104: F | H104: 2021-12-31
A105: IPD014 | B105: N/A | D105: C | E105: 3000-01-01 | F105: 3000-01-01 | G105: F | H105: 2021-12-31
A106: IPD014 | B106: N/A | D106: C | E106: 3000-01-01 | F106: 3000-01-01 | G106: F | H106: 2021-12-31
A107: IPD014 | B107: N/A | D107: C | E107: 3000-01-01 | F107: 3000-01-01 | G107: F | H107: 2021-12-31
A108: IPD014 | B108: N/A | D108: C | E108: 3000-01-01 | F108: 3000-01-01 | G108: F | H108: 2021-12-31
A109: IPD014 | B109: N/A | D109: C | E109: 3000-01-01 | F109: 3000-01-01 | G109: F | H109: 2021-12-31
A110: IPD014 | B110: N/A | D110: C | E110: 3000-01-01 | F110: 3000-01-01 | G110: F | H110: 2021-12-31
A111: IPD014 | B111: N/A | D111: C | E111: 3000-01-01 | F111: 3000-01-01 | G111: F | H111: 2021-12-31
A112: IPD014 | B112: N/A | D112: C | E112: 3000-01-01 | F112: 3000-01-01 | G112: F | H112: 2021-12-31

Sheet UTMC004
A1: IPD014 | B1: =IFERROR(INDEX(Mapping!B:C,MATCH(InURFund!A2,Mapping!C:C,0),2),InURFund!A2) -> I-CASH | C1: NOMURA i-CASH FUND | D1: 2021-12-31 | F1: S | G1: Active | H1: L | I1: MYR
A2: IPD014 | B2: =IFERROR(INDEX(Mapping!B:C,MATCH(InURFund!A3,Mapping!C:C,0),2),InURFund!A3) -> I-INCOME | C2: NOMURA i-INCOME FUND | D2: 2021-12-31 | F2: S | G2: Active | H2: L | I2: MYR
A3: IPD014 | B3: =IFERROR(INDEX(Mapping!B:C,MATCH(InURFund!A4,Mapping!C:C,0),2),InURFund!A4) -> I-INCOME2H | C3: NOMURA I-INCOME FUND 2 - CLASS H | D3: 2021-12-31 | F3: S | G3: Active | H3: F | I3: USD
A4: IPD014 | B4: =IFERROR(INDEX(Mapping!B:C,MATCH(InURFund!A5,Mapping!C:C,0),2),InURFund!A5) -> I-INCOME2I | C4: NOMURA I-INCOME FUND 2 - CLASS I | D4: 2021-12-31 | F4: S | G4: Active | H4: L | I4: MYR
A5: IPD014 | B5: =IFERROR(INDEX(Mapping!B:C,MATCH(InURFund!A6,Mapping!C:C,0),2),InURFund!A6) -> I-INCOME2R | C5: NOMURA I-INCOME FUND 2 - CLASS R | D5: 2021-12-31 | F5: S | G5: Active | H5: L | I5: MYR
A6: IPD014 | B6: =IFERROR(INDEX(Mapping!B:C,MATCH(InURFund!A7,Mapping!C:C,0),2),InURFund!A7) -> I-INCOME2S | C6: NOMURA I-INCOME FUND 2 - CLASS S | D6: 2021-12-31 | F6: S | G6: Active | H6: L | I6: MYR
A7: IPD014 | B7: =IFERROR(INDEX(Mapping!B:C,MATCH(InURFund!A8,Mapping!C:C,0),2),InURFund!A8) -> NGAWAF | C7: NOMURA GLOBAL ALL WEATHER (ACCUMULATION) FUND | D7: 2021-12-31 | F7: C | G7: Active | H7: L | I7: MYR
A8: IPD014 | B8: =IFERROR(INDEX(Mapping!B:C,MATCH(InURFund!A9,Mapping!C:C,0),2),InURFund!A9) -> NGAWDF | C8: NOMURA GLOBAL ALL WEATHER (DECUMULATION) FUND | D8: 2021-12-31 | F8: C | G8: Active | H8: L | I8: MYR
A9: IPD014 | B9: =IFERROR(INDEX(Mapping!B:C,MATCH(InURFund!A10,Mapping!C:C,0),2),InURFund!A10) -> NGDBFM | C9: NOMURA GLOBAL DYNAMIC BOND FUND - CLASS MYR | D9: 2021-12-31 | F9: C | G9: Active | H9: L | I9: MYR
A10: IPD014 | B10: =IFERROR(INDEX(Mapping!B:C,MATCH(InURFund!A11,Mapping!C:C,0),2),InURFund!A11) -> NGDBFU | C10: NOMURA GLOBAL DYNAMIC BOND FUND - CLASS USD | D10: 2021-12-31 | F10: C | G10: Active | H10: F | I10: USD
A11: IPD014 | B11: =IFERROR(INDEX(Mapping!B:C,MATCH(InURFund!A12,Mapping!C:C,0),2),InURFund!A12) -> NGHM | C11: NOMURA GLOBAL HIGH CONVICTION FUND - CLASS MYR | D11: 2021-12-31 | F11: C | G11: Active | H11: L | I11: MYR
A12: IPD014 | B12: =IFERROR(INDEX(Mapping!B:C,MATCH(InURFund!A13,Mapping!C:C,0),2),InURFund!A13) -> NGHU | C12: NOMURA GLOBAL HIGH CONVICTION FUND - CLASS USD | D12: 2021-12-31 | F12: C | G12: Active | H12: F | I12: USD
A13: IPD014 | B13: =IFERROR(INDEX(Mapping!B:C,MATCH(InURFund!A14,Mapping!C:C,0),2),InURFund!A14) -> NGSEFA | C13: NOMURA GLOBAL SUSTAINABLE EQUITY FUND - MYR CLASS A | D13: 2021-12-31 | F13: C | G13: Active | H13: L | I13: MYR
A14: IPD014 | B14: =IFERROR(INDEX(Mapping!B:C,MATCH(InURFund!A15,Mapping!C:C,0),2),InURFund!A15) -> NGSEFB | C14: NOMURA GLOBAL SUSTAINABLE EQUITY FUND - MYR CLASS B | D14: 2021-12-31 | F14: C | G14: Active | H14: L | I14: MYR
A15: IPD014 | B15: =IFERROR(INDEX(Mapping!B:C,MATCH(InURFund!A16,Mapping!C:C,0),2),InURFund!A16) -> NGSEFU | C15: NOMURA GLOBAL SUSTAINABLE EQUITY FUND - USD CLASS | D15: 2021-12-31 | F15: C | G15: Active | H15: F | I15: USD
A16: IPD014 | B16: =IFERROR(INDEX(Mapping!B:C,MATCH(InURFund!A17,Mapping!C:C,0),2),InURFund!A17) -> NGSSGFA | C16: NOMURA GLOBAL SHARIAH STRATEGIC GROWTH FUND - CLASS A | D16: 2021-12-31 | F16: S | G16: Active | H16: L | I16: MYR
A17: IPD014 | B17: =IFERROR(INDEX(Mapping!B:C,MATCH(InURFund!A18,Mapping!C:C,0),2),InURFund!A18) -> NGSSGFB | C17: NOMURA GLOBAL SHARIAH STRATEGIC GROWTH FUND - CLASS B | D17: 2021-12-31 | F17: S | G17: Active | H17: L | I17: MYR
A18: IPD014 | B18: =IFERROR(INDEX(Mapping!B:C,MATCH(InURFund!A19,Mapping!C:C,0),2),InURFund!A19) -> NRBF1 | C18: NOMURA RINGGIT BOND FUND 1 | D18: 2021-12-31 | F18: C | G18: Active | H18: L | I18: MYR
A19: IPD014 | B19: =IFERROR(INDEX(Mapping!B:C,MATCH(InURFund!A20,Mapping!C:C,0),2),InURFund!A20) -> NRBF2 | C19: NOMURA RINGGIT BOND FUND 2 | D19: 2021-12-31 | F19: C | G19: Active | H19: L | I19: MYR

Sheet UTMC005
A1: IPD014 | B1: I-CASH | C1: 2021-12-31 | D1: MM | E1: 99.97
A2: IPD014 | B2: I-CASH | C2: 2021-12-31 | D2: CA | E2: 0.03
A3: IPD014 | B3: I-INCOME | C3: 2021-12-31 | D3: BO | E3: 51.14
A4: IPD014 | B4: I-INCOME | C4: 2021-12-31 | D4: MM | E4: 48.4
A5: IPD014 | B5: I-INCOME | C5: 2021-12-31 | D5: CA | E5: 0.46
A6: IPD014 | B6: iMONEY | C6: 2021-12-31 | D6: BO | E6: 97.29
A7: IPD014 | B7: iMONEY | C7: 2021-12-31 | D7: EQ | E7: 0.68
A8: IPD014 | B8: iMONEY | C8: 2021-12-31 | D8: MM | E8: 2.02
A9: IPD014 | B9: iMONEY | C9: 2021-12-31 | D9: CA | E9: 0.01
A10: IPD014 | B10: NRBF1 | C10: 2021-12-31 | D10: BO | E10: 96.77
A11: IPD014 | B11: NRBF1 | C11: 2021-12-31 | D11: MM | E11: 3.16
A12: IPD014 | B12: NRBF1 | C12: 2021-12-31 | D12: CA | E12: 0.07
A13: IPD014 | B13: NRBF2 | C13: 2021-12-31 | D13: BO | E13: 97.52
A14: IPD014 | B14: NRBF2 | C14: 2021-12-31 | D14: MM | E14: 2.49
A15: IPD014 | B15: NRBF2 | C15: 2021-12-31 | D15: CA | E15: -0.01

Sheet PvTable (hidden)
A1: UTMC005 | F1: UTMC006 | K1: UTMC007 | P1: UTMC008 | X1: UTMC009
A4: Sum of MarketValueFC | F4: Sum of MarketValueFC | K4: Sum of MarketValueFC | S4: Data | Z4: Data
A5: MapFundCode | B5: MapAssetClass | C5: NAV | D5: Total | F5: MapFundCode | G5: SectorCode | H5: Fund2Total | I5: Total | K5: MapFundCode | L5: EPFType | M5: NAV | N5: Total | P5: MapFundCode | Q5: qCountryID | R5: ListedCountry | S5: Sum of Total | T5: Sum of amount | X5: MapFundCode | Y5: qCurrencyCode | Z5: Sum of Total | AA5: Sum of Amount
A6: I-CASH | B6: MM | C6: 308033150.4 | D6: 307950019.4 | F6: I-CASH | G6: 0 | H6: 308033150.4 | I6: 307950019.4 | K6: I-CASH | L6: S | M6: 308033150.4 | N6: 308033150.4 | P6: I-CASH | Q6: MY | R6: MY | S6: 308033150.4 | T6: 308033150.4 | X6: I-CASH | Y6: MYR | Z6: 308033150.4 | AA6: 307866888.3
B7: CA | C7: 308033150.4 | D7: 83131.05 | G7: 99 | H7: 308033150.4 | I7: 83131.05 | K7: I-INCOME | L7: S | M7: 72108299.29 | N7: 72115296.08 | P7: I-INCOME | Q7: MY | R7: MY | S7: 72108299.29 | T7: 72115296.08 | X7: I-INCOME | Y7: MYR | Z7: 72115296.08 | AA7: 71449939.42
A8: I-INCOME | B8: BO | C8: 72108299.29 | D8: 36879341.87 | F8: I-INCOME | G8: 0 | H8: 72115296.08 | I8: 71780536.25 | K8: iMONEY | L8: S | M8: 742877715.8 | N8: 742877715.8 | P8: iMONEY | Q8: MY | R8: JP | S8: 742877715.8 | T8: 5018104.88 | X8: I-INCOME | Y8: USD | Z8: 72115296.08 | AA8: 4163.000612
B9: MM | C9: 72108299.29 | D9: 34901194.38 | G9: 99 | H9: 72115296.08 | I9: 334759.83 | K9: NRBF1 | L9: C | M9: 430089707.9 | N9: 430089707.9 | R9: MY | S9: 742877715.8 | T9: 737859610.9 | X9: iMONEY | Y9: MYR | Z9: 742877715.8 | AA9: 742805237.8
B10: CA | C10: 72108299.29 | D10: 334759.83 | F10: iMONEY | G10: 0 | H10: 742877715.8 | I10: 742805208.9 | K10: NRBF2 | L10: C | M10: 263584646.4 | N10: 263584646.4 | P10: NRBF1 | Q10: MY | R10: MY | S10: 430089707.9 | T10: 430089707.9 | X10: NRBF1 | Y10: MYR | Z10: 430089707.9 | AA10: 429449305.3
A11: iMONEY | B11: BO | C11: 742877715.8 | D11: 722762004.9 | G11: 99 | H11: 742877715.8 | I11: 72506.88 | K11: Grand Total | N11: 1816700517 | P11: NRBF2 | Q11: MY | R11: MY | S11: 263584646.4 | T11: 263584646.4 | X11: NRBF2 | Y11: MYR | Z11: 263584646.4 | AA11: 263594591.8
B12: EQ | C12: 742877715.8 | D12: 5018104.88 | F12: NRBF1 | G12: 0 | H12: 430089707.9 | I12: 429769506.6 | P12: Grand Total | S12: 2559571236 | T12: 1816700517 | X12: Grand Total | Z12: 1888815813 | AA12: 1815170126
B13: MM | C13: 742877715.8 | D13: 15025099.17 | G13: 99 | H13: 430089707.9 | I13: 320201.32
B14: CA | C14: 742877715.8 | D14: 72506.88 | F14: NRBF2 | G14: 0 | H14: 263584646.4 | I14: 263589619.1
A15: NRBF1 | B15: BO | C15: 430089707.9 | D15: 416187553.3 | G15: 99 | H15: 263584646.4 | I15: -4972.71
B16: MM | C16: 430089707.9 | D16: 13581953.35 | F16: Grand Total | I16: 1816700517
B17: CA | C17: 430089707.9 | D17: 320201.32
A18: NRBF2 | B18: BO | C18: 263584646.4 | D18: 257034676.4
B19: MM | C19: 263584646.4 | D19: 6554942.73
B20: CA | C20: 263584646.4 | D20: -4972.71

Sheet UTMC006
A1: IPD014 | B1: I-CASH | C1: 2021-12-31 | D1: 10 | E1: 99.97
A2: IPD014 | B2: I-CASH | C2: 2021-12-31 | D2: 99 | E2: 0.03
A3: IPD014 | B3: I-INCOME | C3: 2021-12-31 | D3: 10 | E3: 99.54
A4: IPD014 | B4: I-INCOME | C4: 2021-12-31 | D4: 99 | E4: 0.46
A5: IPD014 | B5: iMONEY | C5: 2021-12-31 | D5: 10 | E5: 99.99
A6: IPD014 | B6: iMONEY | C6: 2021-12-31 | D6: 99 | E6: 0.01
A7: IPD014 | B7: NRBF1 | C7: 2021-12-31 | D7: 10 | E7: 99.93
A8: IPD014 | B8: NRBF1 | C8: 2021-12-31 | D8: 99 | E8: 0.07
A9: IPD014 | B9: NRBF2 | C9: 2021-12-31 | D9: 10 | E9: 100
A10: IPD014 | B10: NRBF2 | C10: 2021-12-31 | D10: 99 | E10: 0

Sheet UTMC007
A1: IPD014 | B1: I-CASH | C1: 2021-12-31 | D1: S | E1: 100
A2: IPD014 | B2: I-INCOME | C2: 2021-12-31 | D2: S | E2: 100
A3: IPD014 | B3: iMONEY | C3: 2021-12-31 | D3: S | E3: 100
A4: IPD014 | B4: NRBF1 | C4: 2021-12-31 | D4: C | E4: 100
A5: IPD014 | B5: NRBF2 | C5: 2021-12-31 | D5: C | E5: 100

Sheet UTMC008
A1: IPD014 | B1: I-CASH | C1: 2021-12-31 | D1: MY | E1: MY | F1: 100
A2: IPD014 | B2: I-INCOME | C2: 2021-12-31 | D2: MY | E2: MY | F2: 100
A3: IPD014 | B3: iMONEY | C3: 2021-12-31 | D3: MY | E3: JP | F3: 0.68
A4: IPD014 | B4: iMONEY | C4: 2021-12-31 | D4: MY | E4: MY | F4: 99.32
A5: IPD014 | B5: NRBF1 | C5: 2021-12-31 | D5: MY | E5: MY | F5: 100
A6: IPD014 | B6: NRBF2 | C6: 2021-12-31 | D6: MY | E6: MY | F6: 100

Sheet UTMC009
A1: IPD014 | B1: I-CASH | C1: 2021-12-31 | D1: MYR | E1: 100
A2: IPD014 | B2: I-INCOME | C2: 2021-12-31 | D2: MYR | E2: 100
A3: IPD014 | B3: I-INCOME | C3: 2021-12-31 | D3: USD | E3: 100
A4: IPD014 | B4: iMONEY | C4: 2021-12-31 | D4: MYR | E4: 100
A5: IPD014 | B5: NRBF1 | C5: 2021-12-31 | D5: MYR | E5: 100
A6: IPD014 | B6: NRBF2 | C6: 2021-12-31 | D6: MYR | E6: 100

Sheet InFundGrp (hidden)
A1: qFundCode
A2: i-CASH
A3: i-INCOME2
A4: i-INCOME2H
A5: i-INCOME2I
A6: i-INCOME2S
A7: i-MONEY
A8: NGAWAF
A9: NGAWDF
A10: NGDBFM
A11: NGDBFU
A12: NGHM
A13: NGHU
A14: NGSEFA
A15: NGSEFB
A16: NRBF1
A17: NRBF2

Sheet InMstHst (hidden)
A1: MarketValueFC | B1: NAV | C1: PercNAV | D1: qFundCode | E1: FundName | F1: qStockCode | G1: qProductType | H1: SectorCode | I1: qAssetClass | J1: EPFType | K1: CountryCode | L1: ListedCountryCode | M1: CurrencyCode | N1: FundTotal | O1: Fund2Total | P1: MapAssetClass | Q1: MapFundCode
A2: 61988637.2 | B2: 64823289.04 | C2: 95.6271089 | D2: TADIF | E2: TA Asian Dividend Income Fund | F2: LU0264605907 | G2: EQT | H2: 27 | I2: FU | J2: C | K2: LU | L2: LU | M2: USD | N2: 64823289.04 | O2: 63849731.56 | P2: FU | Q2: =IFERROR(VLOOKUP(D:D,Mapping!C:C,2,0),D:D) -> TADIF
A3: 1861094.36 | B3: 64823289.04 | C3: 2.871027354 | D3: TADIF | E3: TA Asian Dividend Income Fund | F3: RPC*MYR*CIMB | G3: CSH | H3: 0 | I3: CSH | J3: C | K3: MY | M3: MYR | N3: 64823289.04 | O3: 63849731.56 | P3: MM | Q3: =IFERROR(VLOOKUP(D:D,Mapping!C:C,2,0),D:D) -> TADIF
A4: 2542047.6 | B4: 13533273.28 | C4: 18.78368631 | D4: TAIB | E4: TA Asia Pacific Islamic Balanced Fund | F4: VG180234 | G4: BND | H4: 25 | I4: BND | J4: S | K4: MY | M4: MYR | N4: 13533273.28 | O4: 11233943.79 | P4: BO | Q4: =IFERROR(VLOOKUP(D:D,Mapping!C:C,2,0),D:D) -> TAIB
A5: 2120409 | B5: 54493136.88 | C5: 3.891148723 | D5: TAICP | E5: TA Islamic CashPLUS Fund | F5: FDI*MYR*AIBB | G5: CSH | H5: 0 | I5: CSH | J5: S | K5: MY | M5: MYR | N5: 54493136.88 | O5: 54583998.25 | P5: MM | Q5: =IFERROR(VLOOKUP(D:D,Mapping!C:C,2,0),D:D) -> TAICP
A6: 1054583.46 | B6: 54493136.88 | C6: 1.935259228 | D6: TAICP | E6: TA Islamic CashPLUS Fund | F6: FDI*MYR*AIBB | G6: CSH | H6: 0 | I6: CSH | J6: S | K6: MY | M6: MYR | N6: 54493136.88 | O6: 54583998.25 | P6: MM | Q6: =IFERROR(VLOOKUP(D:D,Mapping!C:C,2,0),D:D) -> TAICP
A7: 1106369.83 | B7: 54493136.88 | C7: 2.030292058 | D7: TAICP | E7: TA Islamic CashPLUS Fund | F7: FDI*MYR*RHBISL | G7: CSH | H7: 0 | I7: CSH | J7: S | K7: MY | M7: MYR | N7: 54493136.88 | O7: 54583998.25 | P7: MM | Q7: =IFERROR(VLOOKUP(D:D,Mapping!C:C,2,0),D:D) -> TAICP
A8: 5035260.27 | B8: 54493136.88 | C8: 9.240173274 | D8: TAICP | E8: TA Islamic CashPLUS Fund | F8: FDI*MYR*PBBISL | G8: CSH | H8: 0 | I8: CSH | J8: S | K8: MY | M8: MYR | N8: 54493136.88 | O8: 54583998.25 | P8: MM | Q8: =IFERROR(VLOOKUP(D:D,Mapping!C:C,2,0),D:D) -> TAICP
A9: 5135965.48 | B9: 54493136.88 | C9: 9.424976748 | D9: TAICP | E9: TA Islamic CashPLUS Fund | F9: FDI*MYR*PBBISL | G9: CSH | H9: 0 | I9: CSH | J9: S | K9: MY | M9: MYR | N9: 54493136.88 | O9: 54583998.25 | P9: MM | Q9: =IFERROR(VLOOKUP(D:D,Mapping!C:C,2,0),D:D) -> TAICP
A10: 5039000 | B10: 54493136.88 | C10: 9.247036028 | D10: TAICP | E10: TA Islamic CashPLUS Fund | F10: FDI*MYR*AIBB | G10: CSH | H10: 0 | I10: CSH | J10: S | K10: MY | M10: MYR | N10: 54493136.88 | O10: 54583998.25 | P10: MM | Q10: =IFERROR(VLOOKUP(D:D,Mapping!C:C,2,0),D:D) -> TAICP
A11: 522188.42 | B11: 4680662.08 | C11: 11.15629394 | D11: TIF | E11: TA Income Fund | F11: FDC*MYR*KIBB | G11: CSH | H11: 0 | I11: CSH | J11: C | K11: MY | M11: MYR | N11: 4680662.08 | O11: 4592019.58 | P11: MM | Q11: =IFERROR(VLOOKUP(D:D,Mapping!C:C,2,0),D:D) -> TIF
A12: 521481.55 | B12: 4680662.08 | C12: 11.14119202 | D12: TIF | E12: TA Income Fund | F12: FDC*MYR*RHB | G12: CSH | H12: 0 | I12: CSH | J12: C | K12: MY | M12: MYR | N12: 4680662.08 | O12: 4592019.58 | P12: MM | Q12: =IFERROR(VLOOKUP(D:D,Mapping!C:C,2,0),D:D) -> TIF
A13: 4239164.22 | B13: 54493136.88 | C13: 7.779262606 | D13: TAICP | E13: TA Islamic CashPLUS Fund | F13: FDI*MYR*BML | G13: CSH | H13: 0 | I13: CSH | J13: S | K13: MY | M13: MYR | N13: 54493136.88 | O13: 54583998.25 | P13: MM | Q13: =IFERROR(VLOOKUP(D:D,Mapping!C:C,2,0),D:D) -> TAICP
A14: 1188880.06 | B14: 8800546.1 | C14: 13.50916235 | D14: TADF | E14: TA Dana Fokus | F14: RPI*MYR*HLIB | G14: CSH | H14: 0 | I14: CSH | J14: S | K14: MY | M14: MYR | N14: 8800546.1 | O14: 8832895.25 | P14: MM | Q14: =IFERROR(VLOOKUP(D:D,Mapping!C:C,2,0),D:D) -> TADF
A15: 6169453.15 | B15: 51011969.02 | C15: 12.09412863 | D15: TAIF | E15: TA Islamic Fund | F15: RPI*MYR*CIMBIS | G15: CSH | H15: 0 | I15: CSH | J15: S | K15: MY | M15: MYR | N15: 51011969.02 | O15: 50003034.56 | P15: MM | Q15: =IFERROR(VLOOKUP(D:D,Mapping!C:C,2,0),D:D) -> TAIF
A16: 892289.69 | B16: 4680662.08 | C16: 19.06332213 | D16: TIF | E16: TA Income Fund | F16: RPC*MYR*CIMB | G16: CSH | H16: 0 | I16: CSH | J16: C | K16: MY | M16: MYR | N16: 4680662.08 | O16: 4592019.58 | P16: MM | Q16: =IFERROR(VLOOKUP(D:D,Mapping!C:C,2,0),D:D) -> TIF
A17: 175012.71 | B17: 40974515.97 | C17: 0.4271257533 | D17: TAEURO | E17: TA European Equity Fund | F17: RPC*MYR*CIMB | G17: CSH | H17: 0 | I17: CSH | J17: C | K17: MY | M17: MYR | N17: 40974515.97 | O17: 40063603.74 | P17: MM | Q17: =IFERROR(VLOOKUP(D:D,Mapping!C:C,2,0),D:D) -> TAEURO
A18: 2075453.94 | B18: 15993997.03 | C18: 12.9764557 | D18: TACF | E18: TA Comet Fund | F18: RPC*MYR*CIMB | G18: CSH | H18: 0 | I18: CSH | J18: C | K18: MY | M18: MYR | N18: 15993997.03 | O18: 15376304.96 | P18: MM | Q18: =IFERROR(VLOOKUP(D:D,Mapping!C:C,2,0),D:D) -> TACF
A19: 1338318.2 | B19: 20093398.48 | C19: 6.660487032 | D19: TADO | E19: TA Dana Optimix | F19: RPI*MYR*CIMBIS | G19: CSH | H19: 0 | I19: CSH | J19: S | K19: MY | M19: MYR | N19: 20093398.48 | O19: 20512630.8 | P19: MM | Q19: =IFERROR(VLOOKUP(D:D,Mapping!C:C,2,0),D:D) -> TADO
A20: 2273378 | B20: 26924680.92 | C20: 8.443472392 | D20: TAGF | E20: TA Growth Fund | F20: RPC*MYR*CIMB | G20: CSH | H20: 0 | I20: CSH | J20: C | K20: MY | M20: MYR | N20: 26924680.92 | O20: 25565244.89 | P20: MM | Q20: =IFERROR(VLOOKUP(D:D,Mapping!C:C,2,0),D:D) -> TAGF
A21: 190472.9 | B21: 13533273.28 | C21: 1.407441467 | D21: TAIB | E21: TA Asia Pacific Islamic Balanced Fund | F21: RPI*MYR*CIMBIS | G21: CSH | H21: 0 | I21: CSH | J21: S | K21: MY | M21: MYR | N21: 13533273.28 | O21: 11233943.79 | P21: MM | Q21: =IFERROR(VLOOKUP(D:D,Mapping!C:C,2,0),D:D) -> TAIB
A22: 6967371.63 | B22: 54493136.88 | C22: 12.78577823 | D22: TAICP | E22: TA Islamic CashPLUS Fund | F22: RPI*MYR*CIMBIS | G22: CSH | H22: 0 | I22: CSH | J22: S | K22: MY | M22: MYR | N22: 54493136.88 | O22: 54583998.25 | P22: MM | Q22: =IFERROR(VLOOKUP(D:D,Mapping!C:C,2,0),D:D) -> TAICP
A23: 5809599.77 | B23: 54493136.88 | C23: 10.66115864 | D23: TAICP | E23: TA Islamic CashPLUS Fund | F23: RPI*MYR*KSPI | G23: CSH | H23: 0 | I23: CSH | J23: S | K23: MY | M23: MYR | N23: 54493136.88 | O23: 54583998.25 | P23: MM | Q23: =IFERROR(VLOOKUP(D:D,Mapping!C:C,2,0),D:D) -> TAICP
A24: 4904476.23 | B24: 54493136.88 | C24: 9.000172335 | D24: TAICP | E24: TA Islamic CashPLUS Fund | F24: RPI*MYR*KSPI | G24: CSH | H24: 0 | I24: CSH | J24: S | K24: MY | M24: MYR | N24: 54493136.88 | O24: 54583998.25 | P24: MM | Q24: =IFERROR(VLOOKUP(D:D,Mapping!C:C,2,0),D:D) -> TAICP
A25: 7997153.62 | B25: 54493136.88 | C25: 14.67552444 | D25: TAICP | E25: TA Islamic CashPLUS Fund | F25: RPI*MYR*MIDF S | G25: CSH | H25: 0 | I25: CSH | J25: S | K25: MY | M25: MYR | N25: 54493136.88 | O25: 54583998.25 | P25: MM | Q25: =IFERROR(VLOOKUP(D:D,Mapping!C:C,2,0),D:D) -> TAICP
A26: 5174644.74 | B26: 54493136.88 | C26: 9.495956805 | D26: TAICP | E26: TA Islamic CashPLUS Fund | F26: RPI*MYR*BML | G26: CSH | H26: 0 | I26: CSH | J26: S | K26: MY | M26: MYR | N26: 54493136.88 | O26: 54583998.25 | P26: MM | Q26: =IFERROR(VLOOKUP(D:D,Mapping!C:C,2,0),D:D) -> TAICP
A27: 190013.79 | B27: 6406953.28 | C27: 2.965743337 | D27: TASF | E27: TA Small Cap Fund | F27: RPC*MYR*CIMB | G27: CSH | H27: 0 | I27: CSH | J27: C | K27: MY | M27: MYR | N27: 6406953.28 | O27: 6162226.2 | P27: MM | Q27: =IFERROR(VLOOKUP(D:D,Mapping!C:C,2,0),D:D) -> TASF
A28: 257400 | B28: 15993997.03 | C28: 1.609353806 | D28: TACF | E28: TA Comet Fund | F28: 1900-05-07 | G28: EQT | H28: 4 | I28: EQT | J28: C | K28: MY | L28: MY | M28: MYR | N28: 15993997.03 | O28: 15376304.96 | P28: EQ | Q28: =IFERROR(VLOOKUP(D:D,Mapping!C:C,2,0),D:D) -> TACF
A29: 715332.85 | B29: 15993997.03 | C29: 4.472508333 | D29: TACF | E29: TA Comet Fund | F29: 1900-05-25 | G29: EQT | H29: 4 | I29: EQT | J29: C | K29: MY | L29: MY | M29: MYR | N29: 15993997.03 | O29: 15376304.96 | P29: EQ | Q29: =IFERROR(VLOOKUP(D:D,Mapping!C:C,2,0),D:D) -> TACF
A30: 299200 | B30: 15993997.03 | C30: 1.87070186 | D30: TACF | E30: TA Comet Fund | F30: 1900-06-14 | G30: EQT | H30: 4 | I30: EQT | J30: C | K30: MY | L30: MY | M30: MYR | N30: 15993997.03 | O30: 15376304.96 | P30: EQ | Q30: =IFERROR(VLOOKUP(D:D,Mapping!C:C,2,0),D:D) -> TACF
A31: 523160 | B31: 15993997.03 | C31: 3.270977224 | D31: TACF | E31: TA Comet Fund | F31: 1900-06-20 | G31: EQT | H31: 3 | I31: EQT | J31: C | K31: MY | L31: MY | M31: MYR | N31: 15993997.03 | O31: 15376304.96 | P31: EQ | Q31: =IFERROR(VLOOKUP(D:D,Mapping!C:C,2,0),D:D) -> TACF
A32: 745401.21 | B32: 15993997.03 | C32: 4.660506117 | D32: TACF | E32: TA Comet Fund | F32: 1902-10-19 | G32: EQT | H32: 16 | I32: EQT | J32: C | K32: MY | L32: MY | M32: MYR | N32: 15993997.03 | O32: 15376304.96 | P32: EQ | Q32: =IFERROR(VLOOKUP(D:D,Mapping!C:C,2,0),D:D) -> TACF
A33: 1419097.77 | B33: 15993997.03 | C33: 8.872689968 | D33: TACF | E33: TA Comet Fund | F33: 1903-02-28 | G33: EQT | H33: 16 | I33: EQT | J33: C | K33: MY | L33: MY | M33: MYR | N33: 15993997.03 | O33: 15376304.96 | P33: EQ | Q33: =IFERROR(VLOOKUP(D:D,Mapping!C:C,2,0),D:D) -> TACF
A34: 1203420 | B34: 15993997.03 | C34: 7.524197971 | D34: TACF | E34: TA Comet Fund | F34: 1903-07-18 | G34: EQT | H34: 16 | I34: EQT | J34: C | K34: MY | L34: MY | M34: MYR | N34: 15993997.03 | O34: 15376304.96 | P34: EQ | Q34: =IFERROR(VLOOKUP(D:D,Mapping!C:C,2,0),D:D) -> TACF
A35: 559900 | B35: 15993997.03 | C35: 3.500688408 | D35: TACF | E35: TA Comet Fund | F35: 1908-09-16 | G35: EQT | H35: 9 | I35: EQT | J35: C | K35: MY | L35: MY | M35: MYR | N35: 15993997.03 | O35: 15376304.96 | P35: EQ | Q35: =IFERROR(VLOOKUP(D:D,Mapping!C:C,2,0),D:D) -> TACF
A36: 315350 | B36: 15993997.03 | C36: 1.971677245 | D36: TACF | E36: TA Comet Fund | F36: 1910-08-02 | G36: EQT | H36: 4 | I36: EQT | J36: C | K36: MY | L36: MY | M36: MYR | N36: 15993997.03 | O36: 15376304.96 | P36: EQ | Q36: =IFERROR(VLOOKUP(D:D,Mapping!C:C,2,0),D:D) -> TACF
A37: 175895 | B37: 15993997.03 | C37: 1.099756363 | D37: TACF | E37: TA Comet Fund | F37: 1914-01-27 | G37: EQT | H37: 43 | I37: EQT | J37: C | K37: MY | L37: MY | M37: MYR | N37: 15993997.03 | O37: 15376304.96 | P37: EQ | Q37: =IFERROR(VLOOKUP(D:D,Mapping!C:C,2,0),D:D) -> TACF
A38: 309500 | B38: 15993997.03 | C38: 1.935101022 | D38: TACF | E38: TA Comet Fund | F38: 1914-03-10 | G38: EQT | H38: 1 | I38: EQT | J38: C | K38: MY | L38: MY | M38: MYR | N38: 15993997.03 | O38: 15376304.96 | P38: EQ | Q38: =IFERROR(VLOOKUP(D:D,Mapping!C:C,2,0),D:D) -> TACF
A39: 191250 | B39: 15993997.03 | C39: 1.195761132 | D39: TACF | E39: TA Comet Fund | F39: 1914-03-26 | G39: EQT | H39: 43 | I39: EQT | J39: C | K39: MY | L39: MY | M39: MYR | N39: 15993997.03 | O39: 15376304.96 | P39: EQ | Q39: =IFERROR(VLOOKUP(D:D,Mapping!C:C,2,0),D:D) -> TACF
A40: 345150 | B40: 15993997.03 | C40: 2.15799715 | D40: TACF | E40: TA Comet Fund | F40: 1914-05-15 | G40: EQT | H40: 15 | I40: EQT | J40: C | K40: MY | L40: MY | M40: MYR | N40: 15993997.03 | O40: 15376304.96 | P40: EQ | Q40: =IFERROR(VLOOKUP(D:D,Mapping!C:C,2,0),D:D) -> TACF
A41: 154800 | B41: 15993997.03 | C41: 0.9678631283 | D41: TACF | E41: TA Comet Fund | F41: 1914-06-27 | G41: EQT | H41: 5 | I41: EQT | J41: C | K41: MY | L41: MY | M41: MYR | N41: 15993997.03 | O41: 15376304.96 | P41: EQ | Q41: =IFERROR(VLOOKUP(D:D,Mapping!C:C,2,0),D:D) -> TACF
A42: 1273412 | B42: 15993997.03 | C42: 7.961812157 | D42: TACF | E42: TA Comet Fund | F42: 1914-08-21 | G42: EQT | H42: 2 | I42: EQT | J42: C | K42: MY | L42: MY | M42: MYR | N42: 15993997.03 | O42: 15376304.96 | P42: EQ | Q42: =IFERROR(VLOOKUP(D:D,Mapping!C:C,2,0),D:D) -> TACF
A43: 540000 | B43: 15993997.03 | C43: 3.376266727 | D43: TACF | E43: TA Comet Fund | F43: 1919-01-23 | G43: EQT | H43: 0 | I43: EQT | J43: C | K43: MY | L43: MY | M43: MYR | N43: 15993997.03 | O43: 15376304.96 | P43: EQ | Q43: =IFERROR(VLOOKUP(D:D,Mapping!C:C,2,0),D:D) -> TACF
A44: 821700 | B44: 15993997.03 | C44: 5.137552536 | D44: TACF | E44: TA Comet Fund | F44: 1919-05-24 | G44: EQT | H44: 9 | I44: EQT | J44: C | K44: MY | L44: MY | M44: MYR | N44: 15993997.03 | O44: 15376304.96 | P44: EQ | Q44: =IFERROR(VLOOKUP(D:D,Mapping!C:C,2,0),D:D) -> TACF
A45: 343200 | B45: 15993997.03 | C45: 2.145805075 | D45: TACF | E45: TA Comet Fund | F45: 1919-06-09 | G45: EQT | H45: 4 | I45: EQT | J45: C | K45: MY | L45: MY | M45: MYR | N45: 15993997.03 | O45: 15376304.96 | P45: EQ | Q45: =IFERROR(VLOOKUP(D:D,Mapping!C:C,2,0),D:D) -> TACF
A46: 144644.58 | B46: 15993997.03 | C46: 0.9043679308 | D46: TACF | E46: TA Comet Fund | F46: 1919-06-15 | G46: EQT | H46: 48 | I46: EQT | J46: C | K46: MY | L46: MY | M46: MYR | N46: 15993997.03 | O46: 15376304.96 | P46: EQ | Q46: =IFERROR(VLOOKUP(D:D,Mapping!C:C,2,0),D:D) -> TACF
A47: 311500 | B47: 15993997.03 | C47: 1.947605714 | D47: TACF | E47: TA Comet Fund | F47: 1919-06-17 | G47: EQT | H47: 1 | I47: EQT | J47: C | K47: MY | L47: MY | M47: MYR | N47: 15993997.03 | O47: 15376304.96 | P47: EQ | Q47: =IFERROR(VLOOKUP(D:D,Mapping!C:C,2,0),D:D) -> TACF
A48: 301000 | B48: 15993997.03 | C48: 1.881956083 | D48: TACF | E48: TA Comet Fund | F48: 7108PA | G48: EQT | H48: 1 | I48: EQT | J48: C | K48: MY | L48: MY | M48: MYR | N48: 15993997.03 | O48: 15376304.96 | P48: EQ | Q48: =IFERROR(VLOOKUP(D:D,Mapping!C:C,2,0),D:D) -> TACF
A49: 470340 | B49: 15993997.03 | C49: 2.940728319 | D49: TACF | E49: TA Comet Fund | F49: 1919-06-22 | G49: EQT | H49: 48 | I49: EQT | J49: C | K49: MY | L49: MY | M49: MYR | N49: 15993997.03 | O49: 15376304.96 | P49: EQ | Q49: =IFERROR(VLOOKUP(D:D,Mapping!C:C,2,0),D:D) -> TACF
A50: 221897.4 | B50: 15993997.03 | C50: 1.387379275 | D50: TACF | E50: TA Comet Fund | F50: AU000000CMA4 | G50: EQT | H50: 40 | I50: EQT | J50: C | K50: AU | L50: AU | M50: AUD | N50: 15993997.03 | O50: 15376304.96 | P50: EQ | Q50: =IFERROR(VLOOKUP(D:D,Mapping!C:C,2,0),D:D) -> TACF
A51: 274997.18 | B51: 15993997.03 | C51: 1.719377461 | D51: TACF | E51: TA Comet Fund | F51: AU000000S320 | G51: EQT | H51: 5 | I51: EQT | J51: C | K51: AU | L51: AU | M51: AUD | N51: 15993997.03 | O51: 15376304.96 | P51: EQ | Q51: =IFERROR(VLOOKUP(D:D,Mapping!C:C,2,0),D:D) -> TACF
A52: 641313.4 | B52: 15993997.03 | C52: 4.009713137 | D52: TACF | E52: TA Comet Fund | F52: KYG699761014 | G52: EQT | H52: 4 | I52: EQT | J52: C | K52: HK | L52: HK | M52: HKD | N52: 15993997.03 | O52: 15376304.96 | P52: EQ | Q52: =IFERROR(VLOOKUP(D:D,Mapping!C:C,2,0),D:D) -> TACF
A53: 455121.15 | B53: 15993997.03 | C53: 2.845574806 | D53: TACF | E53: TA Comet Fund | F53: SGXC75818630 | G53: EQT | H53: 40 | I53: EQT | J53: C | K53: SG | L53: SG | M53: USD | N53: 15993997.03 | O53: 15376304.96 | P53: EQ | Q53: =IFERROR(VLOOKUP(D:D,Mapping!C:C,2,0),D:D) -> TACF
A54: 286868.48 | B54: 15993997.03 | C54: 1.793600933 | D54: TACF | E54: TA Comet Fund | F54: TAREITS | G54: EQT | H54: 31 | I54: FU | J54: C | K54: MY | L54: MY | M54: MYR | N54: 15993997.03 | O54: 15376304.96 | P54: FU | Q54: =IFERROR(VLOOKUP(D:D,Mapping!C:C,2,0),D:D) -> TACF
A55: 112500 | B55: 8800546.1 | C55: 1.278329762 | D55: TADF | E55: TA Dana Fokus | F55: 1900-03-20 | G55: EQT | H55: 0 | I55: EQT | J55: S | K55: MY | L55: MY | M55: MYR | N55: 8800546.1 | O55: 8832895.25 | P55: EQ | Q55: =IFERROR(VLOOKUP(D:D,Mapping!C:C,2,0),D:D) -> TADF
A56: 702000 | B56: 8800546.1 | C56: 7.976777714 | D56: TADF | E56: TA Dana Fokus | F56: 1900-05-07 | G56: EQT | H56: 4 | I56: EQT | J56: S | K56: MY | L56: MY | M56: MYR | N56: 8800546.1 | O56: 8832895.25 | P56: EQ | Q56: =IFERROR(VLOOKUP(D:D,Mapping!C:C,2,0),D:D) -> TADF
A57: 208000 | B57: 8800546.1 | C57: 2.363489693 | D57: TADF | E57: TA Dana Fokus | F57: 1900-05-17 | G57: EQT | H57: 21 | I57: EQT | J57: S | K57: MY | L57: MY | M57: MYR | N57: 8800546.1 | O57: 8832895.25 | P57: EQ | Q57: =IFERROR(VLOOKUP(D:D,Mapping!C:C,2,0),D:D) -> TADF
A58: 492000 | B58: 8800546.1 | C58: 5.590562158 | D58: TADF | E58: TA Dana Fokus | F58: 1900-05-30 | G58: EQT | H58: 5 | I58: EQT | J58: S | K58: MY | L58: MY | M58: MYR | N58: 8800546.1 | O58: 8832895.25 | P58: EQ | Q58: =IFERROR(VLOOKUP(D:D,Mapping!C:C,2,0),D:D) -> TADF
A59: 150590 | B59: 8800546.1 | C59: 1.711143812 | D59: TADF | E59: TA Dana Fokus | F59: 1900-06-26 | G59: EQT | H59: 12 | I59: EQT | J59: S | K59: MY | L59: MY | M59: MYR | N59: 8800546.1 | O59: 8832895.25 | P59: EQ | Q59: =IFERROR(VLOOKUP(D:D,Mapping!C:C,2,0),D:D) -> TADF
A60: 500010 | B60: 8800546.1 | C60: 5.681579237 | D60: TADF | E60: TA Dana Fokus | F60: 1900-07-04 | G60: EQT | H60: 9 | I60: EQT | J60: S | K60: MY | L60: MY | M60: MYR | N60: 8800546.1 | O60: 8832895.25 | P60: EQ | Q60: =IFERROR(VLOOKUP(D:D,Mapping!C:C,2,0),D:D) -> TADF
A61: 227000 | B61: 8800546.1 | C61: 2.579385386 | D61: TADF | E61: TA Dana Fokus | F61: 1904-06-06 | G61: EQT | H61: 7 | I61: EQT | J61: S | K61: MY | L61: MY | M61: MYR | N61: 8800546.1 | O61: 8832895.25 | P61: EQ | Q61: =IFERROR(VLOOKUP(D:D,Mapping!C:C,2,0),D:D) -> TADF
A62: 82500 | B62: 8800546.1 | C62: 0.9374418253 | D62: TADF | E62: TA Dana Fokus | F62: 1907-08-02 | G62: EQT | H62: 7 | I62: EQT | J62: S | K62: MY | L62: MY | M62: MYR | N62: 8800546.1 | O62: 8832895.25 | P62: EQ | Q62: =IFERROR(VLOOKUP(D:D,Mapping!C:C,2,0),D:D) -> TADF
A63: 172800 | B63: 8800546.1 | C63: 1.963514514 | D63: TADF | E63: TA Dana Fokus | F63: 1907-10-22 | G63: EQT | H63: 5 | I63: EQT | J63: S | K63: MY | L63: MY | M63: MYR | N63: 8800546.1 | O63: 8832895.25 | P63: EQ | Q63: =IFERROR(VLOOKUP(D:D,Mapping!C:C,2,0),D:D) -> TADF
A64: 181000 | B64: 8800546.1 | C64: 2.05669055 | D64: TADF | E64: TA Dana Fokus | F64: 1912-12-13 | G64: EQT | H64: 0 | I64: EQT | J64: S | K64: MY | L64: MY | M64: MYR | N64: 8800546.1 | O64: 8832895.25 | P64: EQ | Q64: =IFERROR(VLOOKUP(D:D,Mapping!C:C,2,0),D:D) -> TADF
A65: 73225 | B65: 8800546.1 | C65: 0.8320506383 | D65: TADF | E65: TA Dana Fokus | F65: 1914-01-01 | G65: EQT | H65: 0 | I65: EQT | J65: S | K65: MY | L65: MY | M65: MYR | N65: 8800546.1 | O65: 8832895.25 | P65: EQ | Q65: =IFERROR(VLOOKUP(D:D,Mapping!C:C,2,0),D:D) -> TADF
A66: 224960 | B66: 8800546.1 | C66: 2.556205006 | D66: TADF | E66: TA Dana Fokus | F66: 1914-02-23 | G66: EQT | H66: 48 | I66: EQT | J66: S | K66: MY | L66: MY | M66: MYR | N66: 8800546.1 | O66: 8832895.25 | P66: EQ | Q66: =IFERROR(VLOOKUP(D:D,Mapping!C:C,2,0),D:D) -> TADF
A67: 170000 | B67: 8800546.1 | C67: 1.931698307 | D67: TADF | E67: TA Dana Fokus | F67: 1914-03-26 | G67: EQT | H67: 43 | I67: EQT | J67: S | K67: MY | L67: MY | M67: MYR | N67: 8800546.1 | O67: 8832895.25 | P67: EQ | Q67: =IFERROR(VLOOKUP(D:D,Mapping!C:C,2,0),D:D) -> TADF
A68: 186000 | B68: 8800546.1 | C68: 2.113505206 | D68: TADF | E68: TA Dana Fokus | F68: 1914-05-19 | G68: EQT | H68: 8 | I68: EQT | J68: S | K68: MY | L68: MY | M68: MYR | N68: 8800546.1 | O68: 8832895.25 | P68: EQ | Q68: =IFERROR(VLOOKUP(D:D,Mapping!C:C,2,0),D:D) -> TADF
A69: 165264 | B69: 8800546.1 | C69: 1.877883465 | D69: TADF | E69: TA Dana Fokus | F69: 1914-05-22 | G69: EQT | H69: 1 | I69: EQT | J69: S | K69: MY | L69: MY | M69: MYR | N69: 8800546.1 | O69: 8832895.25 | P69: EQ | Q69: =IFERROR(VLOOKUP(D:D,Mapping!C:C,2,0),D:D) -> TADF
A70: 329430 | B70: 8800546.1 | C70: 3.743290431 | D70: TADF | E70: TA Dana Fokus | F70: 1914-05-24 | G70: EQT | H70: 16 | I70: EQT | J70: S | K70: MY | L70: MY | M70: MYR | N70: 8800546.1 | O70: 8832895.25 | P70: EQ | Q70: =IFERROR(VLOOKUP(D:D,Mapping!C:C,2,0),D:D) -> TADF
A71: 109500 | B71: 8800546.1 | C71: 1.244240968 | D71: TADF | E71: TA Dana Fokus | F71: 1914-06-12 | G71: EQT | H71: 4 | I71: EQT | J71: S | K71: MY | L71: MY | M71: MYR | N71: 8800546.1 | O71: 8832895.25 | P71: EQ | Q71: =IFERROR(VLOOKUP(D:D,Mapping!C:C,2,0),D:D) -> TADF
A72: 793800 | B72: 8800546.1 | C72: 9.019894799 | D72: TADF | E72: TA Dana Fokus | F72: 1914-06-14 | G72: EQT | H72: 43 | I72: EQT | J72: S | K72: MY | L72: MY | M72: MYR | N72: 8800546.1 | O72: 8832895.25 | P72: EQ | Q72: =IFERROR(VLOOKUP(D:D,Mapping!C:C,2,0),D:D) -> TADF
A73: 33768 | B73: 8800546.1 | C73: 0.3837034613 | D73: TADF | E73: TA Dana Fokus | F73: 5279WA | G73: EQT | H73: 43 | I73: DEV | J73: S | K73: MY | L73: MY | M73: MYR | N73: 8800546.1 | O73: 8832895.25 | P73: DE | Q73: =IFERROR(VLOOKUP(D:D,Mapping!C:C,2,0),D:D) -> TADF
A74: 696600 | B74: 8800546.1 | C74: 7.915417885 | D74: TADF | E74: TA Dana Fokus | F74: 1914-06-27 | G74: EQT | H74: 5 | I74: EQT | J74: S | K74: MY | L74: MY | M74: MYR | N74: 8800546.1 | O74: 8832895.25 | P74: EQ | Q74: =IFERROR(VLOOKUP(D:D,Mapping!C:C,2,0),D:D) -> TADF
A75: 747600 | B75: 8800546.1 | C75: 8.494927377 | D75: TADF | E75: TA Dana Fokus | F75: 1914-08-21 | G75: EQT | H75: 2 | I75: EQT | J75: S | K75: MY | L75: MY | M75: MYR | N75: 8800546.1 | O75: 8832895.25 | P75: EQ | Q75: =IFERROR(VLOOKUP(D:D,Mapping!C:C,2,0),D:D) -> TADF
A76: 196000 | B76: 8800546.1 | C76: 2.227134518 | D76: TADF | E76: TA Dana Fokus | F76: 1916-02-03 | G76: EQT | H76: 48 | I76: EQT | J76: S | K76: MY | L76: MY | M76: MYR | N76: 8800546.1 | O76: 8832895.25 | P76: EQ | Q76: =IFERROR(VLOOKUP(D:D,Mapping!C:C,2,0),D:D) -> TADF
A77: 251694 | B77: 8800546.1 | C77: 2.85998161 | D77: TADF | E77: TA Dana Fokus | F77: 1916-06-16 | G77: EQT | H77: 3 | I77: EQT | J77: S | K77: MY | L77: MY | M77: MYR | N77: 8800546.1 | O77: 8832895.25 | P77: EQ | Q77: =IFERROR(VLOOKUP(D:D,Mapping!C:C,2,0),D:D) -> TADF
A78: 306984.19 | B78: 8800546.1 | C78: 3.488240235 | D78: TADF | E78: TA Dana Fokus | F78: 1919-08-22 | G78: EQT | H78: 0 | I78: EQT | J78: S | K78: MY | L78: MY | M78: MYR | N78: 8800546.1 | O78: 8832895.25 | P78: EQ | Q78: =IFERROR(VLOOKUP(D:D,Mapping!C:C,2,0),D:D) -> TADF
A79: 115500 | B79: 8800546.1 | C79: 1.312418555 | D79: TADF | E79: TA Dana Fokus | F79: 1919-10-28 | G79: EQT | H79: 5 | I79: EQT | J79: S | K79: MY | L79: MY | M79: MYR | N79: 8800546.1 | O79: 8832895.25 | P79: EQ | Q79: =IFERROR(VLOOKUP(D:D,Mapping!C:C,2,0),D:D) -> TADF
A80: 415290 | B80: 8800546.1 | C80: 4.718911705 | D80: TADF | E80: TA Dana Fokus | F80: 1919-12-03 | G80: EQT | H80: 43 | I80: EQT | J80: S | K80: MY | L80: MY | M80: MYR | N80: 8800546.1 | O80: 8832895.25 | P80: EQ | Q80: =IFERROR(VLOOKUP(D:D,Mapping!C:C,2,0),D:D) -> TADF
A81: 513000 | B81: 20093398.48 | C81: 2.553077323 | D81: TADO | E81: TA Dana Optimix | F81: 1900-01-10 | G81: EQT | H81: 0 | I81: EQT | J81: S | K81: MY | L81: MY | M81: MYR | N81: 20093398.48 | O81: 20512630.8 | P81: EQ | Q81: =IFERROR(VLOOKUP(D:D,Mapping!C:C,2,0),D:D) -> TADO
A82: 533910 | B82: 20093398.48 | C82: 2.657141352 | D82: TADO | E82: TA Dana Optimix | F82: 1900-04-07 | G82: EQT | H82: 4 | I82: EQT | J82: S | K82: MY | L82: MY | M82: MYR | N82: 20093398.48 | O82: 20512630.8 | P82: EQ | Q82: =IFERROR(VLOOKUP(D:D,Mapping!C:C,2,0),D:D) -> TADO
A83: 615420 | B83: 20093398.48 | C83: 3.062796971 | D83: TADO | E83: TA Dana Optimix | F83: 1900-05-07 | G83: EQT | H83: 4 | I83: EQT | J83: S | K83: MY | L83: MY | M83: MYR | N83: 20093398.48 | O83: 20512630.8 | P83: EQ | Q83: =IFERROR(VLOOKUP(D:D,Mapping!C:C,2,0),D:D) -> TADO
A84: 124800 | B84: 20093398.48 | C84: 0.6210995125 | D84: TADO | E84: TA Dana Optimix | F84: 1900-05-17 | G84: EQT | H84: 21 | I84: EQT | J84: S | K84: MY | L84: MY | M84: MYR | N84: 20093398.48 | O84: 20512630.8 | P84: EQ | Q84: =IFERROR(VLOOKUP(D:D,Mapping!C:C,2,0),D:D) -> TADO
A85: 1040325.7 | B85: 20093398.48 | C85: 5.177450201 | D85: TADO | E85: TA Dana Optimix | F85: 1900-05-25 | G85: EQT | H85: 4 | I85: EQT | J85: S | K85: MY | L85: MY | M85: MYR | N85: 20093398.48 | O85: 20512630.8 | P85: EQ | Q85: =IFERROR(VLOOKUP(D:D,Mapping!C:C,2,0),D:D) -> TADO
A86: 830988 | B86: 20093398.48 | C86: 4.135626937 | D86: TADO | E86: TA Dana Optimix | F86: 1900-05-30 | G86: EQT | H86: 5 | I86: EQT | J86: S | K86: MY | L86: MY | M86: MYR | N86: 20093398.48 | O86: 20512630.8 | P86: EQ | Q86: =IFERROR(VLOOKUP(D:D,Mapping!C:C,2,0),D:D) -> TADO
A87: 545600 | B87: 20093398.48 | C87: 2.715319664 | D87: TADO | E87: TA Dana Optimix | F87: 1900-06-14 | G87: EQT | H87: 4 | I87: EQT | J87: S | K87: MY | L87: MY | M87: MYR | N87: 20093398.48 | O87: 20512630.8 | P87: EQ | Q87: =IFERROR(VLOOKUP(D:D,Mapping!C:C,2,0),D:D) -> TADO
A88: 443236 | B88: 20093398.48 | C88: 2.205878714 | D88: TADO | E88: TA Dana Optimix | F88: 1900-06-20 | G88: EQT | H88: 3 | I88: EQT | J88: S | K88: MY | L88: MY | M88: MYR | N88: 20093398.48 | O88: 20512630.8 | P88: EQ | Q88: =IFERROR(VLOOKUP(D:D,Mapping!C:C,2,0),D:D) -> TADO
A89: 243250 | B89: 20093398.48 | C89: 1.210596606 | D89: TADO | E89: TA Dana Optimix | F89: 1900-06-27 | G89: EQT | H89: 9 | I89: EQT | J89: S | K89: MY | L89: MY | M89: MYR | N89: 20093398.48 | O89: 20512630.8 | P89: EQ | Q89: =IFERROR(VLOOKUP(D:D,Mapping!C:C,2,0),D:D) -> TADO
A90: 235894 | B90: 20093398.48 | C90: 1.173987567 | D90: TADO | E90: TA Dana Optimix | F90: 1900-07-03 | G90: EQT | H90: 5 | I90: EQT | J90: S | K90: MY | L90: MY | M90: MYR | N90: 20093398.48 | O90: 20512630.8 | P90: EQ | Q90: =IFERROR(VLOOKUP(D:D,Mapping!C:C,2,0),D:D) -> TADO
A91: 210000 | B91: 20093398.48 | C91: 1.045119372 | D91: TADO | E91: TA Dana Optimix | F91: 1900-07-04 | G91: EQT | H91: 9 | I91: EQT | J91: S | K91: MY | L91: MY | M91: MYR | N91: 20093398.48 | O91: 20512630.8 | P91: EQ | Q91: =IFERROR(VLOOKUP(D:D,Mapping!C:C,2,0),D:D) -> TADO
A92: 636962 | B92: 20093398.48 | C92: 3.170006311 | D92: TADO | E92: TA Dana Optimix | F92: 1905-05-14 | G92: EQT | H92: 14 | I92: EQT | J92: S | K92: MY | L92: MY | M92: MYR | N92: 20093398.48 | O92: 20512630.8 | P92: EQ | Q92: =IFERROR(VLOOKUP(D:D,Mapping!C:C,2,0),D:D) -> TADO
A93: 218000 | B93: 20093398.48 | C93: 1.084933443 | D93: TADO | E93: TA Dana Optimix | F93: 1911-06-28 | G93: EQT | H93: 7 | I93: EQT | J93: S | K93: MY | L93: MY | M93: MYR | N93: 20093398.48 | O93: 20512630.8 | P93: EQ | Q93: =IFERROR(VLOOKUP(D:D,Mapping!C:C,2,0),D:D) -> TADO
A94: 760628.44 | B94: 20093398.48 | C94: 3.785464369 | D94: TADO | E94: TA Dana Optimix | F94: 1913-04-24 | G94: EQT | H94: 3 | I94: EQT | J94: S | K94: MY | L94: MY | M94: MYR | N94: 20093398.48 | O94: 20512630.8 | P94: EQ | Q94: =IFERROR(VLOOKUP(D:D,Mapping!C:C,2,0),D:D) -> TADO
A95: 193924.5 | B95: 20093398.48 | C95: 0.965115484 | D95: TADO | E95: TA Dana Optimix | F95: 1913-11-01 | G95: EQT | H95: 0 | I95: EQT | J95: S | K95: MY | L95: MY | M95: MYR | N95: 20093398.48 | O95: 20512630.8 | P95: EQ | Q95: =IFERROR(VLOOKUP(D:D,Mapping!C:C,2,0),D:D) -> TADO
A96: 224866 | B96: 20093398.48 | C96: 1.11910387 | D96: TADO | E96: TA Dana Optimix | F96: 1914-01-01 | G96: EQT | H96: 0 | I96: EQT | J96: S | K96: MY | L96: MY | M96: MYR | N96: 20093398.48 | O96: 20512630.8 | P96: EQ | Q96: =IFERROR(VLOOKUP(D:D,Mapping!C:C,2,0),D:D) -> TADO
A97: 860085 | B97: 20093398.48 | C97: 4.280435691 | D97: TADO | E97: TA Dana Optimix | F97: 1914-01-27 | G97: EQT | H97: 43 | I97: EQT | J97: S | K97: MY | L97: MY | M97: MYR | N97: 20093398.48 | O97: 20512630.8 | P97: EQ | Q97: =IFERROR(VLOOKUP(D:D,Mapping!C:C,2,0),D:D) -> TADO
A98: 236000 | B98: 20093398.48 | C98: 1.174515104 | D98: TADO | E98: TA Dana Optimix | F98: 1914-01-28 | G98: EQT | H98: 1 | I98: EQT | J98: S | K98: MY | L98: MY | M98: MYR | N98: 20093398.48 | O98: 20512630.8 | P98: EQ | Q98: =IFERROR(VLOOKUP(D:D,Mapping!C:C,2,0),D:D) -> TADO
A99: 185700 | B99: 20093398.48 | C99: 0.9241841303 | D99: TADO | E99: TA Dana Optimix | F99: 1914-03-10 | G99: EQT | H99: 1 | I99: EQT | J99: S | K99: MY | L99: MY | M99: MYR | N99: 20093398.48 | O99: 20512630.8 | P99: EQ | Q99: =IFERROR(VLOOKUP(D:D,Mapping!C:C,2,0),D:D) -> TADO
A100: 478800 | B100: 20093398.48 | C100: 2.382872168 | D100: TADO | E100: TA Dana Optimix | F100: 1914-04-21 | G100: EQT | H100: 48 | I100: EQT | J100: S | K100: MY | L100: MY | M100: MYR | N100: 20093398.48 | O100: 20512630.8 | P100: EQ | Q100: =IFERROR(VLOOKUP(D:D,Mapping!C:C,2,0),D:D) -> TADO
A101: 190800 | B101: 20093398.48 | C101: 0.9495656008 | D101: TADO | E101: TA Dana Optimix | F101: 1914-04-22 | G101: EQT | H101: 15 | I101: EQT | J101: S | K101: MY | L101: MY | M101: MYR | N101: 20093398.48 | O101: 20512630.8 | P101: EQ | Q101: =IFERROR(VLOOKUP(D:D,Mapping!C:C,2,0),D:D) -> TADO
A102: 851400 | B102: 20093398.48 | C102: 4.237212539 | D102: TADO | E102: TA Dana Optimix | F102: 1914-06-27 | G102: EQT | H102: 5 | I102: EQT | J102: S | K102: MY | L102: MY | M102: MYR | N102: 20093398.48 | O102: 20512630.8 | P102: EQ | Q102: =IFERROR(VLOOKUP(D:D,Mapping!C:C,2,0),D:D) -> TADO
A103: 1246000 | B103: 20093398.48 | C103: 6.201041607 | D103: TADO | E103: TA Dana Optimix | F103: 1914-08-21 | G103: EQT | H103: 2 | I103: EQT | J103: S | K103: MY | L103: MY | M103: MYR | N103: 20093398.48 | O103: 20512630.8 | P103: EQ | Q103: =IFERROR(VLOOKUP(D:D,Mapping!C:C,2,0),D:D) -> TADO
A104: 636900 | B104: 20093398.48 | C104: 3.169697752 | D104: TADO | E104: TA Dana Optimix | F104: 1914-10-11 | G104: EQT | H104: 8 | I104: EQT | J104: S | K104: MY | L104: MY | M104: MYR | N104: 20093398.48 | O104: 20512630.8 | P104: EQ | Q104: =IFERROR(VLOOKUP(D:D,Mapping!C:C,2,0),D:D) -> TADO
A105: 320000 | B105: 20093398.48 | C105: 1.592562853 | D105: TADO | E105: TA Dana Optimix | F105: 1916-07-07 | G105: EQT | H105: 2 | I105: EQT | J105: S | K105: MY | L105: MY | M105: MYR | N105: 20093398.48 | O105: 20512630.8 | P105: EQ | Q105: =IFERROR(VLOOKUP(D:D,Mapping!C:C,2,0),D:D) -> TADO
A106: 291200 | B106: 20093398.48 | C106: 1.449232196 | D106: TADO | E106: TA Dana Optimix | F106: 1916-10-21 | G106: EQT | H106: 0 | I106: EQT | J106: S | K106: MY | L106: MY | M106: MYR | N106: 20093398.48 | O106: 20512630.8 | P106: EQ | Q106: =IFERROR(VLOOKUP(D:D,Mapping!C:C,2,0),D:D) -> TADO
A107: 293250 | B107: 20093398.48 | C107: 1.459434552 | D107: TADO | E107: TA Dana Optimix | F107: 1916-12-24 | G107: EQT | H107: 0 | I107: EQT | J107: S | K107: MY | L107: MY | M107: MYR | N107: 20093398.48 | O107: 20512630.8 | P107: EQ | Q107: =IFERROR(VLOOKUP(D:D,Mapping!C:C,2,0),D:D) -> TADO
A108: 846000 | B108: 20093398.48 | C108: 4.210338041 | D108: TADO | E108: TA Dana Optimix | F108: 1919-01-07 | G108: EQT | H108: 3 | I108: EQT | J108: S | K108: MY | L108: MY | M108: MYR | N108: 20093398.48 | O108: 20512630.8 | P108: EQ | Q108: =IFERROR(VLOOKUP(D:D,Mapping!C:C,2,0),D:D) -> TADO
A109: 743850 | B109: 20093398.48 | C109: 3.701962118 | D109: TADO | E109: TA Dana Optimix | F109: 1919-01-23 | G109: EQT | H109: 0 | I109: EQT | J109: S | K109: MY | L109: MY | M109: MYR | N109: 20093398.48 | O109: 20512630.8 | P109: EQ | Q109: =IFERROR(VLOOKUP(D:D,Mapping!C:C,2,0),D:D) -> TADO
A110: 720900 | B110: 20093398.48 | C110: 3.587745501 | D110: TADO | E110: TA Dana Optimix | F110: 1919-06-17 | G110: EQT | H110: 1 | I110: EQT | J110: S | K110: MY | L110: MY | M110: MYR | N110: 20093398.48 | O110: 20512630.8 | P110: EQ | Q110: =IFERROR(VLOOKUP(D:D,Mapping!C:C,2,0),D:D) -> TADO
A111: 610600 | B111: 20093398.48 | C111: 3.038808993 | D111: TADO | E111: TA Dana Optimix | F111: 7108PA | G111: EQT | H111: 1 | I111: EQT | J111: S | K111: MY | L111: MY | M111: MYR | N111: 20093398.48 | O111: 20512630.8 | P111: EQ | Q111: =IFERROR(VLOOKUP(D:D,Mapping!C:C,2,0),D:D) -> TADO
A112: 428220 | B112: 20093398.48 | C112: 2.131147702 | D112: TADO | E112: TA Dana Optimix | F112: 1919-06-22 | G112: EQT | H112: 48 | I112: EQT | J112: S | K112: MY | L112: MY | M112: MYR | N112: 20093398.48 | O112: 20512630.8 | P112: EQ | Q112: =IFERROR(VLOOKUP(D:D,Mapping!C:C,2,0),D:D) -> TADO
A113: 594427.94 | B113: 20093398.48 | C113: 2.958324549 | D113: TADO | E113: TA Dana Optimix | F113: 1919-08-22 | G113: EQT | H113: 0 | I113: EQT | J113: S | K113: MY | L113: MY | M113: MYR | N113: 20093398.48 | O113: 20512630.8 | P113: EQ | Q113: =IFERROR(VLOOKUP(D:D,Mapping!C:C,2,0),D:D) -> TADO
A114: 495000 | B114: 20093398.48 | C114: 2.463495662 | D114: TADO | E114: TA Dana Optimix | F114: 1919-10-27 | G114: EQT | H114: 9 | I114: EQT | J114: S | K114: MY | L114: MY | M114: MYR | N114: 20093398.48 | O114: 20512630.8 | P114: EQ | Q114: =IFERROR(VLOOKUP(D:D,Mapping!C:C,2,0),D:D) -> TADO
A115: 431200 | B115: 20093398.48 | C115: 2.145978444 | D115: TADO | E115: TA Dana Optimix | F115: 1919-10-28 | G115: EQT | H115: 5 | I115: EQT | J115: S | K115: MY | L115: MY | M115: MYR | N115: 20093398.48 | O115: 20512630.8 | P115: EQ | Q115: =IFERROR(VLOOKUP(D:D,Mapping!C:C,2,0),D:D) -> TADO
A116: 261600 | B116: 20093398.48 | C116: 1.301920132 | D116: TADO | E116: TA Dana Optimix | F116: 1919-12-03 | G116: EQT | H116: 43 | I116: EQT | J116: S | K116: MY | L116: MY | M116: MYR | N116: 20093398.48 | O116: 20512630.8 | P116: EQ | Q116: =IFERROR(VLOOKUP(D:D,Mapping!C:C,2,0),D:D) -> TADO
A117: 179832 | B117: 20093398.48 | C117: 0.894980509 | D117: TADO | E117: TA Dana Optimix | F117: 1920-01-18 | G117: EQT | H117: 15 | I117: EQT | J117: S | K117: MY | L117: MY | M117: MYR | N117: 20093398.48 | O117: 20512630.8 | P117: EQ | Q117: =IFERROR(VLOOKUP(D:D,Mapping!C:C,2,0),D:D) -> TADO
A118: 100500 | B118: 20093398.48 | C118: 0.5001642709 | D118: TADO | E118: TA Dana Optimix | F118: 1923-07-01 | G118: EQT | H118: 15 | I118: EQT | J118: S | K118: MY | L118: MY | M118: MYR | N118: 20093398.48 | O118: 20512630.8 | P118: EQ | Q118: =IFERROR(VLOOKUP(D:D,Mapping!C:C,2,0),D:D) -> TADO
A119: 120000 | B119: 20093398.48 | C119: 0.5972110697 | D119: TADO | E119: TA Dana Optimix | F119: 1925-04-15 | G119: EQT | H119: 0 | I119: EQT | J119: S | K119: MY | L119: MY | M119: MYR | N119: 20093398.48 | O119: 20512630.8 | P119: EQ | Q119: =IFERROR(VLOOKUP(D:D,Mapping!C:C,2,0),D:D) -> TADO
A120: 528284.06 | B120: 20093398.48 | C120: 2.629142405 | D120: TADO | E120: TA Dana Optimix | F120: AU000000S320 | G120: EQT | H120: 5 | I120: EQT | J120: S | K120: AU | L120: AU | M120: AUD | N120: 20093398.48 | O120: 20512630.8 | P120: EQ | Q120: =IFERROR(VLOOKUP(D:D,Mapping!C:C,2,0),D:D) -> TADO
A121: 152958.96 | B121: 20093398.48 | C121: 0.7612398677 | D121: TADO | E121: TA Dana Optimix | F121: AU000000SFR8 | G121: EQT | H121: 42 | I121: EQT | J121: S | K121: AU | L121: AU | M121: AUD | N121: 20093398.48 | O121: 20512630.8 | P121: EQ | Q121: =IFERROR(VLOOKUP(D:D,Mapping!C:C,2,0),D:D) -> TADO
A122: 8483216.79 | B122: 40974515.97 | C122: 20.70364125 | D122: TAEURO | E122: TA European Equity Fund | F122: LU0011889846 | G122: EQT | H122: 27 | I122: FU | J122: C | K122: LU | L122: LU | M122: EUR | N122: 40974515.97 | O122: 40063603.74 | P122: FU | Q122: =IFERROR(VLOOKUP(D:D,Mapping!C:C,2,0),D:D) -> TAEURO
A123: 657789.71 | B123: 40974515.97 | C123: 1.605362978 | D123: TAEURO | E123: TA European Equity Fund | F123: LU0046217351 | G123: EQT | H123: 27 | I123: FU | J123: C | K123: LU | L123: LU | M123: EUR | N123: 40974515.97 | O123: 40063603.74 | P123: FU | Q123: =IFERROR(VLOOKUP(D:D,Mapping!C:C,2,0),D:D) -> TAEURO
A124: 3570634.51 | B124: 40974515.97 | C124: 8.714281122 | D124: TAEURO | E124: TA European Equity Fund | F124: LU0111491469 | G124: EQT | H124: 27 | I124: FU | J124: C | K124: LU | L124: LU | M124: EUR | N124: 40974515.97 | O124: 40063603.74 | P124: FU | Q124: =IFERROR(VLOOKUP(D:D,Mapping!C:C,2,0),D:D) -> TAEURO
A125: 2384165.44 | B125: 40974515.97 | C125: 5.818654311 | D125: TAEURO | E125: TA European Equity Fund | F125: LU0451950314 | G125: EQT | H125: 27 | I125: FU | J125: C | K125: LU | L125: LU | M125: EUR | N125: 40974515.97 | O125: 40063603.74 | P125: FU | Q125: =IFERROR(VLOOKUP(D:D,Mapping!C:C,2,0),D:D) -> TAEURO
A126: 8241068.01 | B126: 40974515.97 | C126: 20.11266714 | D126: TAEURO | E126: TA European Equity Fund | F126: LU0503932328 | G126: EQT | H126: 27 | I126: FU | J126: C | K126: LU | L126: LU | M126: EUR | N126: 40974515.97 | O126: 40063603.74 | P126: FU | Q126: =IFERROR(VLOOKUP(D:D,Mapping!C:C,2,0),D:D) -> TAEURO
A127: 2574424.18 | B127: 40974515.97 | C127: 6.282988631 | D127: TAEURO | E127: TA European Equity Fund | F127: LU0506197887 | G127: EQT | H127: 27 | I127: FU | J127: C | K127: LU | L127: LU | M127: SGD | N127: 40974515.97 | O127: 40063603.74 | P127: FU | Q127: =IFERROR(VLOOKUP(D:D,Mapping!C:C,2,0),D:D) -> TAEURO
A128: 7661382.92 | B128: 40974515.97 | C128: 18.69792172 | D128: TAEURO | E128: TA European Equity Fund | F128: LU0974284688 | G128: EQT | H128: 27 | I128: FU | J128: C | K128: LU | L128: LU | M128: USD | N128: 40974515.97 | O128: 40063603.74 | P128: FU | Q128: =IFERROR(VLOOKUP(D:D,Mapping!C:C,2,0),D:D) -> TAEURO
A129: 2444075.6 | B129: 40974515.97 | C129: 5.964867533 | D129: TAEURO | E129: TA European Equity Fund | F129: LU1039938227 | G129: EQT | H129: 27 | I129: FU | J129: C | K129: LU | L129: LU | M129: USD | N129: 40974515.97 | O129: 40063603.74 | P129: FU | Q129: =IFERROR(VLOOKUP(D:D,Mapping!C:C,2,0),D:D) -> TAEURO
A130: 2517826.37 | B130: 40974515.97 | C130: 6.144859336 | D130: TAEURO | E130: TA European Equity Fund | F130: LU1059379971 | G130: EQT | H130: 27 | I130: FU | J130: C | K130: LU | L130: LU | M130: USD | N130: 40974515.97 | O130: 40063603.74 | P130: FU | Q130: =IFERROR(VLOOKUP(D:D,Mapping!C:C,2,0),D:D) -> TAEURO
A131: 1354007.5 | B131: 40974515.97 | C131: 3.304511275 | D131: TAEURO | E131: TA European Equity Fund | F131: LU1169991020 | G131: EQT | H131: 27 | I131: FU | J131: C | K131: LU | L131: LU | M131: USD | N131: 40974515.97 | O131: 40063603.74 | P131: FU | Q131: =IFERROR(VLOOKUP(D:D,Mapping!C:C,2,0),D:D) -> TAEURO
A132: 115286.65 | B132: 1655826.02 | C132: 6.962485708 | D132: TAGAAF | E132: TA Global Asset Allocator Fund | F132: FR0011119171 | G132: EQT | H132: 17 | I132: FU | J132: C | K132: GB | L132: GB | M132: USD | N132: 1655826.02 | O132: 1626687.16 | P132: FU | Q132: =IFERROR(VLOOKUP(D:D,Mapping!C:C,2,0),D:D) -> TAGAAF
A133: 54331.88 | B133: 1655826.02 | C133: 3.281255358 | D133: TAGAAF | E133: TA Global Asset Allocator Fund | F133: IE0032077012 | G133: EQT | H133: 17 | I133: FU | J133: C | K133: GB | L133: GB | M133: USD | N133: 1655826.02 | O133: 1626687.16 | P133: FU | Q133: =IFERROR(VLOOKUP(D:D,Mapping!C:C,2,0),D:D) -> TAGAAF
A134: 286075.59 | B134: 1655826.02 | C134: 17.27691113 | D134: TAGAAF | E134: TA Global Asset Allocator Fund | F134: IE00B43QJJ40 | G134: EQT | H134: 17 | I134: FU | J134: C | K134: GB | L134: GB | M134: USD | N134: 1655826.02 | O134: 1626687.16 | P134: FU | Q134: =IFERROR(VLOOKUP(D:D,Mapping!C:C,2,0),D:D) -> TAGAAF
A135: 69435.68 | B135: 1655826.02 | C135: 4.193416407 | D135: TAGAAF | E135: TA Global Asset Allocator Fund | F135: IE00B4L5YC18 | G135: EQT | H135: 17 | I135: FU | J135: C | K135: GB | L135: GB | M135: USD | N135: 1655826.02 | O135: 1626687.16 | P135: FU | Q135: =IFERROR(VLOOKUP(D:D,Mapping!C:C,2,0),D:D) -> TAGAAF
A136: 64922.97 | B136: 1655826.02 | C136: 3.920881132 | D136: TAGAAF | E136: TA Global Asset Allocator Fund | F136: IE00B5VX7566 | G136: EQT | H136: 17 | I136: FU | J136: C | K136: GB | L136: GB | M136: USD | N136: 1655826.02 | O136: 1626687.16 | P136: FU | Q136: =IFERROR(VLOOKUP(D:D,Mapping!C:C,2,0),D:D) -> TAGAAF
A137: 55519.15 | B137: 1655826.02 | C137: 3.352957939 | D137: TAGAAF | E137: TA Global Asset Allocator Fund | F137: IE00B66F4759 | G137: EQT | H137: 17 | I137: FU | J137: C | K137: GB | L137: GB | M137: EUR | N137: 1655826.02 | O137: 1626687.16 | P137: FU | Q137: =IFERROR(VLOOKUP(D:D,Mapping!C:C,2,0),D:D) -> TAGAAF
A138: 174513.36 | B138: 1655826.02 | C138: 10.53935365 | D138: TAGAAF | E138: TA Global Asset Allocator Fund | F138: IE00B802KR88 | G138: EQT | H138: 17 | I138: FU | J138: C | K138: GB | L138: GB | M138: USD | N138: 1655826.02 | O138: 1626687.16 | P138: FU | Q138: =IFERROR(VLOOKUP(D:D,Mapping!C:C,2,0),D:D) -> TAGAAF
A139: 119348.28 | B139: 1655826.02 | C139: 7.207778991 | D139: TAGAAF | E139: TA Global Asset Allocator Fund | F139: IE00BFTWP510 | G139: EQT | H139: 17 | I139: FU | J139: C | K139: GB | L139: GB | M139: EUR | N139: 1655826.02 | O139: 1626687.16 | P139: FU | Q139: =IFERROR(VLOOKUP(D:D,Mapping!C:C,2,0),D:D) -> TAGAAF
A140: 70348.17 | B140: 1655826.02 | C140: 4.24852425 | D140: TAGAAF | E140: TA Global Asset Allocator Fund | F140: IE00BMW3QX54 | G140: EQT | H140: 17 | I140: FU | J140: C | K140: GB | L140: GB | M140: USD | N140: 1655826.02 | O140: 1626687.16 | P140: FU | Q140: =IFERROR(VLOOKUP(D:D,Mapping!C:C,2,0),D:D) -> TAGAAF
A141: 145166.2 | B141: 1655826.02 | C141: 8.766995943 | D141: TAGAAF | E141: TA Global Asset Allocator Fund | F141: IE00BNH72088 | G141: EQT | H141: 17 | I141: FU | J141: C | K141: GB | L141: GB | M141: USD | N141: 1655826.02 | O141: 1626687.16 | P141: FU | Q141: =IFERROR(VLOOKUP(D:D,Mapping!C:C,2,0),D:D) -> TAGAAF
A142: 187003.09 | B142: 1655826.02 | C142: 11.29364364 | D142: TAGAAF | E142: TA Global Asset Allocator Fund | F142: LU1079841513 | G142: EQT | H142: 17 | I142: FU | J142: C | K142: GB | L142: GB | M142: USD | N142: 1655826.02 | O142: 1626687.16 | P142: FU | Q142: =IFERROR(VLOOKUP(D:D,Mapping!C:C,2,0),D:D) -> TAGAAF
A143: 86574.98 | B143: 1655826.02 | C143: 5.228507038 | D143: TAGAAF | E143: TA Global Asset Allocator Fund | F143: LU1812091350 | G143: EQT | H143: 17 | I143: FU | J143: C | K143: CH | L143: CH | M143: USD | N143: 1655826.02 | O143: 1626687.16 | P143: FU | Q143: =IFERROR(VLOOKUP(D:D,Mapping!C:C,2,0),D:D) -> TAGAAF
A144: 627.03 | B144: 1655826.02 | C144: 0.03786810887 | D144: TAGAAF | E144: TA Global Asset Allocator Fund | F144: SG9999002463 | G144: EQT | H144: 27 | I144: FU | J144: C | K144: SG | L144: SG | M144: SGD | N144: 1655826.02 | O144: 1626687.16 | P144: FU | Q144: =IFERROR(VLOOKUP(D:D,Mapping!C:C,2,0),D:D) -> TAGAAF
A145: 79377.06 | B145: 1655826.02 | C145: 4.793804364 | D145: TAGAAF | E145: TA Global Asset Allocator Fund | F145: US78463X5418 | G145: EQT | H145: 17 | I145: FU | J145: C | K145: US | L145: US | M145: USD | N145: 1655826.02 | O145: 1626687.16 | P145: FU | Q145: =IFERROR(VLOOKUP(D:D,Mapping!C:C,2,0),D:D) -> TAGAAF
A146: 83130.36 | B146: 1655826.02 | C146: 5.020476729 | D146: TAGAAF | E146: TA Global Asset Allocator Fund | F146: US78464A6073 | G146: EQT | H146: 17 | I146: FU | J146: C | K146: US | L146: US | M146: USD | N146: 1655826.02 | O146: 1626687.16 | P146: FU | Q146: =IFERROR(VLOOKUP(D:D,Mapping!C:C,2,0),D:D) -> TAGAAF
A147: 35026.71 | B147: 1655826.02 | C147: 2.115361733 | D147: TAGAAF | E147: TA Global Asset Allocator Fund | F147: US81369Y5069 | G147: EQT | H147: 17 | I147: FU | J147: C | K147: US | L147: US | M147: USD | N147: 1655826.02 | O147: 1626687.16 | P147: FU | Q147: =IFERROR(VLOOKUP(D:D,Mapping!C:C,2,0),D:D) -> TAGAAF
A148: 416000 | B148: 26924680.92 | C148: 1.545050808 | D148: TAGF | E148: TA Growth Fund | F148: 1900-05-17 | G148: EQT | H148: 21 | I148: EQT | J148: C | K148: MY | L148: MY | M148: MYR | N148: 26924680.92 | O148: 25565244.89 | P148: EQ | Q148: =IFERROR(VLOOKUP(D:D,Mapping!C:C,2,0),D:D) -> TAGF
A149: 369600 | B149: 26924680.92 | C149: 1.372718218 | D149: TAGF | E149: TA Growth Fund | F149: 1900-06-14 | G149: EQT | H149: 4 | I149: EQT | J149: C | K149: MY | L149: MY | M149: MYR | N149: 26924680.92 | O149: 25565244.89 | P149: EQ | Q149: =IFERROR(VLOOKUP(D:D,Mapping!C:C,2,0),D:D) -> TAGF
A150: 290000 | B150: 26924680.92 | C150: 1.077078688 | D150: TAGF | E150: TA Growth Fund | F150: 1900-06-20 | G150: EQT | H150: 3 | I150: EQT | J150: C | K150: MY | L150: MY | M150: MYR | N150: 26924680.92 | O150: 25565244.89 | P150: EQ | Q150: =IFERROR(VLOOKUP(D:D,Mapping!C:C,2,0),D:D) -> TAGF
A151: 1601264 | B151: 26924680.92 | C151: 5.947197684 | D151: TAGF | E151: TA Growth Fund | F151: 1902-10-19 | G151: EQT | H151: 16 | I151: EQT | J151: C | K151: MY | L151: MY | M151: MYR | N151: 26924680.92 | O151: 25565244.89 | P151: EQ | Q151: =IFERROR(VLOOKUP(D:D,Mapping!C:C,2,0),D:D) -> TAGF
A152: 2567870.73 | B152: 26924680.92 | C152: 9.537237368 | D152: TAGF | E152: TA Growth Fund | F152: 1903-02-28 | G152: EQT | H152: 16 | I152: EQT | J152: C | K152: MY | L152: MY | M152: MYR | N152: 26924680.92 | O152: 25565244.89 | P152: EQ | Q152: =IFERROR(VLOOKUP(D:D,Mapping!C:C,2,0),D:D) -> TAGF
A153: 2150532 | B153: 26924680.92 | C153: 7.987214431 | D153: TAGF | E153: TA Growth Fund | F153: 1903-07-18 | G153: EQT | H153: 16 | I153: EQT | J153: C | K153: MY | L153: MY | M153: MYR | N153: 26924680.92 | O153: 25565244.89 | P153: EQ | Q153: =IFERROR(VLOOKUP(D:D,Mapping!C:C,2,0),D:D) -> TAGF
A154: 397250 | B154: 26924680.92 | C154: 1.475412099 | D154: TAGF | E154: TA Growth Fund | F154: 1904-06-06 | G154: EQT | H154: 7 | I154: EQT | J154: C | K154: MY | L154: MY | M154: MYR | N154: 26924680.92 | O154: 25565244.89 | P154: EQ | Q154: =IFERROR(VLOOKUP(D:D,Mapping!C:C,2,0),D:D) -> TAGF
A155: 623100 | B155: 26924680.92 | C155: 2.314233553 | D155: TAGF | E155: TA Growth Fund | F155: 1904-07-08 | G155: EQT | H155: 7 | I155: EQT | J155: C | K155: MY | L155: MY | M155: MYR | N155: 26924680.92 | O155: 25565244.89 | P155: EQ | Q155: =IFERROR(VLOOKUP(D:D,Mapping!C:C,2,0),D:D) -> TAGF
A156: 612500 | B156: 26924680.92 | C156: 2.27486447 | D156: TAGF | E156: TA Growth Fund | F156: 1906-10-23 | G156: EQT | H156: 16 | I156: EQT | J156: C | K156: MY | L156: MY | M156: MYR | N156: 26924680.92 | O156: 25565244.89 | P156: EQ | Q156: =IFERROR(VLOOKUP(D:D,Mapping!C:C,2,0),D:D) -> TAGF
A157: 586872 | B157: 26924680.92 | C157: 2.179680427 | D157: TAGF | E157: TA Growth Fund | F157: 1907-10-22 | G157: EQT | H157: 5 | I157: EQT | J157: C | K157: MY | L157: MY | M157: MYR | N157: 26924680.92 | O157: 25565244.89 | P157: EQ | Q157: =IFERROR(VLOOKUP(D:D,Mapping!C:C,2,0),D:D) -> TAGF
A158: 786500 | B158: 26924680.92 | C158: 2.921111683 | D158: TAGF | E158: TA Growth Fund | F158: 1908-09-16 | G158: EQT | H158: 9 | I158: EQT | J158: C | K158: MY | L158: MY | M158: MYR | N158: 26924680.92 | O158: 25565244.89 | P158: EQ | Q158: =IFERROR(VLOOKUP(D:D,Mapping!C:C,2,0),D:D) -> TAGF
A159: 507522 | B159: 26924680.92 | C159: 1.884969413 | D159: TAGF | E159: TA Growth Fund | F159: 1913-09-22 | G159: EQT | H159: 0 | I159: EQT | J159: C | K159: MY | L159: MY | M159: MYR | N159: 26924680.92 | O159: 25565244.89 | P159: EQ | Q159: =IFERROR(VLOOKUP(D:D,Mapping!C:C,2,0),D:D) -> TAGF
A160: 248488 | B160: 26924680.92 | C160: 0.9229004449 | D160: TAGF | E160: TA Growth Fund | F160: 1913-12-23 | G160: EQT | H160: 40 | I160: EQT | J160: C | K160: MY | L160: MY | M160: MYR | N160: 26924680.92 | O160: 25565244.89 | P160: EQ | Q160: =IFERROR(VLOOKUP(D:D,Mapping!C:C,2,0),D:D) -> TAGF
A161: 145290 | B161: 26924680.92 | C161: 0.5396164227 | D161: TAGF | E161: TA Growth Fund | F161: 1914-01-01 | G161: EQT | H161: 0 | I161: EQT | J161: C | K161: MY | L161: MY | M161: MYR | N161: 26924680.92 | O161: 25565244.89 | P161: EQ | Q161: =IFERROR(VLOOKUP(D:D,Mapping!C:C,2,0),D:D) -> TAGF
A162: 247600 | B162: 26924680.92 | C162: 0.9196023557 | D162: TAGF | E162: TA Growth Fund | F162: 1914-03-10 | G162: EQT | H162: 1 | I162: EQT | J162: C | K162: MY | L162: MY | M162: MYR | N162: 26924680.92 | O162: 25565244.89 | P162: EQ | Q162: =IFERROR(VLOOKUP(D:D,Mapping!C:C,2,0),D:D) -> TAGF
A163: 591600 | B163: 26924680.92 | C163: 2.197240524 | D163: TAGF | E163: TA Growth Fund | F163: 1914-03-26 | G163: EQT | H163: 43 | I163: EQT | J163: C | K163: MY | L163: MY | M163: MYR | N163: 26924680.92 | O163: 25565244.89 | P163: EQ | Q163: =IFERROR(VLOOKUP(D:D,Mapping!C:C,2,0),D:D) -> TAGF
A164: 371000 | B164: 26924680.92 | C164: 1.377917908 | D164: TAGF | E164: TA Growth Fund | F164: 1914-04-22 | G164: EQT | H164: 15 | I164: EQT | J164: C | K164: MY | L164: MY | M164: MYR | N164: 26924680.92 | O164: 25565244.89 | P164: EQ | Q164: =IFERROR(VLOOKUP(D:D,Mapping!C:C,2,0),D:D) -> TAGF
A165: 569835 | B165: 26924680.92 | C165: 2.116403911 | D165: TAGF | E165: TA Growth Fund | F165: 1914-06-14 | G165: EQT | H165: 43 | I165: EQT | J165: C | K165: MY | L165: MY | M165: MYR | N165: 26924680.92 | O165: 25565244.89 | P165: EQ | Q165: =IFERROR(VLOOKUP(D:D,Mapping!C:C,2,0),D:D) -> TAGF
A166: 2276442 | B166: 26924680.92 | C166: 8.454852285 | D166: TAGF | E166: TA Growth Fund | F166: 1914-08-21 | G166: EQT | H166: 2 | I166: EQT | J166: C | K166: MY | L166: MY | M166: MYR | N166: 26924680.92 | O166: 25565244.89 | P166: EQ | Q166: =IFERROR(VLOOKUP(D:D,Mapping!C:C,2,0),D:D) -> TAGF
A167: 432000 | B167: 26924680.92 | C167: 1.604475839 | D167: TAGF | E167: TA Growth Fund | F167: 1919-01-23 | G167: EQT | H167: 0 | I167: EQT | J167: C | K167: MY | L167: MY | M167: MYR | N167: 26924680.92 | O167: 25565244.89 | P167: EQ | Q167: =IFERROR(VLOOKUP(D:D,Mapping!C:C,2,0),D:D) -> TAGF
A168: 264320 | B168: 26924680.92 | C168: 0.9817015131 | D168: TAGF | E168: TA Growth Fund | F168: 1919-03-23 | G168: EQT | H168: 4 | I168: EQT | J168: C | K168: MY | L168: MY | M168: MYR | N168: 26924680.92 | O168: 25565244.89 | P168: EQ | Q168: =IFERROR(VLOOKUP(D:D,Mapping!C:C,2,0),D:D) -> TAGF
A169: 2449330 | B169: 26924680.92 | C169: 9.096969458 | D169: TAGF | E169: TA Growth Fund | F169: 1919-05-24 | G169: EQT | H169: 9 | I169: EQT | J169: C | K169: MY | L169: MY | M169: MYR | N169: 26924680.92 | O169: 25565244.89 | P169: EQ | Q169: =IFERROR(VLOOKUP(D:D,Mapping!C:C,2,0),D:D) -> TAGF
A170: 497084.58 | B170: 26924680.92 | C170: 1.846204163 | D170: TAGF | E170: TA Growth Fund | F170: 1919-06-15 | G170: EQT | H170: 48 | I170: EQT | J170: C | K170: MY | L170: MY | M170: MYR | N170: 26924680.92 | O170: 25565244.89 | P170: EQ | Q170: =IFERROR(VLOOKUP(D:D,Mapping!C:C,2,0),D:D) -> TAGF
A171: 356000 | B171: 26924680.92 | C171: 1.322206941 | D171: TAGF | E171: TA Growth Fund | F171: 1919-06-17 | G171: EQT | H171: 1 | I171: EQT | J171: C | K171: MY | L171: MY | M171: MYR | N171: 26924680.92 | O171: 25565244.89 | P171: EQ | Q171: =IFERROR(VLOOKUP(D:D,Mapping!C:C,2,0),D:D) -> TAGF
A172: 344000 | B172: 26924680.92 | C172: 1.277638168 | D172: TAGF | E172: TA Growth Fund | F172: 7108PA | G172: EQT | H172: 1 | I172: EQT | J172: C | K172: MY | L172: MY | M172: MYR | N172: 26924680.92 | O172: 25565244.89 | P172: EQ | Q172: =IFERROR(VLOOKUP(D:D,Mapping!C:C,2,0),D:D) -> TAGF
A173: 356850 | B173: 26924680.92 | C173: 1.325363896 | D173: TAGF | E173: TA Growth Fund | F173: 1919-06-22 | G173: EQT | H173: 48 | I173: EQT | J173: C | K173: MY | L173: MY | M173: MYR | N173: 26924680.92 | O173: 25565244.89 | P173: EQ | Q173: =IFERROR(VLOOKUP(D:D,Mapping!C:C,2,0),D:D) -> TAGF
A174: 509452.02 | B174: 26924680.92 | C174: 1.892137632 | D174: TAGF | E174: TA Growth Fund | F174: AU000000PLS0 | G174: EQT | H174: 42 | I174: EQT | J174: C | K174: AU | L174: AU | M174: AUD | N174: 26924680.92 | O174: 25565244.89 | P174: EQ | Q174: =IFERROR(VLOOKUP(D:D,Mapping!C:C,2,0),D:D) -> TAGF
A175: 687492.96 | B175: 26924680.92 | C175: 2.553393156 | D175: TAGF | E175: TA Growth Fund | F175: AU000000S320 | G175: EQT | H175: 5 | I175: EQT | J175: C | K175: AU | L175: AU | M175: AUD | N175: 26924680.92 | O175: 25565244.89 | P175: EQ | Q175: =IFERROR(VLOOKUP(D:D,Mapping!C:C,2,0),D:D) -> TAGF
A176: 667399.96 | B176: 26924680.92 | C176: 2.47876646 | D176: TAGF | E176: TA Growth Fund | F176: AU000000WHC8 | G176: EQT | H176: 43 | I176: EQT | J176: C | K176: AU | L176: AU | M176: AUD | N176: 26924680.92 | O176: 25565244.89 | P176: EQ | Q176: =IFERROR(VLOOKUP(D:D,Mapping!C:C,2,0),D:D) -> TAGF
A177: 786118.35 | B177: 26924680.92 | C177: 2.91969421 | D177: TAGF | E177: TA Growth Fund | F177: SGXC75818630 | G177: EQT | H177: 40 | I177: EQT | J177: C | K177: SG | L177: SG | M177: USD | N177: 26924680.92 | O177: 25565244.89 | P177: EQ | Q177: =IFERROR(VLOOKUP(D:D,Mapping!C:C,2,0),D:D) -> TAGF
A178: 582553.29 | B178: 26924680.92 | C178: 2.16364046 | D178: TAGF | E178: TA Growth Fund | F178: TAREITS | G178: EQT | H178: 31 | I178: FU | J178: C | K178: MY | L178: MY | M178: MYR | N178: 26924680.92 | O178: 25565244.89 | P178: FU | Q178: =IFERROR(VLOOKUP(D:D,Mapping!C:C,2,0),D:D) -> TAGF
A179: 422770 | B179: 13533273.28 | C179: 3.123930118 | D179: TAIB | E179: TA Asia Pacific Islamic Balanced Fund | F179: 1904-07-08 | G179: EQT | H179: 7 | I179: EQT | J179: S | K179: MY | L179: MY | M179: MYR | N179: 13533273.28 | O179: 11233943.79 | P179: EQ | Q179: =IFERROR(VLOOKUP(D:D,Mapping!C:C,2,0),D:D) -> TAIB
A180: 279500 | B180: 13533273.28 | C180: 2.065280101 | D180: TAIB | E180: TA Asia Pacific Islamic Balanced Fund | F180: 7108PA | G180: EQT | H180: 1 | I180: EQT | J180: S | K180: MY | L180: MY | M180: MYR | N180: 13533273.28 | O180: 11233943.79 | P180: EQ | Q180: =IFERROR(VLOOKUP(D:D,Mapping!C:C,2,0),D:D) -> TAIB
A181: 513920.18 | B181: 13533273.28 | C181: 3.797456605 | D181: TAIB | E181: TA Asia Pacific Islamic Balanced Fund | F181: AU000000AWC3 | G181: EQT | H181: 42 | I181: EQT | J181: S | K181: AU | L181: AU | M181: AUD | N181: 13533273.28 | O181: 11233943.79 | P181: EQ | Q181: =IFERROR(VLOOKUP(D:D,Mapping!C:C,2,0),D:D) -> TAIB
A182: 513810.53 | B182: 13533273.28 | C182: 3.796646379 | D182: TAIB | E182: TA Asia Pacific Islamic Balanced Fund | F182: AU000000S320 | G182: EQT | H182: 5 | I182: EQT | J182: S | K182: AU | L182: AU | M182: AUD | N182: 13533273.28 | O182: 11233943.79 | P182: EQ | Q182: =IFERROR(VLOOKUP(D:D,Mapping!C:C,2,0),D:D) -> TAIB
A183: 531167.81 | B183: 13533273.28 | C183: 3.924902712 | D183: TAIB | E183: TA Asia Pacific Islamic Balanced Fund | F183: AU000000WHC8 | G183: EQT | H183: 43 | I183: EQT | J183: S | K183: AU | L183: AU | M183: AUD | N183: 13533273.28 | O183: 11233943.79 | P183: EQ | Q183: =IFERROR(VLOOKUP(D:D,Mapping!C:C,2,0),D:D) -> TAIB
A184: 670619.14 | B184: 13533273.28 | C184: 4.955335831 | D184: TAIB | E184: TA Asia Pacific Islamic Balanced Fund | F184: JP3802300008 | G184: EQT | H184: 9 | I184: EQT | J184: S | K184: JP | L184: JP | M184: JPY | N184: 13533273.28 | O184: 11233943.79 | P184: EQ | Q184: =IFERROR(VLOOKUP(D:D,Mapping!C:C,2,0),D:D) -> TAIB
A185: 1071664.61 | B185: 13533273.28 | C185: 7.918739154 | D185: TAIB | E185: TA Asia Pacific Islamic Balanced Fund | F185: JP3802400006 | G185: EQT | H185: 5 | I185: EQT | J185: S | K185: JP | L185: JP | M185: JPY | N185: 13533273.28 | O185: 11233943.79 | P185: EQ | Q185: =IFERROR(VLOOKUP(D:D,Mapping!C:C,2,0),D:D) -> TAIB
A186: 1037670.3 | B186: 13533273.28 | C186: 7.667548556 | D186: TAIB | E186: TA Asia Pacific Islamic Balanced Fund | F186: JP3970300004 | G186: EQT | H186: 21 | I186: EQT | J186: S | K186: JP | L186: JP | M186: JPY | N186: 13533273.28 | O186: 11233943.79 | P186: EQ | Q186: =IFERROR(VLOOKUP(D:D,Mapping!C:C,2,0),D:D) -> TAIB
A187: 1003463.25 | B187: 13533273.28 | C187: 7.414785981 | D187: TAIB | E187: TA Asia Pacific Islamic Balanced Fund | F187: KYG875721634 | G187: EQT | H187: 4 | I187: EQT | J187: S | K187: HK | L187: HK | M187: HKD | N187: 13533273.28 | O187: 11233943.79 | P187: EQ | Q187: =IFERROR(VLOOKUP(D:D,Mapping!C:C,2,0),D:D) -> TAIB
A188: 733729.54 | B188: 13533273.28 | C188: 5.421670906 | D188: TAIB | E188: TA Asia Pacific Islamic Balanced Fund | F188: TH0307010R17 | G188: EQT | H188: 8 | I188: EQT | J188: S | K188: TH | L188: TH | M188: THB | N188: 13533273.28 | O188: 11233943.79 | P188: EQ | Q188: =IFERROR(VLOOKUP(D:D,Mapping!C:C,2,0),D:D) -> TAIB
A189: 905536.65 | B189: 13533273.28 | C189: 6.691187204 | D189: TAIB | E189: TA Asia Pacific Islamic Balanced Fund | F189: US01609W1027 | G189: EQT | H189: 9 | I189: EQT | J189: S | K189: CN | L189: US | M189: USD | N189: 13533273.28 | O189: 11233943.79 | P189: EQ | Q189: =IFERROR(VLOOKUP(D:D,Mapping!C:C,2,0),D:D) -> TAIB
A190: 817571.28 | B190: 13533273.28 | C190: 6.041193901 | D190: TAIB | E190: TA Asia Pacific Islamic Balanced Fund | F190: US8740391003 | G190: EQT | H190: 4 | I190: EQT | J190: S | K190: TW | L190: US | M190: USD | N190: 13533273.28 | O190: 11233943.79 | P190: EQ | Q190: =IFERROR(VLOOKUP(D:D,Mapping!C:C,2,0),D:D) -> TAIB
A191: 675000 | B191: 51011969.02 | C191: 1.32321887 | D191: TAIF | E191: TA Islamic Fund | F191: 1900-01-10 | G191: EQT | H191: 0 | I191: EQT | J191: S | K191: MY | L191: MY | M191: MYR | N191: 51011969.02 | O191: 50003034.56 | P191: EQ | Q191: =IFERROR(VLOOKUP(D:D,Mapping!C:C,2,0),D:D) -> TAIF
A192: 1192140 | B192: 51011969.02 | C192: 2.336980953 | D192: TAIF | E192: TA Islamic Fund | F192: 1900-04-07 | G192: EQT | H192: 4 | I192: EQT | J192: S | K192: MY | L192: MY | M192: MYR | N192: 51011969.02 | O192: 50003034.56 | P192: EQ | Q192: =IFERROR(VLOOKUP(D:D,Mapping!C:C,2,0),D:D) -> TAIF
A193: 1202760 | B193: 51011969.02 | C193: 2.357799597 | D193: TAIF | E193: TA Islamic Fund | F193: 1900-05-07 | G193: EQT | H193: 4 | I193: EQT | J193: S | K193: MY | L193: MY | M193: MYR | N193: 51011969.02 | O193: 50003034.56 | P193: EQ | Q193: =IFERROR(VLOOKUP(D:D,Mapping!C:C,2,0),D:D) -> TAIF
A194: 291200 | B194: 51011969.02 | C194: 0.5708464221 | D194: TAIF | E194: TA Islamic Fund | F194: 1900-05-17 | G194: EQT | H194: 21 | I194: EQT | J194: S | K194: MY | L194: MY | M194: MYR | N194: 51011969.02 | O194: 50003034.56 | P194: EQ | Q194: =IFERROR(VLOOKUP(D:D,Mapping!C:C,2,0),D:D) -> TAIF
A195: 2059772.85 | B195: 51011969.02 | C195: 4.037822671 | D195: TAIF | E195: TA Islamic Fund | F195: 1900-05-25 | G195: EQT | H195: 4 | I195: EQT | J195: S | K195: MY | L195: MY | M195: MYR | N195: 51011969.02 | O195: 50003034.56 | P195: EQ | Q195: =IFERROR(VLOOKUP(D:D,Mapping!C:C,2,0),D:D) -> TAIF
A196: 1510563 | B196: 51011969.02 | C196: 2.961193283 | D196: TAIF | E196: TA Islamic Fund | F196: 1900-05-30 | G196: EQT | H196: 5 | I196: EQT | J196: S | K196: MY | L196: MY | M196: MYR | N196: 51011969.02 | O196: 50003034.56 | P196: EQ | Q196: =IFERROR(VLOOKUP(D:D,Mapping!C:C,2,0),D:D) -> TAIF
A197: 1284800 | B197: 51011969.02 | C197: 2.518624599 | D197: TAIF | E197: TA Islamic Fund | F197: 1900-06-14 | G197: EQT | H197: 4 | I197: EQT | J197: S | K197: MY | L197: MY | M197: MYR | N197: 51011969.02 | O197: 50003034.56 | P197: EQ | Q197: =IFERROR(VLOOKUP(D:D,Mapping!C:C,2,0),D:D) -> TAIF
A198: 647500 | B198: 51011969.02 | C198: 1.269309953 | D198: TAIF | E198: TA Islamic Fund | F198: 1900-06-27 | G198: EQT | H198: 9 | I198: EQT | J198: S | K198: MY | L198: MY | M198: MYR | N198: 51011969.02 | O198: 50003034.56 | P198: EQ | Q198: =IFERROR(VLOOKUP(D:D,Mapping!C:C,2,0),D:D) -> TAIF
A199: 510735 | B199: 51011969.02 | C199: 1.001206207 | D199: TAIF | E199: TA Islamic Fund | F199: 1900-07-03 | G199: EQT | H199: 5 | I199: EQT | J199: S | K199: MY | L199: MY | M199: MYR | N199: 51011969.02 | O199: 50003034.56 | P199: EQ | Q199: =IFERROR(VLOOKUP(D:D,Mapping!C:C,2,0),D:D) -> TAIF
A200: 712530 | B200: 51011969.02 | C200: 1.396789839 | D200: TAIF | E200: TA Islamic Fund | F200: 1900-07-04 | G200: EQT | H200: 9 | I200: EQT | J200: S | K200: MY | L200: MY | M200: MYR | N200: 51011969.02 | O200: 50003034.56 | P200: EQ | Q200: =IFERROR(VLOOKUP(D:D,Mapping!C:C,2,0),D:D) -> TAIF
... 353 more rows

Sheet UTMC010
A1: IPD014 | B1: =IFERROR(INDEX(Mapping!B:C,MATCH(InUTMC010!A2,Mapping!C:C,0),2),InUTMC010!A2) -> NGSSGFB | C1: N/A | D1: IFAS | E1: 2021-12-31 | F1: 2021-12-01 | G1: 2021-12-06 | H1: UTP*2112H00002 | I1: NS | K1: 4025.76 | L1: 5000 | M1: 5000 | N1: 0 | O1: 0 | P1: 5000 | Q1: 5000 | R1: 0
A2: IPD014 | B2: =IFERROR(INDEX(Mapping!B:C,MATCH(InUTMC010!A3,Mapping!C:C,0),2),InUTMC010!A3) -> NGSEFB | C2: N/A | D2: IFAS | E2: 2021-12-31 | F2: 2021-12-01 | G2: 2021-12-06 | H2: UTP*2112H00004 | I2: NS | K2: 1548.1 | L2: 1547.91 | M2: 1525.03 | N2: 22.88 | O2: 0 | P2: 1525.03 | Q2: 1525.03 | R2: 0
A3: IPD014 | B3: =IFERROR(INDEX(Mapping!B:C,MATCH(InUTMC010!A4,Mapping!C:C,0),2),InUTMC010!A4) -> NGSEFB | C3: N/A | D3: IFAS | E3: 2021-12-31 | F3: 2021-12-01 | G3: 2021-12-06 | H3: UTP*2112H00005 | I3: NS | K3: 66998.27 | L3: 66000 | M3: 66000 | N3: 0 | O3: 0 | P3: 66000 | Q3: 66000 | R3: 0
A4: IPD014 | B4: =IFERROR(INDEX(Mapping!B:C,MATCH(InUTMC010!A5,Mapping!C:C,0),2),InUTMC010!A5) -> NGSEFB | C4: N/A | D4: 5182355271 | E4: 2021-12-31 | F4: 2021-12-01 | G4: 2021-12-06 | H4: UTP*2112H00006 | I4: NS | K4: 505.04 | L4: 500 | M4: 497.51 | N4: 2.49 | O4: 0 | P4: 497.51 | Q4: 497.51 | R4: 0
A5: IPD014 | B5: =IFERROR(INDEX(Mapping!B:C,MATCH(InUTMC010!A6,Mapping!C:C,0),2),InUTMC010!A6) -> I-CASH | C5: N/A | D5: 5061243756 | E5: 2021-12-31 | F5: 2021-12-02 | G5: 2021-12-03 | H5: UTP*2112H00007 | I5: NS | K5: 820776.41 | L5: 840310.89 | M5: 840310.89 | N5: 0 | O5: 0 | P5: 840310.89 | Q5: 840310.89 | R5: 0
A6: IPD014 | B6: =IFERROR(INDEX(Mapping!B:C,MATCH(InUTMC010!A7,Mapping!C:C,0),2),InUTMC010!A7) -> I-CASH | C6: N/A | D6: 5061258922 | E6: 2021-12-31 | F6: 2021-12-03 | G6: 2021-12-06 | H6: UTP*2112H00012 | I6: NS | K6: 35280328.19 | L6: 36120000 | M6: 36120000 | N6: 0 | O6: 0 | P6: 36120000 | Q6: 36120000 | R6: 0
A7: IPD014 | B7: =IFERROR(INDEX(Mapping!B:C,MATCH(InUTMC010!A8,Mapping!C:C,0),2),InUTMC010!A8) -> NGSEFB | D7: 5182877123 | E7: 2021-12-31 | F7: 2021-12-02 | G7: 2021-12-03 | H7: UTP*2112H00013 | I7: NS | K7: 1285201.62 | L7: 1267594.36 | M7: 1267594.36 | N7: 0 | O7: 0 | P7: 1267594.36 | Q7: 1267594.36 | R7: 0
A8: IPD014 | B8: =IFERROR(INDEX(Mapping!B:C,MATCH(InUTMC010!A9,Mapping!C:C,0),2),InUTMC010!A9) -> NGSSGFB | C8: N/A | D8: IFAS | E8: 2021-12-31 | F8: 2021-12-02 | G8: 2021-12-08 | H8: UTP*2112H00014 | I8: NS | K8: 10425.45 | L8: 13007.84 | M8: 13007.84 | N8: 0 | O8: 0 | P8: 13007.84 | Q8: 13007.84 | R8: 0
A9: IPD014 | B9: =IFERROR(INDEX(Mapping!B:C,MATCH(InUTMC010!A10,Mapping!C:C,0),2),InUTMC010!A10) -> I-CASH | C9: N/A | D9: 5062756683 | E9: 2021-12-31 | F9: 2021-12-06 | G9: 2021-12-07 | H9: UTP*2112H00018 | I9: NS | K9: 341796.88 | L9: 350000 | M9: 350000 | N9: 0 | O9: 0 | P9: 350000 | Q9: 350000 | R9: 0
A10: IPD014 | B10: =IFERROR(INDEX(Mapping!B:C,MATCH(InUTMC010!A11,Mapping!C:C,0),2),InUTMC010!A11) -> I-INCOME | C10: N/A | D10: 5061243756 | E10: 2021-12-31 | F10: 2021-12-06 | G10: 2021-12-09 | H10: UTP*2112H00020 | I10: NS | K10: 104800.78 | L10: 115941.1 | M10: 115941.1 | N10: 0 | O10: 0 | P10: 115941.1 | Q10: 115941.1 | R10: 0
A11: IPD014 | B11: =IFERROR(INDEX(Mapping!B:C,MATCH(InUTMC010!A12,Mapping!C:C,0),2),InUTMC010!A12) -> NGSEFB | D11: 5182877123 | E11: 2021-12-31 | F11: 2021-12-06 | G11: 2021-12-07 | H11: UTP*2112H00023 | I11: NS | K11: 1616092.16 | L11: 1611243.88 | M11: 1611243.88 | N11: 0 | O11: 0 | P11: 1611243.88 | Q11: 1611243.88 | R11: 0
A12: IPD014 | B12: =IFERROR(INDEX(Mapping!B:C,MATCH(InUTMC010!A13,Mapping!C:C,0),2),InUTMC010!A13) -> NGSSGFB | C12: N/A | D12: IFAS | E12: 2021-12-31 | F12: 2021-12-06 | G12: 2021-12-09 | H12: UTP*2112H00024 | I12: NS | K12: 805.22 | L12: 1000 | M12: 1000 | N12: 0 | O12: 0 | P12: 1000 | Q12: 1000 | R12: 0
A13: IPD014 | B13: =IFERROR(INDEX(Mapping!B:C,MATCH(InUTMC010!A14,Mapping!C:C,0),2),InUTMC010!A14) -> NGSEFB | C13: N/A | D13: IFAS | E13: 2021-12-31 | F13: 2021-12-06 | G13: 2021-12-09 | H13: UTP*2112H00025 | I13: NS | K13: 486.9 | L13: 500 | M13: 485.44 | N13: 14.56 | O13: 0 | P13: 485.44 | Q13: 485.44 | R13: 0
A14: IPD014 | B14: =IFERROR(INDEX(Mapping!B:C,MATCH(InUTMC010!A15,Mapping!C:C,0),2),InUTMC010!A15) -> NGSEFB | C14: N/A | D14: IFAS | E14: 2021-12-31 | F14: 2021-12-06 | G14: 2021-12-09 | H14: UTP*2112H00026 | I14: NS | K14: 9785.46 | L14: 10000 | M14: 9756.1 | N14: 243.9 | O14: 0 | P14: 9756.1 | Q14: 9756.1 | R14: 0
A15: IPD014 | B15: =IFERROR(INDEX(Mapping!B:C,MATCH(InUTMC010!A16,Mapping!C:C,0),2),InUTMC010!A16) -> I-CASH | C15: N/A | D15: 5061258922 | E15: 2021-12-31 | F15: 2021-12-07 | G15: 2021-12-08 | H15: UTP*2112H00028 | I15: NS | K15: 37109375 | L15: 38000000 | M15: 38000000 | N15: 0 | O15: 0 | P15: 38000000 | Q15: 38000000 | R15: 0
A16: IPD014 | B16: =IFERROR(INDEX(Mapping!B:C,MATCH(InUTMC010!A17,Mapping!C:C,0),2),InUTMC010!A17) -> I-CASH | C16: N/A | D16: 5062570461 | E16: 2021-12-31 | F16: 2021-12-07 | G16: 2021-12-08 | H16: UTP*2112H00029 | I16: NS | K16: 48828.13 | L16: 50000 | M16: 50000 | N16: 0 | O16: 0 | P16: 50000 | Q16: 50000 | R16: 0
A17: IPD014 | B17: =IFERROR(INDEX(Mapping!B:C,MATCH(InUTMC010!A18,Mapping!C:C,0),2),InUTMC010!A18) -> I-CASH | C17: N/A | D17: 5062570494 | E17: 2021-12-31 | F17: 2021-12-07 | G17: 2021-12-08 | H17: UTP*2112H00030 | I17: NS | K17: 273437.5 | L17: 280000 | M17: 280000 | N17: 0 | O17: 0 | P17: 280000 | Q17: 280000 | R17: 0
A18: IPD014 | B18: =IFERROR(INDEX(Mapping!B:C,MATCH(InUTMC010!A19,Mapping!C:C,0),2),InUTMC010!A19) -> I-INCOME | C18: N/A | D18: 5061243756 | E18: 2021-12-31 | F18: 2021-12-07 | G18: 2021-12-10 | H18: UTP*2112H00032 | I18: NS | K18: 44619.41 | L18: 49375.84 | M18: 49375.84 | N18: 0 | O18: 0 | P18: 49375.84 | Q18: 49375.84 | R18: 0
A19: IPD014 | B19: =IFERROR(INDEX(Mapping!B:C,MATCH(InUTMC010!A20,Mapping!C:C,0),2),InUTMC010!A20) -> NGSSGFA | C19: N/A | D19: IFAS | E19: 2021-12-31 | F19: 2021-12-07 | G19: 2021-12-10 | H19: UTP*2112H00034 | I19: NS | K19: 810513.06 | L19: 1030000 | M19: 1030000 | N19: 0 | O19: 0 | P19: 1030000 | Q19: 1030000 | R19: 0
A20: IPD014 | B20: =IFERROR(INDEX(Mapping!B:C,MATCH(InUTMC010!A21,Mapping!C:C,0),2),InUTMC010!A21) -> NGSSGFB | C20: N/A | D20: IFAS | E20: 2021-12-31 | F20: 2021-12-07 | G20: 2021-12-10 | H20: UTP*2112H00035 | I20: NS | K20: 58908.66 | L20: 74519.46 | M20: 74519.46 | N20: 0 | O20: 0 | P20: 74519.46 | Q20: 74519.46 | R20: 0
A21: IPD014 | B21: =IFERROR(INDEX(Mapping!B:C,MATCH(InUTMC010!A22,Mapping!C:C,0),2),InUTMC010!A22) -> NGSEFB | C21: N/A | D21: IFAS | E21: 2021-12-31 | F21: 2021-12-07 | G21: 2021-12-10 | H21: UTP*2112H00036 | I21: NS | K21: 1076.19 | L21: 1105.22 | M21: 1088.89 | N21: 16.33 | O21: 0 | P21: 1088.89 | Q21: 1088.89 | R21: 0
A22: IPD014 | B22: =IFERROR(INDEX(Mapping!B:C,MATCH(InUTMC010!A23,Mapping!C:C,0),2),InUTMC010!A23) -> NGSEFB | C22: N/A | D22: 5182355271 | E22: 2021-12-31 | F22: 2021-12-07 | G22: 2021-12-10 | H22: UTP*2112H00037 | I22: NS | K22: 988.34 | L22: 1000 | M22: 1000 | N22: 0 | O22: 0 | P22: 1000 | Q22: 1000 | R22: 0
A23: IPD014 | B23: =IFERROR(INDEX(Mapping!B:C,MATCH(InUTMC010!A24,Mapping!C:C,0),2),InUTMC010!A24) -> I-INCOME | C23: N/A | D23: 5062547164 | E23: 2021-12-31 | F23: 2021-12-08 | G23: 2021-12-09 | H23: UTP*2112H00046 | I23: NS | K23: 162601.63 | L23: 180000 | M23: 180000 | N23: 0 | O23: 0 | P23: 180000 | Q23: 180000 | R23: 0
A24: IPD014 | B24: =IFERROR(INDEX(Mapping!B:C,MATCH(InUTMC010!A25,Mapping!C:C,0),2),InUTMC010!A25) -> NGSEFB | C24: N/A | D24: IFAS | E24: 2021-12-31 | F24: 2021-12-08 | G24: 2021-12-13 | H24: UTP*2112H00047 | I24: NS | K24: 1140.75 | L24: 1172.1 | M24: 1154.78 | N24: 17.32 | O24: 0 | P24: 1154.78 | Q24: 1154.78 | R24: 0
A25: IPD014 | B25: =IFERROR(INDEX(Mapping!B:C,MATCH(InUTMC010!A26,Mapping!C:C,0),2),InUTMC010!A26) -> I-INCOME | C25: N/A | D25: 5061243756 | E25: 2021-12-31 | F25: 2021-12-09 | G25: 2021-12-14 | H25: UTP*2112H00049 | I25: NS | K25: 45216.13 | L25: 50000 | M25: 50000 | N25: 0 | O25: 0 | P25: 50000 | Q25: 50000 | R25: 0
A26: IPD014 | B26: =IFERROR(INDEX(Mapping!B:C,MATCH(InUTMC010!A27,Mapping!C:C,0),2),InUTMC010!A27) -> NGSEFB | D26: 5182877123 | E26: 2021-12-31 | F26: 2021-12-09 | G26: 2021-12-10 | H26: UTP*2112H00050 | I26: NS | K26: 70599.8 | L26: 71503.48 | M26: 71503.48 | N26: 0 | O26: 0 | P26: 71503.48 | Q26: 71503.48 | R26: 0
A27: IPD014 | B27: =IFERROR(INDEX(Mapping!B:C,MATCH(InUTMC010!A28,Mapping!C:C,0),2),InUTMC010!A28) -> NGDBFM | C27: N/A | D27: 5182769431 | E27: 2021-12-31 | F27: 2021-12-09 | G27: 2021-12-14 | H27: UTP*2112H00051 | I27: NS | K27: 18943.77 | L27: 20000 | M27: 19464.72 | N27: 535.28 | O27: 0 | P27: 19464.72 | Q27: 19464.72 | R27: 0
A28: IPD014 | B28: =IFERROR(INDEX(Mapping!B:C,MATCH(InUTMC010!A29,Mapping!C:C,0),2),InUTMC010!A29) -> NGSSGFB | C28: N/A | D28: IFAS | E28: 2021-12-31 | F28: 2021-12-09 | G28: 2021-12-14 | H28: UTP*2112H00052 | I28: NS | K28: 27253.26 | L28: 34295.5 | M28: 34295.5 | N28: 0 | O28: 0 | P28: 34295.5 | Q28: 34295.5 | R28: 0
A29: IPD014 | B29: =IFERROR(INDEX(Mapping!B:C,MATCH(InUTMC010!A30,Mapping!C:C,0),2),InUTMC010!A30) -> NGSEFB | C29: N/A | D29: IFAS | E29: 2021-12-31 | F29: 2021-12-09 | G29: 2021-12-14 | H29: UTP*2112H00053 | I29: NS | K29: 944.71 | L29: 971.15 | M29: 956.8 | N29: 14.35 | O29: 0 | P29: 956.8 | Q29: 956.8 | R29: 0
A30: IPD014 | B30: =IFERROR(INDEX(Mapping!B:C,MATCH(InUTMC010!A31,Mapping!C:C,0),2),InUTMC010!A31) -> I-INCOME | C30: N/A | D30: 5062547164 | E30: 2021-12-31 | F30: 2021-12-10 | G30: 2021-12-13 | H30: UTP*2112H00057 | I30: NS | K30: 452202.22 | L30: 500000 | M30: 500000 | N30: 0 | O30: 0 | P30: 500000 | Q30: 500000 | R30: 0
A31: IPD014 | B31: =IFERROR(INDEX(Mapping!B:C,MATCH(InUTMC010!A32,Mapping!C:C,0),2),InUTMC010!A32) -> NGSSGFA | C31: N/A | D31: IFAS | E31: 2021-12-31 | F31: 2021-12-10 | G31: 2021-12-15 | H31: UTP*2112H00059 | I31: NS | K31: 395350.68 | L31: 500000 | M31: 500000 | N31: 0 | O31: 0 | P31: 500000 | Q31: 500000 | R31: 0
A32: IPD014 | B32: =IFERROR(INDEX(Mapping!B:C,MATCH(InUTMC010!A33,Mapping!C:C,0),2),InUTMC010!A33) -> NGSSGFB | C32: N/A | D32: IFAS | E32: 2021-12-31 | F32: 2021-12-10 | G32: 2021-12-15 | H32: UTP*2112H00060 | I32: NS | K32: 59691.66 | L32: 75151.8 | M32: 75151.8 | N32: 0 | O32: 0 | P32: 75151.8 | Q32: 75151.8 | R32: 0
A33: IPD014 | B33: =IFERROR(INDEX(Mapping!B:C,MATCH(InUTMC010!A34,Mapping!C:C,0),2),InUTMC010!A34) -> NGSEFB | C33: N/A | D33: IFAS | E33: 2021-12-31 | F33: 2021-12-10 | G33: 2021-12-15 | H33: UTP*2112H00061 | I33: NS | K33: 1531.57 | L33: 1554.39 | M33: 1554.39 | N33: 0 | O33: 0 | P33: 1554.39 | Q33: 1554.39 | R33: 0
A34: IPD014 | B34: =IFERROR(INDEX(Mapping!B:C,MATCH(InUTMC010!A35,Mapping!C:C,0),2),InUTMC010!A35) -> NGSEFB | D34: 5182877123 | E34: 2021-12-31 | F34: 2021-12-13 | G34: 2021-12-14 | H34: UTP*2112H00067 | I34: NS | K34: 258519.58 | L34: 263198.78 | M34: 263198.78 | N34: 0 | O34: 0 | P34: 263198.78 | Q34: 263198.78 | R34: 0
A35: IPD014 | B35: =IFERROR(INDEX(Mapping!B:C,MATCH(InUTMC010!A36,Mapping!C:C,0),2),InUTMC010!A36) -> I-CASH | C35: N/A | D35: 5061243756 | E35: 2021-12-31 | F35: 2021-12-14 | G35: 2021-12-15 | H35: UTP*2112H00086 | I35: NS | K35: 19573.57 | L35: 20049.21 | M35: 20049.21 | N35: 0 | O35: 0 | P35: 20049.21 | Q35: 20049.21 | R35: 0
A36: IPD014 | B36: =IFERROR(INDEX(Mapping!B:C,MATCH(InUTMC010!A37,Mapping!C:C,0),2),InUTMC010!A37) -> NRBF1 | C36: N/A | D36: 5182369146 | E36: 2021-12-31 | F36: 2021-12-14 | G36: 2021-12-15 | H36: UTP*2112H00088 | I36: NS | K36: 9605225.24 | L36: 10000000 | M36: 10000000 | N36: 0 | O36: 0 | P36: 10000000 | Q36: 10000000 | R36: 0
A37: IPD014 | B37: =IFERROR(INDEX(Mapping!B:C,MATCH(InUTMC010!A38,Mapping!C:C,0),2),InUTMC010!A38) -> NGSEFB | D37: 5182877123 | E37: 2021-12-31 | F37: 2021-12-14 | G37: 2021-12-15 | H37: UTP*2112H00089 | I37: NS | K37: 254663.23 | L37: 258406.78 | M37: 258406.78 | N37: 0 | O37: 0 | P37: 258406.78 | Q37: 258406.78 | R37: 0
A38: IPD014 | B38: =IFERROR(INDEX(Mapping!B:C,MATCH(InUTMC010!A39,Mapping!C:C,0),2),InUTMC010!A39) -> NGSEFB | C38: N/A | D38: 5182355271 | E38: 2021-12-31 | F38: 2021-12-14 | G38: 2021-12-17 | H38: UTP*2112H00090 | I38: NS | K38: 1913.62 | L38: 2000 | M38: 1941.75 | N38: 58.25 | O38: 0 | P38: 1941.75 | Q38: 1941.75 | R38: 0
A39: IPD014 | B39: =IFERROR(INDEX(Mapping!B:C,MATCH(InUTMC010!A40,Mapping!C:C,0),2),InUTMC010!A40) -> I-INCOME | C39: N/A | D39: 5061243756 | E39: 2021-12-31 | F39: 2021-12-15 | G39: 2021-12-20 | H39: UTP*2112H00092 | I39: NS | K39: 9039.14 | L39: 10000 | M39: 10000 | N39: 0 | O39: 0 | P39: 10000 | Q39: 10000 | R39: 0
A40: IPD014 | B40: =IFERROR(INDEX(Mapping!B:C,MATCH(InUTMC010!A41,Mapping!C:C,0),2),InUTMC010!A41) -> NGSEFB | D40: 5182877123 | E40: 2021-12-31 | F40: 2021-12-15 | G40: 2021-12-16 | H40: UTP*2112H00094 | I40: NS | K40: 471843.8 | L40: 474816.42 | M40: 474816.42 | N40: 0 | O40: 0 | P40: 474816.42 | Q40: 474816.42 | R40: 0
A41: IPD014 | B41: =IFERROR(INDEX(Mapping!B:C,MATCH(InUTMC010!A42,Mapping!C:C,0),2),InUTMC010!A42) -> NGHM | C41: N/A | D41: 5182355271 | E41: 2021-12-31 | F41: 2021-12-15 | G41: 2021-12-20 | H41: UTP*2112H00095 | I41: NS | K41: 3108.68 | L41: 5000 | M41: 5000 | N41: 0 | O41: 0 | P41: 5000 | Q41: 5000 | R41: 0
A42: IPD014 | B42: =IFERROR(INDEX(Mapping!B:C,MATCH(InUTMC010!A43,Mapping!C:C,0),2),InUTMC010!A43) -> NGSSGFB | C42: N/A | D42: IFAS | E42: 2021-12-31 | F42: 2021-12-15 | G42: 2021-12-20 | H42: UTP*2112H00096 | I42: NS | K42: 1195.7 | L42: 1500 | M42: 1500 | N42: 0 | O42: 0 | P42: 1500 | Q42: 1500 | R42: 0
A43: IPD014 | B43: =IFERROR(INDEX(Mapping!B:C,MATCH(InUTMC010!A44,Mapping!C:C,0),2),InUTMC010!A44) -> NGSEFB | C43: N/A | D43: IFAS | E43: 2021-12-31 | F43: 2021-12-15 | G43: 2021-12-20 | H43: UTP*2112H00097 | I43: NS | K43: 96.48 | L43: 100 | M43: 97.09 | N43: 2.91 | O43: 0 | P43: 97.09 | Q43: 97.09 | R43: 0
A44: IPD014 | B44: =IFERROR(INDEX(Mapping!B:C,MATCH(InUTMC010!A45,Mapping!C:C,0),2),InUTMC010!A45) -> NGSEFB | C44: N/A | D44: IFAS | E44: 2021-12-31 | F44: 2021-12-15 | G44: 2021-12-20 | H44: UTP*2112H00098 | I44: NS | K44: 97.9 | L44: 100 | M44: 98.52 | N44: 1.48 | O44: 0 | P44: 98.52 | Q44: 98.52 | R44: 0
A45: IPD014 | B45: =IFERROR(INDEX(Mapping!B:C,MATCH(InUTMC010!A46,Mapping!C:C,0),2),InUTMC010!A46) -> I-CASH | C45: N/A | D45: 5062570494 | E45: 2021-12-31 | F45: 2021-12-16 | G45: 2021-12-17 | H45: UTP*2112H00099 | I45: NS | K45: 78094.49 | L45: 80000 | M45: 80000 | N45: 0 | O45: 0 | P45: 80000 | Q45: 80000 | R45: 0
A46: IPD014 | B46: =IFERROR(INDEX(Mapping!B:C,MATCH(InUTMC010!A47,Mapping!C:C,0),2),InUTMC010!A47) -> NGSEFB | D46: 5182877123 | E46: 2021-12-31 | F46: 2021-12-16 | G46: 2021-12-17 | H46: UTP*2112H00142 | I46: NS | K46: 274907.13 | L46: 280267.82 | M46: 280267.82 | N46: 0 | O46: 0 | P46: 280267.82 | Q46: 280267.82 | R46: 0
A47: IPD014 | B47: =IFERROR(INDEX(Mapping!B:C,MATCH(InUTMC010!A48,Mapping!C:C,0),2),InUTMC010!A48) -> I-INCOME2R | C47: N/A | D47: 5182908303 | E47: 2021-12-31 | F47: 2021-12-16 | G47: 2021-12-17 | H47: UTP*2112H00143 | I47: NS | K47: 803132.22 | L47: 800000 | M47: 800000 | N47: 0 | O47: 0 | P47: 800000 | Q47: 800000 | R47: 0
A48: IPD014 | B48: =IFERROR(INDEX(Mapping!B:C,MATCH(InUTMC010!A49,Mapping!C:C,0),2),InUTMC010!A49) -> NGSEFB | D48: 5182877123 | E48: 2021-12-31 | F48: 2021-12-17 | G48: 2021-12-20 | H48: UTP*2112H00146 | I48: NS | K48: 94126 | L48: 95123.74 | M48: 95123.74 | N48: 0 | O48: 0 | P48: 95123.74 | Q48: 95123.74 | R48: 0
A49: IPD014 | B49: =IFERROR(INDEX(Mapping!B:C,MATCH(InUTMC010!A50,Mapping!C:C,0),2),InUTMC010!A50) -> NGSEFB | C49: N/A | D49: IFAS | E49: 2021-12-31 | F49: 2021-12-17 | G49: 2021-12-22 | H49: UTP*2112H00147 | I49: NS | K49: 970.11 | L49: 1000 | M49: 980.39 | N49: 19.61 | O49: 0 | P49: 980.39 | Q49: 980.39 | R49: 0
A50: IPD014 | B50: =IFERROR(INDEX(Mapping!B:C,MATCH(InUTMC010!A51,Mapping!C:C,0),2),InUTMC010!A51) -> NGHM | C50: N/A | D50: 5182355271 | E50: 2021-12-31 | F50: 2021-12-17 | G50: 2021-12-22 | H50: UTP*2112H00148 | I50: NS | K50: 3103.28 | L50: 5000 | M50: 5000 | N50: 0 | O50: 0 | P50: 5000 | Q50: 5000 | R50: 0
A51: IPD014 | B51: =IFERROR(INDEX(Mapping!B:C,MATCH(InUTMC010!A52,Mapping!C:C,0),2),InUTMC010!A52) -> I-CASH | C51: N/A | D51: 5061243756 | E51: 2021-12-31 | F51: 2021-12-20 | G51: 2021-12-21 | H51: UTP*2112H00149 | I51: NS | K51: 19519.81 | L51: 20000 | M51: 20000 | N51: 0 | O51: 0 | P51: 20000 | Q51: 20000 | R51: 0
A52: IPD014 | B52: =IFERROR(INDEX(Mapping!B:C,MATCH(InUTMC010!A53,Mapping!C:C,0),2),InUTMC010!A53) -> NGSEFB | D52: 5182877123 | E52: 2021-12-31 | F52: 2021-12-20 | G52: 2021-12-21 | H52: UTP*2112H00151 | I52: NS | K52: 95301.42 | L52: 94967.87 | M52: 94967.87 | N52: 0 | O52: 0 | P52: 94967.87 | Q52: 94967.87 | R52: 0
A53: IPD014 | B53: =IFERROR(INDEX(Mapping!B:C,MATCH(InUTMC010!A54,Mapping!C:C,0),2),InUTMC010!A54) -> NGSSGFB | C53: N/A | D53: IFAS | E53: 2021-12-31 | F53: 2021-12-20 | G53: 2021-12-23 | H53: UTP*2112H00152 | I53: NS | K53: 8179.29 | L53: 10000 | M53: 10000 | N53: 0 | O53: 0 | P53: 10000 | Q53: 10000 | R53: 0
A54: IPD014 | B54: =IFERROR(INDEX(Mapping!B:C,MATCH(InUTMC010!A55,Mapping!C:C,0),2),InUTMC010!A55) -> NGSEFB | D54: 5182877123 | E54: 2021-12-31 | F54: 2021-12-21 | G54: 2021-12-22 | H54: UTP*2112H00154 | I54: NS | K54: 87801.13 | L54: 87827.47 | M54: 87827.47 | N54: 0 | O54: 0 | P54: 87827.47 | Q54: 87827.47 | R54: 0
A55: IPD014 | B55: =IFERROR(INDEX(Mapping!B:C,MATCH(InUTMC010!A56,Mapping!C:C,0),2),InUTMC010!A56) -> NGHM | C55: N/A | D55: IFAS | E55: 2021-12-31 | F55: 2021-12-21 | G55: 2021-12-24 | H55: UTP*2112H00155 | I55: NS | K55: 1300.5 | L55: 2100 | M55: 2068.97 | N55: 31.03 | O55: 0 | P55: 2068.97 | Q55: 2068.97 | R55: 0
A56: IPD014 | B56: =IFERROR(INDEX(Mapping!B:C,MATCH(InUTMC010!A57,Mapping!C:C,0),2),InUTMC010!A57) -> NGSSGFA | C56: N/A | D56: IFAS | E56: 2021-12-31 | F56: 2021-12-21 | G56: 2021-12-24 | H56: UTP*2112H00156 | I56: NS | K56: 241468.13 | L56: 300000 | M56: 300000 | N56: 0 | O56: 0 | P56: 300000 | Q56: 300000 | R56: 0
A57: IPD014 | B57: =IFERROR(INDEX(Mapping!B:C,MATCH(InUTMC010!A58,Mapping!C:C,0),2),InUTMC010!A58) -> NGSSGFB | C57: N/A | D57: IFAS | E57: 2021-12-31 | F57: 2021-12-21 | G57: 2021-12-24 | H57: UTP*2112H00157 | I57: NS | K57: 3234.41 | L57: 4000 | M57: 4000 | N57: 0 | O57: 0 | P57: 4000 | Q57: 4000 | R57: 0
A58: IPD014 | B58: =IFERROR(INDEX(Mapping!B:C,MATCH(InUTMC010!A59,Mapping!C:C,0),2),InUTMC010!A59) -> NGSEFB | C58: N/A | D58: IFAS | E58: 2021-12-31 | F58: 2021-12-21 | G58: 2021-12-24 | H58: UTP*2112H00158 | I58: NS | K58: 19506.35 | L58: 20000 | M58: 19512.2 | N58: 487.8 | O58: 0 | P58: 19512.2 | Q58: 19512.2 | R58: 0
A59: IPD014 | B59: =IFERROR(INDEX(Mapping!B:C,MATCH(InUTMC010!A60,Mapping!C:C,0),2),InUTMC010!A60) -> NGSEFB | D59: 5182877123 | E59: 2021-12-31 | F59: 2021-12-22 | G59: 2021-12-23 | H59: UTP*2112H00162 | I59: NS | K59: 94210.52 | L59: 95067.84 | M59: 95067.84 | N59: 0 | O59: 0 | P59: 95067.84 | Q59: 95067.84 | R59: 0
A60: IPD014 | B60: =IFERROR(INDEX(Mapping!B:C,MATCH(InUTMC010!A61,Mapping!C:C,0),2),InUTMC010!A61) -> NGSSGFB | C60: N/A | D60: IFAS | E60: 2021-12-31 | F60: 2021-12-22 | G60: 2021-12-27 | H60: UTP*2112H00163 | I60: NS | K60: 40134.85 | L60: 50000 | M60: 50000 | N60: 0 | O60: 0 | P60: 50000 | Q60: 50000 | R60: 0
A61: IPD014 | B61: =IFERROR(INDEX(Mapping!B:C,MATCH(InUTMC010!A62,Mapping!C:C,0),2),InUTMC010!A62) -> I-INCOME | C61: N/A | D61: 5062547164 | E61: 2021-12-31 | F61: 2021-12-23 | G61: 2021-12-24 | H61: UTP*2112H00164 | I61: NS | K61: 99251.11 | L61: 110000 | M61: 110000 | N61: 0 | O61: 0 | P61: 110000 | Q61: 110000 | R61: 0
A62: IPD014 | B62: =IFERROR(INDEX(Mapping!B:C,MATCH(InUTMC010!A63,Mapping!C:C,0),2),InUTMC010!A63) -> NGSEFB | D62: 5182877123 | E62: 2021-12-31 | F62: 2021-12-23 | G62: 2021-12-24 | H62: UTP*2112H00166 | I62: NS | K62: 259395.7 | L62: 264583.61 | M62: 264583.61 | N62: 0 | O62: 0 | P62: 264583.61 | Q62: 264583.61 | R62: 0
A63: IPD014 | B63: =IFERROR(INDEX(Mapping!B:C,MATCH(InUTMC010!A64,Mapping!C:C,0),2),InUTMC010!A64) -> NGSSGFB | C63: N/A | D63: IFAS | E63: 2021-12-31 | F63: 2021-12-23 | G63: 2021-12-28 | H63: UTP*2112H00167 | I63: NS | K63: 800.64 | L63: 1000 | M63: 1000 | N63: 0 | O63: 0 | P63: 1000 | Q63: 1000 | R63: 0
A64: IPD014 | B64: =IFERROR(INDEX(Mapping!B:C,MATCH(InUTMC010!A65,Mapping!C:C,0),2),InUTMC010!A65) -> I-CASH | C64: N/A | D64: 5061302641 | E64: 2021-12-31 | F64: 2021-12-24 | G64: 2021-12-27 | H64: UTP*2112H00168 | I64: NS | K64: 683126.77 | L64: 700000 | M64: 700000 | N64: 0 | O64: 0 | P64: 700000 | Q64: 700000 | R64: 0
A65: IPD014 | B65: =IFERROR(INDEX(Mapping!B:C,MATCH(InUTMC010!A66,Mapping!C:C,0),2),InUTMC010!A66) -> I-CASH | C65: N/A | D65: 5061243756 | E65: 2021-12-31 | F65: 2021-12-24 | G65: 2021-12-27 | H65: UTP*2112H00169 | I65: NS | K65: 9758.95 | L65: 10000 | M65: 10000 | N65: 0 | O65: 0 | P65: 10000 | Q65: 10000 | R65: 0
A66: IPD014 | B66: =IFERROR(INDEX(Mapping!B:C,MATCH(InUTMC010!A67,Mapping!C:C,0),2),InUTMC010!A67) -> I-INCOME | C66: N/A | D66: 5061243756 | E66: 2021-12-31 | F66: 2021-12-24 | G66: 2021-12-29 | H66: UTP*2112H00170 | I66: NS | K66: 81190.8 | L66: 90000 | M66: 90000 | N66: 0 | O66: 0 | P66: 90000 | Q66: 90000 | R66: 0
A67: IPD014 | B67: =IFERROR(INDEX(Mapping!B:C,MATCH(InUTMC010!A68,Mapping!C:C,0),2),InUTMC010!A68) -> I-CASH | C67: N/A | D67: 5062570494 | E67: 2021-12-31 | F67: 2021-12-27 | G67: 2021-12-28 | H67: UTP*2112H00171 | I67: NS | K67: 97570.49 | L67: 100000 | M67: 100000 | N67: 0 | O67: 0 | P67: 100000 | Q67: 100000 | R67: 0
A68: IPD014 | B68: =IFERROR(INDEX(Mapping!B:C,MATCH(InUTMC010!A69,Mapping!C:C,0),2),InUTMC010!A69) -> I-CASH | C68: N/A | D68: 5061243756 | E68: 2021-12-31 | F68: 2021-12-27 | G68: 2021-12-28 | H68: UTP*2112H00172 | I68: NS | K68: 19063.02 | L68: 19537.69 | M68: 19537.69 | N68: 0 | O68: 0 | P68: 19537.69 | Q68: 19537.69 | R68: 0
A69: IPD014 | B69: =IFERROR(INDEX(Mapping!B:C,MATCH(InUTMC010!A70,Mapping!C:C,0),2),InUTMC010!A70) -> NGSEFB | D69: 5182877123 | E69: 2021-12-31 | F69: 2021-12-27 | G69: 2021-12-28 | H69: UTP*2112H00174 | I69: NS | K69: 762907.18 | L69: 774732.24 | M69: 774732.24 | N69: 0 | O69: 0 | P69: 774732.24 | Q69: 774732.24 | R69: 0
A70: IPD014 | B70: =IFERROR(INDEX(Mapping!B:C,MATCH(InUTMC010!A71,Mapping!C:C,0),2),InUTMC010!A71) -> NGSEFB | C70: N/A | D70: IFAS | E70: 2021-12-31 | F70: 2021-12-27 | G70: 2021-12-30 | H70: UTP*2112H00175 | I70: NS | K70: 24017.96 | L70: 25000 | M70: 24390.24 | N70: 609.76 | O70: 0 | P70: 24390.24 | Q70: 24390.24 | R70: 0
A71: IPD014 | B71: =IFERROR(INDEX(Mapping!B:C,MATCH(InUTMC010!A72,Mapping!C:C,0),2),InUTMC010!A72) -> I-CASH | C71: N/A | D71: 5061243756 | E71: 2021-12-31 | F71: 2021-12-28 | G71: 2021-12-29 | H71: UTP*2112H00181 | I71: NS | K71: 22445.38 | L71: 22847.15 | M71: 22847.15 | N71: 0 | O71: 0 | P71: 22847.15 | Q71: 22847.15 | R71: 0
A72: IPD014 | B72: =IFERROR(INDEX(Mapping!B:C,MATCH(InUTMC010!A73,Mapping!C:C,0),2),InUTMC010!A73) -> I-INCOME | C72: N/A | D72: 5061243756 | E72: 2021-12-31 | F72: 2021-12-28 | G72: 2021-12-31 | H72: UTP*2112H00184 | I72: NS | K72: 9152.48 | L72: 10000 | M72: 10000 | N72: 0 | O72: 0 | P72: 10000 | Q72: 10000 | R72: 0
A73: IPD014 | B73: =IFERROR(INDEX(Mapping!B:C,MATCH(InUTMC010!A74,Mapping!C:C,0),2),InUTMC010!A74) -> NGSEFB | D73: 5182877123 | E73: 2021-12-31 | F73: 2021-12-28 | G73: 2021-12-29 | H73: UTP*2112H00251 | I73: NS | K73: 46664.56 | L73: 47359.86 | M73: 47359.86 | N73: 0 | O73: 0 | P73: 47359.86 | Q73: 47359.86 | R73: 0
A74: IPD014 | B74: =IFERROR(INDEX(Mapping!B:C,MATCH(InUTMC010!A75,Mapping!C:C,0),2),InUTMC010!A75) -> NGSEFB | C74: N/A | D74: 5182355271 | E74: 2021-12-31 | F74: 2021-12-28 | G74: 2021-12-31 | H74: UTP*2112H00252 | I74: NS | K74: 9853.19 | L74: 10000 | M74: 10000 | N74: 0 | O74: 0 | P74: 10000 | Q74: 10000 | R74: 0
A75: IPD014 | B75: =IFERROR(INDEX(Mapping!B:C,MATCH(InUTMC010!A76,Mapping!C:C,0),2),InUTMC010!A76) -> NGSEFB | C75: N/A | D75: 5182355271 | E75: 2021-12-31 | F75: 2021-12-28 | G75: 2021-12-31 | H75: UTP*2112H00253 | I75: NS | K75: 1029.66 | L75: 1045 | M75: 1045 | N75: 0 | O75: 0 | P75: 1045 | Q75: 1045 | R75: 0
A76: IPD014 | B76: =IFERROR(INDEX(Mapping!B:C,MATCH(InUTMC010!A77,Mapping!C:C,0),2),InUTMC010!A77) -> NRBF1 | C76: N/A | D76: IFAS | E76: 2021-12-31 | F76: 2021-12-29 | G76: 2022-01-03 | H76: UTP*2112H00254 | I76: NS | K76: 4829.05 | L76: 5000 | M76: 5000 | N76: 0 | O76: 0 | P76: 5000 | Q76: 5000 | R76: 0
A77: IPD014 | B77: =IFERROR(INDEX(Mapping!B:C,MATCH(InUTMC010!A78,Mapping!C:C,0),2),InUTMC010!A78) -> NGSEFB | C77: N/A | D77: 5182355271 | E77: 2021-12-31 | F77: 2021-12-29 | G77: 2022-01-03 | H77: UTP*2112H00255 | I77: NS | K77: 1073.24 | L77: 1089.45 | M77: 1089.45 | N77: 0 | O77: 0 | P77: 1089.45 | Q77: 1089.45 | R77: 0
A78: IPD014 | B78: =IFERROR(INDEX(Mapping!B:C,MATCH(InUTMC010!A79,Mapping!C:C,0),2),InUTMC010!A79) -> NGSEFB | C78: N/A | D78: 5182355271 | E78: 2021-12-31 | F78: 2021-12-29 | G78: 2022-01-03 | H78: UTP*2112H00256 | I78: NS | K78: 492.56 | L78: 500 | M78: 500 | N78: 0 | O78: 0 | P78: 500 | Q78: 500 | R78: 0
A79: IPD014 | B79: =IFERROR(INDEX(Mapping!B:C,MATCH(InUTMC010!A80,Mapping!C:C,0),2),InUTMC010!A80) -> I-INCOME2R | C79: N/A | D79: 5182355271 | E79: 2021-12-31 | F79: 2021-12-29 | G79: 2022-01-03 | H79: UTP*2112H00257 | I79: NS | K79: 80240.72 | L79: 80000 | M79: 80000 | N79: 0 | O79: 0 | P79: 80000 | Q79: 80000 | R79: 0
A80: IPD014 | B80: =IFERROR(INDEX(Mapping!B:C,MATCH(InUTMC010!A81,Mapping!C:C,0),2),InUTMC010!A81) -> NGSEFB | D80: 5182877123 | E80: 2021-12-31 | F80: 2021-12-30 | G80: 2021-12-31 | H80: UTP*2112H00259 | I80: NS | K80: 23194.72 | L80: 23867.37 | M80: 23867.37 | N80: 0 | O80: 0 | P80: 23867.37 | Q80: 23867.37 | R80: 0
A81: IPD014 | B81: =IFERROR(INDEX(Mapping!B:C,MATCH(InUTMC010!A82,Mapping!C:C,0),2),InUTMC010!A82) -> I-INCOME2R | C81: N/A | D81: 5182355271 | E81: 2021-12-31 | F81: 2021-12-30 | G81: 2022-01-04 | H81: UTP*2112H00260 | I81: NS | K81: 70203.59 | L81: 70000 | M81: 70000 | N81: 0 | O81: 0 | P81: 70000 | Q81: 70000 | R81: 0
A82: IPD014 | B82: =IFERROR(INDEX(Mapping!B:C,MATCH(InUTMC010!A83,Mapping!C:C,0),2),InUTMC010!A83) -> I-CASH | C82: N/A | D82: 5061243756 | E82: 2021-12-31 | F82: 2021-12-31 | G82: 2022-01-03 | H82: UTP*2112H00262 | I82: NS | K82: 30451.87 | L82: 31000 | M82: 31000 | N82: 0 | O82: 0 | P82: 31000 | Q82: 31000 | R82: 0
A83: IPD014 | B83: =IFERROR(INDEX(Mapping!B:C,MATCH(InUTMC010!A84,Mapping!C:C,0),2),InUTMC010!A84) -> I-INCOME2R | C83: N/A | D83: 5182355271 | E83: 2021-12-31 | F83: 2021-12-31 | G83: 2022-01-05 | H83: UTP*2112H00265 | I83: NS | K83: 50130.34 | L83: 50000 | M83: 50000 | N83: 0 | O83: 0 | P83: 50000 | Q83: 50000 | R83: 0
A84: IPD014 | B84: =IFERROR(INDEX(Mapping!B:C,MATCH(InUTMC010!A85,Mapping!C:C,0),2),InUTMC010!A85) -> NRBF1 | C84: N/A | D84: 5182369146 | E84: 2021-12-31 | F84: 2021-12-17 | G84: 2021-12-17 | H84: UTP*2112N00138 | I84: DV | K84: 2493676.68 | L84: 2579209.79 | M84: 2579209.79 | N84: 0 | O84: 0 | P84: 2579209.79 | Q84: 2579209.79 | R84: 0
A85: IPD014 | B85: =IFERROR(INDEX(Mapping!B:C,MATCH(InUTMC010!A86,Mapping!C:C,0),2),InUTMC010!A86) -> NRBF1 | C85: N/A | D85: 5182666971 | E85: 2021-12-31 | F85: 2021-12-17 | G85: 2021-12-17 | H85: UTP*2112N00139 | I85: DV | K85: 6143.85 | L85: 6354.58 | M85: 6354.58 | N85: 0 | O85: 0 | P85: 6354.58 | Q85: 6354.58 | R85: 0
A86: IPD014 | B86: =IFERROR(INDEX(Mapping!B:C,MATCH(InUTMC010!A87,Mapping!C:C,0),2),InUTMC010!A87) -> NRBF1 | C86: N/A | D86: IFAS | E86: 2021-12-31 | F86: 2021-12-17 | G86: 2021-12-17 | H86: UTP*2112N00140 | I86: DV | K86: 12165.16 | L86: 12582.43 | M86: 12582.43 | N86: 0 | O86: 0 | P86: 12582.43 | Q86: 12582.43 | R86: 0
A87: IPD014 | B87: =IFERROR(INDEX(Mapping!B:C,MATCH(InUTMC010!A88,Mapping!C:C,0),2),InUTMC010!A88) -> NRBF1 | D87: 5182823996 | E87: 2021-12-31 | F87: 2021-12-17 | G87: 2021-12-17 | H87: UTP*2112N00141 | I87: DV | K87: 1633.49 | L87: 1689.52 | M87: 1689.52 | N87: 0 | O87: 0 | P87: 1689.52 | Q87: 1689.52 | R87: 0
A88: IPD014 | B88: =IFERROR(INDEX(Mapping!B:C,MATCH(InUTMC010!A89,Mapping!C:C,0),2),InUTMC010!A89) -> NRBF2 | C88: N/A | D88: 5182585591 | E88: 2021-12-31 | F88: 2021-12-28 | G88: 2021-12-29 | H88: UTP*2112N00186 | I88: DP | K88: 0 | L88: 2611275.72 | M88: 2611275.72 | N88: 0 | O88: 0 | P88: 0 | Q88: 2611275.72 | R88: 2611275.72
A89: IPD014 | B89: =IFERROR(INDEX(Mapping!B:C,MATCH(InUTMC010!A90,Mapping!C:C,0),2),InUTMC010!A90) -> I-CASH | C89: N/A | D89: 5061467536 | E89: 2021-12-31 | F89: 2021-12-29 | G89: 2021-12-29 | H89: UTP*2112N00187 | I89: DV | K89: 149902.3 | L89: 152585.55 | M89: 152585.55 | N89: 0 | O89: 0 | P89: 152585.55 | Q89: 152585.55 | R89: 0
A90: IPD014 | B90: =IFERROR(INDEX(Mapping!B:C,MATCH(InUTMC010!A91,Mapping!C:C,0),2),InUTMC010!A91) -> I-CASH | C90: N/A | D90: 5062598554 | E90: 2021-12-31 | F90: 2021-12-29 | G90: 2021-12-29 | H90: UTP*2112N00188 | I90: DV | K90: 48077.68 | L90: 48938.27 | M90: 48938.27 | N90: 0 | O90: 0 | P90: 48938.27 | Q90: 48938.27 | R90: 0
A91: IPD014 | B91: =IFERROR(INDEX(Mapping!B:C,MATCH(InUTMC010!A92,Mapping!C:C,0),2),InUTMC010!A92) -> I-CASH | C91: N/A | D91: 5062586465 | E91: 2021-12-31 | F91: 2021-12-29 | G91: 2021-12-29 | H91: UTP*2112N00189 | I91: DV | K91: 693.49 | L91: 705.9 | M91: 705.9 | N91: 0 | O91: 0 | P91: 705.9 | Q91: 705.9 | R91: 0
A92: IPD014 | B92: =IFERROR(INDEX(Mapping!B:C,MATCH(InUTMC010!A93,Mapping!C:C,0),2),InUTMC010!A93) -> I-CASH | C92: N/A | D92: 5062547164 | E92: 2021-12-31 | F92: 2021-12-29 | G92: 2021-12-29 | H92: UTP*2112N00190 | I92: DV | K92: 3376.95 | L92: 3437.4 | M92: 3437.4 | N92: 0 | O92: 0 | P92: 3437.4 | Q92: 3437.4 | R92: 0
A93: IPD014 | B93: =IFERROR(INDEX(Mapping!B:C,MATCH(InUTMC010!A94,Mapping!C:C,0),2),InUTMC010!A94) -> I-CASH | C93: N/A | D93: 5062661481 | E93: 2021-12-31 | F93: 2021-12-29 | G93: 2021-12-29 | H93: UTP*2112N00191 | I93: DV | K93: 34058.83 | L93: 34668.48 | M93: 34668.48 | N93: 0 | O93: 0 | P93: 34668.48 | Q93: 34668.48 | R93: 0
A94: IPD014 | B94: =IFERROR(INDEX(Mapping!B:C,MATCH(InUTMC010!A95,Mapping!C:C,0),2),InUTMC010!A95) -> I-CASH | C94: N/A | D94: 3300001029 | E94: 2021-12-31 | F94: 2021-12-28 | G94: 2021-12-29 | H94: UTP*2112N00192 | I94: DP | K94: 0 | L94: 1694.07 | M94: 1694.07 | N94: 0 | O94: 0 | P94: 0 | Q94: 1694.07 | R94: 1694.07
A95: IPD014 | B95: =IFERROR(INDEX(Mapping!B:C,MATCH(InUTMC010!A96,Mapping!C:C,0),2),InUTMC010!A96) -> I-CASH | C95: N/A | D95: 3300001012 | E95: 2021-12-31 | F95: 2021-12-28 | G95: 2021-12-29 | H95: UTP*2112N00193 | I95: DP | K95: 0 | L95: 27621.84 | M95: 27621.84 | N95: 0 | O95: 0 | P95: 0 | Q95: 27621.84 | R95: 27621.84
A96: IPD014 | B96: =IFERROR(INDEX(Mapping!B:C,MATCH(InUTMC010!A97,Mapping!C:C,0),2),InUTMC010!A97) -> I-CASH | C96: N/A | D96: 3300002428 | E96: 2021-12-31 | F96: 2021-12-29 | G96: 2021-12-29 | H96: UTP*2112N00194 | I96: DV | K96: 346850.47 | L96: 353059.09 | M96: 353059.09 | N96: 0 | O96: 0 | P96: 353059.09 | Q96: 353059.09 | R96: 0
A97: IPD014 | B97: =IFERROR(INDEX(Mapping!B:C,MATCH(InUTMC010!A98,Mapping!C:C,0),2),InUTMC010!A98) -> I-CASH | C97: N/A | D97: 5061243756 | E97: 2021-12-31 | F97: 2021-12-29 | G97: 2021-12-29 | H97: UTP*2112N00195 | I97: DV | K97: 71171.73 | L97: 72445.7 | M97: 72445.7 | N97: 0 | O97: 0 | P97: 72445.7 | Q97: 72445.7 | R97: 0
A98: IPD014 | B98: =IFERROR(INDEX(Mapping!B:C,MATCH(InUTMC010!A99,Mapping!C:C,0),2),InUTMC010!A99) -> I-CASH | C98: N/A | D98: 3300001423 | E98: 2021-12-31 | F98: 2021-12-29 | G98: 2021-12-29 | H98: UTP*2112N00196 | I98: DV | K98: 69.46 | L98: 70.7 | M98: 70.7 | N98: 0 | O98: 0 | P98: 70.7 | Q98: 70.7 | R98: 0
A99: IPD014 | B99: =IFERROR(INDEX(Mapping!B:C,MATCH(InUTMC010!A100,Mapping!C:C,0),2),InUTMC010!A100) -> I-CASH | C99: N/A | D99: 5062536565 | E99: 2021-12-31 | F99: 2021-12-29 | G99: 2021-12-29 | H99: UTP*2112N00197 | I99: DV | K99: 3471.6 | L99: 3533.74 | M99: 3533.74 | N99: 0 | O99: 0 | P99: 3533.74 | Q99: 3533.74 | R99: 0
A100: IPD014 | B100: =IFERROR(INDEX(Mapping!B:C,MATCH(InUTMC010!A101,Mapping!C:C,0),2),InUTMC010!A101) -> I-CASH | C100: N/A | D100: 5062665883 | E100: 2021-12-31 | F100: 2021-12-29 | G100: 2021-12-29 | H100: UTP*2112N00198 | I100: DV | K100: 2170.66 | L100: 2209.51 | M100: 2209.51 | N100: 0 | O100: 0 | P100: 2209.51 | Q100: 2209.51 | R100: 0
A101: IPD014 | B101: =IFERROR(INDEX(Mapping!B:C,MATCH(InUTMC010!A102,Mapping!C:C,0),2),InUTMC010!A102) -> I-CASH | C101: N/A | D101: 3300001221 | E101: 2021-12-31 | F101: 2021-12-29 | G101: 2021-12-29 | H101: UTP*2112N00199 | I101: DV | K101: 138.93 | L101: 141.42 | M101: 141.42 | N101: 0 | O101: 0 | P101: 141.42 | Q101: 141.42 | R101: 0
A102: IPD014 | B102: =IFERROR(INDEX(Mapping!B:C,MATCH(InUTMC010!A103,Mapping!C:C,0),2),InUTMC010!A103) -> I-CASH | C102: N/A | D102: 3300001827 | E102: 2021-12-31 | F102: 2021-12-28 | G102: 2021-12-29 | H102: UTP*2112N00200 | I102: DP | K102: 0 | L102: 479334.37 | M102: 479334.37 | N102: 0 | O102: 0 | P102: 0 | Q102: 479334.37 | R102: 479334.37
A103: IPD014 | B103: =IFERROR(INDEX(Mapping!B:C,MATCH(InUTMC010!A104,Mapping!C:C,0),2),InUTMC010!A104) -> I-CASH | C103: N/A | D103: 5062570461 | E103: 2021-12-31 | F103: 2021-12-29 | G103: 2021-12-29 | H103: UTP*2112N00201 | I103: DV | K103: 16992.35 | L103: 17296.51 | M103: 17296.51 | N103: 0 | O103: 0 | P103: 17296.51 | Q103: 17296.51 | R103: 0
A104: IPD014 | B104: =IFERROR(INDEX(Mapping!B:C,MATCH(InUTMC010!A105,Mapping!C:C,0),2),InUTMC010!A105) -> I-CASH | C104: N/A | D104: 5062570494 | E104: 2021-12-31 | F104: 2021-12-29 | G104: 2021-12-29 | H104: UTP*2112N00202 | I104: DV | K104: 14482.99 | L104: 14742.24 | M104: 14742.24 | N104: 0 | O104: 0 | P104: 14742.24 | Q104: 14742.24 | R104: 0
A105: IPD014 | B105: =IFERROR(INDEX(Mapping!B:C,MATCH(InUTMC010!A106,Mapping!C:C,0),2),InUTMC010!A106) -> I-CASH | C105: N/A | D105: NIAM00002 | E105: 2021-12-31 | F105: 2021-12-29 | G105: 2021-12-29 | H105: UTP*2112N00203 | I105: DV | K105: 44621.46 | L105: 45420.18 | M105: 45420.18 | N105: 0 | O105: 0 | P105: 45420.18 | Q105: 45420.18 | R105: 0
A106: IPD014 | B106: =IFERROR(INDEX(Mapping!B:C,MATCH(InUTMC010!A107,Mapping!C:C,0),2),InUTMC010!A107) -> I-CASH | C106: N/A | D106: 5061539171 | E106: 2021-12-31 | F106: 2021-12-29 | G106: 2021-12-29 | H106: UTP*2112N00204 | I106: DV | K106: 203.87 | L106: 207.52 | M106: 207.52 | N106: 0 | O106: 0 | P106: 207.52 | Q106: 207.52 | R106: 0
A107: IPD014 | B107: =IFERROR(INDEX(Mapping!B:C,MATCH(InUTMC010!A108,Mapping!C:C,0),2),InUTMC010!A108) -> I-CASH | C107: N/A | D107: 5061302641 | E107: 2021-12-31 | F107: 2021-12-29 | G107: 2021-12-29 | H107: UTP*2112N00205 | I107: DV | K107: 20940.85 | L107: 21315.69 | M107: 21315.69 | N107: 0 | O107: 0 | P107: 21315.69 | Q107: 21315.69 | R107: 0
A108: IPD014 | B108: =IFERROR(INDEX(Mapping!B:C,MATCH(InUTMC010!A109,Mapping!C:C,0),2),InUTMC010!A109) -> I-CASH | C108: N/A | D108: 5061258922 | E108: 2021-12-31 | F108: 2021-12-29 | G108: 2021-12-29 | H108: UTP*2112N00206 | I108: DV | K108: 497817 | L108: 506727.92 | M108: 506727.92 | N108: 0 | O108: 0 | P108: 506727.92 | Q108: 506727.92 | R108: 0
A109: IPD014 | B109: =IFERROR(INDEX(Mapping!B:C,MATCH(InUTMC010!A110,Mapping!C:C,0),2),InUTMC010!A110) -> I-CASH | C109: N/A | D109: 5062424342 | E109: 2021-12-31 | F109: 2021-12-29 | G109: 2021-12-29 | H109: UTP*2112N00207 | I109: DV | K109: 3518.15 | L109: 3581.12 | M109: 3581.12 | N109: 0 | O109: 0 | P109: 3581.12 | Q109: 3581.12 | R109: 0
A110: IPD014 | B110: =IFERROR(INDEX(Mapping!B:C,MATCH(InUTMC010!A111,Mapping!C:C,0),2),InUTMC010!A111) -> I-CASH | C110: N/A | D110: 5061234342 | E110: 2021-12-31 | F110: 2021-12-29 | G110: 2021-12-29 | H110: UTP*2112N00208 | I110: DV | K110: 11470.8 | L110: 11676.13 | M110: 11676.13 | N110: 0 | O110: 0 | P110: 11676.13 | Q110: 11676.13 | R110: 0
A111: IPD014 | B111: =IFERROR(INDEX(Mapping!B:C,MATCH(InUTMC010!A112,Mapping!C:C,0),2),InUTMC010!A112) -> I-CASH | C111: N/A | D111: 3300001625 | E111: 2021-12-31 | F111: 2021-12-29 | G111: 2021-12-29 | H111: UTP*2112N00209 | I111: DV | K111: 12391.74 | L111: 12613.55 | M111: 12613.55 | N111: 0 | O111: 0 | P111: 12613.55 | Q111: 12613.55 | R111: 0
A112: IPD014 | B112: =IFERROR(INDEX(Mapping!B:C,MATCH(InUTMC010!A113,Mapping!C:C,0),2),InUTMC010!A113) -> I-CASH | C112: N/A | D112: 5062565193 | E112: 2021-12-31 | F112: 2021-12-29 | G112: 2021-12-29 | H112: UTP*2112N00210 | I112: DV | K112: 49412.51 | L112: 50296.99 | M112: 50296.99 | N112: 0 | O112: 0 | P112: 50296.99 | Q112: 50296.99 | R112: 0
A113: IPD014 | B113: =IFERROR(INDEX(Mapping!B:C,MATCH(InUTMC010!A114,Mapping!C:C,0),2),InUTMC010!A114) -> I-CASH | C113: N/A | D113: 5062565155 | E113: 2021-12-31 | F113: 2021-12-29 | G113: 2021-12-29 | H113: UTP*2112N00211 | I113: DV | K113: 2262.75 | L113: 2303.25 | M113: 2303.25 | N113: 0 | O113: 0 | P113: 2303.25 | Q113: 2303.25 | R113: 0
A114: IPD014 | B114: =IFERROR(INDEX(Mapping!B:C,MATCH(InUTMC010!A115,Mapping!C:C,0),2),InUTMC010!A115) -> I-CASH | C114: N/A | D114: 5061725595 | E114: 2021-12-31 | F114: 2021-12-29 | G114: 2021-12-29 | H114: UTP*2112N00212 | I114: DV | K114: 130365.3 | L114: 132698.84 | M114: 132698.84 | N114: 0 | O114: 0 | P114: 132698.84 | Q114: 132698.84 | R114: 0
A115: IPD014 | B115: =IFERROR(INDEX(Mapping!B:C,MATCH(InUTMC010!A116,Mapping!C:C,0),2),InUTMC010!A116) -> I-CASH | C115: N/A | D115: 5061356225 | E115: 2021-12-31 | F115: 2021-12-29 | G115: 2021-12-29 | H115: UTP*2112N00213 | I115: DV | K115: 15600.05 | L115: 15879.29 | M115: 15879.29 | N115: 0 | O115: 0 | P115: 15879.29 | Q115: 15879.29 | R115: 0
A116: IPD014 | B116: =IFERROR(INDEX(Mapping!B:C,MATCH(InUTMC010!A117,Mapping!C:C,0),2),InUTMC010!A117) -> I-CASH | C116: N/A | D116: 5062527424 | E116: 2021-12-31 | F116: 2021-12-29 | G116: 2021-12-29 | H116: UTP*2112N00214 | I116: DV | K116: 67.32 | L116: 68.53 | M116: 68.53 | N116: 0 | O116: 0 | P116: 68.53 | Q116: 68.53 | R116: 0
A117: IPD014 | B117: =IFERROR(INDEX(Mapping!B:C,MATCH(InUTMC010!A118,Mapping!C:C,0),2),InUTMC010!A118) -> I-CASH | C117: N/A | D117: 5062756683 | E117: 2021-12-31 | F117: 2021-12-29 | G117: 2021-12-29 | H117: UTP*2112N00215 | I117: DV | K117: 55057.03 | L117: 56042.55 | M117: 56042.55 | N117: 0 | O117: 0 | P117: 56042.55 | Q117: 56042.55 | R117: 0
A118: IPD014 | B118: =IFERROR(INDEX(Mapping!B:C,MATCH(InUTMC010!A119,Mapping!C:C,0),2),InUTMC010!A119) -> I-CASH | D118: 5062821432 | E118: 2021-12-31 | F118: 2021-12-29 | G118: 2021-12-29 | H118: UTP*2112N00216 | I118: DV | K118: 33667.32 | L118: 34269.96 | M118: 34269.96 | N118: 0 | O118: 0 | P118: 34269.96 | Q118: 34269.96 | R118: 0
A119: IPD014 | B119: =IFERROR(INDEX(Mapping!B:C,MATCH(InUTMC010!A120,Mapping!C:C,0),2),InUTMC010!A120) -> I-CASH | D119: 5062883074 | E119: 2021-12-31 | F119: 2021-12-29 | G119: 2021-12-29 | H119: UTP*2112N00217 | I119: DV | K119: 3375.64 | L119: 3436.06 | M119: 3436.06 | N119: 0 | O119: 0 | P119: 3436.06 | Q119: 3436.06 | R119: 0
A120: IPD014 | B120: =IFERROR(INDEX(Mapping!B:C,MATCH(InUTMC010!A121,Mapping!C:C,0),2),InUTMC010!A121) -> I-INCOME | C120: N/A | D120: 5062357995 | E120: 2021-12-31 | F120: 2021-12-29 | G120: 2021-12-29 | H120: UTP*2112N00218 | I120: DV | K120: 1404.59 | L120: 1535.5 | M120: 1535.5 | N120: 0 | O120: 0 | P120: 1535.5 | Q120: 1535.5 | R120: 0
A121: IPD014 | B121: =IFERROR(INDEX(Mapping!B:C,MATCH(InUTMC010!A122,Mapping!C:C,0),2),InUTMC010!A122) -> I-INCOME | C121: N/A | D121: 5062530334 | E121: 2021-12-31 | F121: 2021-12-29 | G121: 2021-12-29 | H121: UTP*2112N00219 | I121: DV | K121: 174106.92 | L121: 190333.68 | M121: 190333.68 | N121: 0 | O121: 0 | P121: 190333.68 | Q121: 190333.68 | R121: 0
A122: IPD014 | B122: =IFERROR(INDEX(Mapping!B:C,MATCH(InUTMC010!A123,Mapping!C:C,0),2),InUTMC010!A123) -> I-INCOME | C122: N/A | D122: 5062573544 | E122: 2021-12-31 | F122: 2021-12-29 | G122: 2021-12-29 | H122: UTP*2112N00220 | I122: DV | K122: 56088.68 | L122: 61316.15 | M122: 61316.15 | N122: 0 | O122: 0 | P122: 61316.15 | Q122: 61316.15 | R122: 0
A123: IPD014 | B123: =IFERROR(INDEX(Mapping!B:C,MATCH(InUTMC010!A124,Mapping!C:C,0),2),InUTMC010!A124) -> I-INCOME | C123: N/A | D123: 5062582845 | E123: 2021-12-31 | F123: 2021-12-29 | G123: 2021-12-29 | H123: UTP*2112N00221 | I123: DV | K123: 65436.8 | L123: 71535.51 | M123: 71535.51 | N123: 0 | O123: 0 | P123: 71535.51 | Q123: 71535.51 | R123: 0
A124: IPD014 | B124: =IFERROR(INDEX(Mapping!B:C,MATCH(InUTMC010!A125,Mapping!C:C,0),2),InUTMC010!A125) -> I-INCOME | C124: N/A | D124: 5062586465 | E124: 2021-12-31 | F124: 2021-12-29 | G124: 2021-12-29 | H124: UTP*2112N00222 | I124: DV | K124: 1247.17 | L124: 1363.41 | M124: 1363.41 | N124: 0 | O124: 0 | P124: 1363.41 | Q124: 1363.41 | R124: 0
A125: IPD014 | B125: =IFERROR(INDEX(Mapping!B:C,MATCH(InUTMC010!A126,Mapping!C:C,0),2),InUTMC010!A126) -> I-INCOME | C125: N/A | D125: 5062547164 | E125: 2021-12-31 | F125: 2021-12-29 | G125: 2021-12-29 | H125: UTP*2112N00223 | I125: DV | K125: 62506.93 | L125: 68332.58 | M125: 68332.58 | N125: 0 | O125: 0 | P125: 68332.58 | Q125: 68332.58 | R125: 0
A126: IPD014 | B126: =IFERROR(INDEX(Mapping!B:C,MATCH(InUTMC010!A127,Mapping!C:C,0),2),InUTMC010!A127) -> I-INCOME | C126: N/A | D126: 5062547164 | E126: 2021-12-31 | F126: 2021-12-29 | G126: 2021-12-29 | H126: UTP*2112N00224 | I126: DV | K126: 23093.75 | L126: 25246.08 | M126: 25246.08 | N126: 0 | O126: 0 | P126: 25246.08 | Q126: 25246.08 | R126: 0
A127: IPD014 | B127: =IFERROR(INDEX(Mapping!B:C,MATCH(InUTMC010!A128,Mapping!C:C,0),2),InUTMC010!A128) -> I-INCOME | C127: N/A | D127: 5061243756 | E127: 2021-12-31 | F127: 2021-12-29 | G127: 2021-12-29 | H127: UTP*2112N00225 | I127: DV | K127: 420044.47 | L127: 459192.61 | M127: 459192.61 | N127: 0 | O127: 0 | P127: 459192.61 | Q127: 459192.61 | R127: 0
A128: IPD014 | B128: =IFERROR(INDEX(Mapping!B:C,MATCH(InUTMC010!A129,Mapping!C:C,0),2),InUTMC010!A129) -> I-INCOME | C128: N/A | D128: 5062700161 | E128: 2021-12-31 | F128: 2021-12-29 | G128: 2021-12-29 | H128: UTP*2112N00226 | I128: DV | K128: 25109.88 | L128: 27450.12 | M128: 27450.12 | N128: 0 | O128: 0 | P128: 27450.12 | Q128: 27450.12 | R128: 0
A129: IPD014 | B129: =IFERROR(INDEX(Mapping!B:C,MATCH(InUTMC010!A130,Mapping!C:C,0),2),InUTMC010!A130) -> I-INCOME | C129: N/A | D129: 5062665883 | E129: 2021-12-31 | F129: 2021-12-29 | G129: 2021-12-29 | H129: UTP*2112N00227 | I129: DV | K129: 6055.46 | L129: 6619.83 | M129: 6619.83 | N129: 0 | O129: 0 | P129: 6619.83 | Q129: 6619.83 | R129: 0
A130: IPD014 | B130: =IFERROR(INDEX(Mapping!B:C,MATCH(InUTMC010!A131,Mapping!C:C,0),2),InUTMC010!A131) -> I-INCOME | C130: N/A | D130: 5061407194 | E130: 2021-12-31 | F130: 2021-12-28 | G130: 2021-12-29 | H130: UTP*2112N00228 | I130: DP | K130: 0 | L130: 6249516.96 | M130: 6249516.96 | N130: 0 | O130: 0 | P130: 0 | Q130: 6249516.96 | R130: 6249516.96
A131: IPD014 | B131: =IFERROR(INDEX(Mapping!B:C,MATCH(InUTMC010!A132,Mapping!C:C,0),2),InUTMC010!A132) -> I-INCOME | C131: N/A | D131: 5061539171 | E131: 2021-12-31 | F131: 2021-12-29 | G131: 2021-12-29 | H131: UTP*2112N00229 | I131: DV | K131: 4467.12 | L131: 4883.46 | M131: 4883.46 | N131: 0 | O131: 0 | P131: 4883.46 | Q131: 4883.46 | R131: 0
A132: IPD014 | B132: =IFERROR(INDEX(Mapping!B:C,MATCH(InUTMC010!A133,Mapping!C:C,0),2),InUTMC010!A133) -> I-INCOME | C132: N/A | D132: 5062354081 | E132: 2021-12-31 | F132: 2021-12-29 | G132: 2021-12-29 | H132: UTP*2112N00230 | I132: DV | K132: 5047.97 | L132: 5518.44 | M132: 5518.44 | N132: 0 | O132: 0 | P132: 5518.44 | Q132: 5518.44 | R132: 0
A133: IPD014 | B133: =IFERROR(INDEX(Mapping!B:C,MATCH(InUTMC010!A134,Mapping!C:C,0),2),InUTMC010!A134) -> I-INCOME | C133: N/A | D133: 5062527424 | E133: 2021-12-31 | F133: 2021-12-29 | G133: 2021-12-29 | H133: UTP*2112N00231 | I133: DV | K133: 29884.23 | L133: 32669.44 | M133: 32669.44 | N133: 0 | O133: 0 | P133: 32669.44 | Q133: 32669.44 | R133: 0
A134: IPD014 | B134: =IFERROR(INDEX(Mapping!B:C,MATCH(InUTMC010!A135,Mapping!C:C,0),2),InUTMC010!A135) -> I-INCOME | C134: N/A | D134: 5062429334 | E134: 2021-12-31 | F134: 2021-12-29 | G134: 2021-12-29 | H134: UTP*2112N00232 | I134: DV | K134: 65130.18 | L134: 71200.31 | M134: 71200.31 | N134: 0 | O134: 0 | P134: 71200.31 | Q134: 71200.31 | R134: 0
A135: IPD014 | B135: =IFERROR(INDEX(Mapping!B:C,MATCH(InUTMC010!A136,Mapping!C:C,0),2),InUTMC010!A136) -> I-INCOME | C135: N/A | D135: 5062688995 | E135: 2021-12-31 | F135: 2021-12-29 | G135: 2021-12-29 | H135: UTP*2112N00233 | I135: DV | K135: 33148.44 | L135: 36237.88 | M135: 36237.88 | N135: 0 | O135: 0 | P135: 36237.88 | Q135: 36237.88 | R135: 0
A136: IPD014 | B136: =IFERROR(INDEX(Mapping!B:C,MATCH(InUTMC010!A137,Mapping!C:C,0),2),InUTMC010!A137) -> I-INCOME | C136: N/A | D136: 5062717531 | E136: 2021-12-31 | F136: 2021-12-29 | G136: 2021-12-29 | H136: UTP*2112N00234 | I136: DV | K136: 14544.77 | L136: 15900.34 | M136: 15900.34 | N136: 0 | O136: 0 | P136: 15900.34 | Q136: 15900.34 | R136: 0
A137: IPD014 | B137: =IFERROR(INDEX(Mapping!B:C,MATCH(InUTMC010!A138,Mapping!C:C,0),2),InUTMC010!A138) -> I-INCOME | C137: N/A | D137: 5062746721 | E137: 2021-12-31 | F137: 2021-12-29 | G137: 2021-12-29 | H137: UTP*2112N00235 | I137: DV | K137: 661427.2 | L137: 723072.21 | M137: 723072.21 | N137: 0 | O137: 0 | P137: 723072.21 | Q137: 723072.21 | R137: 0
A138: IPD014 | B138: =IFERROR(INDEX(Mapping!B:C,MATCH(InUTMC010!A139,Mapping!C:C,0),2),InUTMC010!A139) -> I-INCOME | C138: N/A | D138: 5062768676 | E138: 2021-12-31 | F138: 2021-12-29 | G138: 2021-12-29 | H138: UTP*2112N00236 | I138: DV | K138: 747715.34 | L138: 817402.41 | M138: 817402.41 | N138: 0 | O138: 0 | P138: 817402.41 | Q138: 817402.41 | R138: 0
A139: IPD014 | B139: =IFERROR(INDEX(Mapping!B:C,MATCH(InUTMC010!A140,Mapping!C:C,0),2),InUTMC010!A140) -> I-INCOME | C139: N/A | D139: 5062768692 | E139: 2021-12-31 | F139: 2021-12-29 | G139: 2021-12-29 | H139: UTP*2112N00237 | I139: DV | K139: 249260.52 | L139: 272491.6 | M139: 272491.6 | N139: 0 | O139: 0 | P139: 272491.6 | Q139: 272491.6 | R139: 0
A140: IPD014 | B140: =IFERROR(INDEX(Mapping!B:C,MATCH(InUTMC010!A141,Mapping!C:C,0),2),InUTMC010!A141) -> I-INCOME | C140: N/A | D140: 5062775751 | E140: 2021-12-31 | F140: 2021-12-29 | G140: 2021-12-29 | H140: UTP*2112N00238 | I140: DV | K140: 106986.72 | L140: 116957.88 | M140: 116957.88 | N140: 0 | O140: 0 | P140: 116957.88 | Q140: 116957.88 | R140: 0
A141: IPD014 | B141: =IFERROR(INDEX(Mapping!B:C,MATCH(InUTMC010!A142,Mapping!C:C,0),2),InUTMC010!A142) -> I-INCOME | C141: N/A | D141: 5062775682 | E141: 2021-12-31 | F141: 2021-12-29 | G141: 2021-12-29 | H141: UTP*2112N00239 | I141: DV | K141: 50530.44 | L141: 55239.88 | M141: 55239.88 | N141: 0 | O141: 0 | P141: 55239.88 | Q141: 55239.88 | R141: 0
A142: IPD014 | B142: =IFERROR(INDEX(Mapping!B:C,MATCH(InUTMC010!A143,Mapping!C:C,0),2),InUTMC010!A143) -> I-INCOME | D142: 5062785551 | E142: 2021-12-31 | F142: 2021-12-29 | G142: 2021-12-29 | H142: UTP*2112N00240 | I142: DV | K142: 62855.16 | L142: 68713.26 | M142: 68713.26 | N142: 0 | O142: 0 | P142: 68713.26 | Q142: 68713.26 | R142: 0
A143: IPD014 | B143: =IFERROR(INDEX(Mapping!B:C,MATCH(InUTMC010!A144,Mapping!C:C,0),2),InUTMC010!A144) -> I-INCOME | D143: 5062854826 | E143: 2021-12-31 | F143: 2021-12-29 | G143: 2021-12-29 | H143: UTP*2112N00241 | I143: DV | K143: 685025.27 | L143: 748869.62 | M143: 748869.62 | N143: 0 | O143: 0 | P143: 748869.62 | Q143: 748869.62 | R143: 0
A144: IPD014 | B144: =IFERROR(INDEX(Mapping!B:C,MATCH(InUTMC010!A145,Mapping!C:C,0),2),InUTMC010!A145) -> I-INCOME2I | D144: 5182862353 | E144: 2021-12-31 | F144: 2021-12-29 | G144: 2021-12-29 | H144: UTP*2112N00242 | I144: DV | K144: 1 | L144: 1 | M144: 1 | N144: 0 | O144: 0 | P144: 1 | Q144: 1 | R144: 0
A145: IPD014 | B145: =IFERROR(INDEX(Mapping!B:C,MATCH(InUTMC010!A146,Mapping!C:C,0),2),InUTMC010!A146) -> I-INCOME2I | D145: 5182877605 | E145: 2021-12-31 | F145: 2021-12-29 | G145: 2021-12-29 | H145: UTP*2112N00243 | I145: DV | K145: 25047.63 | L145: 24985.01 | M145: 24985.01 | N145: 0 | O145: 0 | P145: 24985.01 | Q145: 24985.01 | R145: 0
A146: IPD014 | B146: =IFERROR(INDEX(Mapping!B:C,MATCH(InUTMC010!A147,Mapping!C:C,0),2),InUTMC010!A147) -> I-INCOME2I | D146: 5182877616 | E146: 2021-12-31 | F146: 2021-12-29 | G146: 2021-12-29 | H146: UTP*2112N00244 | I146: DV | K146: 5009.52 | L146: 4997 | M146: 4997 | N146: 0 | O146: 0 | P146: 4997 | Q146: 4997 | R146: 0
A147: IPD014 | B147: =IFERROR(INDEX(Mapping!B:C,MATCH(InUTMC010!A148,Mapping!C:C,0),2),InUTMC010!A148) -> I-INCOME2R | C147: N/A | D147: 5182908303 | E147: 2021-12-31 | F147: 2021-12-29 | G147: 2021-12-29 | H147: UTP*2112N00245 | I147: DV | K147: 805.55 | L147: 803.13 | M147: 803.13 | N147: 0 | O147: 0 | P147: 803.13 | Q147: 803.13 | R147: 0
A148: IPD014 | B148: =IFERROR(INDEX(Mapping!B:C,MATCH(InUTMC010!A149,Mapping!C:C,0),2),InUTMC010!A149) -> I-INCOME2R | C148: N/A | D148: 5182894224 | E148: 2021-12-31 | F148: 2021-12-29 | G148: 2021-12-29 | H148: UTP*2112N00246 | I148: DV | K148: 1015.62 | L148: 1012.57 | M148: 1012.57 | N148: 0 | O148: 0 | P148: 1012.57 | Q148: 1012.57 | R148: 0
A149: IPD014 | B149: =IFERROR(INDEX(Mapping!B:C,MATCH(InUTMC010!A150,Mapping!C:C,0),2),InUTMC010!A150) -> I-INCOME2R | D149: 5182862353 | E149: 2021-12-31 | F149: 2021-12-29 | G149: 2021-12-29 | H149: UTP*2112N00247 | I149: DV | K149: 1 | L149: 1 | M149: 1 | N149: 0 | O149: 0 | P149: 1 | Q149: 1 | R149: 0
A150: IPD014 | B150: =IFERROR(INDEX(Mapping!B:C,MATCH(InUTMC010!A151,Mapping!C:C,0),2),InUTMC010!A151) -> I-INCOME2S | C150: N/A | D150: 5182910265 | E150: 2021-12-31 | F150: 2021-12-28 | G150: 2021-12-29 | H150: UTP*2112N00248 | I150: DP | K150: 0 | L150: 40192.93 | M150: 40192.93 | N150: 0 | O150: 0 | P150: 0 | Q150: 40192.93 | R150: 40192.93
A151: IPD014 | B151: =IFERROR(INDEX(Mapping!B:C,MATCH(InUTMC010!A152,Mapping!C:C,0),2),InUTMC010!A152) -> I-INCOME2S | D151: 5182862353 | E151: 2021-12-31 | F151: 2021-12-29 | G151: 2021-12-29 | H151: UTP*2112N00249 | I151: DV | K151: 1 | L151: 1 | M151: 1 | N151: 0 | O151: 0 | P151: 1 | Q151: 1 | R151: 0
A152: IPD014 | B152: =IFERROR(INDEX(Mapping!B:C,MATCH(InUTMC010!A153,Mapping!C:C,0),2),InUTMC010!A153) -> I-INCOME2H | D152: 5182862353 | E152: 2021-12-31 | F152: 2021-12-29 | G152: 2021-12-29 | H152: UTP*2112N00250 | I152: DV | K152: 0.24 | L152: 0.24 | M152: 0.24 | N152: 0 | O152: 0 | P152: 0.24 | Q152: 0.24 | R152: 0
A153: IPD014 | B153: =IFERROR(INDEX(Mapping!B:C,MATCH(InUTMC010!A154,Mapping!C:C,0),2),InUTMC010!A154) -> I-INCOME | C153: N/A | D153: 5061243756 | E153: 2021-12-31 | F153: 2021-12-01 | G153: 2021-12-06 | H153: UTP*2112T00001 | I153: RE | K153: -27200 | L153: -30066.88 | M153: -30066.88 | N153: 0 | O153: 0 | P153: -31073.28 | Q153: -30066.88 | R153: 1006.4
A154: IPD014 | B154: =IFERROR(INDEX(Mapping!B:C,MATCH(InUTMC010!A155,Mapping!C:C,0),2),InUTMC010!A155) -> NGSSGFB | C154: N/A | D154: IFAS | E154: 2021-12-31 | F154: 2021-12-01 | G154: 2021-12-08 | H154: UTP*2112T00003 | I154: RE | K154: -5077.15 | L154: -6305.82 | M154: -6305.82 | N154: 0 | O154: 0 | P154: -5870.2 | Q154: -6305.82 | R154: -435.62
A155: IPD014 | B155: =IFERROR(INDEX(Mapping!B:C,MATCH(InUTMC010!A156,Mapping!C:C,0),2),InUTMC010!A156) -> I-CASH | C155: N/A | D155: 5061243756 | E155: 2021-12-31 | F155: 2021-12-02 | G155: 2021-12-03 | H155: UTP*2112T00008 | I155: RE | K155: -6166.11 | L155: -6312.86 | M155: -6312.86 | N155: 0 | O155: 0 | P155: -6312.25 | Q155: -6312.86 | R155: -0.61
A156: IPD014 | B156: =IFERROR(INDEX(Mapping!B:C,MATCH(InUTMC010!A157,Mapping!C:C,0),2),InUTMC010!A157) -> I-CASH | C156: N/A | D156: 5061243756 | E156: 2021-12-31 | F156: 2021-12-02 | G156: 2021-12-03 | H156: UTP*2112T00009 | I156: RE | K156: -42676.89 | L156: -43692.6 | M156: -43692.6 | N156: 0 | O156: 0 | P156: -43692.6 | Q156: -43692.6 | R156: 0
A157: IPD014 | B157: =IFERROR(INDEX(Mapping!B:C,MATCH(InUTMC010!A158,Mapping!C:C,0),2),InUTMC010!A158) -> I-CASH | C157: N/A | D157: 5061243756 | E157: 2021-12-31 | F157: 2021-12-02 | G157: 2021-12-03 | H157: UTP*2112T00010 | I157: RE | K157: -48842.43 | L157: -50004.88 | M157: -50004.88 | N157: 0 | O157: 0 | P157: -50004.88 | Q157: -50004.88 | R157: 0
A158: IPD014 | B158: =IFERROR(INDEX(Mapping!B:C,MATCH(InUTMC010!A159,Mapping!C:C,0),2),InUTMC010!A159) -> I-INCOME | C158: N/A | D158: 5061243756 | E158: 2021-12-31 | F158: 2021-12-02 | G158: 2021-12-08 | H158: UTP*2112T00011 | I158: RE | K158: -9416.67 | L158: -10410.13 | M158: -10410.13 | N158: 0 | O158: 0 | P158: -10757.6 | Q158: -10410.13 | R158: 347.47
A159: IPD014 | B159: =IFERROR(INDEX(Mapping!B:C,MATCH(InUTMC010!A160,Mapping!C:C,0),2),InUTMC010!A160) -> NGSSGFB | C159: N/A | D159: 5182527451 | E159: 2021-12-31 | F159: 2021-12-02 | G159: 2021-12-10 | H159: UTP*2112T00015 | I159: RE | K159: -36459.76 | L159: -45490.84 | M159: -45490.84 | N159: 0 | O159: 0 | P159: -40000 | Q159: -45490.84 | R159: -5490.84
A160: IPD014 | B160: =IFERROR(INDEX(Mapping!B:C,MATCH(InUTMC010!A161,Mapping!C:C,0),2),InUTMC010!A161) -> NGSSGFB | C160: N/A | D160: 5182527451 | E160: 2021-12-31 | F160: 2021-12-02 | G160: 2021-12-10 | H160: UTP*2112T00016 | I160: RE | K160: -9708 | L160: -12112.67 | M160: -12112.67 | N160: 0 | O160: 0 | P160: -11293.32 | Q160: -12112.67 | R160: -819.35
A161: IPD014 | B161: =IFERROR(INDEX(Mapping!B:C,MATCH(InUTMC010!A162,Mapping!C:C,0),2),InUTMC010!A162) -> NGSSGFB | C161: N/A | D161: 5182527451 | E161: 2021-12-31 | F161: 2021-12-02 | G161: 2021-12-10 | H161: UTP*2112T00017 | I161: RE | K161: -12571.86 | L161: -15685.91 | M161: -15685.91 | N161: 0 | O161: 0 | P161: -14314.32 | Q161: -15685.91 | R161: -1371.59
A162: IPD014 | B162: =IFERROR(INDEX(Mapping!B:C,MATCH(InUTMC010!A163,Mapping!C:C,0),2),InUTMC010!A163) -> I-CASH | C162: N/A | D162: 5061243756 | E162: 2021-12-31 | F162: 2021-12-06 | G162: 2021-12-07 | H162: UTP*2112T00019 | I162: RE | K162: -48842.44 | L162: -50014.66 | M162: -50014.66 | N162: 0 | O162: 0 | P162: -50004.89 | Q162: -50014.66 | R162: -9.77
A163: IPD014 | B163: =IFERROR(INDEX(Mapping!B:C,MATCH(InUTMC010!A164,Mapping!C:C,0),2),InUTMC010!A164) -> I-INCOME | C163: N/A | D163: 5061243756 | E163: 2021-12-31 | F163: 2021-12-06 | G163: 2021-12-09 | H163: UTP*2112T00021 | I163: RE | K163: -27275.44 | L163: -30174.82 | M163: -30174.82 | N163: 0 | O163: 0 | P163: -31159.46 | Q163: -30174.82 | R163: 984.64
A164: IPD014 | B164: =IFERROR(INDEX(Mapping!B:C,MATCH(InUTMC010!A165,Mapping!C:C,0),2),InUTMC010!A165) -> NRBF1 | C164: N/A | D164: IFAS | E164: 2021-12-31 | F164: 2021-12-06 | G164: 2021-12-09 | H164: UTP*2112T00022 | I164: RE | K164: -9681.33 | L164: -10078.26 | M164: -10078.26 | N164: 0 | O164: 0 | P164: -10276.73 | Q164: -10078.26 | R164: 198.47
A165: IPD014 | B165: =IFERROR(INDEX(Mapping!B:C,MATCH(InUTMC010!A166,Mapping!C:C,0),2),InUTMC010!A166) -> NGSEFB | C165: N/A | D165: IFAS | E165: 2021-12-31 | F165: 2021-12-06 | G165: 2021-12-14 | H165: UTP*2112T00027 | I165: RE | K165: -978.37 | L165: -975.43 | M165: -975.43 | N165: 0 | O165: 0 | P165: -978.37 | Q165: -975.43 | R165: 2.94
A166: IPD014 | B166: =IFERROR(INDEX(Mapping!B:C,MATCH(InUTMC010!A167,Mapping!C:C,0),2),InUTMC010!A167) -> I-CASH | C166: N/A | D166: 5061243756 | E166: 2021-12-31 | F166: 2021-12-07 | G166: 2021-12-08 | H166: UTP*2112T00031 | I166: RE | K166: -14976.66 | L166: -15336.1 | M166: -15336.1 | N166: 0 | O166: 0 | P166: -15333.1 | Q166: -15336.1 | R166: -3
A167: IPD014 | B167: =IFERROR(INDEX(Mapping!B:C,MATCH(InUTMC010!A168,Mapping!C:C,0),2),InUTMC010!A168) -> I-INCOME | C167: N/A | D167: 5061243756 | E167: 2021-12-31 | F167: 2021-12-07 | G167: 2021-12-10 | H167: UTP*2112T00033 | I167: RE | K167: -22565.87 | L167: -24971.39 | M167: -24971.39 | N167: 0 | O167: 0 | P167: -25779.25 | Q167: -24971.39 | R167: 807.86
A168: IPD014 | B168: =IFERROR(INDEX(Mapping!B:C,MATCH(InUTMC010!A169,Mapping!C:C,0),2),InUTMC010!A169) -> NGSSGFB | C168: N/A | D168: 5182527451 | E168: 2021-12-31 | F168: 2021-12-07 | G168: 2021-12-14 | H168: UTP*2112T00038 | I168: RE | K168: -8229.78 | L168: -10410.67 | M168: -10410.67 | N168: 0 | O168: 0 | P168: -9370.43 | Q168: -10410.67 | R168: -1040.24
A169: IPD014 | B169: =IFERROR(INDEX(Mapping!B:C,MATCH(InUTMC010!A170,Mapping!C:C,0),2),InUTMC010!A170) -> I-CASH | C169: N/A | D169: 5061243756 | E169: 2021-12-31 | F169: 2021-12-08 | G169: 2021-12-09 | H169: UTP*2112T00039 | I169: RE | K169: -26764.71 | L169: -27407.06 | M169: -27407.06 | N169: 0 | O169: 0 | P169: -27401.71 | Q169: -27407.06 | R169: -5.35
A170: IPD014 | B170: =IFERROR(INDEX(Mapping!B:C,MATCH(InUTMC010!A171,Mapping!C:C,0),2),InUTMC010!A171) -> I-CASH | C170: N/A | D170: 5061243756 | E170: 2021-12-31 | F170: 2021-12-08 | G170: 2021-12-09 | H170: UTP*2112T00040 | I170: RE | K170: -22047.07 | L170: -22576.2 | M170: -22576.2 | N170: 0 | O170: 0 | P170: -22574 | Q170: -22576.2 | R170: -2.2
A171: IPD014 | B171: =IFERROR(INDEX(Mapping!B:C,MATCH(InUTMC010!A172,Mapping!C:C,0),2),InUTMC010!A172) -> I-CASH | C171: N/A | D171: 5061243756 | E171: 2021-12-31 | F171: 2021-12-08 | G171: 2021-12-09 | H171: UTP*2112T00041 | I171: RE | K171: -127466.06 | L171: -130525.25 | M171: -130525.25 | N171: 0 | O171: 0 | P171: -130512.5 | Q171: -130525.25 | R171: -12.75
A172: IPD014 | B172: =IFERROR(INDEX(Mapping!B:C,MATCH(InUTMC010!A173,Mapping!C:C,0),2),InUTMC010!A173) -> I-CASH | C172: N/A | D172: 5061243756 | E172: 2021-12-31 | F172: 2021-12-08 | G172: 2021-12-09 | H172: UTP*2112T00042 | I172: RE | K172: -58545.52 | L172: -59950.61 | M172: -59950.61 | N172: 0 | O172: 0 | P172: -59956.47 | Q172: -59950.61 | R172: 5.86
A173: IPD014 | B173: =IFERROR(INDEX(Mapping!B:C,MATCH(InUTMC010!A174,Mapping!C:C,0),2),InUTMC010!A174) -> I-CASH | C173: N/A | D173: 5061243756 | E173: 2021-12-31 | F173: 2021-12-08 | G173: 2021-12-09 | H173: UTP*2112T00043 | I173: RE | K173: -21482.28 | L173: -21997.85 | M173: -21997.85 | N173: 0 | O173: 0 | P173: -22000 | Q173: -21997.85 | R173: 2.15
A174: IPD014 | B174: =IFERROR(INDEX(Mapping!B:C,MATCH(InUTMC010!A175,Mapping!C:C,0),2),InUTMC010!A175) -> I-CASH | C174: N/A | D174: 5061243756 | E174: 2021-12-31 | F174: 2021-12-08 | G174: 2021-12-09 | H174: UTP*2112T00044 | I174: RE | K174: -43694.36 | L174: -44743.03 | M174: -44743.03 | N174: 0 | O174: 0 | P174: -44751.76 | Q174: -44743.03 | R174: 8.73
A175: IPD014 | B175: =IFERROR(INDEX(Mapping!B:C,MATCH(InUTMC010!A176,Mapping!C:C,0),2),InUTMC010!A176) -> I-INCOME | C175: N/A | D175: 5061243756 | E175: 2021-12-31 | F175: 2021-12-08 | G175: 2021-12-13 | H175: UTP*2112T00045 | I175: RE | K175: -213515.49 | L175: -236361.65 | M175: -236361.65 | N175: 0 | O175: 0 | P175: -243920.1 | Q175: -236361.65 | R175: 7558.45
A176: IPD014 | B176: =IFERROR(INDEX(Mapping!B:C,MATCH(InUTMC010!A177,Mapping!C:C,0),2),InUTMC010!A177) -> I-CASH | C176: N/A | D176: 5061243756 | E176: 2021-12-31 | F176: 2021-12-09 | G176: 2021-12-10 | H176: UTP*2112T00048 | I176: RE | K176: -9900.09 | L176: -10138.68 | M176: -10138.68 | N176: 0 | O176: 0 | P176: -10139.67 | Q176: -10138.68 | R176: 0.99
A177: IPD014 | B177: =IFERROR(INDEX(Mapping!B:C,MATCH(InUTMC010!A178,Mapping!C:C,0),2),InUTMC010!A178) -> NGSEFB | C177: N/A | D177: IFAS | E177: 2021-12-31 | F177: 2021-12-09 | G177: 2021-12-17 | H177: UTP*2112T00054 | I177: RE | K177: -1000 | L177: -1012.8 | M177: -1012.8 | N177: 0 | O177: 0 | P177: -1000 | Q177: -1012.8 | R177: -12.8
A178: IPD014 | B178: =IFERROR(INDEX(Mapping!B:C,MATCH(InUTMC010!A179,Mapping!C:C,0),2),InUTMC010!A179) -> I-CASH | C178: N/A | D178: 5061243756 | E178: 2021-12-31 | F178: 2021-12-10 | G178: 2021-12-13 | H178: UTP*2112T00055 | I178: RE | K178: -86330.07 | L178: -88410.62 | M178: -88410.62 | N178: 0 | O178: 0 | P178: -88419.26 | Q178: -88410.62 | R178: 8.64
A179: IPD014 | B179: =IFERROR(INDEX(Mapping!B:C,MATCH(InUTMC010!A180,Mapping!C:C,0),2),InUTMC010!A180) -> I-CASH | C179: N/A | D179: 5061243756 | E179: 2021-12-31 | F179: 2021-12-10 | G179: 2021-12-13 | H179: UTP*2112T00056 | I179: RE | K179: -60268.26 | L179: -61720.73 | M179: -61720.73 | N179: 0 | O179: 0 | P179: -61738.81 | Q179: -61720.73 | R179: 18.08
A180: IPD014 | B180: =IFERROR(INDEX(Mapping!B:C,MATCH(InUTMC010!A181,Mapping!C:C,0),2),InUTMC010!A181) -> I-INCOME | C180: N/A | D180: 5061243756 | E180: 2021-12-31 | F180: 2021-12-10 | G180: 2021-12-15 | H180: UTP*2112T00058 | I180: RE | K180: -133431.91 | L180: -147535.66 | M180: -147535.66 | N180: 0 | O180: 0 | P180: -152432.61 | Q180: -147535.66 | R180: 4896.95
A181: IPD014 | B181: =IFERROR(INDEX(Mapping!B:C,MATCH(InUTMC010!A182,Mapping!C:C,0),2),InUTMC010!A182) -> NGDBFU | C181: N/A | D181: 5182769431 | E181: 2021-12-31 | F181: 2021-12-10 | G181: 2021-12-20 | H181: UTP*2112T00062 | I181: RE | K181: -616061.43 | L181: -620127.44 | M181: -620127.44 | N181: 0 | O181: 0 | P181: -618340.86 | Q181: -620127.44 | R181: -1786.58
A182: IPD014 | B182: =IFERROR(INDEX(Mapping!B:C,MATCH(InUTMC010!A183,Mapping!C:C,0),2),InUTMC010!A183) -> NGSSGFB | C182: N/A | D182: 5182355271 | E182: 2021-12-31 | F182: 2021-12-10 | G182: 2021-12-17 | H182: UTP*2112T00063 | I182: RE | K182: -289.75 | L182: -364.8 | M182: -364.8 | N182: 0 | O182: 0 | P182: -331.01 | Q182: -364.8 | R182: -33.79
A183: IPD014 | B183: =IFERROR(INDEX(Mapping!B:C,MATCH(InUTMC010!A184,Mapping!C:C,0),2),InUTMC010!A184) -> I-CASH | C183: N/A | D183: 3300001625 | E183: 2021-12-31 | F183: 2021-12-13 | G183: 2021-12-14 | H183: UTP*2112T00064 | I183: RE | K183: -976470 | L183: -1000198.22 | M183: -1000198.22 | N183: 0 | O183: 0 | P183: -1010548.8 | Q183: -1000198.22 | R183: 10350.58
A184: IPD014 | B184: =IFERROR(INDEX(Mapping!B:C,MATCH(InUTMC010!A185,Mapping!C:C,0),2),InUTMC010!A185) -> I-CASH | C184: N/A | D184: 5061243756 | E184: 2021-12-31 | F184: 2021-12-13 | G184: 2021-12-14 | H184: UTP*2112T00065 | I184: RE | K184: -50005.34 | L184: -51220.47 | M184: -51220.47 | N184: 0 | O184: 0 | P184: -51225.47 | Q184: -51220.47 | R184: 5
A185: IPD014 | B185: =IFERROR(INDEX(Mapping!B:C,MATCH(InUTMC010!A186,Mapping!C:C,0),2),InUTMC010!A186) -> I-INCOME | C185: N/A | D185: 5061243756 | E185: 2021-12-31 | F185: 2021-12-13 | G185: 2021-12-16 | H185: UTP*2112T00066 | I185: RE | K185: -22568.65 | L185: -24963.18 | M185: -24963.18 | N185: 0 | O185: 0 | P185: -25782.43 | Q185: -24963.18 | R185: 819.25
A186: IPD014 | B186: =IFERROR(INDEX(Mapping!B:C,MATCH(InUTMC010!A187,Mapping!C:C,0),2),InUTMC010!A187) -> NGSSGFB | C186: N/A | D186: IFAS | E186: 2021-12-31 | F186: 2021-12-13 | G186: 2021-12-20 | H186: UTP*2112T00068 | I186: RE | K186: -7765.14 | L186: -9734.38 | M186: -9734.38 | N186: 0 | O186: 0 | P186: -8978.06 | Q186: -9734.38 | R186: -756.32
A187: IPD014 | B187: =IFERROR(INDEX(Mapping!B:C,MATCH(InUTMC010!A188,Mapping!C:C,0),2),InUTMC010!A188) -> NGSSGFB | C187: N/A | D187: IFAS | E187: 2021-12-31 | F187: 2021-12-13 | G187: 2021-12-20 | H187: UTP*2112T00069 | I187: RE | K187: -42707.39 | L187: -53537.98 | M187: -53537.98 | N187: 0 | O187: 0 | P187: -49382.55 | Q187: -53537.98 | R187: -4155.43
A188: IPD014 | B188: =IFERROR(INDEX(Mapping!B:C,MATCH(InUTMC010!A189,Mapping!C:C,0),2),InUTMC010!A189) -> I-CASH | C188: N/A | D188: 5062582856 | E188: 2021-12-31 | F188: 2021-12-14 | G188: 2021-12-15 | H188: UTP*2112T00070 | I188: RE | K188: -758863.17 | L188: -777303.55 | M188: -777303.55 | N188: 0 | O188: 0 | P188: -777000 | Q188: -777303.55 | R188: -303.55
A189: IPD014 | B189: =IFERROR(INDEX(Mapping!B:C,MATCH(InUTMC010!A190,Mapping!C:C,0),2),InUTMC010!A190) -> I-CASH | C189: N/A | D189: 5062582856 | E189: 2021-12-31 | F189: 2021-12-14 | G189: 2021-12-15 | H189: UTP*2112T00071 | I189: RE | K189: -1038.32 | L189: -1063.55 | M189: -1063.55 | N189: 0 | O189: 0 | P189: -1062.41 | Q189: -1063.55 | R189: -1.14
A190: IPD014 | B190: =IFERROR(INDEX(Mapping!B:C,MATCH(InUTMC010!A191,Mapping!C:C,0),2),InUTMC010!A191) -> I-CASH | C190: N/A | D190: 5062582856 | E190: 2021-12-31 | F190: 2021-12-14 | G190: 2021-12-15 | H190: UTP*2112T00072 | I190: RE | K190: -1114.01 | L190: -1141.08 | M190: -1141.08 | N190: 0 | O190: 0 | P190: -1139.85 | Q190: -1141.08 | R190: -1.23
A191: IPD014 | B191: =IFERROR(INDEX(Mapping!B:C,MATCH(InUTMC010!A192,Mapping!C:C,0),2),InUTMC010!A192) -> I-CASH | C191: N/A | D191: 5062582856 | E191: 2021-12-31 | F191: 2021-12-14 | G191: 2021-12-15 | H191: UTP*2112T00073 | I191: RE | K191: -966.7 | L191: -990.19 | M191: -990.19 | N191: 0 | O191: 0 | P191: -989.32 | Q191: -990.19 | R191: -0.87
A192: IPD014 | B192: =IFERROR(INDEX(Mapping!B:C,MATCH(InUTMC010!A193,Mapping!C:C,0),2),InUTMC010!A193) -> I-CASH | C192: N/A | D192: 5062582856 | E192: 2021-12-31 | F192: 2021-12-14 | G192: 2021-12-15 | H192: UTP*2112T00074 | I192: RE | K192: -371.92 | L192: -380.96 | M192: -380.96 | N192: 0 | O192: 0 | P192: -380.99 | Q192: -380.96 | R192: 0.03
A193: IPD014 | B193: =IFERROR(INDEX(Mapping!B:C,MATCH(InUTMC010!A194,Mapping!C:C,0),2),InUTMC010!A194) -> I-CASH | C193: N/A | D193: 5062582856 | E193: 2021-12-31 | F193: 2021-12-14 | G193: 2021-12-15 | H193: UTP*2112T00075 | I193: RE | K193: -669.45 | L193: -685.72 | M193: -685.72 | N193: 0 | O193: 0 | P193: -686.12 | Q193: -685.72 | R193: 0.4
A194: IPD014 | B194: =IFERROR(INDEX(Mapping!B:C,MATCH(InUTMC010!A195,Mapping!C:C,0),2),InUTMC010!A195) -> I-CASH | C194: N/A | D194: 5062582856 | E194: 2021-12-31 | F194: 2021-12-14 | G194: 2021-12-15 | H194: UTP*2112T00076 | I194: RE | K194: -520.69 | L194: -533.34 | M194: -533.34 | N194: 0 | O194: 0 | P194: -534.12 | Q194: -533.34 | R194: 0.78
A195: IPD014 | B195: =IFERROR(INDEX(Mapping!B:C,MATCH(InUTMC010!A196,Mapping!C:C,0),2),InUTMC010!A196) -> I-CASH | C195: N/A | D195: 5062582856 | E195: 2021-12-31 | F195: 2021-12-14 | G195: 2021-12-15 | H195: UTP*2112T00077 | I195: RE | K195: -893.03 | L195: -914.73 | M195: -914.73 | N195: 0 | O195: 0 | P195: -916.25 | Q195: -914.73 | R195: 1.52
A196: IPD014 | B196: =IFERROR(INDEX(Mapping!B:C,MATCH(InUTMC010!A197,Mapping!C:C,0),2),InUTMC010!A197) -> I-CASH | C196: N/A | D196: 5062582856 | E196: 2021-12-31 | F196: 2021-12-14 | G196: 2021-12-15 | H196: UTP*2112T00078 | I196: RE | K196: -1192.34 | L196: -1221.31 | M196: -1221.31 | N196: 0 | O196: 0 | P196: -1223.1 | Q196: -1221.31 | R196: 1.79
A197: IPD014 | B197: =IFERROR(INDEX(Mapping!B:C,MATCH(InUTMC010!A198,Mapping!C:C,0),2),InUTMC010!A198) -> I-CASH | C197: N/A | D197: 5062582856 | E197: 2021-12-31 | F197: 2021-12-14 | G197: 2021-12-15 | H197: UTP*2112T00079 | I197: RE | K197: -1119.45 | L197: -1146.65 | M197: -1146.65 | N197: 0 | O197: 0 | P197: -1148.44 | Q197: -1146.65 | R197: 1.79
A198: IPD014 | B198: =IFERROR(INDEX(Mapping!B:C,MATCH(InUTMC010!A199,Mapping!C:C,0),2),InUTMC010!A199) -> I-CASH | C198: N/A | D198: 5062582856 | E198: 2021-12-31 | F198: 2021-12-14 | G198: 2021-12-15 | H198: UTP*2112T00080 | I198: RE | K198: -2621.23 | L198: -2684.93 | M198: -2684.93 | N198: 0 | O198: 0 | P198: -2683.62 | Q198: -2684.93 | R198: -1.31
A199: IPD014 | B199: =IFERROR(INDEX(Mapping!B:C,MATCH(InUTMC010!A200,Mapping!C:C,0),2),InUTMC010!A200) -> I-CASH | C199: N/A | D199: 5062582856 | E199: 2021-12-31 | F199: 2021-12-14 | G199: 2021-12-15 | H199: UTP*2112T00081 | I199: RE | K199: -4756.19 | L199: -4871.77 | M199: -4871.77 | N199: 0 | O199: 0 | P199: -4847.03 | Q199: -4871.77 | R199: -24.74
A200: IPD014 | B200: =IFERROR(INDEX(Mapping!B:C,MATCH(InUTMC010!A201,Mapping!C:C,0),2),InUTMC010!A201) -> I-CASH | C200: N/A | D200: 5062582856 | E200: 2021-12-31 | F200: 2021-12-14 | G200: 2021-12-15 | H200: UTP*2112T00082 | I200: RE | K200: -151.76 | L200: -155.45 | M200: -155.45 | N200: 0 | O200: 0 | P200: -154.83 | Q200: -155.45 | R200: -0.62
... 66 more rows

Sheet UTMC011
A1: IPD014 | B1: =IFERROR(INDEX(Mapping!B:C,MATCH(InUTMC011!A2,Mapping!C:C,0),2),InUTMC011!A2) -> I-CASH | D1: 5062821432 | E1: 2021-12-31 | F1: 4895708.79 | G1: 5008310.91 | H1: 2021-11-30 | I1: 4929376.11 | J1: 5042580.87 | K1: 2021-12-31 | L1: 1.018 | M1: 2021-12-31 | N1: -24475.99
A2: IPD014 | B2: =IFERROR(INDEX(Mapping!B:C,MATCH(InUTMC011!A3,Mapping!C:C,0),2),InUTMC011!A3) -> I-CASH | D2: 5062883074 | E2: 2021-12-31 | F2: 490865.39 | G2: 501469.55 | H2: 2021-11-30 | I2: 494241.03 | J2: 504905.61 | K2: 2021-12-31 | L2: 1.018 | M2: 2021-12-31 | N2: -1768.2415
A3: IPD014 | B3: =IFERROR(INDEX(Mapping!B:C,MATCH(InUTMC011!A4,Mapping!C:C,0),2),InUTMC011!A4) -> I-CASH | C3: N/A | D3: 3300001012 | E3: 2021-12-31 | F3: 3945977.71 | G3: 4060856.91 | H3: 2021-11-30 | I3: 3945977.71 | J3: 4060856.91 | K3: 2021-12-31 | L3: 1.018 | M3: 2021-12-31 | N3: -43851.6012
A4: IPD014 | B4: =IFERROR(INDEX(Mapping!B:C,MATCH(InUTMC011!A5,Mapping!C:C,0),2),InUTMC011!A5) -> I-CASH | C4: N/A | D4: 3300001029 | E4: 2021-12-31 | F4: 242010.64 | G4: 250789.4 | H4: 2021-11-30 | I4: 242010.64 | J4: 250789.4 | K4: 2021-12-31 | L4: 1.018 | M4: 2021-12-31 | N4: -4422.5686
A5: IPD014 | B5: =IFERROR(INDEX(Mapping!B:C,MATCH(InUTMC011!A6,Mapping!C:C,0),2),InUTMC011!A6) -> I-CASH | C5: N/A | D5: 3300001221 | E5: 2021-12-31 | F5: 20202.4 | G5: 20923.88 | H5: 2021-11-30 | I5: 20341.33 | J5: 21065.3 | K5: 2021-12-31 | L5: 1.018 | M5: 2021-12-31 | N5: -357.8261
A6: IPD014 | B6: =IFERROR(INDEX(Mapping!B:C,MATCH(InUTMC011!A7,Mapping!C:C,0),2),InUTMC011!A7) -> I-CASH | C6: N/A | D6: 3300001423 | E6: 2021-12-31 | F6: 10100.22 | G6: 10461.94 | H6: 2021-11-30 | I6: 10169.68 | J6: 10532.64 | K6: 2021-12-31 | L6: 1.018 | M6: 2021-12-31 | N6: -179.9057
A7: IPD014 | B7: =IFERROR(INDEX(Mapping!B:C,MATCH(InUTMC011!A8,Mapping!C:C,0),2),InUTMC011!A8) -> I-CASH | C7: N/A | D7: 3300001625 | E7: 2021-12-31 | F7: 2778405.19 | G7: 2871483.37 | H7: 2021-11-30 | I7: 1814326.93 | J7: 1873548.12 | K7: 2021-12-31 | L7: 1.018 | M7: 2021-12-31 | N7: -26563.3053
A8: IPD014 | B8: =IFERROR(INDEX(Mapping!B:C,MATCH(InUTMC011!A9,Mapping!C:C,0),2),InUTMC011!A9) -> I-CASH | C8: N/A | D8: 3300001827 | E8: 2021-12-31 | F8: 68476338.99 | G8: 70177177.18 | H8: 2021-11-30 | I8: 68476338.99 | J8: 70177177.18 | K8: 2021-12-31 | L8: 1.018 | M8: 2021-12-31 | N8: -468264.0882
A9: IPD014 | B9: =IFERROR(INDEX(Mapping!B:C,MATCH(InUTMC011!A10,Mapping!C:C,0),2),InUTMC011!A10) -> I-CASH | C9: N/A | D9: 3300002428 | E9: 2021-12-31 | F9: 50437012.38 | G9: 51685522.47 | H9: 2021-11-30 | I9: 50783862.85 | J9: 52038581.56 | K9: 2021-12-31 | L9: 1.018 | M9: 2021-12-31 | N9: -340609.1787
A10: IPD014 | B10: =IFERROR(INDEX(Mapping!B:C,MATCH(InUTMC011!A11,Mapping!C:C,0),2),InUTMC011!A11) -> I-CASH | C10: N/A | D10: 5061234342 | E10: 2021-12-31 | F10: 1668017.89 | G10: 1707648.86 | H10: 2021-11-30 | I10: 1679488.69 | J10: 1719324.99 | K10: 2021-12-31 | L10: 1.018 | M10: 2021-12-31 | N10: -9605.5038
A11: IPD014 | B11: =IFERROR(INDEX(Mapping!B:C,MATCH(InUTMC011!A12,Mapping!C:C,0),2),InUTMC011!A12) -> I-CASH | C11: N/A | D11: 5061243756 | E11: 2021-12-31 | F11: 10148457.11 | G11: 10392309.25 | H11: 2021-11-30 | I11: 10216968.75 | J11: 10461451.44 | K11: 2021-12-31 | L11: 1.018 | M11: 2021-12-31 | N11: -60577.2564
A12: IPD014 | B12: =IFERROR(INDEX(Mapping!B:C,MATCH(InUTMC011!A13,Mapping!C:C,0),2),InUTMC011!A13) -> I-CASH | C12: N/A | D12: 5061250355 | E12: 2021-12-31 | F12: 0 | G12: 0.04 | H12: 2021-11-30 | I12: 0 | J12: 0.04 | K12: 2021-12-31 | L12: 1.018 | M12: 2021-12-31 | N12: -0.04
A13: IPD014 | B13: =IFERROR(INDEX(Mapping!B:C,MATCH(InUTMC011!A14,Mapping!C:C,0),2),InUTMC011!A14) -> I-CASH | C13: N/A | D13: 5061258922 | E13: 2021-12-31 | F13: 0 | G13: -0.01 | H13: 2021-11-30 | I13: 72887520.19 | J13: 74626727.91 | K13: 2021-12-31 | L13: 1.018 | M13: 2021-12-31 | N13: -427232.3566
A14: IPD014 | B14: =IFERROR(INDEX(Mapping!B:C,MATCH(InUTMC011!A15,Mapping!C:C,0),2),InUTMC011!A15) -> I-CASH | C14: N/A | D14: 5061302641 | E14: 2021-12-31 | F14: 2361971.95 | G14: 2415339.5 | H14: 2021-11-30 | I14: 3066039.57 | J14: 3136655.19 | K14: 2021-12-31 | L14: 1.018 | M14: 2021-12-31 | N14: -15426.9076
A15: IPD014 | B15: =IFERROR(INDEX(Mapping!B:C,MATCH(InUTMC011!A16,Mapping!C:C,0),2),InUTMC011!A16) -> I-CASH | C15: N/A | D15: 5061356225 | E15: 2021-12-31 | F15: 2268469.4 | G15: 2335687.61 | H15: 2021-11-30 | I15: 2284069.45 | J15: 2351566.9 | K15: 2021-12-31 | L15: 1.018 | M15: 2021-12-31 | N15: -26384.1998
A16: IPD014 | B16: =IFERROR(INDEX(Mapping!B:C,MATCH(InUTMC011!A17,Mapping!C:C,0),2),InUTMC011!A17) -> I-CASH | C16: N/A | D16: 5061467536 | E16: 2021-12-31 | F16: 21797935.9 | G16: 22360186.5 | H16: 2021-11-30 | I16: 21947838.2 | J16: 22512772.05 | K16: 2021-12-31 | L16: 1.018 | M16: 2021-12-31 | N16: -169872.7624
A17: IPD014 | B17: =IFERROR(INDEX(Mapping!B:C,MATCH(InUTMC011!A18,Mapping!C:C,0),2),InUTMC011!A18) -> I-CASH | C17: N/A | D17: 5061539171 | E17: 2021-12-31 | F17: 29645.53 | G17: 30435.36 | H17: 2021-11-30 | I17: 29849.4 | J17: 30642.88 | K17: 2021-12-31 | L17: 1.018 | M17: 2021-12-31 | N17: -256.1907
A18: IPD014 | B18: =IFERROR(INDEX(Mapping!B:C,MATCH(InUTMC011!A19,Mapping!C:C,0),2),InUTMC011!A19) -> I-CASH | C18: N/A | D18: 5061725595 | E18: 2021-12-31 | F18: 18956976.96 | G18: 19417091.14 | H18: 2021-11-30 | I18: 19087342.26 | J18: 19549789.98 | K18: 2021-12-31 | L18: 1.018 | M18: 2021-12-31 | N18: -118875.5592
A19: IPD014 | B19: =IFERROR(INDEX(Mapping!B:C,MATCH(InUTMC011!A20,Mapping!C:C,0),2),InUTMC011!A20) -> I-CASH | C19: N/A | D19: 5062424342 | E19: 2021-12-31 | F19: 511587.92 | G19: 529603.28 | H19: 2021-11-30 | I19: 515106.07 | J19: 533184.4 | K19: 2021-12-31 | L19: 1.018 | M19: 2021-12-31 | N19: -8806.4207
A20: IPD014 | B20: =IFERROR(INDEX(Mapping!B:C,MATCH(InUTMC011!A21,Mapping!C:C,0),2),InUTMC011!A21) -> I-CASH | C20: N/A | D20: 5062527424 | E20: 2021-12-31 | F20: 9789.5 | G20: 10016.6 | H20: 2021-11-30 | I20: 9856.82 | J20: 10085.13 | K20: 2021-12-31 | L20: 1.018 | M20: 2021-12-31 | N20: -50.8872
A21: IPD014 | B21: =IFERROR(INDEX(Mapping!B:C,MATCH(InUTMC011!A22,Mapping!C:C,0),2),InUTMC011!A22) -> I-CASH | C21: N/A | D21: 5062536565 | E21: 2021-12-31 | F21: 504819.34 | G21: 523402.42 | H21: 2021-11-30 | I21: 508290.94 | J21: 526936.16 | K21: 2021-12-31 | L21: 1.018 | M21: 2021-12-31 | N21: -9495.9831
A22: IPD014 | B22: =IFERROR(INDEX(Mapping!B:C,MATCH(InUTMC011!A23,Mapping!C:C,0),2),InUTMC011!A23) -> I-CASH | C22: N/A | D22: 5062547164 | E22: 2021-12-31 | F22: 491057.65 | G22: 501470.12 | H22: 2021-11-30 | I22: 494434.6 | J22: 504907.52 | K22: 2021-12-31 | L22: 1.018 | M22: 2021-12-31 | N22: -1573.0972
A23: IPD014 | B23: =IFERROR(INDEX(Mapping!B:C,MATCH(InUTMC011!A24,Mapping!C:C,0),2),InUTMC011!A24) -> I-CASH | C23: N/A | D23: 5062565155 | E23: 2021-12-31 | F23: 329036.07 | G23: 337489.39 | H23: 2021-11-30 | I23: 331298.82 | J23: 339792.64 | K23: 2021-12-31 | L23: 1.018 | M23: 2021-12-31 | N23: -2530.4412
A24: IPD014 | B24: =IFERROR(INDEX(Mapping!B:C,MATCH(InUTMC011!A25,Mapping!C:C,0),2),InUTMC011!A25) -> I-CASH | C24: N/A | D24: 5062565193 | E24: 2021-12-31 | F24: 7185284.43 | G24: 7371192.4 | H24: 2021-11-30 | I24: 7234696.94 | J24: 7421489.39 | K24: 2021-12-31 | L24: 1.018 | M24: 2021-12-31 | N24: -56567.9049
A25: IPD014 | B25: =IFERROR(INDEX(Mapping!B:C,MATCH(InUTMC011!A26,Mapping!C:C,0),2),InUTMC011!A26) -> I-CASH | C25: N/A | D25: 5062570461 | E25: 2021-12-31 | F25: 3399102.09 | G25: 3482568.51 | H25: 2021-11-30 | I25: 2487922.57 | J25: 2549504.13 | K25: 2021-12-31 | L25: 1.018 | M25: 2021-12-31 | N25: -16798.9536
A26: IPD014 | B26: =IFERROR(INDEX(Mapping!B:C,MATCH(InUTMC011!A27,Mapping!C:C,0),2),InUTMC011!A27) -> I-CASH | C26: N/A | D26: 5062570494 | E26: 2021-12-31 | F26: 4097632.3 | G26: 4196956.72 | H26: 2021-11-30 | I26: 2120517.77 | J26: 2170416.21 | K26: 2021-12-31 | L26: 1.018 | M26: 2021-12-31 | N26: -11729.1201
A27: IPD014 | B27: =IFERROR(INDEX(Mapping!B:C,MATCH(InUTMC011!A28,Mapping!C:C,0),2),InUTMC011!A28) -> I-CASH | C27: N/A | D27: 5062582856 | E27: 2021-12-31 | F27: 776551.66 | G27: 795090.91 | H27: 2021-11-30 | I27: 0 | J27: 0 | K27: 2021-12-31 | L27: 1.018 | M27: 2021-12-31 | N27: 0
A28: IPD014 | B28: =IFERROR(INDEX(Mapping!B:C,MATCH(InUTMC011!A29,Mapping!C:C,0),2),InUTMC011!A29) -> I-CASH | C28: N/A | D28: 5062586465 | E28: 2021-12-31 | F28: 100843.46 | G28: 103232.1 | H28: 2021-11-30 | I28: 101536.95 | J28: 103938 | K28: 2021-12-31 | L28: 1.018 | M28: 2021-12-31 | N28: -573.3849
A29: IPD014 | B29: =IFERROR(INDEX(Mapping!B:C,MATCH(InUTMC011!A30,Mapping!C:C,0),2),InUTMC011!A30) -> I-CASH | C29: N/A | D29: 5062598554 | E29: 2021-12-31 | F29: 6991181.17 | G29: 7153305.12 | H29: 2021-11-30 | I29: 7039258.85 | J29: 7202243.39 | K29: 2021-12-31 | L29: 1.018 | M29: 2021-12-31 | N29: -36277.8808
A30: IPD014 | B30: =IFERROR(INDEX(Mapping!B:C,MATCH(InUTMC011!A31,Mapping!C:C,0),2),InUTMC011!A31) -> I-CASH | C30: N/A | D30: 5062661481 | E30: 2021-12-31 | F30: 4952639.67 | G30: 5077022.69 | H30: 2021-11-30 | I30: 4986698.5 | J30: 5111691.17 | K30: 2021-12-31 | L30: 1.018 | M30: 2021-12-31 | N30: -35232.097
A31: IPD014 | B31: =IFERROR(INDEX(Mapping!B:C,MATCH(InUTMC011!A32,Mapping!C:C,0),2),InUTMC011!A32) -> I-CASH | C31: N/A | D31: 5062665883 | E31: 2021-12-31 | F31: 315643.93 | G31: 323300.88 | H31: 2021-11-30 | I31: 239714.59 | J31: 245548.43 | K31: 2021-12-31 | L31: 1.018 | M31: 2021-12-31 | N31: -1518.9773
A32: IPD014 | B32: =IFERROR(INDEX(Mapping!B:C,MATCH(InUTMC011!A33,Mapping!C:C,0),2),InUTMC011!A33) -> I-CASH | C32: N/A | D32: 5062756683 | E32: 2021-12-31 | F32: 7664280.99 | G32: 7859202.68 | H32: 2021-11-30 | I32: 8061134.9 | J32: 8265245.23 | K32: 2021-12-31 | L32: 1.018 | M32: 2021-12-31 | N32: -59009.9019
A33: IPD014 | B33: =IFERROR(INDEX(Mapping!B:C,MATCH(InUTMC011!A34,Mapping!C:C,0),2),InUTMC011!A34) -> I-CASH | C33: N/A | D33: NIAM00002 | E33: 2021-12-31 | F33: 6488596.94 | G33: 6521939.28 | H33: 2021-11-30 | I33: 6533218.4 | J33: 6567359.46 | K33: 2021-12-31 | L33: 1.018 | M33: 2021-12-31 | N33: 83456.8713
A34: IPD014 | B34: =IFERROR(INDEX(Mapping!B:C,MATCH(InUTMC011!A35,Mapping!C:C,0),2),InUTMC011!A35) -> I-CASH | C34: N/A | D34: NIAM00005 | E34: 2021-12-31 | F34: 0 | G34: -0.02 | H34: 2021-11-30 | I34: 0 | J34: -0.02 | K34: 2021-12-31 | L34: 1.018 | M34: 2021-12-31 | N34: 0.02
A35: IPD014 | B35: =IFERROR(INDEX(Mapping!B:C,MATCH(InUTMC011!A36,Mapping!C:C,0),2),InUTMC011!A36) -> I-INCOME | D35: 5062785551 | E35: 2021-12-31 | F35: 4580884.18 | G35: 5124744.23 | H35: 2021-11-30 | I35: 4643739.34 | J35: 5193457.49 | K35: 2021-12-31 | L35: 1.0942 | M35: 2021-12-31 | N35: -112277.9042
A36: IPD014 | B36: =IFERROR(INDEX(Mapping!B:C,MATCH(InUTMC011!A37,Mapping!C:C,0),2),InUTMC011!A37) -> I-INCOME | D36: 5062854826 | E36: 2021-12-31 | F36: 49924641.48 | G36: 55381236.87 | H36: 2021-11-30 | I36: 50609666.75 | J36: 56130106.49 | K36: 2021-12-31 | L36: 1.0942 | M36: 2021-12-31 | N36: -753009.1323
A37: IPD014 | B37: =IFERROR(INDEX(Mapping!B:C,MATCH(InUTMC011!A38,Mapping!C:C,0),2),InUTMC011!A38) -> I-INCOME | C37: N/A | D37: 3300000815 | E37: 2021-12-31 | F37: 0 | G37: -0.02 | H37: 2021-11-30 | I37: 0 | J37: -0.02 | K37: 2021-12-31 | L37: 1.0942 | M37: 2021-12-31 | N37: 0.02
A38: IPD014 | B38: =IFERROR(INDEX(Mapping!B:C,MATCH(InUTMC011!A39,Mapping!C:C,0),2),InUTMC011!A39) -> I-INCOME | C38: N/A | D38: 5061243756 | E38: 2021-12-31 | F38: 31426305.23 | G38: 35458900.3 | H38: 2021-11-30 | I38: 30969831.65 | J38: 34906188.62 | K38: 2021-12-31 | L38: 1.0942 | M38: 2021-12-31 | N38: -1018998.829
A39: IPD014 | B39: =IFERROR(INDEX(Mapping!B:C,MATCH(InUTMC011!A40,Mapping!C:C,0),2),InUTMC011!A40) -> I-INCOME | C39: N/A | D39: 5061407194 | E39: 2021-12-31 | F39: 416634464.3 | G39: 450000000 | H39: 2021-11-30 | I39: 416634464.3 | J39: 450000000 | K39: 2021-12-31 | L39: 1.0942 | M39: 2021-12-31 | N39: 5881430.848
A40: IPD014 | B40: =IFERROR(INDEX(Mapping!B:C,MATCH(InUTMC011!A41,Mapping!C:C,0),2),InUTMC011!A41) -> I-INCOME | C40: N/A | D40: 5061539171 | E40: 2021-12-31 | F40: 325564.22 | G40: 353120.6 | H40: 2021-11-30 | I40: 330031.34 | J40: 358004.06 | K40: 2021-12-31 | L40: 1.0942 | M40: 2021-12-31 | N40: 3116.2323
A41: IPD014 | B41: =IFERROR(INDEX(Mapping!B:C,MATCH(InUTMC011!A42,Mapping!C:C,0),2),InUTMC011!A42) -> I-INCOME | C41: N/A | D41: 5061584432 | E41: 2021-12-31 | F41: 0 | G41: 0.01 | H41: 2021-11-30 | I41: 0 | J41: 0.01 | K41: 2021-12-31 | L41: 1.0942 | M41: 2021-12-31 | N41: -0.01
A42: IPD014 | B42: =IFERROR(INDEX(Mapping!B:C,MATCH(InUTMC011!A43,Mapping!C:C,0),2),InUTMC011!A43) -> I-INCOME | C42: N/A | D42: 5062354081 | E42: 2021-12-31 | F42: 367896.14 | G42: 410446.59 | H42: 2021-11-30 | I42: 372944.11 | J42: 415965.03 | K42: 2021-12-31 | L42: 1.0942 | M42: 2021-12-31 | N42: -7889.5847
A43: IPD014 | B43: =IFERROR(INDEX(Mapping!B:C,MATCH(InUTMC011!A44,Mapping!C:C,0),2),InUTMC011!A44) -> I-INCOME | C43: N/A | D43: 5062357995 | E43: 2021-12-31 | F43: 102366.8 | G43: 112106.06 | H43: 2021-11-30 | I43: 103771.39 | J43: 113641.56 | K43: 2021-12-31 | L43: 1.0942 | M43: 2021-12-31 | N43: -94.9051
A44: IPD014 | B44: =IFERROR(INDEX(Mapping!B:C,MATCH(InUTMC011!A45,Mapping!C:C,0),2),InUTMC011!A45) -> I-INCOME | C44: N/A | D44: 5062429334 | E44: 2021-12-31 | F44: 4746687.47 | G44: 5317316.34 | H44: 2021-11-30 | I44: 4811817.65 | J44: 5388516.65 | K44: 2021-12-31 | L44: 1.0942 | M44: 2021-12-31 | N44: -123425.7774
A45: IPD014 | B45: =IFERROR(INDEX(Mapping!B:C,MATCH(InUTMC011!A46,Mapping!C:C,0),2),InUTMC011!A46) -> I-INCOME | C45: N/A | D45: 5062527424 | E45: 2021-12-31 | F45: 2177962.87 | G45: 2471824.14 | H45: 2021-11-30 | I45: 2207847.1 | J45: 2504493.58 | K45: 2021-12-31 | L45: 1.0942 | M45: 2021-12-31 | N45: -88667.2836
A46: IPD014 | B46: =IFERROR(INDEX(Mapping!B:C,MATCH(InUTMC011!A47,Mapping!C:C,0),2),InUTMC011!A47) -> I-INCOME | C46: N/A | D46: 5062530334 | E46: 2021-12-31 | F46: 12688911.79 | G46: 14505369.1 | H46: 2021-11-30 | I46: 12863018.71 | J46: 14695702.78 | K46: 2021-12-31 | L46: 1.0942 | M46: 2021-12-31 | N46: -620987.7076
A47: IPD014 | B47: =IFERROR(INDEX(Mapping!B:C,MATCH(InUTMC011!A48,Mapping!C:C,0),2),InUTMC011!A48) -> I-INCOME | C47: N/A | D47: 5062547164 | E47: 2021-12-31 | F47: 5524522.13 | G47: 6086906.36 | H47: 2021-11-30 | I47: 6324177.77 | J47: 6970485.02 | K47: 2021-12-31 | L47: 1.0942 | M47: 2021-12-31 | N47: -50569.704
A48: IPD014 | B48: =IFERROR(INDEX(Mapping!B:C,MATCH(InUTMC011!A49,Mapping!C:C,0),2),InUTMC011!A49) -> I-INCOME | C48: N/A | D48: 5062573544 | E48: 2021-12-31 | F48: 4087743.59 | G48: 4673829.72 | H48: 2021-11-30 | I48: 4143832.27 | J48: 4735145.87 | K48: 2021-12-31 | L48: 1.0942 | M48: 2021-12-31 | N48: -200964.6001
A49: IPD014 | B49: =IFERROR(INDEX(Mapping!B:C,MATCH(InUTMC011!A50,Mapping!C:C,0),2),InUTMC011!A50) -> I-INCOME | C49: N/A | D49: 5062582845 | E49: 2021-12-31 | F49: 4769034.01 | G49: 5452801.15 | H49: 2021-11-30 | I49: 4834470.81 | J49: 5524336.66 | K49: 2021-12-31 | L49: 1.0942 | M49: 2021-12-31 | N49: -234458.6997
A50: IPD014 | B50: =IFERROR(INDEX(Mapping!B:C,MATCH(InUTMC011!A51,Mapping!C:C,0),2),InUTMC011!A51) -> I-INCOME | C50: N/A | D50: 5062586465 | E50: 2021-12-31 | F50: 90894.28 | G50: 103911.22 | H50: 2021-11-30 | I50: 92141.45 | J50: 105274.63 | K50: 2021-12-31 | L50: 1.0942 | M50: 2021-12-31 | N50: -4453.4555
A51: IPD014 | B51: =IFERROR(INDEX(Mapping!B:C,MATCH(InUTMC011!A52,Mapping!C:C,0),2),InUTMC011!A52) -> I-INCOME | C51: N/A | D51: 5062665883 | E51: 2021-12-31 | F51: 441321.82 | G51: 497087.84 | H51: 2021-11-30 | I51: 447377.28 | J51: 503707.67 | K51: 2021-12-31 | L51: 1.0942 | M51: 2021-12-31 | N51: -14187.4504
A52: IPD014 | B52: =IFERROR(INDEX(Mapping!B:C,MATCH(InUTMC011!A53,Mapping!C:C,0),2),InUTMC011!A53) -> I-INCOME | C52: N/A | D52: 5062688995 | E52: 2021-12-31 | F52: 2415858.43 | G52: 2712572.88 | H52: 2021-11-30 | I52: 2449006.87 | J52: 2748810.76 | K52: 2021-12-31 | L52: 1.0942 | M52: 2021-12-31 | N52: -69107.4428
A53: IPD014 | B53: =IFERROR(INDEX(Mapping!B:C,MATCH(InUTMC011!A54,Mapping!C:C,0),2),InUTMC011!A54) -> I-INCOME | C53: N/A | D53: 5062700161 | E53: 2021-12-31 | F53: 1830008.22 | G53: 2072941.96 | H53: 2021-11-30 | I53: 1855118.1 | J53: 2100392.08 | K53: 2021-12-31 | L53: 1.0942 | M53: 2021-12-31 | N53: -70521.855
A54: IPD014 | B54: =IFERROR(INDEX(Mapping!B:C,MATCH(InUTMC011!A55,Mapping!C:C,0),2),InUTMC011!A55) -> I-INCOME | C54: N/A | D54: 5062717531 | E54: 2021-12-31 | F54: 1060022.36 | G54: 1190007 | H54: 2021-11-30 | I54: 1074567.13 | J54: 1205907.34 | K54: 2021-12-31 | L54: 1.0942 | M54: 2021-12-31 | N54: -30115.9864
A55: IPD014 | B55: =IFERROR(INDEX(Mapping!B:C,MATCH(InUTMC011!A56,Mapping!C:C,0),2),InUTMC011!A56) -> I-INCOME | C55: N/A | D55: 5062746721 | E55: 2021-12-31 | F55: 48204813.79 | G55: 54254827.87 | H55: 2021-11-30 | I55: 48866240.99 | J55: 54977900.08 | K55: 2021-12-31 | L55: 1.0942 | M55: 2021-12-31 | N55: -1508459.189
A56: IPD014 | B56: =IFERROR(INDEX(Mapping!B:C,MATCH(InUTMC011!A57,Mapping!C:C,0),2),InUTMC011!A57) -> I-INCOME | C56: N/A | D56: 5062768676 | E56: 2021-12-31 | F56: 54493493.92 | G56: 61483938.19 | H56: 2021-11-30 | I56: 55241209.26 | J56: 62301340.6 | K56: 2021-12-31 | L56: 1.0942 | M56: 2021-12-31 | N56: -1856409.428
A57: IPD014 | B57: =IFERROR(INDEX(Mapping!B:C,MATCH(InUTMC011!A58,Mapping!C:C,0),2),InUTMC011!A58) -> I-INCOME | C57: N/A | D57: 5062768692 | E57: 2021-12-31 | F57: 18166106.88 | G57: 20494689.88 | H57: 2021-11-30 | I57: 18415367.4 | J57: 20767181.48 | K57: 2021-12-31 | L57: 1.0942 | M57: 2021-12-31 | N57: -617086.4708
A58: IPD014 | B58: =IFERROR(INDEX(Mapping!B:C,MATCH(InUTMC011!A59,Mapping!C:C,0),2),InUTMC011!A59) -> I-INCOME | C58: N/A | D58: 5062775682 | E58: 2021-12-31 | F58: 3682658.99 | G58: 4081802.2 | H58: 2021-11-30 | I58: 3733189.43 | J58: 4137042.08 | K58: 2021-12-31 | L58: 1.0942 | M58: 2021-12-31 | N58: -52186.2058
A59: IPD014 | B59: =IFERROR(INDEX(Mapping!B:C,MATCH(InUTMC011!A60,Mapping!C:C,0),2),InUTMC011!A60) -> I-INCOME | C59: N/A | D59: 5062775751 | E59: 2021-12-31 | F59: 7797192.14 | G59: 8631673.82 | H59: 2021-11-30 | I59: 7904178.86 | J59: 8748631.7 | K59: 2021-12-31 | L59: 1.0942 | M59: 2021-12-31 | N59: -99879.1914
A60: IPD014 | B60: =IFERROR(INDEX(Mapping!B:C,MATCH(InUTMC011!A61,Mapping!C:C,0),2),InUTMC011!A61) -> I-INCOME | C60: N/A | D60: NIAM00005 | E60: 2021-12-31 | F60: 0 | G60: 0.01 | H60: 2021-11-30 | I60: 0 | J60: 0.01 | K60: 2021-12-31 | L60: 1.0942 | M60: 2021-12-31 | N60: -0.01
A61: IPD014 | B61: =IFERROR(INDEX(Mapping!B:C,MATCH(InUTMC011!A62,Mapping!C:C,0),2),InUTMC011!A62) -> I-INCOME2H | D61: 5182862353 | E61: 2021-12-31 | F61: 1000 | G61: 1000 | H61: 2021-11-30 | I61: 1000.24 | J61: 1000.24 | K61: 2021-12-31 | L61: 1.0139 | M61: 2021-12-31 | N61: 13.9033
A62: IPD014 | B62: =IFERROR(INDEX(Mapping!B:C,MATCH(InUTMC011!A63,Mapping!C:C,0),2),InUTMC011!A63) -> I-INCOME2I | D62: 5182862353 | E62: 2021-12-31 | F62: 1000 | G62: 1000 | H62: 2021-11-30 | I62: 1001 | J62: 1001 | K62: 2021-12-31 | L62: 0.9979 | M62: 2021-12-31 | N62: -2.1021
A63: IPD014 | B63: =IFERROR(INDEX(Mapping!B:C,MATCH(InUTMC011!A64,Mapping!C:C,0),2),InUTMC011!A64) -> I-INCOME2I | D63: 5182877605 | E63: 2021-12-31 | F63: 24985008.99 | G63: 25000000 | H63: 2021-11-30 | I63: 25010056.62 | J63: 25024985.01 | K63: 2021-12-31 | L63: 0.9979 | M63: 2021-12-31 | N63: -67449.5089
A64: IPD014 | B64: =IFERROR(INDEX(Mapping!B:C,MATCH(InUTMC011!A65,Mapping!C:C,0),2),InUTMC011!A65) -> I-INCOME2I | D64: 5182877616 | E64: 2021-12-31 | F64: 4997001.8 | G64: 5000000 | H64: 2021-11-30 | I64: 5002011.32 | J64: 5004997 | K64: 2021-12-31 | L64: 0.9979 | M64: 2021-12-31 | N64: -13489.9038
A65: IPD014 | B65: =IFERROR(INDEX(Mapping!B:C,MATCH(InUTMC011!A66,Mapping!C:C,0),2),InUTMC011!A66) -> I-INCOME2R | D65: 5182862353 | E65: 2021-12-31 | F65: 1000 | G65: 1000 | H65: 2021-11-30 | I65: 1001 | J65: 1001 | K65: 2021-12-31 | L65: 0.9974 | M65: 2021-12-31 | N65: -2.6026
A66: IPD014 | B66: =IFERROR(INDEX(Mapping!B:C,MATCH(InUTMC011!A67,Mapping!C:C,0),2),InUTMC011!A67) -> I-INCOME2R | C66: N/A | D66: 5182355271 | E66: 2021-12-31 | F66: 0 | G66: 0 | H66: 2021-11-30 | I66: 200574.65 | J66: 200000 | K66: 2021-12-31 | L66: 0.9974 | M66: 2021-12-31 | N66: 53.1548
A67: IPD014 | B67: =IFERROR(INDEX(Mapping!B:C,MATCH(InUTMC011!A68,Mapping!C:C,0),2),InUTMC011!A68) -> I-INCOME2R | C67: N/A | D67: 5182894224 | E67: 2021-12-31 | F67: 1012569.83 | G67: 1015000 | H67: 2021-11-30 | I67: 1013585.45 | J67: 1016012.57 | K67: 2021-12-31 | L67: 0.9974 | M67: 2021-12-31 | N67: -5062.4422
A68: IPD014 | B68: =IFERROR(INDEX(Mapping!B:C,MATCH(InUTMC011!A69,Mapping!C:C,0),2),InUTMC011!A69) -> I-INCOME2R | C68: N/A | D68: 5182908303 | E68: 2021-12-31 | F68: 0 | G68: 0 | H68: 2021-11-30 | I68: 803937.77 | J68: 800803.13 | K68: 2021-12-31 | L68: 0.9974 | M68: 2021-12-31 | N68: 1044.4018
A69: IPD014 | B69: =IFERROR(INDEX(Mapping!B:C,MATCH(InUTMC011!A70,Mapping!C:C,0),2),InUTMC011!A70) -> I-INCOME2S | D69: 5182862353 | E69: 2021-12-31 | F69: 1000 | G69: 1000 | H69: 2021-11-30 | I69: 1001 | J69: 1001 | K69: 2021-12-31 | L69: 0.9989 | M69: 2021-12-31 | N69: -1.1011
A70: IPD014 | B70: =IFERROR(INDEX(Mapping!B:C,MATCH(InUTMC011!A71,Mapping!C:C,0),2),InUTMC011!A71) -> I-INCOME2S | C70: N/A | D70: 5182910265 | E70: 2021-12-31 | F70: 40192926.05 | G70: 40000000 | H70: 2021-11-30 | I70: 40192926.05 | J70: 40000000 | K70: 2021-12-31 | L70: 0.9989 | M70: 2021-12-31 | N70: 148713.8313
A71: IPD014 | B71: =IFERROR(INDEX(Mapping!B:C,MATCH(InUTMC011!A72,Mapping!C:C,0),2),InUTMC011!A72) -> NGDBFM | C71: N/A | D71: 5182549962 | E71: 2021-12-31 | F71: 10000 | G71: 10000 | H71: 2021-11-30 | I71: 10000 | J71: 10000 | K71: 2021-12-31 | L71: 1.0179 | M71: 2021-12-31 | N71: 179
A72: IPD014 | B72: =IFERROR(INDEX(Mapping!B:C,MATCH(InUTMC011!A73,Mapping!C:C,0),2),InUTMC011!A73) -> NGDBFM | C72: N/A | D72: 5182579233 | E72: 2021-12-31 | F72: 513233.62 | G72: 505483.79 | H72: 2021-11-30 | I72: 513233.62 | J72: 505483.79 | K72: 2021-12-31 | L72: 1.0179 | M72: 2021-12-31 | N72: 16936.7118
A73: IPD014 | B73: =IFERROR(INDEX(Mapping!B:C,MATCH(InUTMC011!A74,Mapping!C:C,0),2),InUTMC011!A74) -> NGDBFM | C73: N/A | D73: 5182769431 | E73: 2021-12-31 | F73: 25180222.1 | G73: 25506658.01 | H73: 2021-11-30 | I73: 25199165.87 | J73: 25526122.73 | K73: 2021-12-31 | L73: 1.0179 | M73: 2021-12-31 | N73: 124108.209
A74: IPD014 | B74: =IFERROR(INDEX(Mapping!B:C,MATCH(InUTMC011!A75,Mapping!C:C,0),2),InUTMC011!A75) -> NGDBFM | C74: N/A | D74: IFAS | E74: 2021-12-31 | F74: 180884.61 | G74: 184595.96 | H74: 2021-11-30 | I74: 180884.61 | J74: 184595.96 | K74: 2021-12-31 | L74: 1.0179 | M74: 2021-12-31 | N74: -473.5155
A75: IPD014 | B75: =IFERROR(INDEX(Mapping!B:C,MATCH(InUTMC011!A76,Mapping!C:C,0),2),InUTMC011!A76) -> NGDBFU | C75: N/A | D75: 5182769431 | E75: 2021-12-31 | F75: 1060520.86 | G75: 1064444.79 | H75: 2021-11-30 | I75: 444459.43 | J75: 446103.93 | K75: 2021-12-31 | L75: 1.0099 | M75: 2021-12-31 | N75: 2755.6484
A76: IPD014 | B76: =IFERROR(INDEX(Mapping!B:C,MATCH(InUTMC011!A77,Mapping!C:C,0),2),InUTMC011!A77) -> NGHM | C76: N/A | D76: 5182355271 | E76: 2021-12-31 | F76: 3846.43 | G76: 6000 | H76: 2021-11-30 | I76: 10058.39 | J76: 16000 | K76: 2021-12-31 | L76: 1.641 | M76: 2021-12-31 | N76: 505.8181
A77: IPD014 | B77: =IFERROR(INDEX(Mapping!B:C,MATCH(InUTMC011!A78,Mapping!C:C,0),2),InUTMC011!A78) -> NGHM | C77: N/A | D77: 5182579233 | E77: 2021-12-31 | F77: 1075362.64 | G77: 1500000 | H77: 2021-11-30 | I77: 1075362.64 | J77: 1500000 | K77: 2021-12-31 | L77: 1.641 | M77: 2021-12-31 | N77: 264670.0923
A78: IPD014 | B78: =IFERROR(INDEX(Mapping!B:C,MATCH(InUTMC011!A79,Mapping!C:C,0),2),InUTMC011!A79) -> NGHM | C78: N/A | D78: 5182666971 | E78: 2021-12-31 | F78: 43944.71 | G78: 71633.3 | H78: 2021-11-30 | I78: 43944.71 | J78: 71633.3 | K78: 2021-12-31 | L78: 1.641 | M78: 2021-12-31 | N78: 479.9691
A79: IPD014 | B79: =IFERROR(INDEX(Mapping!B:C,MATCH(InUTMC011!A80,Mapping!C:C,0),2),InUTMC011!A80) -> NGHM | C79: N/A | D79: IFAS | E79: 2021-12-31 | F79: 308178.01 | G79: 454640.77 | H79: 2021-11-30 | I79: 309478.51 | J79: 456709.74 | K79: 2021-12-31 | L79: 1.641 | M79: 2021-12-31 | N79: 51144.4949
A80: IPD014 | B80: =IFERROR(INDEX(Mapping!B:C,MATCH(InUTMC011!A81,Mapping!C:C,0),2),InUTMC011!A81) -> NGHU | C80: N/A | D80: 5182527451 | E80: 2021-12-31 | F80: 2040.99 | G80: 2509.8 | H80: 2021-11-30 | I80: 2040.99 | J80: 2509.8 | K80: 2021-12-31 | L80: 1.2349 | M80: 2021-12-31 | N80: 10.6186
A81: IPD014 | B81: =IFERROR(INDEX(Mapping!B:C,MATCH(InUTMC011!A82,Mapping!C:C,0),2),InUTMC011!A82) -> NGHU | C81: N/A | D81: IFAS | E81: 2021-12-31 | F81: 2486.55 | G81: 2486.56 | H81: 2021-11-30 | I81: 2486.55 | J81: 2486.56 | K81: 2021-12-31 | L81: 1.2349 | M81: 2021-12-31 | N81: 584.0806
A82: IPD014 | B82: =IFERROR(INDEX(Mapping!B:C,MATCH(InUTMC011!A83,Mapping!C:C,0),2),InUTMC011!A83) -> NGSEFA | D82: 5182862353 | E82: 2021-12-31 | F82: 1000 | G82: 1000 | H82: 2021-11-30 | I82: 1000 | J82: 1000 | K82: 2021-12-31 | L82: 1.0328 | M82: 2021-12-31 | N82: 32.8
A83: IPD014 | B83: =IFERROR(INDEX(Mapping!B:C,MATCH(InUTMC011!A84,Mapping!C:C,0),2),InUTMC011!A84) -> NGSEFB | D83: 5182877123 | E83: 2021-12-31 | F83: 3605542.14 | G83: 3587487.07 | H83: 2021-11-30 | I83: 9263103.2 | J83: 9260639.3 | K83: 2021-12-31 | L83: 1.0222 | M83: 2021-12-31 | N83: 208104.7882
A84: IPD014 | B84: =IFERROR(INDEX(Mapping!B:C,MATCH(InUTMC011!A85,Mapping!C:C,0),2),InUTMC011!A85) -> NGSEFB | C84: N/A | D84: 5182355271 | E84: 2021-12-31 | F84: 203731.29 | G84: 204736.66 | H84: 2021-11-30 | I84: 205332.22 | J84: 206555.65 | K84: 2021-12-31 | L84: 1.0222 | M84: 2021-12-31 | N84: 3334.9439
A85: IPD014 | B85: =IFERROR(INDEX(Mapping!B:C,MATCH(InUTMC011!A86,Mapping!C:C,0),2),InUTMC011!A86) -> NGSEFB | C85: N/A | D85: 5182527451 | E85: 2021-12-31 | F85: 216354.7 | G85: 216362.63 | H85: 2021-11-30 | I85: 216354.7 | J85: 216362.63 | K85: 2021-12-31 | L85: 1.0222 | M85: 2021-12-31 | N85: 4795.1442
A86: IPD014 | B86: =IFERROR(INDEX(Mapping!B:C,MATCH(InUTMC011!A87,Mapping!C:C,0),2),InUTMC011!A87) -> NGSEFB | C86: N/A | D86: 5182549962 | E86: 2021-12-31 | F86: 10000 | G86: 10000 | H86: 2021-11-30 | I86: 10000 | J86: 10000 | K86: 2021-12-31 | L86: 1.0222 | M86: 2021-12-31 | N86: 222
A87: IPD014 | B87: =IFERROR(INDEX(Mapping!B:C,MATCH(InUTMC011!A88,Mapping!C:C,0),2),InUTMC011!A88) -> NGSEFB | C87: N/A | D87: IFAS | E87: 2021-12-31 | F87: 2631571.69 | G87: 2642635.9 | H87: 2021-11-30 | I87: 2748094.14 | J87: 2758557.47 | K87: 2021-12-31 | L87: 1.0222 | M87: 2021-12-31 | N87: 50544.3603
A88: IPD014 | B88: =IFERROR(INDEX(Mapping!B:C,MATCH(InUTMC011!A89,Mapping!C:C,0),2),InUTMC011!A89) -> NGSEFU | C88: N/A | D88: IFAS | E88: 2021-12-31 | F88: 22360.97 | G88: 22470.73 | H88: 2021-11-30 | I88: 22360.97 | J88: 22470.73 | K88: 2021-12-31 | L88: 1.0227 | M88: 2021-12-31 | N88: 397.8338
A89: IPD014 | B89: =IFERROR(INDEX(Mapping!B:C,MATCH(InUTMC011!A90,Mapping!C:C,0),2),InUTMC011!A90) -> NGSSGFA | C89: N/A | D89: 5182527451 | E89: 2021-12-31 | F89: 734674.21 | G89: 872050.7 | H89: 2021-11-30 | I89: 734674.21 | J89: 872050.7 | K89: 2021-12-31 | L89: 1.2518 | M89: 2021-12-31 | N89: 47614.4761
A90: IPD014 | B90: =IFERROR(INDEX(Mapping!B:C,MATCH(InUTMC011!A91,Mapping!C:C,0),2),InUTMC011!A91) -> NGSSGFA | C90: N/A | D90: 5182547191 | E90: 2021-12-31 | F90: 8003092.84 | G90: 8169831 | H90: 2021-11-30 | I90: 8003092.84 | J90: 8169831 | K90: 2021-12-31 | L90: 1.2518 | M90: 2021-12-31 | N90: 1848440.617
A91: IPD014 | B91: =IFERROR(INDEX(Mapping!B:C,MATCH(InUTMC011!A92,Mapping!C:C,0),2),InUTMC011!A92) -> NGSSGFA | C91: N/A | D91: 5182549962 | E91: 2021-12-31 | F91: 30001.6 | G91: 35000 | H91: 2021-11-30 | I91: 30001.6 | J91: 35000 | K91: 2021-12-31 | L91: 1.2518 | M91: 2021-12-31 | N91: 2556.0029
A92: IPD014 | B92: =IFERROR(INDEX(Mapping!B:C,MATCH(InUTMC011!A93,Mapping!C:C,0),2),InUTMC011!A93) -> NGSSGFA | C92: N/A | D92: IFAS | E92: 2021-12-31 | F92: 3293294.56 | G92: 3856514.77 | H92: 2021-11-30 | I92: 4740626.43 | J92: 5686514.77 | K92: 2021-12-31 | L92: 1.2518 | M92: 2021-12-31 | N92: 247801.395
A93: IPD014 | B93: =IFERROR(INDEX(Mapping!B:C,MATCH(InUTMC011!A94,Mapping!C:C,0),2),InUTMC011!A94) -> NGSSGFB | C93: N/A | D93: 5182355271 | E93: 2021-12-31 | F93: 489195.79 | G93: 589072.82 | H93: 2021-11-30 | I93: 488906.04 | J93: 588741.81 | K93: 2021-12-31 | L93: 1.246 | M93: 2021-12-31 | N93: 20435.1158
A94: IPD014 | B94: =IFERROR(INDEX(Mapping!B:C,MATCH(InUTMC011!A95,Mapping!C:C,0),2),InUTMC011!A95) -> NGSSGFB | C94: N/A | D94: 5182527451 | E94: 2021-12-31 | F94: 495671.08 | G94: 598293.32 | H94: 2021-11-30 | I94: 428701.68 | J94: 523315.25 | K94: 2021-12-31 | L94: 1.246 | M94: 2021-12-31 | N94: 10847.0432
A95: IPD014 | B95: =IFERROR(INDEX(Mapping!B:C,MATCH(InUTMC011!A96,Mapping!C:C,0),2),InUTMC011!A96) -> NGSSGFB | C95: N/A | D95: 5182547191 | E95: 2021-12-31 | F95: 826992.85 | G95: 900000 | H95: 2021-11-30 | I95: 826992.85 | J95: 900000 | K95: 2021-12-31 | L95: 1.246 | M95: 2021-12-31 | N95: 130433.0911
A96: IPD014 | B96: =IFERROR(INDEX(Mapping!B:C,MATCH(InUTMC011!A97,Mapping!C:C,0),2),InUTMC011!A97) -> NGSSGFB | C96: N/A | D96: IFAS | E96: 2021-12-31 | F96: 3473503.63 | G96: 4178723.19 | H96: 2021-11-30 | I96: 3628610.98 | J96: 4379344.24 | K96: 2021-12-31 | L96: 1.246 | M96: 2021-12-31 | N96: 141905.0371
A97: IPD014 | B97: =IFERROR(INDEX(Mapping!B:C,MATCH(InUTMC011!A98,Mapping!C:C,0),2),InUTMC011!A98) -> NRBF1 | D97: 5182823996 | E97: 2021-12-31 | F97: 268178.5 | G97: 280047.31 | H97: 2021-11-30 | I97: 269811.99 | J97: 281736.83 | K97: 2021-12-31 | L97: 1.0359 | M97: 2021-12-31 | N97: -2238.5895
A98: IPD014 | B98: =IFERROR(INDEX(Mapping!B:C,MATCH(InUTMC011!A99,Mapping!C:C,0),2),InUTMC011!A99) -> NRBF1 | C98: N/A | D98: 5182369146 | E98: 2021-12-31 | F98: 399793154 | G98: 411040106.1 | H98: 2021-11-30 | I98: 411892055.9 | J98: 423619315.9 | K98: 2021-12-31 | L98: 1.0359 | M98: 2021-12-31 | N98: 3059664.826
A99: IPD014 | B99: =IFERROR(INDEX(Mapping!B:C,MATCH(InUTMC011!A100,Mapping!C:C,0),2),InUTMC011!A100) -> NRBF1 | C99: N/A | D99: 5182666971 | E99: 2021-12-31 | F99: 1008664.16 | G99: 1073246.5 | H99: 2021-11-30 | I99: 1014808.01 | J99: 1079601.08 | K99: 2021-12-31 | L99: 1.0359 | M99: 2021-12-31 | N99: -28361.4625
A100: IPD014 | B100: =IFERROR(INDEX(Mapping!B:C,MATCH(InUTMC011!A101,Mapping!C:C,0),2),InUTMC011!A101) -> NRBF1 | C100: N/A | D100: IFAS | E100: 2021-12-31 | F100: 2006892.45 | G100: 2126539.84 | H100: 2021-11-30 | I100: 2004503.44 | J100: 2123546.98 | K100: 2021-12-31 | L100: 1.0359 | M100: 2021-12-31 | N100: -47081.8665
A101: IPD014 | B101: =IFERROR(INDEX(Mapping!B:C,MATCH(InUTMC011!A102,Mapping!C:C,0),2),InUTMC011!A102) -> NRBF2 | C101: N/A | D101: 5182585591 | E101: 2021-12-31 | F101: 272007887.3 | G101: 272450000 | H101: 2021-11-30 | I101: 272007887.3 | J101: 272450000 | K101: 2021-12-31 | L101: 0.969 | M101: 2021-12-31 | N101: -8874357.187

Sheet UTMC012
A1: IPD014 | B1: 2021-12-01 | C1: 1797985596 | D1: W | E1: 1 | F1: 0 | G1: 0
A2: IPD014 | B2: 2021-12-02 | C2: 1800288906 | D2: W | E2: 2 | F2: 0 | G2: 0
A3: IPD014 | B3: 2021-12-03 | C3: 1836408906 | D3: W | E3: 3 | F3: 0 | G3: 0
A4: IPD014 | B4: 2021-12-04 | C4: 1836408906 | D4: H | E4: 0 | F4: 0 | G4: 0
A5: IPD014 | B5: 2021-12-05 | C5: 1836408906 | D5: H | E5: 0 | F5: 0 | G5: 0
A6: IPD014 | B6: 2021-12-06 | C6: 1839687752 | D6: W | E6: 4 | F6: 0 | G6: 0
A7: IPD014 | B7: 2021-12-07 | C7: 1880001003 | D7: W | E7: 5 | F7: 0 | G7: 0
A8: IPD014 | B8: 2021-12-08 | C8: 1880014868 | D8: W | E8: 6 | F8: 0 | G8: 0
A9: IPD014 | B9: 2021-12-09 | C9: 1878874800 | D9: W | E9: 7 | F9: 0 | G9: 0
A10: IPD014 | B10: 2021-12-10 | C10: 1879091124 | D10: W | E10: 8 | F10: 0 | G10: 0
A11: IPD014 | B11: 2021-12-11 | C11: 1879091124 | D11: H | E11: 0 | F11: 0 | G11: 0
A12: IPD014 | B12: 2021-12-12 | C12: 1879091124 | D12: H | E12: 0 | F12: 0 | G12: 0
A13: IPD014 | B13: 2021-12-13 | C13: 1878765054 | D13: W | E13: 9 | F13: 0 | G13: 0
A14: IPD014 | B14: 2021-12-14 | C14: 1888571934 | D14: W | E14: 10 | F14: 0 | G14: 0
A15: IPD014 | B15: 2021-12-15 | C15: 1888498949 | D15: W | E15: 11 | F15: 0 | G15: 0
A16: IPD014 | B16: 2021-12-16 | C16: 1883532947 | D16: W | E16: 12 | F16: 0 | G16: 0
A17: IPD014 | B17: 2021-12-17 | C17: 1885838269 | D17: W | E17: 13 | F17: 0 | G17: 0
A18: IPD014 | B18: 2021-12-18 | C18: 1885838269 | D18: H | E18: 0 | F18: 0 | G18: 0
A19: IPD014 | B19: 2021-12-19 | C19: 1885838269 | D19: H | E19: 0 | F19: 0 | G19: 0
A20: IPD014 | B20: 2021-12-20 | C20: 1886528313 | D20: W | E20: 14 | F20: 0 | G20: 0
A21: IPD014 | B21: 2021-12-21 | C21: 1887324426 | D21: W | E21: 15 | F21: 0 | G21: 0
A22: IPD014 | B22: 2021-12-22 | C22: 1887925380 | D22: W | E22: 16 | F22: 0 | G22: 0
A23: IPD014 | B23: 2021-12-23 | C23: 1888578603 | D23: W | E23: 17 | F23: 0 | G23: 0
A24: IPD014 | B24: 2021-12-24 | C24: 1889537319 | D24: W | E24: 18 | F24: 0 | G24: 0
A25: IPD014 | B25: 2021-12-25 | C25: 1889537319 | D25: H | E25: 0 | F25: 0 | G25: 0
A26: IPD014 | B26: 2021-12-26 | C26: 1889537319 | D26: H | E26: 0 | F26: 0 | G26: 0
A27: IPD014 | B27: 2021-12-27 | C27: 1890230577 | D27: W | E27: 19 | F27: 0 | G27: 0
A28: IPD014 | B28: 2021-12-28 | C28: 1874720919 | D28: W | E28: 20 | F28: 0 | G28: 0
A29: IPD014 | B29: 2021-12-29 | C29: 1880915717 | D29: W | E29: 21 | F29: 0 | G29: 0
A30: IPD014 | B30: 2021-12-30 | C30: 1882235378 | D30: W | E30: 22 | F30: 0 | G30: 0
A31: IPD014 | B31: 2021-12-31 | C31: 1882215747 | D31: W | E31: 23 | F31: 0.125 | G31: =(SUMIF(D1:D31,"W",C1:C31)/(E31))*((F31/100)/12) -> 195053.3174

Sheet UTMC013
A1: N/A | B1: IPD014 | C1: =IFERROR(INDEX(Mapping!B:C,MATCH(InUTMC013!B2,Mapping!C:C,0),2),InUTMC013!B2) -> NGSSGFB | D1: IFAS | E1: 2021-12-01 | F1: NS | G1: UTP*2112H00002 | I1: 5000 | J1: 0 | K1: 0 | L1: 5000 | M1: 1.242 | N1: 4025.76 | O1: 2021-12-31
A2: N/A | B2: IPD014 | C2: =IFERROR(INDEX(Mapping!B:C,MATCH(InUTMC013!B3,Mapping!C:C,0),2),InUTMC013!B3) -> NGSEFB | D2: IFAS | E2: 2021-12-01 | F2: NS | G2: UTP*2112H00004 | I2: 1547.91 | J2: 22.88 | K2: 0 | L2: 1525.03 | M2: 0.9851 | N2: 1548.1 | O2: 2021-12-31
A3: N/A | B3: IPD014 | C3: =IFERROR(INDEX(Mapping!B:C,MATCH(InUTMC013!B4,Mapping!C:C,0),2),InUTMC013!B4) -> NGSEFB | D3: IFAS | E3: 2021-12-01 | F3: NS | G3: UTP*2112H00005 | I3: 66000 | J3: 0 | K3: 0 | L3: 66000 | M3: 0.9851 | N3: 66998.27 | O3: 2021-12-31
A4: N/A | B4: IPD014 | C4: =IFERROR(INDEX(Mapping!B:C,MATCH(InUTMC013!B5,Mapping!C:C,0),2),InUTMC013!B5) -> NGSEFB | D4: 5182355271 | E4: 2021-12-01 | F4: NS | G4: UTP*2112H00006 | I4: 500 | J4: 2.49 | K4: 0 | L4: 497.51 | M4: 0.9851 | N4: 505.04 | O4: 2021-12-31
A5: N/A | B5: IPD014 | C5: =IFERROR(INDEX(Mapping!B:C,MATCH(InUTMC013!B6,Mapping!C:C,0),2),InUTMC013!B6) -> I-CASH | D5: 5061243756 | E5: 2021-12-02 | F5: NS | G5: UTP*2112H00007 | I5: 840310.89 | J5: 0 | K5: 0 | L5: 840310.89 | M5: 1.0238 | N5: 820776.41 | O5: 2021-12-31
A6: N/A | B6: IPD014 | C6: =IFERROR(INDEX(Mapping!B:C,MATCH(InUTMC013!B7,Mapping!C:C,0),2),InUTMC013!B7) -> I-CASH | D6: 5061258922 | E6: 2021-12-03 | F6: NS | G6: UTP*2112H00012 | I6: 36120000 | J6: 0 | K6: 0 | L6: 36120000 | M6: 1.0238 | N6: 35280328.19 | O6: 2021-12-31
B7: IPD014 | C7: =IFERROR(INDEX(Mapping!B:C,MATCH(InUTMC013!B8,Mapping!C:C,0),2),InUTMC013!B8) -> NGSEFB | D7: 5182877123 | E7: 2021-12-02 | F7: NS | G7: UTP*2112H00013 | I7: 1267594.36 | J7: 0 | K7: 0 | L7: 1267594.36 | M7: 0.9863 | N7: 1285201.62 | O7: 2021-12-31
A8: N/A | B8: IPD014 | C8: =IFERROR(INDEX(Mapping!B:C,MATCH(InUTMC013!B9,Mapping!C:C,0),2),InUTMC013!B9) -> NGSSGFB | D8: IFAS | E8: 2021-12-02 | F8: NS | G8: UTP*2112H00014 | I8: 13007.84 | J8: 0 | K8: 0 | L8: 13007.84 | M8: 1.2477 | N8: 10425.45 | O8: 2021-12-31
A9: N/A | B9: IPD014 | C9: =IFERROR(INDEX(Mapping!B:C,MATCH(InUTMC013!B10,Mapping!C:C,0),2),InUTMC013!B10) -> I-CASH | D9: 5062756683 | E9: 2021-12-06 | F9: NS | G9: UTP*2112H00018 | I9: 350000 | J9: 0 | K9: 0 | L9: 350000 | M9: 1.024 | N9: 341796.88 | O9: 2021-12-31
A10: N/A | B10: IPD014 | C10: =IFERROR(INDEX(Mapping!B:C,MATCH(InUTMC013!B11,Mapping!C:C,0),2),InUTMC013!B11) -> I-INCOME | D10: 5061243756 | E10: 2021-12-06 | F10: NS | G10: UTP*2112H00020 | I10: 115941.1 | J10: 0 | K10: 0 | L10: 115941.1 | M10: 1.1063 | N10: 104800.78 | O10: 2021-12-31
B11: IPD014 | C11: =IFERROR(INDEX(Mapping!B:C,MATCH(InUTMC013!B12,Mapping!C:C,0),2),InUTMC013!B12) -> NGSEFB | D11: 5182877123 | E11: 2021-12-06 | F11: NS | G11: UTP*2112H00023 | I11: 1611243.88 | J11: 0 | K11: 0 | L11: 1611243.88 | M11: 0.997 | N11: 1616092.16 | O11: 2021-12-31
A12: N/A | B12: IPD014 | C12: =IFERROR(INDEX(Mapping!B:C,MATCH(InUTMC013!B13,Mapping!C:C,0),2),InUTMC013!B13) -> NGSSGFB | D12: IFAS | E12: 2021-12-06 | F12: NS | G12: UTP*2112H00024 | I12: 1000 | J12: 0 | K12: 0 | L12: 1000 | M12: 1.2419 | N12: 805.22 | O12: 2021-12-31
A13: N/A | B13: IPD014 | C13: =IFERROR(INDEX(Mapping!B:C,MATCH(InUTMC013!B14,Mapping!C:C,0),2),InUTMC013!B14) -> NGSEFB | D13: IFAS | E13: 2021-12-06 | F13: NS | G13: UTP*2112H00025 | I13: 500 | J13: 14.56 | K13: 0 | L13: 485.44 | M13: 0.997 | N13: 486.9 | O13: 2021-12-31
A14: N/A | B14: IPD014 | C14: =IFERROR(INDEX(Mapping!B:C,MATCH(InUTMC013!B15,Mapping!C:C,0),2),InUTMC013!B15) -> NGSEFB | D14: IFAS | E14: 2021-12-06 | F14: NS | G14: UTP*2112H00026 | I14: 10000 | J14: 243.9 | K14: 0 | L14: 9756.1 | M14: 0.997 | N14: 9785.46 | O14: 2021-12-31
A15: N/A | B15: IPD014 | C15: =IFERROR(INDEX(Mapping!B:C,MATCH(InUTMC013!B16,Mapping!C:C,0),2),InUTMC013!B16) -> I-CASH | D15: 5061258922 | E15: 2021-12-07 | F15: NS | G15: UTP*2112H00028 | I15: 38000000 | J15: 0 | K15: 0 | L15: 38000000 | M15: 1.024 | N15: 37109375 | O15: 2021-12-31
A16: N/A | B16: IPD014 | C16: =IFERROR(INDEX(Mapping!B:C,MATCH(InUTMC013!B17,Mapping!C:C,0),2),InUTMC013!B17) -> I-CASH | D16: 5062570461 | E16: 2021-12-07 | F16: NS | G16: UTP*2112H00029 | I16: 50000 | J16: 0 | K16: 0 | L16: 50000 | M16: 1.024 | N16: 48828.13 | O16: 2021-12-31
A17: N/A | B17: IPD014 | C17: =IFERROR(INDEX(Mapping!B:C,MATCH(InUTMC013!B18,Mapping!C:C,0),2),InUTMC013!B18) -> I-CASH | D17: 5062570494 | E17: 2021-12-07 | F17: NS | G17: UTP*2112H00030 | I17: 280000 | J17: 0 | K17: 0 | L17: 280000 | M17: 1.024 | N17: 273437.5 | O17: 2021-12-31
A18: N/A | B18: IPD014 | C18: =IFERROR(INDEX(Mapping!B:C,MATCH(InUTMC013!B19,Mapping!C:C,0),2),InUTMC013!B19) -> I-INCOME | D18: 5061243756 | E18: 2021-12-07 | F18: NS | G18: UTP*2112H00032 | I18: 49375.84 | J18: 0 | K18: 0 | L18: 49375.84 | M18: 1.1066 | N18: 44619.41 | O18: 2021-12-31
A19: N/A | B19: IPD014 | C19: =IFERROR(INDEX(Mapping!B:C,MATCH(InUTMC013!B20,Mapping!C:C,0),2),InUTMC013!B20) -> NGSSGFA | D19: IFAS | E19: 2021-12-07 | F19: NS | G19: UTP*2112H00034 | I19: 1030000 | J19: 0 | K19: 0 | L19: 1030000 | M19: 1.2708 | N19: 810513.06 | O19: 2021-12-31
A20: N/A | B20: IPD014 | C20: =IFERROR(INDEX(Mapping!B:C,MATCH(InUTMC013!B21,Mapping!C:C,0),2),InUTMC013!B21) -> NGSSGFB | D20: IFAS | E20: 2021-12-07 | F20: NS | G20: UTP*2112H00035 | I20: 74519.46 | J20: 0 | K20: 0 | L20: 74519.46 | M20: 1.265 | N20: 58908.66 | O20: 2021-12-31
A21: N/A | B21: IPD014 | C21: =IFERROR(INDEX(Mapping!B:C,MATCH(InUTMC013!B22,Mapping!C:C,0),2),InUTMC013!B22) -> NGSEFB | D21: IFAS | E21: 2021-12-07 | F21: NS | G21: UTP*2112H00036 | I21: 1105.22 | J21: 16.33 | K21: 0 | L21: 1088.89 | M21: 1.0118 | N21: 1076.19 | O21: 2021-12-31
A22: N/A | B22: IPD014 | C22: =IFERROR(INDEX(Mapping!B:C,MATCH(InUTMC013!B23,Mapping!C:C,0),2),InUTMC013!B23) -> NGSEFB | D22: 5182355271 | E22: 2021-12-07 | F22: NS | G22: UTP*2112H00037 | I22: 1000 | J22: 0 | K22: 0 | L22: 1000 | M22: 1.0118 | N22: 988.34 | O22: 2021-12-31
A23: N/A | B23: IPD014 | C23: =IFERROR(INDEX(Mapping!B:C,MATCH(InUTMC013!B24,Mapping!C:C,0),2),InUTMC013!B24) -> I-INCOME | D23: 5062547164 | E23: 2021-12-08 | F23: NS | G23: UTP*2112H00046 | I23: 180000 | J23: 0 | K23: 0 | L23: 180000 | M23: 1.107 | N23: 162601.63 | O23: 2021-12-31
A24: N/A | B24: IPD014 | C24: =IFERROR(INDEX(Mapping!B:C,MATCH(InUTMC013!B25,Mapping!C:C,0),2),InUTMC013!B25) -> NGSEFB | D24: IFAS | E24: 2021-12-08 | F24: NS | G24: UTP*2112H00047 | I24: 1172.1 | J24: 17.32 | K24: 0 | L24: 1154.78 | M24: 1.0123 | N24: 1140.75 | O24: 2021-12-31
A25: N/A | B25: IPD014 | C25: =IFERROR(INDEX(Mapping!B:C,MATCH(InUTMC013!B26,Mapping!C:C,0),2),InUTMC013!B26) -> I-INCOME | D25: 5061243756 | E25: 2021-12-09 | F25: NS | G25: UTP*2112H00049 | I25: 50000 | J25: 0 | K25: 0 | L25: 50000 | M25: 1.1058 | N25: 45216.13 | O25: 2021-12-31
B26: IPD014 | C26: =IFERROR(INDEX(Mapping!B:C,MATCH(InUTMC013!B27,Mapping!C:C,0),2),InUTMC013!B27) -> NGSEFB | D26: 5182877123 | E26: 2021-12-09 | F26: NS | G26: UTP*2112H00050 | I26: 71503.48 | J26: 0 | K26: 0 | L26: 71503.48 | M26: 1.0128 | N26: 70599.8 | O26: 2021-12-31
A27: N/A | B27: IPD014 | C27: =IFERROR(INDEX(Mapping!B:C,MATCH(InUTMC013!B28,Mapping!C:C,0),2),InUTMC013!B28) -> NGDBFM | D27: 5182769431 | E27: 2021-12-09 | F27: NS | G27: UTP*2112H00051 | I27: 20000 | J27: 535.28 | K27: 0 | L27: 19464.72 | M27: 1.0275 | N27: 18943.77 | O27: 2021-12-31
A28: N/A | B28: IPD014 | C28: =IFERROR(INDEX(Mapping!B:C,MATCH(InUTMC013!B29,Mapping!C:C,0),2),InUTMC013!B29) -> NGSSGFB | D28: IFAS | E28: 2021-12-09 | F28: NS | G28: UTP*2112H00052 | I28: 34295.5 | J28: 0 | K28: 0 | L28: 34295.5 | M28: 1.2584 | N28: 27253.26 | O28: 2021-12-31
A29: N/A | B29: IPD014 | C29: =IFERROR(INDEX(Mapping!B:C,MATCH(InUTMC013!B30,Mapping!C:C,0),2),InUTMC013!B30) -> NGSEFB | D29: IFAS | E29: 2021-12-09 | F29: NS | G29: UTP*2112H00053 | I29: 971.15 | J29: 14.35 | K29: 0 | L29: 956.8 | M29: 1.0128 | N29: 944.71 | O29: 2021-12-31
A30: N/A | B30: IPD014 | C30: =IFERROR(INDEX(Mapping!B:C,MATCH(InUTMC013!B31,Mapping!C:C,0),2),InUTMC013!B31) -> I-INCOME | D30: 5062547164 | E30: 2021-12-10 | F30: NS | G30: UTP*2112H00057 | I30: 500000 | J30: 0 | K30: 0 | L30: 500000 | M30: 1.1057 | N30: 452202.22 | O30: 2021-12-31
A31: N/A | B31: IPD014 | C31: =IFERROR(INDEX(Mapping!B:C,MATCH(InUTMC013!B32,Mapping!C:C,0),2),InUTMC013!B32) -> NGSSGFA | D31: IFAS | E31: 2021-12-10 | F31: NS | G31: UTP*2112H00059 | I31: 500000 | J31: 0 | K31: 0 | L31: 500000 | M31: 1.2647 | N31: 395350.68 | O31: 2021-12-31
A32: N/A | B32: IPD014 | C32: =IFERROR(INDEX(Mapping!B:C,MATCH(InUTMC013!B33,Mapping!C:C,0),2),InUTMC013!B33) -> NGSSGFB | D32: IFAS | E32: 2021-12-10 | F32: NS | G32: UTP*2112H00060 | I32: 75151.8 | J32: 0 | K32: 0 | L32: 75151.8 | M32: 1.259 | N32: 59691.66 | O32: 2021-12-31
A33: N/A | B33: IPD014 | C33: =IFERROR(INDEX(Mapping!B:C,MATCH(InUTMC013!B34,Mapping!C:C,0),2),InUTMC013!B34) -> NGSEFB | D33: IFAS | E33: 2021-12-10 | F33: NS | G33: UTP*2112H00061 | I33: 1554.39 | J33: 0 | K33: 0 | L33: 1554.39 | M33: 1.0149 | N33: 1531.57 | O33: 2021-12-31
B34: IPD014 | C34: =IFERROR(INDEX(Mapping!B:C,MATCH(InUTMC013!B35,Mapping!C:C,0),2),InUTMC013!B35) -> NGSEFB | D34: 5182877123 | E34: 2021-12-13 | F34: NS | G34: UTP*2112H00067 | I34: 263198.78 | J34: 0 | K34: 0 | L34: 263198.78 | M34: 1.0181 | N34: 258519.58 | O34: 2021-12-31
A35: N/A | B35: IPD014 | C35: =IFERROR(INDEX(Mapping!B:C,MATCH(InUTMC013!B36,Mapping!C:C,0),2),InUTMC013!B36) -> I-CASH | D35: 5061243756 | E35: 2021-12-14 | F35: NS | G35: UTP*2112H00086 | I35: 20049.21 | J35: 0 | K35: 0 | L35: 20049.21 | M35: 1.0243 | N35: 19573.57 | O35: 2021-12-31
A36: N/A | B36: IPD014 | C36: =IFERROR(INDEX(Mapping!B:C,MATCH(InUTMC013!B37,Mapping!C:C,0),2),InUTMC013!B37) -> NRBF1 | D36: 5182369146 | E36: 2021-12-14 | F36: NS | G36: UTP*2112H00088 | I36: 10000000 | J36: 0 | K36: 0 | L36: 10000000 | M36: 1.0411 | N36: 9605225.24 | O36: 2021-12-31
B37: IPD014 | C37: =IFERROR(INDEX(Mapping!B:C,MATCH(InUTMC013!B38,Mapping!C:C,0),2),InUTMC013!B38) -> NGSEFB | D37: 5182877123 | E37: 2021-12-14 | F37: NS | G37: UTP*2112H00089 | I37: 258406.78 | J37: 0 | K37: 0 | L37: 258406.78 | M37: 1.0147 | N37: 254663.23 | O37: 2021-12-31
A38: N/A | B38: IPD014 | C38: =IFERROR(INDEX(Mapping!B:C,MATCH(InUTMC013!B39,Mapping!C:C,0),2),InUTMC013!B39) -> NGSEFB | D38: 5182355271 | E38: 2021-12-14 | F38: NS | G38: UTP*2112H00090 | I38: 2000 | J38: 58.25 | K38: 0 | L38: 1941.75 | M38: 1.0147 | N38: 1913.62 | O38: 2021-12-31
A39: N/A | B39: IPD014 | C39: =IFERROR(INDEX(Mapping!B:C,MATCH(InUTMC013!B40,Mapping!C:C,0),2),InUTMC013!B40) -> I-INCOME | D39: 5061243756 | E39: 2021-12-15 | F39: NS | G39: UTP*2112H00092 | I39: 10000 | J39: 0 | K39: 0 | L39: 10000 | M39: 1.1063 | N39: 9039.14 | O39: 2021-12-31
B40: IPD014 | C40: =IFERROR(INDEX(Mapping!B:C,MATCH(InUTMC013!B41,Mapping!C:C,0),2),InUTMC013!B41) -> NGSEFB | D40: 5182877123 | E40: 2021-12-15 | F40: NS | G40: UTP*2112H00094 | I40: 474816.42 | J40: 0 | K40: 0 | L40: 474816.42 | M40: 1.0063 | N40: 471843.8 | O40: 2021-12-31
A41: N/A | B41: IPD014 | C41: =IFERROR(INDEX(Mapping!B:C,MATCH(InUTMC013!B42,Mapping!C:C,0),2),InUTMC013!B42) -> NGHM | D41: 5182355271 | E41: 2021-12-15 | F41: NS | G41: UTP*2112H00095 | I41: 5000 | J41: 0 | K41: 0 | L41: 5000 | M41: 1.6084 | N41: 3108.68 | O41: 2021-12-31
A42: N/A | B42: IPD014 | C42: =IFERROR(INDEX(Mapping!B:C,MATCH(InUTMC013!B43,Mapping!C:C,0),2),InUTMC013!B43) -> NGSSGFB | D42: IFAS | E42: 2021-12-15 | F42: NS | G42: UTP*2112H00096 | I42: 1500 | J42: 0 | K42: 0 | L42: 1500 | M42: 1.2545 | N42: 1195.7 | O42: 2021-12-31
A43: N/A | B43: IPD014 | C43: =IFERROR(INDEX(Mapping!B:C,MATCH(InUTMC013!B44,Mapping!C:C,0),2),InUTMC013!B44) -> NGSEFB | D43: IFAS | E43: 2021-12-15 | F43: NS | G43: UTP*2112H00097 | I43: 100 | J43: 2.91 | K43: 0 | L43: 97.09 | M43: 1.0063 | N43: 96.48 | O43: 2021-12-31
A44: N/A | B44: IPD014 | C44: =IFERROR(INDEX(Mapping!B:C,MATCH(InUTMC013!B45,Mapping!C:C,0),2),InUTMC013!B45) -> NGSEFB | D44: IFAS | E44: 2021-12-15 | F44: NS | G44: UTP*2112H00098 | I44: 100 | J44: 1.48 | K44: 0 | L44: 98.52 | M44: 1.0063 | N44: 97.9 | O44: 2021-12-31
A45: N/A | B45: IPD014 | C45: =IFERROR(INDEX(Mapping!B:C,MATCH(InUTMC013!B46,Mapping!C:C,0),2),InUTMC013!B46) -> I-CASH | D45: 5062570494 | E45: 2021-12-16 | F45: NS | G45: UTP*2112H00099 | I45: 80000 | J45: 0 | K45: 0 | L45: 80000 | M45: 1.0244 | N45: 78094.49 | O45: 2021-12-31
B46: IPD014 | C46: =IFERROR(INDEX(Mapping!B:C,MATCH(InUTMC013!B47,Mapping!C:C,0),2),InUTMC013!B47) -> NGSEFB | D46: 5182877123 | E46: 2021-12-16 | F46: NS | G46: UTP*2112H00142 | I46: 280267.82 | J46: 0 | K46: 0 | L46: 280267.82 | M46: 1.0195 | N46: 274907.13 | O46: 2021-12-31
A47: N/A | B47: IPD014 | C47: =IFERROR(INDEX(Mapping!B:C,MATCH(InUTMC013!B48,Mapping!C:C,0),2),InUTMC013!B48) -> I-INCOME2R | D47: 5182908303 | E47: 2021-12-16 | F47: NS | G47: UTP*2112H00143 | I47: 800000 | J47: 0 | K47: 0 | L47: 800000 | M47: 0.9961 | N47: 803132.22 | O47: 2021-12-31
B48: IPD014 | C48: =IFERROR(INDEX(Mapping!B:C,MATCH(InUTMC013!B49,Mapping!C:C,0),2),InUTMC013!B49) -> NGSEFB | D48: 5182877123 | E48: 2021-12-17 | F48: NS | G48: UTP*2112H00146 | I48: 95123.74 | J48: 0 | K48: 0 | L48: 95123.74 | M48: 1.0106 | N48: 94126 | O48: 2021-12-31
A49: N/A | B49: IPD014 | C49: =IFERROR(INDEX(Mapping!B:C,MATCH(InUTMC013!B50,Mapping!C:C,0),2),InUTMC013!B50) -> NGSEFB | D49: IFAS | E49: 2021-12-17 | F49: NS | G49: UTP*2112H00147 | I49: 1000 | J49: 19.61 | K49: 0 | L49: 980.39 | M49: 1.0106 | N49: 970.11 | O49: 2021-12-31
A50: N/A | B50: IPD014 | C50: =IFERROR(INDEX(Mapping!B:C,MATCH(InUTMC013!B51,Mapping!C:C,0),2),InUTMC013!B51) -> NGHM | D50: 5182355271 | E50: 2021-12-17 | F50: NS | G50: UTP*2112H00148 | I50: 5000 | J50: 0 | K50: 0 | L50: 5000 | M50: 1.6112 | N50: 3103.28 | O50: 2021-12-31
A51: N/A | B51: IPD014 | C51: =IFERROR(INDEX(Mapping!B:C,MATCH(InUTMC013!B52,Mapping!C:C,0),2),InUTMC013!B52) -> I-CASH | D51: 5061243756 | E51: 2021-12-20 | F51: NS | G51: UTP*2112H00149 | I51: 20000 | J51: 0 | K51: 0 | L51: 20000 | M51: 1.0246 | N51: 19519.81 | O51: 2021-12-31
B52: IPD014 | C52: =IFERROR(INDEX(Mapping!B:C,MATCH(InUTMC013!B53,Mapping!C:C,0),2),InUTMC013!B53) -> NGSEFB | D52: 5182877123 | E52: 2021-12-20 | F52: NS | G52: UTP*2112H00151 | I52: 94967.87 | J52: 0 | K52: 0 | L52: 94967.87 | M52: 0.9965 | N52: 95301.42 | O52: 2021-12-31
A53: N/A | B53: IPD014 | C53: =IFERROR(INDEX(Mapping!B:C,MATCH(InUTMC013!B54,Mapping!C:C,0),2),InUTMC013!B54) -> NGSSGFB | D53: IFAS | E53: 2021-12-20 | F53: NS | G53: UTP*2112H00152 | I53: 10000 | J53: 0 | K53: 0 | L53: 10000 | M53: 1.2226 | N53: 8179.29 | O53: 2021-12-31
B54: IPD014 | C54: =IFERROR(INDEX(Mapping!B:C,MATCH(InUTMC013!B55,Mapping!C:C,0),2),InUTMC013!B55) -> NGSEFB | D54: 5182877123 | E54: 2021-12-21 | F54: NS | G54: UTP*2112H00154 | I54: 87827.47 | J54: 0 | K54: 0 | L54: 87827.47 | M54: 1.0003 | N54: 87801.13 | O54: 2021-12-31
A55: N/A | B55: IPD014 | C55: =IFERROR(INDEX(Mapping!B:C,MATCH(InUTMC013!B56,Mapping!C:C,0),2),InUTMC013!B56) -> NGHM | D55: IFAS | E55: 2021-12-21 | F55: NS | G55: UTP*2112H00155 | I55: 2100 | J55: 31.03 | K55: 0 | L55: 2068.97 | M55: 1.5909 | N55: 1300.5 | O55: 2021-12-31
A56: N/A | B56: IPD014 | C56: =IFERROR(INDEX(Mapping!B:C,MATCH(InUTMC013!B57,Mapping!C:C,0),2),InUTMC013!B57) -> NGSSGFA | D56: IFAS | E56: 2021-12-21 | F56: NS | G56: UTP*2112H00156 | I56: 300000 | J56: 0 | K56: 0 | L56: 300000 | M56: 1.2424 | N56: 241468.13 | O56: 2021-12-31
A57: N/A | B57: IPD014 | C57: =IFERROR(INDEX(Mapping!B:C,MATCH(InUTMC013!B58,Mapping!C:C,0),2),InUTMC013!B58) -> NGSSGFB | D57: IFAS | E57: 2021-12-21 | F57: NS | G57: UTP*2112H00157 | I57: 4000 | J57: 0 | K57: 0 | L57: 4000 | M57: 1.2367 | N57: 3234.41 | O57: 2021-12-31
A58: N/A | B58: IPD014 | C58: =IFERROR(INDEX(Mapping!B:C,MATCH(InUTMC013!B59,Mapping!C:C,0),2),InUTMC013!B59) -> NGSEFB | D58: IFAS | E58: 2021-12-21 | F58: NS | G58: UTP*2112H00158 | I58: 20000 | J58: 487.8 | K58: 0 | L58: 19512.2 | M58: 1.0003 | N58: 19506.35 | O58: 2021-12-31
B59: IPD014 | C59: =IFERROR(INDEX(Mapping!B:C,MATCH(InUTMC013!B60,Mapping!C:C,0),2),InUTMC013!B60) -> NGSEFB | D59: 5182877123 | E59: 2021-12-22 | F59: NS | G59: UTP*2112H00162 | I59: 95067.84 | J59: 0 | K59: 0 | L59: 95067.84 | M59: 1.0091 | N59: 94210.52 | O59: 2021-12-31
A60: N/A | B60: IPD014 | C60: =IFERROR(INDEX(Mapping!B:C,MATCH(InUTMC013!B61,Mapping!C:C,0),2),InUTMC013!B61) -> NGSSGFB | D60: IFAS | E60: 2021-12-22 | F60: NS | G60: UTP*2112H00163 | I60: 50000 | J60: 0 | K60: 0 | L60: 50000 | M60: 1.2458 | N60: 40134.85 | O60: 2021-12-31
A61: N/A | B61: IPD014 | C61: =IFERROR(INDEX(Mapping!B:C,MATCH(InUTMC013!B62,Mapping!C:C,0),2),InUTMC013!B62) -> I-INCOME | D61: 5062547164 | E61: 2021-12-23 | F61: NS | G61: UTP*2112H00164 | I61: 110000 | J61: 0 | K61: 0 | L61: 110000 | M61: 1.1083 | N61: 99251.11 | O61: 2021-12-31
B62: IPD014 | C62: =IFERROR(INDEX(Mapping!B:C,MATCH(InUTMC013!B63,Mapping!C:C,0),2),InUTMC013!B63) -> NGSEFB | D62: 5182877123 | E62: 2021-12-23 | F62: NS | G62: UTP*2112H00166 | I62: 264583.61 | J62: 0 | K62: 0 | L62: 264583.61 | M62: 1.02 | N62: 259395.7 | O62: 2021-12-31
A63: N/A | B63: IPD014 | C63: =IFERROR(INDEX(Mapping!B:C,MATCH(InUTMC013!B64,Mapping!C:C,0),2),InUTMC013!B64) -> NGSSGFB | D63: IFAS | E63: 2021-12-23 | F63: NS | G63: UTP*2112H00167 | I63: 1000 | J63: 0 | K63: 0 | L63: 1000 | M63: 1.249 | N63: 800.64 | O63: 2021-12-31
A64: N/A | B64: IPD014 | C64: =IFERROR(INDEX(Mapping!B:C,MATCH(InUTMC013!B65,Mapping!C:C,0),2),InUTMC013!B65) -> I-CASH | D64: 5061302641 | E64: 2021-12-24 | F64: NS | G64: UTP*2112H00168 | I64: 700000 | J64: 0 | K64: 0 | L64: 700000 | M64: 1.0247 | N64: 683126.77 | O64: 2021-12-31
A65: N/A | B65: IPD014 | C65: =IFERROR(INDEX(Mapping!B:C,MATCH(InUTMC013!B66,Mapping!C:C,0),2),InUTMC013!B66) -> I-CASH | D65: 5061243756 | E65: 2021-12-24 | F65: NS | G65: UTP*2112H00169 | I65: 10000 | J65: 0 | K65: 0 | L65: 10000 | M65: 1.0247 | N65: 9758.95 | O65: 2021-12-31
A66: N/A | B66: IPD014 | C66: =IFERROR(INDEX(Mapping!B:C,MATCH(InUTMC013!B67,Mapping!C:C,0),2),InUTMC013!B67) -> I-INCOME | D66: 5061243756 | E66: 2021-12-24 | F66: NS | G66: UTP*2112H00170 | I66: 90000 | J66: 0 | K66: 0 | L66: 90000 | M66: 1.1085 | N66: 81190.8 | O66: 2021-12-31
A67: N/A | B67: IPD014 | C67: =IFERROR(INDEX(Mapping!B:C,MATCH(InUTMC013!B68,Mapping!C:C,0),2),InUTMC013!B68) -> I-CASH | D67: 5062570494 | E67: 2021-12-27 | F67: NS | G67: UTP*2112H00171 | I67: 100000 | J67: 0 | K67: 0 | L67: 100000 | M67: 1.0249 | N67: 97570.49 | O67: 2021-12-31
A68: N/A | B68: IPD014 | C68: =IFERROR(INDEX(Mapping!B:C,MATCH(InUTMC013!B69,Mapping!C:C,0),2),InUTMC013!B69) -> I-CASH | D68: 5061243756 | E68: 2021-12-27 | F68: NS | G68: UTP*2112H00172 | I68: 19537.69 | J68: 0 | K68: 0 | L68: 19537.69 | M68: 1.0249 | N68: 19063.02 | O68: 2021-12-31
B69: IPD014 | C69: =IFERROR(INDEX(Mapping!B:C,MATCH(InUTMC013!B70,Mapping!C:C,0),2),InUTMC013!B70) -> NGSEFB | D69: 5182877123 | E69: 2021-12-27 | F69: NS | G69: UTP*2112H00174 | I69: 774732.24 | J69: 0 | K69: 0 | L69: 774732.24 | M69: 1.0155 | N69: 762907.18 | O69: 2021-12-31
A70: N/A | B70: IPD014 | C70: =IFERROR(INDEX(Mapping!B:C,MATCH(InUTMC013!B71,Mapping!C:C,0),2),InUTMC013!B71) -> NGSEFB | D70: IFAS | E70: 2021-12-27 | F70: NS | G70: UTP*2112H00175 | I70: 25000 | J70: 609.76 | K70: 0 | L70: 24390.24 | M70: 1.0155 | N70: 24017.96 | O70: 2021-12-31
A71: N/A | B71: IPD014 | C71: =IFERROR(INDEX(Mapping!B:C,MATCH(InUTMC013!B72,Mapping!C:C,0),2),InUTMC013!B72) -> I-CASH | D71: 5061243756 | E71: 2021-12-28 | F71: NS | G71: UTP*2112H00181 | I71: 22847.15 | J71: 0 | K71: 0 | L71: 22847.15 | M71: 1.0179 | N71: 22445.38 | O71: 2021-12-31
A72: N/A | B72: IPD014 | C72: =IFERROR(INDEX(Mapping!B:C,MATCH(InUTMC013!B73,Mapping!C:C,0),2),InUTMC013!B73) -> I-INCOME | D72: 5061243756 | E72: 2021-12-28 | F72: NS | G72: UTP*2112H00184 | I72: 10000 | J72: 0 | K72: 0 | L72: 10000 | M72: 1.0926 | N72: 9152.48 | O72: 2021-12-31
B73: IPD014 | C73: =IFERROR(INDEX(Mapping!B:C,MATCH(InUTMC013!B74,Mapping!C:C,0),2),InUTMC013!B74) -> NGSEFB | D73: 5182877123 | E73: 2021-12-28 | F73: NS | G73: UTP*2112H00251 | I73: 47359.86 | J73: 0 | K73: 0 | L73: 47359.86 | M73: 1.0149 | N73: 46664.56 | O73: 2021-12-31
A74: N/A | B74: IPD014 | C74: =IFERROR(INDEX(Mapping!B:C,MATCH(InUTMC013!B75,Mapping!C:C,0),2),InUTMC013!B75) -> NGSEFB | D74: 5182355271 | E74: 2021-12-28 | F74: NS | G74: UTP*2112H00252 | I74: 10000 | J74: 0 | K74: 0 | L74: 10000 | M74: 1.0149 | N74: 9853.19 | O74: 2021-12-31
A75: N/A | B75: IPD014 | C75: =IFERROR(INDEX(Mapping!B:C,MATCH(InUTMC013!B76,Mapping!C:C,0),2),InUTMC013!B76) -> NGSEFB | D75: 5182355271 | E75: 2021-12-28 | F75: NS | G75: UTP*2112H00253 | I75: 1045 | J75: 0 | K75: 0 | L75: 1045 | M75: 1.0149 | N75: 1029.66 | O75: 2021-12-31
A76: N/A | B76: IPD014 | C76: =IFERROR(INDEX(Mapping!B:C,MATCH(InUTMC013!B77,Mapping!C:C,0),2),InUTMC013!B77) -> NRBF1 | D76: IFAS | E76: 2021-12-29 | F76: NS | G76: UTP*2112H00254 | I76: 5000 | J76: 0 | K76: 0 | L76: 5000 | M76: 1.0354 | N76: 4829.05 | O76: 2021-12-31
A77: N/A | B77: IPD014 | C77: =IFERROR(INDEX(Mapping!B:C,MATCH(InUTMC013!B78,Mapping!C:C,0),2),InUTMC013!B78) -> NGSEFB | D77: 5182355271 | E77: 2021-12-29 | F77: NS | G77: UTP*2112H00255 | I77: 1089.45 | J77: 0 | K77: 0 | L77: 1089.45 | M77: 1.0151 | N77: 1073.24 | O77: 2021-12-31
A78: N/A | B78: IPD014 | C78: =IFERROR(INDEX(Mapping!B:C,MATCH(InUTMC013!B79,Mapping!C:C,0),2),InUTMC013!B79) -> NGSEFB | D78: 5182355271 | E78: 2021-12-29 | F78: NS | G78: UTP*2112H00256 | I78: 500 | J78: 0 | K78: 0 | L78: 500 | M78: 1.0151 | N78: 492.56 | O78: 2021-12-31
A79: N/A | B79: IPD014 | C79: =IFERROR(INDEX(Mapping!B:C,MATCH(InUTMC013!B80,Mapping!C:C,0),2),InUTMC013!B80) -> I-INCOME2R | D79: 5182355271 | E79: 2021-12-29 | F79: NS | G79: UTP*2112H00257 | I79: 80000 | J79: 0 | K79: 0 | L79: 80000 | M79: 0.997 | N79: 80240.72 | O79: 2021-12-31
B80: IPD014 | C80: =IFERROR(INDEX(Mapping!B:C,MATCH(InUTMC013!B81,Mapping!C:C,0),2),InUTMC013!B81) -> NGSEFB | D80: 5182877123 | E80: 2021-12-30 | F80: NS | G80: UTP*2112H00259 | I80: 23867.37 | J80: 0 | K80: 0 | L80: 23867.37 | M80: 1.029 | N80: 23194.72 | O80: 2021-12-31
A81: N/A | B81: IPD014 | C81: =IFERROR(INDEX(Mapping!B:C,MATCH(InUTMC013!B82,Mapping!C:C,0),2),InUTMC013!B82) -> I-INCOME2R | D81: 5182355271 | E81: 2021-12-30 | F81: NS | G81: UTP*2112H00260 | I81: 70000 | J81: 0 | K81: 0 | L81: 70000 | M81: 0.9971 | N81: 70203.59 | O81: 2021-12-31
A82: N/A | B82: IPD014 | C82: =IFERROR(INDEX(Mapping!B:C,MATCH(InUTMC013!B83,Mapping!C:C,0),2),InUTMC013!B83) -> I-CASH | D82: 5061243756 | E82: 2021-12-31 | F82: NS | G82: UTP*2112H00262 | I82: 31000 | J82: 0 | K82: 0 | L82: 31000 | M82: 1.018 | N82: 30451.87 | O82: 2021-12-31
A83: N/A | B83: IPD014 | C83: =IFERROR(INDEX(Mapping!B:C,MATCH(InUTMC013!B84,Mapping!C:C,0),2),InUTMC013!B84) -> I-INCOME2R | D83: 5182355271 | E83: 2021-12-31 | F83: NS | G83: UTP*2112H00265 | I83: 50000 | J83: 0 | K83: 0 | L83: 50000 | M83: 0.9974 | N83: 50130.34 | O83: 2021-12-31
A84: N/A | B84: IPD014 | C84: =IFERROR(INDEX(Mapping!B:C,MATCH(InUTMC013!B85,Mapping!C:C,0),2),InUTMC013!B85) -> I-INCOME | D84: 5061243756 | E84: 2021-12-01 | F84: RE | G84: UTP*2112T00001 | I84: -30066.88 | J84: 0 | K84: 0 | L84: -30066.88 | M84: 1.1054 | N84: -27200 | O84: 2021-12-31
A85: N/A | B85: IPD014 | C85: =IFERROR(INDEX(Mapping!B:C,MATCH(InUTMC013!B86,Mapping!C:C,0),2),InUTMC013!B86) -> NGSSGFB | D85: IFAS | E85: 2021-12-01 | F85: RE | G85: UTP*2112T00003 | I85: -6305.82 | J85: 0 | K85: 0 | L85: -6305.82 | M85: 1.242 | N85: -5077.15 | O85: 2021-12-31
A86: N/A | B86: IPD014 | C86: =IFERROR(INDEX(Mapping!B:C,MATCH(InUTMC013!B87,Mapping!C:C,0),2),InUTMC013!B87) -> I-CASH | D86: 5061243756 | E86: 2021-12-02 | F86: RE | G86: UTP*2112T00008 | I86: -6312.86 | J86: 0 | K86: 0 | L86: -6312.86 | M86: 1.0238 | N86: -6166.11 | O86: 2021-12-31
A87: N/A | B87: IPD014 | C87: =IFERROR(INDEX(Mapping!B:C,MATCH(InUTMC013!B88,Mapping!C:C,0),2),InUTMC013!B88) -> I-CASH | D87: 5061243756 | E87: 2021-12-02 | F87: RE | G87: UTP*2112T00009 | I87: -43692.6 | J87: 0 | K87: 0 | L87: -43692.6 | M87: 1.0238 | N87: -42676.89 | O87: 2021-12-31
A88: N/A | B88: IPD014 | C88: =IFERROR(INDEX(Mapping!B:C,MATCH(InUTMC013!B89,Mapping!C:C,0),2),InUTMC013!B89) -> I-CASH | D88: 5061243756 | E88: 2021-12-02 | F88: RE | G88: UTP*2112T00010 | I88: -50004.88 | J88: 0 | K88: 0 | L88: -50004.88 | M88: 1.0238 | N88: -48842.43 | O88: 2021-12-31
A89: N/A | B89: IPD014 | C89: =IFERROR(INDEX(Mapping!B:C,MATCH(InUTMC013!B90,Mapping!C:C,0),2),InUTMC013!B90) -> I-INCOME | D89: 5061243756 | E89: 2021-12-02 | F89: RE | G89: UTP*2112T00011 | I89: -10410.13 | J89: 0 | K89: 0 | L89: -10410.13 | M89: 1.1055 | N89: -9416.67 | O89: 2021-12-31
A90: N/A | B90: IPD014 | C90: =IFERROR(INDEX(Mapping!B:C,MATCH(InUTMC013!B91,Mapping!C:C,0),2),InUTMC013!B91) -> NGSSGFB | D90: 5182527451 | E90: 2021-12-02 | F90: RE | G90: UTP*2112T00015 | I90: -45490.84 | J90: 0 | K90: 0 | L90: -45490.84 | M90: 1.2477 | N90: -36459.76 | O90: 2021-12-31
A91: N/A | B91: IPD014 | C91: =IFERROR(INDEX(Mapping!B:C,MATCH(InUTMC013!B92,Mapping!C:C,0),2),InUTMC013!B92) -> NGSSGFB | D91: 5182527451 | E91: 2021-12-02 | F91: RE | G91: UTP*2112T00016 | I91: -12112.67 | J91: 0 | K91: 0 | L91: -12112.67 | M91: 1.2477 | N91: -9708 | O91: 2021-12-31
A92: N/A | B92: IPD014 | C92: =IFERROR(INDEX(Mapping!B:C,MATCH(InUTMC013!B93,Mapping!C:C,0),2),InUTMC013!B93) -> NGSSGFB | D92: 5182527451 | E92: 2021-12-02 | F92: RE | G92: UTP*2112T00017 | I92: -15685.91 | J92: 0 | K92: 0 | L92: -15685.91 | M92: 1.2477 | N92: -12571.86 | O92: 2021-12-31
A93: N/A | B93: IPD014 | C93: =IFERROR(INDEX(Mapping!B:C,MATCH(InUTMC013!B94,Mapping!C:C,0),2),InUTMC013!B94) -> I-CASH | D93: 5061243756 | E93: 2021-12-06 | F93: RE | G93: UTP*2112T00019 | I93: -50014.66 | J93: 0 | K93: 0 | L93: -50014.66 | M93: 1.024 | N93: -48842.44 | O93: 2021-12-31
A94: N/A | B94: IPD014 | C94: =IFERROR(INDEX(Mapping!B:C,MATCH(InUTMC013!B95,Mapping!C:C,0),2),InUTMC013!B95) -> I-INCOME | D94: 5061243756 | E94: 2021-12-06 | F94: RE | G94: UTP*2112T00021 | I94: -30174.82 | J94: 0 | K94: 0 | L94: -30174.82 | M94: 1.1063 | N94: -27275.44 | O94: 2021-12-31
A95: N/A | B95: IPD014 | C95: =IFERROR(INDEX(Mapping!B:C,MATCH(InUTMC013!B96,Mapping!C:C,0),2),InUTMC013!B96) -> NRBF1 | D95: IFAS | E95: 2021-12-06 | F95: RE | G95: UTP*2112T00022 | I95: -10078.26 | J95: 0 | K95: 0 | L95: -10078.26 | M95: 1.041 | N95: -9681.33 | O95: 2021-12-31
A96: N/A | B96: IPD014 | C96: =IFERROR(INDEX(Mapping!B:C,MATCH(InUTMC013!B97,Mapping!C:C,0),2),InUTMC013!B97) -> NGSEFB | D96: IFAS | E96: 2021-12-06 | F96: RE | G96: UTP*2112T00027 | I96: -975.43 | J96: 0 | K96: 0 | L96: -975.43 | M96: 0.997 | N96: -978.37 | O96: 2021-12-31
A97: N/A | B97: IPD014 | C97: =IFERROR(INDEX(Mapping!B:C,MATCH(InUTMC013!B98,Mapping!C:C,0),2),InUTMC013!B98) -> I-CASH | D97: 5061243756 | E97: 2021-12-07 | F97: RE | G97: UTP*2112T00031 | I97: -15336.1 | J97: 0 | K97: 0 | L97: -15336.1 | M97: 1.024 | N97: -14976.66 | O97: 2021-12-31
A98: N/A | B98: IPD014 | C98: =IFERROR(INDEX(Mapping!B:C,MATCH(InUTMC013!B99,Mapping!C:C,0),2),InUTMC013!B99) -> I-INCOME | D98: 5061243756 | E98: 2021-12-07 | F98: RE | G98: UTP*2112T00033 | I98: -24971.39 | J98: 0 | K98: 0 | L98: -24971.39 | M98: 1.1066 | N98: -22565.87 | O98: 2021-12-31
A99: N/A | B99: IPD014 | C99: =IFERROR(INDEX(Mapping!B:C,MATCH(InUTMC013!B100,Mapping!C:C,0),2),InUTMC013!B100) -> NGSSGFB | D99: 5182527451 | E99: 2021-12-07 | F99: RE | G99: UTP*2112T00038 | I99: -10410.67 | J99: 0 | K99: 0 | L99: -10410.67 | M99: 1.265 | N99: -8229.78 | O99: 2021-12-31
A100: N/A | B100: IPD014 | C100: =IFERROR(INDEX(Mapping!B:C,MATCH(InUTMC013!B101,Mapping!C:C,0),2),InUTMC013!B101) -> I-CASH | D100: 5061243756 | E100: 2021-12-08 | F100: RE | G100: UTP*2112T00039 | I100: -27407.06 | J100: 0 | K100: 0 | L100: -27407.06 | M100: 1.024 | N100: -26764.71 | O100: 2021-12-31
A101: N/A | B101: IPD014 | C101: =IFERROR(INDEX(Mapping!B:C,MATCH(InUTMC013!B102,Mapping!C:C,0),2),InUTMC013!B102) -> I-CASH | D101: 5061243756 | E101: 2021-12-08 | F101: RE | G101: UTP*2112T00040 | I101: -22576.2 | J101: 0 | K101: 0 | L101: -22576.2 | M101: 1.024 | N101: -22047.07 | O101: 2021-12-31
A102: N/A | B102: IPD014 | C102: =IFERROR(INDEX(Mapping!B:C,MATCH(InUTMC013!B103,Mapping!C:C,0),2),InUTMC013!B103) -> I-CASH | D102: 5061243756 | E102: 2021-12-08 | F102: RE | G102: UTP*2112T00041 | I102: -130525.25 | J102: 0 | K102: 0 | L102: -130525.25 | M102: 1.024 | N102: -127466.06 | O102: 2021-12-31
A103: N/A | B103: IPD014 | C103: =IFERROR(INDEX(Mapping!B:C,MATCH(InUTMC013!B104,Mapping!C:C,0),2),InUTMC013!B104) -> I-CASH | D103: 5061243756 | E103: 2021-12-08 | F103: RE | G103: UTP*2112T00042 | I103: -59950.61 | J103: 0 | K103: 0 | L103: -59950.61 | M103: 1.024 | N103: -58545.52 | O103: 2021-12-31
A104: N/A | B104: IPD014 | C104: =IFERROR(INDEX(Mapping!B:C,MATCH(InUTMC013!B105,Mapping!C:C,0),2),InUTMC013!B105) -> I-CASH | D104: 5061243756 | E104: 2021-12-08 | F104: RE | G104: UTP*2112T00043 | I104: -21997.85 | J104: 0 | K104: 0 | L104: -21997.85 | M104: 1.024 | N104: -21482.28 | O104: 2021-12-31
A105: N/A | B105: IPD014 | C105: =IFERROR(INDEX(Mapping!B:C,MATCH(InUTMC013!B106,Mapping!C:C,0),2),InUTMC013!B106) -> I-CASH | D105: 5061243756 | E105: 2021-12-08 | F105: RE | G105: UTP*2112T00044 | I105: -44743.03 | J105: 0 | K105: 0 | L105: -44743.03 | M105: 1.024 | N105: -43694.36 | O105: 2021-12-31
A106: N/A | B106: IPD014 | C106: =IFERROR(INDEX(Mapping!B:C,MATCH(InUTMC013!B107,Mapping!C:C,0),2),InUTMC013!B107) -> I-INCOME | D106: 5061243756 | E106: 2021-12-08 | F106: RE | G106: UTP*2112T00045 | I106: -236361.65 | J106: 0 | K106: 0 | L106: -236361.65 | M106: 1.107 | N106: -213515.49 | O106: 2021-12-31
A107: N/A | B107: IPD014 | C107: =IFERROR(INDEX(Mapping!B:C,MATCH(InUTMC013!B108,Mapping!C:C,0),2),InUTMC013!B108) -> I-CASH | D107: 5061243756 | E107: 2021-12-09 | F107: RE | G107: UTP*2112T00048 | I107: -10138.68 | J107: 0 | K107: 0 | L107: -10138.68 | M107: 1.0241 | N107: -9900.09 | O107: 2021-12-31
A108: N/A | B108: IPD014 | C108: =IFERROR(INDEX(Mapping!B:C,MATCH(InUTMC013!B109,Mapping!C:C,0),2),InUTMC013!B109) -> NGSEFB | D108: IFAS | E108: 2021-12-09 | F108: RE | G108: UTP*2112T00054 | I108: -1012.8 | J108: 0 | K108: 0 | L108: -1012.8 | M108: 1.0128 | N108: -1000 | O108: 2021-12-31
A109: N/A | B109: IPD014 | C109: =IFERROR(INDEX(Mapping!B:C,MATCH(InUTMC013!B110,Mapping!C:C,0),2),InUTMC013!B110) -> I-CASH | D109: 5061243756 | E109: 2021-12-10 | F109: RE | G109: UTP*2112T00055 | I109: -88410.62 | J109: 0 | K109: 0 | L109: -88410.62 | M109: 1.0241 | N109: -86330.07 | O109: 2021-12-31
A110: N/A | B110: IPD014 | C110: =IFERROR(INDEX(Mapping!B:C,MATCH(InUTMC013!B111,Mapping!C:C,0),2),InUTMC013!B111) -> I-CASH | D110: 5061243756 | E110: 2021-12-10 | F110: RE | G110: UTP*2112T00056 | I110: -61720.73 | J110: 0 | K110: 0 | L110: -61720.73 | M110: 1.0241 | N110: -60268.26 | O110: 2021-12-31
A111: N/A | B111: IPD014 | C111: =IFERROR(INDEX(Mapping!B:C,MATCH(InUTMC013!B112,Mapping!C:C,0),2),InUTMC013!B112) -> I-INCOME | D111: 5061243756 | E111: 2021-12-10 | F111: RE | G111: UTP*2112T00058 | I111: -147535.66 | J111: 0 | K111: 0 | L111: -147535.66 | M111: 1.1057 | N111: -133431.91 | O111: 2021-12-31
A112: N/A | B112: IPD014 | C112: =IFERROR(INDEX(Mapping!B:C,MATCH(InUTMC013!B113,Mapping!C:C,0),2),InUTMC013!B113) -> NGDBFU | D112: 5182769431 | E112: 2021-12-10 | F112: RE | G112: UTP*2112T00062 | I112: -620127.44 | J112: 0 | K112: 0 | L112: -620127.44 | M112: 1.0066 | N112: -616061.43 | O112: 2021-12-31
A113: N/A | B113: IPD014 | C113: =IFERROR(INDEX(Mapping!B:C,MATCH(InUTMC013!B114,Mapping!C:C,0),2),InUTMC013!B114) -> NGSSGFB | D113: 5182355271 | E113: 2021-12-10 | F113: RE | G113: UTP*2112T00063 | I113: -364.8 | J113: 0 | K113: 0 | L113: -364.8 | M113: 1.259 | N113: -289.75 | O113: 2021-12-31
A114: N/A | B114: IPD014 | C114: =IFERROR(INDEX(Mapping!B:C,MATCH(InUTMC013!B115,Mapping!C:C,0),2),InUTMC013!B115) -> I-CASH | D114: 3300001625 | E114: 2021-12-13 | F114: RE | G114: UTP*2112T00064 | I114: -1000198.22 | J114: 0 | K114: 0 | L114: -1000198.22 | M114: 1.0243 | N114: -976470 | O114: 2021-12-31
A115: N/A | B115: IPD014 | C115: =IFERROR(INDEX(Mapping!B:C,MATCH(InUTMC013!B116,Mapping!C:C,0),2),InUTMC013!B116) -> I-CASH | D115: 5061243756 | E115: 2021-12-13 | F115: RE | G115: UTP*2112T00065 | I115: -51220.47 | J115: 0 | K115: 0 | L115: -51220.47 | M115: 1.0243 | N115: -50005.34 | O115: 2021-12-31
A116: N/A | B116: IPD014 | C116: =IFERROR(INDEX(Mapping!B:C,MATCH(InUTMC013!B117,Mapping!C:C,0),2),InUTMC013!B117) -> I-INCOME | D116: 5061243756 | E116: 2021-12-13 | F116: RE | G116: UTP*2112T00066 | I116: -24963.18 | J116: 0 | K116: 0 | L116: -24963.18 | M116: 1.1061 | N116: -22568.65 | O116: 2021-12-31
A117: N/A | B117: IPD014 | C117: =IFERROR(INDEX(Mapping!B:C,MATCH(InUTMC013!B118,Mapping!C:C,0),2),InUTMC013!B118) -> NGSSGFB | D117: IFAS | E117: 2021-12-13 | F117: RE | G117: UTP*2112T00068 | I117: -9734.38 | J117: 0 | K117: 0 | L117: -9734.38 | M117: 1.2536 | N117: -7765.14 | O117: 2021-12-31
A118: N/A | B118: IPD014 | C118: =IFERROR(INDEX(Mapping!B:C,MATCH(InUTMC013!B119,Mapping!C:C,0),2),InUTMC013!B119) -> NGSSGFB | D118: IFAS | E118: 2021-12-13 | F118: RE | G118: UTP*2112T00069 | I118: -53537.98 | J118: 0 | K118: 0 | L118: -53537.98 | M118: 1.2536 | N118: -42707.39 | O118: 2021-12-31
A119: N/A | B119: IPD014 | C119: =IFERROR(INDEX(Mapping!B:C,MATCH(InUTMC013!B120,Mapping!C:C,0),2),InUTMC013!B120) -> I-CASH | D119: 5062582856 | E119: 2021-12-14 | F119: RE | G119: UTP*2112T00070 | I119: -777303.55 | J119: 0 | K119: 0 | L119: -777303.55 | M119: 1.0243 | N119: -758863.17 | O119: 2021-12-31
A120: N/A | B120: IPD014 | C120: =IFERROR(INDEX(Mapping!B:C,MATCH(InUTMC013!B121,Mapping!C:C,0),2),InUTMC013!B121) -> I-CASH | D120: 5062582856 | E120: 2021-12-14 | F120: RE | G120: UTP*2112T00071 | I120: -1063.55 | J120: 0 | K120: 0 | L120: -1063.55 | M120: 1.0243 | N120: -1038.32 | O120: 2021-12-31
A121: N/A | B121: IPD014 | C121: =IFERROR(INDEX(Mapping!B:C,MATCH(InUTMC013!B122,Mapping!C:C,0),2),InUTMC013!B122) -> I-CASH | D121: 5062582856 | E121: 2021-12-14 | F121: RE | G121: UTP*2112T00072 | I121: -1141.08 | J121: 0 | K121: 0 | L121: -1141.08 | M121: 1.0243 | N121: -1114.01 | O121: 2021-12-31
A122: N/A | B122: IPD014 | C122: =IFERROR(INDEX(Mapping!B:C,MATCH(InUTMC013!B123,Mapping!C:C,0),2),InUTMC013!B123) -> I-CASH | D122: 5062582856 | E122: 2021-12-14 | F122: RE | G122: UTP*2112T00073 | I122: -990.19 | J122: 0 | K122: 0 | L122: -990.19 | M122: 1.0243 | N122: -966.7 | O122: 2021-12-31
A123: N/A | B123: IPD014 | C123: =IFERROR(INDEX(Mapping!B:C,MATCH(InUTMC013!B124,Mapping!C:C,0),2),InUTMC013!B124) -> I-CASH | D123: 5062582856 | E123: 2021-12-14 | F123: RE | G123: UTP*2112T00074 | I123: -380.96 | J123: 0 | K123: 0 | L123: -380.96 | M123: 1.0243 | N123: -371.92 | O123: 2021-12-31
A124: N/A | B124: IPD014 | C124: =IFERROR(INDEX(Mapping!B:C,MATCH(InUTMC013!B125,Mapping!C:C,0),2),InUTMC013!B125) -> I-CASH | D124: 5062582856 | E124: 2021-12-14 | F124: RE | G124: UTP*2112T00075 | I124: -685.72 | J124: 0 | K124: 0 | L124: -685.72 | M124: 1.0243 | N124: -669.45 | O124: 2021-12-31
A125: N/A | B125: IPD014 | C125: =IFERROR(INDEX(Mapping!B:C,MATCH(InUTMC013!B126,Mapping!C:C,0),2),InUTMC013!B126) -> I-CASH | D125: 5062582856 | E125: 2021-12-14 | F125: RE | G125: UTP*2112T00076 | I125: -533.34 | J125: 0 | K125: 0 | L125: -533.34 | M125: 1.0243 | N125: -520.69 | O125: 2021-12-31
A126: N/A | B126: IPD014 | C126: =IFERROR(INDEX(Mapping!B:C,MATCH(InUTMC013!B127,Mapping!C:C,0),2),InUTMC013!B127) -> I-CASH | D126: 5062582856 | E126: 2021-12-14 | F126: RE | G126: UTP*2112T00077 | I126: -914.73 | J126: 0 | K126: 0 | L126: -914.73 | M126: 1.0243 | N126: -893.03 | O126: 2021-12-31
A127: N/A | B127: IPD014 | C127: =IFERROR(INDEX(Mapping!B:C,MATCH(InUTMC013!B128,Mapping!C:C,0),2),InUTMC013!B128) -> I-CASH | D127: 5062582856 | E127: 2021-12-14 | F127: RE | G127: UTP*2112T00078 | I127: -1221.31 | J127: 0 | K127: 0 | L127: -1221.31 | M127: 1.0243 | N127: -1192.34 | O127: 2021-12-31
A128: N/A | B128: IPD014 | C128: =IFERROR(INDEX(Mapping!B:C,MATCH(InUTMC013!B129,Mapping!C:C,0),2),InUTMC013!B129) -> I-CASH | D128: 5062582856 | E128: 2021-12-14 | F128: RE | G128: UTP*2112T00079 | I128: -1146.65 | J128: 0 | K128: 0 | L128: -1146.65 | M128: 1.0243 | N128: -1119.45 | O128: 2021-12-31
A129: N/A | B129: IPD014 | C129: =IFERROR(INDEX(Mapping!B:C,MATCH(InUTMC013!B130,Mapping!C:C,0),2),InUTMC013!B130) -> I-CASH | D129: 5062582856 | E129: 2021-12-14 | F129: RE | G129: UTP*2112T00080 | I129: -2684.93 | J129: 0 | K129: 0 | L129: -2684.93 | M129: 1.0243 | N129: -2621.23 | O129: 2021-12-31
A130: N/A | B130: IPD014 | C130: =IFERROR(INDEX(Mapping!B:C,MATCH(InUTMC013!B131,Mapping!C:C,0),2),InUTMC013!B131) -> I-CASH | D130: 5062582856 | E130: 2021-12-14 | F130: RE | G130: UTP*2112T00081 | I130: -4871.77 | J130: 0 | K130: 0 | L130: -4871.77 | M130: 1.0243 | N130: -4756.19 | O130: 2021-12-31
A131: N/A | B131: IPD014 | C131: =IFERROR(INDEX(Mapping!B:C,MATCH(InUTMC013!B132,Mapping!C:C,0),2),InUTMC013!B132) -> I-CASH | D131: 5062582856 | E131: 2021-12-14 | F131: RE | G131: UTP*2112T00082 | I131: -155.45 | J131: 0 | K131: 0 | L131: -155.45 | M131: 1.0243 | N131: -151.76 | O131: 2021-12-31
A132: N/A | B132: IPD014 | C132: =IFERROR(INDEX(Mapping!B:C,MATCH(InUTMC013!B133,Mapping!C:C,0),2),InUTMC013!B133) -> I-CASH | D132: 5062582856 | E132: 2021-12-14 | F132: RE | G132: UTP*2112T00083 | I132: -1008.82 | J132: 0 | K132: 0 | L132: -1008.82 | M132: 1.0243 | N132: -984.89 | O132: 2021-12-31
A133: N/A | B133: IPD014 | C133: =IFERROR(INDEX(Mapping!B:C,MATCH(InUTMC013!B134,Mapping!C:C,0),2),InUTMC013!B134) -> I-CASH | D133: 5062582856 | E133: 2021-12-14 | F133: RE | G133: UTP*2112T00084 | I133: -232.85 | J133: 0 | K133: 0 | L133: -232.85 | M133: 1.0243 | N133: -227.33 | O133: 2021-12-31
A134: N/A | B134: IPD014 | C134: =IFERROR(INDEX(Mapping!B:C,MATCH(InUTMC013!B135,Mapping!C:C,0),2),InUTMC013!B135) -> I-CASH | D134: 5062582856 | E134: 2021-12-14 | F134: RE | G134: UTP*2112T00085 | I134: -1086.97 | J134: 0 | K134: 0 | L134: -1086.97 | M134: 1.0243 | N134: -1061.18 | O134: 2021-12-31
A135: N/A | B135: IPD014 | C135: =IFERROR(INDEX(Mapping!B:C,MATCH(InUTMC013!B136,Mapping!C:C,0),2),InUTMC013!B136) -> I-INCOME | D135: 5061243756 | E135: 2021-12-14 | F135: RE | G135: UTP*2112T00087 | I135: -28721.46 | J135: 0 | K135: 0 | L135: -28721.46 | M135: 1.1068 | N135: -25950 | O135: 2021-12-31
A136: N/A | B136: IPD014 | C136: =IFERROR(INDEX(Mapping!B:C,MATCH(InUTMC013!B137,Mapping!C:C,0),2),InUTMC013!B137) -> I-CASH | D136: 5061243756 | E136: 2021-12-15 | F136: RE | G136: UTP*2112T00091 | I136: -9992.25 | J136: 0 | K136: 0 | L136: -9992.25 | M136: 1.0244 | N136: -9754.25 | O136: 2021-12-31
A137: N/A | B137: IPD014 | C137: =IFERROR(INDEX(Mapping!B:C,MATCH(InUTMC013!B138,Mapping!C:C,0),2),InUTMC013!B138) -> I-INCOME | D137: 5061243756 | E137: 2021-12-15 | F137: RE | G137: UTP*2112T00093 | I137: -51009.36 | J137: 0 | K137: 0 | L137: -51009.36 | M137: 1.1063 | N137: -46108.07 | O137: 2021-12-31
A138: N/A | B138: IPD014 | C138: =IFERROR(INDEX(Mapping!B:C,MATCH(InUTMC013!B139,Mapping!C:C,0),2),InUTMC013!B139) -> I-CASH | D138: 5062570461 | E138: 2021-12-16 | F138: RE | G138: UTP*2112T00100 | I138: -9462.78 | J138: 0 | K138: 0 | L138: -9462.78 | M138: 1.0244 | N138: -9237.39 | O138: 2021-12-31
A139: N/A | B139: IPD014 | C139: =IFERROR(INDEX(Mapping!B:C,MATCH(InUTMC013!B140,Mapping!C:C,0),2),InUTMC013!B140) -> I-CASH | D139: 5062570461 | E139: 2021-12-16 | F139: RE | G139: UTP*2112T00101 | I139: -250073.24 | J139: 0 | K139: 0 | L139: -250073.24 | M139: 1.0244 | N139: -244116.79 | O139: 2021-12-31
A140: N/A | B140: IPD014 | C140: =IFERROR(INDEX(Mapping!B:C,MATCH(InUTMC013!B141,Mapping!C:C,0),2),InUTMC013!B141) -> I-CASH | D140: 5062570461 | E140: 2021-12-16 | F140: RE | G140: UTP*2112T00102 | I140: -180211.11 | J140: 0 | K140: 0 | L140: -180211.11 | M140: 1.0244 | N140: -175918.69 | O140: 2021-12-31
A141: N/A | B141: IPD014 | C141: =IFERROR(INDEX(Mapping!B:C,MATCH(InUTMC013!B142,Mapping!C:C,0),2),InUTMC013!B142) -> I-CASH | D141: 5062570461 | E141: 2021-12-16 | F141: RE | G141: UTP*2112T00103 | I141: -479.16 | J141: 0 | K141: 0 | L141: -479.16 | M141: 1.0244 | N141: -467.75 | O141: 2021-12-31
A142: N/A | B142: IPD014 | C142: =IFERROR(INDEX(Mapping!B:C,MATCH(InUTMC013!B143,Mapping!C:C,0),2),InUTMC013!B143) -> I-CASH | D142: 5062570461 | E142: 2021-12-16 | F142: RE | G142: UTP*2112T00104 | I142: -220085.94 | J142: 0 | K142: 0 | L142: -220085.94 | M142: 1.0244 | N142: -214843.75 | O142: 2021-12-31
A143: N/A | B143: IPD014 | C143: =IFERROR(INDEX(Mapping!B:C,MATCH(InUTMC013!B144,Mapping!C:C,0),2),InUTMC013!B144) -> I-CASH | D143: 5062570461 | E143: 2021-12-16 | F143: RE | G143: UTP*2112T00105 | I143: -50004.88 | J143: 0 | K143: 0 | L143: -50004.88 | M143: 1.0244 | N143: -48813.82 | O143: 2021-12-31
A144: N/A | B144: IPD014 | C144: =IFERROR(INDEX(Mapping!B:C,MATCH(InUTMC013!B145,Mapping!C:C,0),2),InUTMC013!B145) -> I-CASH | D144: 5062570461 | E144: 2021-12-16 | F144: RE | G144: UTP*2112T00106 | I144: -1041.32 | J144: 0 | K144: 0 | L144: -1041.32 | M144: 1.0244 | N144: -1016.52 | O144: 2021-12-31
A145: N/A | B145: IPD014 | C145: =IFERROR(INDEX(Mapping!B:C,MATCH(InUTMC013!B146,Mapping!C:C,0),2),InUTMC013!B146) -> I-CASH | D145: 5062570461 | E145: 2021-12-16 | F145: RE | G145: UTP*2112T00107 | I145: -120058.6 | J145: 0 | K145: 0 | L145: -120058.6 | M145: 1.0244 | N145: -117198.95 | O145: 2021-12-31
A146: N/A | B146: IPD014 | C146: =IFERROR(INDEX(Mapping!B:C,MATCH(InUTMC013!B147,Mapping!C:C,0),2),InUTMC013!B147) -> I-CASH | D146: 5062570461 | E146: 2021-12-16 | F146: RE | G146: UTP*2112T00108 | I146: -150029.29 | J146: 0 | K146: 0 | L146: -150029.29 | M146: 1.0244 | N146: -146455.77 | O146: 2021-12-31
A147: N/A | B147: IPD014 | C147: =IFERROR(INDEX(Mapping!B:C,MATCH(InUTMC013!B148,Mapping!C:C,0),2),InUTMC013!B148) -> I-CASH | D147: 5062570461 | E147: 2021-12-16 | F147: RE | G147: UTP*2112T00109 | I147: -1246.71 | J147: 0 | K147: 0 | L147: -1246.71 | M147: 1.0244 | N147: -1217.01 | O147: 2021-12-31
A148: N/A | B148: IPD014 | C148: =IFERROR(INDEX(Mapping!B:C,MATCH(InUTMC013!B149,Mapping!C:C,0),2),InUTMC013!B149) -> I-CASH | D148: 5062570461 | E148: 2021-12-16 | F148: RE | G148: UTP*2112T00110 | I148: -18145.77 | J148: 0 | K148: 0 | L148: -18145.77 | M148: 1.0244 | N148: -17713.56 | O148: 2021-12-31
A149: N/A | B149: IPD014 | C149: =IFERROR(INDEX(Mapping!B:C,MATCH(InUTMC013!B150,Mapping!C:C,0),2),InUTMC013!B150) -> I-CASH | D149: 5062570494 | E149: 2021-12-16 | F149: RE | G149: UTP*2112T00111 | I149: -38943.16 | J149: 0 | K149: 0 | L149: -38943.16 | M149: 1.0244 | N149: -38015.58 | O149: 2021-12-31
A150: N/A | B150: IPD014 | C150: =IFERROR(INDEX(Mapping!B:C,MATCH(InUTMC013!B151,Mapping!C:C,0),2),InUTMC013!B151) -> I-CASH | D150: 5062570494 | E150: 2021-12-16 | F150: RE | G150: UTP*2112T00112 | I150: -140041.01 | J150: 0 | K150: 0 | L150: -140041.01 | M150: 1.0244 | N150: -136705.4 | O150: 2021-12-31
A151: N/A | B151: IPD014 | C151: =IFERROR(INDEX(Mapping!B:C,MATCH(InUTMC013!B152,Mapping!C:C,0),2),InUTMC013!B152) -> I-CASH | D151: 5062570494 | E151: 2021-12-16 | F151: RE | G151: UTP*2112T00113 | I151: -150175.92 | J151: 0 | K151: 0 | L151: -150175.92 | M151: 1.0244 | N151: -146598.91 | O151: 2021-12-31
A152: N/A | B152: IPD014 | C152: =IFERROR(INDEX(Mapping!B:C,MATCH(InUTMC013!B153,Mapping!C:C,0),2),InUTMC013!B153) -> I-CASH | D152: 5062570494 | E152: 2021-12-16 | F152: RE | G152: UTP*2112T00114 | I152: -492.99 | J152: 0 | K152: 0 | L152: -492.99 | M152: 1.0244 | N152: -481.25 | O152: 2021-12-31
A153: N/A | B153: IPD014 | C153: =IFERROR(INDEX(Mapping!B:C,MATCH(InUTMC013!B154,Mapping!C:C,0),2),InUTMC013!B154) -> I-CASH | D153: 5062570494 | E153: 2021-12-16 | F153: RE | G153: UTP*2112T00115 | I153: -220085.94 | J153: 0 | K153: 0 | L153: -220085.94 | M153: 1.0244 | N153: -214843.75 | O153: 2021-12-31
A154: N/A | B154: IPD014 | C154: =IFERROR(INDEX(Mapping!B:C,MATCH(InUTMC013!B155,Mapping!C:C,0),2),InUTMC013!B155) -> I-CASH | D154: 5062570494 | E154: 2021-12-16 | F154: RE | G154: UTP*2112T00116 | I154: -120011.72 | J154: 0 | K154: 0 | L154: -120011.72 | M154: 1.0244 | N154: -117153.18 | O154: 2021-12-31
A155: N/A | B155: IPD014 | C155: =IFERROR(INDEX(Mapping!B:C,MATCH(InUTMC013!B156,Mapping!C:C,0),2),InUTMC013!B156) -> I-CASH | D155: 5062570494 | E155: 2021-12-16 | F155: RE | G155: UTP*2112T00117 | I155: -981.85 | J155: 0 | K155: 0 | L155: -981.85 | M155: 1.0244 | N155: -958.46 | O155: 2021-12-31
A156: N/A | B156: IPD014 | C156: =IFERROR(INDEX(Mapping!B:C,MATCH(InUTMC013!B157,Mapping!C:C,0),2),InUTMC013!B157) -> I-CASH | D156: 5062570494 | E156: 2021-12-16 | F156: RE | G156: UTP*2112T00118 | I156: -200097.67 | J156: 0 | K156: 0 | L156: -200097.67 | M156: 1.0244 | N156: -195331.58 | O156: 2021-12-31
A157: N/A | B157: IPD014 | C157: =IFERROR(INDEX(Mapping!B:C,MATCH(InUTMC013!B158,Mapping!C:C,0),2),InUTMC013!B158) -> I-CASH | D157: 5062570494 | E157: 2021-12-16 | F157: RE | G157: UTP*2112T00119 | I157: -150029.29 | J157: 0 | K157: 0 | L157: -150029.29 | M157: 1.0244 | N157: -146455.77 | O157: 2021-12-31
A158: N/A | B158: IPD014 | C158: =IFERROR(INDEX(Mapping!B:C,MATCH(InUTMC013!B159,Mapping!C:C,0),2),InUTMC013!B159) -> I-CASH | D158: 5062570494 | E158: 2021-12-16 | F158: RE | G158: UTP*2112T00120 | I158: -1296.78 | J158: 0 | K158: 0 | L158: -1296.78 | M158: 1.0244 | N158: -1265.89 | O158: 2021-12-31
A159: N/A | B159: IPD014 | C159: =IFERROR(INDEX(Mapping!B:C,MATCH(InUTMC013!B160,Mapping!C:C,0),2),InUTMC013!B160) -> I-CASH | D159: 5062570494 | E159: 2021-12-16 | F159: RE | G159: UTP*2112T00121 | I159: -120105.52 | J159: 0 | K159: 0 | L159: -120105.52 | M159: 1.0244 | N159: -117244.75 | O159: 2021-12-31
A160: N/A | B160: IPD014 | C160: =IFERROR(INDEX(Mapping!B:C,MATCH(InUTMC013!B161,Mapping!C:C,0),2),InUTMC013!B161) -> I-CASH | D160: 5062570494 | E160: 2021-12-16 | F160: RE | G160: UTP*2112T00122 | I160: -150029.29 | J160: 0 | K160: 0 | L160: -150029.29 | M160: 1.0244 | N160: -146455.77 | O160: 2021-12-31
A161: N/A | B161: IPD014 | C161: =IFERROR(INDEX(Mapping!B:C,MATCH(InUTMC013!B162,Mapping!C:C,0),2),InUTMC013!B162) -> I-CASH | D161: 5062570494 | E161: 2021-12-16 | F161: RE | G161: UTP*2112T00123 | I161: -100009.76 | J161: 0 | K161: 0 | L161: -100009.76 | M161: 1.0244 | N161: -97627.65 | O161: 2021-12-31
A162: N/A | B162: IPD014 | C162: =IFERROR(INDEX(Mapping!B:C,MATCH(InUTMC013!B163,Mapping!C:C,0),2),InUTMC013!B163) -> I-CASH | D162: 5062570494 | E162: 2021-12-16 | F162: RE | G162: UTP*2112T00124 | I162: -679.57 | J162: 0 | K162: 0 | L162: -679.57 | M162: 1.0244 | N162: -663.38 | O162: 2021-12-31
A163: N/A | B163: IPD014 | C163: =IFERROR(INDEX(Mapping!B:C,MATCH(InUTMC013!B164,Mapping!C:C,0),2),InUTMC013!B164) -> I-CASH | D163: 5062570494 | E163: 2021-12-16 | F163: RE | G163: UTP*2112T00125 | I163: -119941.45 | J163: 0 | K163: 0 | L163: -119941.45 | M163: 1.0244 | N163: -117084.59 | O163: 2021-12-31
A164: N/A | B164: IPD014 | C164: =IFERROR(INDEX(Mapping!B:C,MATCH(InUTMC013!B165,Mapping!C:C,0),2),InUTMC013!B165) -> I-CASH | D164: 5062570494 | E164: 2021-12-16 | F164: RE | G164: UTP*2112T00126 | I164: -49960.98 | J164: 0 | K164: 0 | L164: -49960.98 | M164: 1.0244 | N164: -48770.97 | O164: 2021-12-31
A165: N/A | B165: IPD014 | C165: =IFERROR(INDEX(Mapping!B:C,MATCH(InUTMC013!B166,Mapping!C:C,0),2),InUTMC013!B166) -> I-CASH | D165: 5062570494 | E165: 2021-12-16 | F165: RE | G165: UTP*2112T00127 | I165: -129949.26 | J165: 0 | K165: 0 | L165: -129949.26 | M165: 1.0244 | N165: -126854.02 | O165: 2021-12-31
A166: N/A | B166: IPD014 | C166: =IFERROR(INDEX(Mapping!B:C,MATCH(InUTMC013!B167,Mapping!C:C,0),2),InUTMC013!B167) -> I-CASH | D166: 5062570494 | E166: 2021-12-16 | F166: RE | G166: UTP*2112T00128 | I166: -1372.42 | J166: 0 | K166: 0 | L166: -1372.42 | M166: 1.0244 | N166: -1339.73 | O166: 2021-12-31
A167: N/A | B167: IPD014 | C167: =IFERROR(INDEX(Mapping!B:C,MATCH(InUTMC013!B168,Mapping!C:C,0),2),InUTMC013!B168) -> I-CASH | D167: 5062570494 | E167: 2021-12-16 | F167: RE | G167: UTP*2112T00129 | I167: -219742.59 | J167: 0 | K167: 0 | L167: -219742.59 | M167: 1.0244 | N167: -214508.58 | O167: 2021-12-31
A168: N/A | B168: IPD014 | C168: =IFERROR(INDEX(Mapping!B:C,MATCH(InUTMC013!B169,Mapping!C:C,0),2),InUTMC013!B169) -> I-CASH | D168: 5062570494 | E168: 2021-12-16 | F168: RE | G168: UTP*2112T00130 | I168: -59900.59 | J168: 0 | K168: 0 | L168: -59900.59 | M168: 1.0244 | N168: -58473.83 | O168: 2021-12-31
A169: N/A | B169: IPD014 | C169: =IFERROR(INDEX(Mapping!B:C,MATCH(InUTMC013!B170,Mapping!C:C,0),2),InUTMC013!B170) -> I-CASH | D169: 5062570494 | E169: 2021-12-16 | F169: RE | G169: UTP*2112T00131 | I169: -1346.94 | J169: 0 | K169: 0 | L169: -1346.94 | M169: 1.0244 | N169: -1314.86 | O169: 2021-12-31
A170: N/A | B170: IPD014 | C170: =IFERROR(INDEX(Mapping!B:C,MATCH(InUTMC013!B171,Mapping!C:C,0),2),InUTMC013!B171) -> I-CASH | D170: 5062570494 | E170: 2021-12-16 | F170: RE | G170: UTP*2112T00132 | I170: -149693.13 | J170: 0 | K170: 0 | L170: -149693.13 | M170: 1.0244 | N170: -146127.62 | O170: 2021-12-31
A171: N/A | B171: IPD014 | C171: =IFERROR(INDEX(Mapping!B:C,MATCH(InUTMC013!B172,Mapping!C:C,0),2),InUTMC013!B172) -> I-CASH | D171: 5062570494 | E171: 2021-12-16 | F171: RE | G171: UTP*2112T00133 | I171: -79828.56 | J171: 0 | K171: 0 | L171: -79828.56 | M171: 1.0244 | N171: -77927.14 | O171: 2021-12-31
A172: N/A | B172: IPD014 | C172: =IFERROR(INDEX(Mapping!B:C,MATCH(InUTMC013!B173,Mapping!C:C,0),2),InUTMC013!B173) -> I-CASH | D172: 5062570494 | E172: 2021-12-16 | F172: RE | G172: UTP*2112T00134 | I172: -2578.61 | J172: 0 | K172: 0 | L172: -2578.61 | M172: 1.0244 | N172: -2517.19 | O172: 2021-12-31
A173: N/A | B173: IPD014 | C173: =IFERROR(INDEX(Mapping!B:C,MATCH(InUTMC013!B174,Mapping!C:C,0),2),InUTMC013!B174) -> I-CASH | D173: 5062570494 | E173: 2021-12-16 | F173: RE | G173: UTP*2112T00135 | I173: -119754.5 | J173: 0 | K173: 0 | L173: -119754.5 | M173: 1.0244 | N173: -116902.09 | O173: 2021-12-31
A174: N/A | B174: IPD014 | C174: =IFERROR(INDEX(Mapping!B:C,MATCH(InUTMC013!B175,Mapping!C:C,0),2),InUTMC013!B175) -> I-CASH | D174: 5062570494 | E174: 2021-12-16 | F174: RE | G174: UTP*2112T00136 | I174: -99775.99 | J174: 0 | K174: 0 | L174: -99775.99 | M174: 1.0244 | N174: -97399.44 | O174: 2021-12-31
A175: N/A | B175: IPD014 | C175: =IFERROR(INDEX(Mapping!B:C,MATCH(InUTMC013!B176,Mapping!C:C,0),2),InUTMC013!B176) -> I-CASH | D175: 5062570494 | E175: 2021-12-16 | F175: RE | G175: UTP*2112T00137 | I175: -73427.59 | J175: 0 | K175: 0 | L175: -73427.59 | M175: 1.0244 | N175: -71678.62 | O175: 2021-12-31
A176: N/A | B176: IPD014 | C176: =IFERROR(INDEX(Mapping!B:C,MATCH(InUTMC013!B177,Mapping!C:C,0),2),InUTMC013!B177) -> I-CASH | D176: 5061243756 | E176: 2021-12-17 | F176: RE | G176: UTP*2112T00144 | I176: -5122 | J176: 0 | K176: 0 | L176: -5122 | M176: 1.0244 | N176: -5000 | O176: 2021-12-31
A177: N/A | B177: IPD014 | C177: =IFERROR(INDEX(Mapping!B:C,MATCH(InUTMC013!B178,Mapping!C:C,0),2),InUTMC013!B178) -> I-INCOME | D177: 5061243756 | E177: 2021-12-17 | F177: RE | G177: UTP*2112T00145 | I177: -40922.82 | J177: 0 | K177: 0 | L177: -40922.82 | M177: 1.1067 | N177: -36977.34 | O177: 2021-12-31
A178: N/A | B178: IPD014 | C178: =IFERROR(INDEX(Mapping!B:C,MATCH(InUTMC013!B179,Mapping!C:C,0),2),InUTMC013!B179) -> I-INCOME | D178: 5061243756 | E178: 2021-12-20 | F178: RE | G178: UTP*2112T00150 | I178: -10021.07 | J178: 0 | K178: 0 | L178: -10021.07 | M178: 1.1073 | N178: -9050 | O178: 2021-12-31
A179: N/A | B179: IPD014 | C179: =IFERROR(INDEX(Mapping!B:C,MATCH(InUTMC013!B180,Mapping!C:C,0),2),InUTMC013!B180) -> I-CASH | D179: 5061243756 | E179: 2021-12-21 | F179: RE | G179: UTP*2112T00153 | I179: -5123 | J179: 0 | K179: 0 | L179: -5123 | M179: 1.0246 | N179: -5000 | O179: 2021-12-31
A180: N/A | B180: IPD014 | C180: =IFERROR(INDEX(Mapping!B:C,MATCH(InUTMC013!B181,Mapping!C:C,0),2),InUTMC013!B181) -> NGSEFB | D180: IFAS | E180: 2021-12-21 | F180: RE | G180: UTP*2112T00159 | I180: -9518.35 | J180: 0 | K180: 0 | L180: -9518.35 | M180: 1.0003 | N180: -9515.5 | O180: 2021-12-31
A181: N/A | B181: IPD014 | C181: =IFERROR(INDEX(Mapping!B:C,MATCH(InUTMC013!B182,Mapping!C:C,0),2),InUTMC013!B182) -> NGSEFB | D181: IFAS | E181: 2021-12-21 | F181: RE | G181: UTP*2112T00160 | I181: -184.49 | J181: 0 | K181: 0 | L181: -184.49 | M181: 1.0003 | N181: -184.43 | O181: 2021-12-31
A182: N/A | B182: IPD014 | C182: =IFERROR(INDEX(Mapping!B:C,MATCH(InUTMC013!B183,Mapping!C:C,0),2),InUTMC013!B183) -> NRBF1 | D182: IFAS | E182: 2021-12-22 | F182: RE | G182: UTP*2112T00161 | I182: -10037.58 | J182: 0 | K182: 0 | L182: -10037.58 | M182: 1.0346 | N182: -9701.89 | O182: 2021-12-31
A183: N/A | B183: IPD014 | C183: =IFERROR(INDEX(Mapping!B:C,MATCH(InUTMC013!B184,Mapping!C:C,0),2),InUTMC013!B184) -> I-INCOME | D183: 5061243756 | E183: 2021-12-23 | F183: RE | G183: UTP*2112T00165 | I183: -501064.37 | J183: 0 | K183: 0 | L183: -501064.37 | M183: 1.1083 | N183: -452101.75 | O183: 2021-12-31
A184: N/A | B184: IPD014 | C184: =IFERROR(INDEX(Mapping!B:C,MATCH(InUTMC013!B185,Mapping!C:C,0),2),InUTMC013!B185) -> I-INCOME | D184: 5061243756 | E184: 2021-12-27 | F184: RE | G184: UTP*2112T00173 | I184: -79956.7 | J184: 0 | K184: 0 | L184: -79956.7 | M184: 1.1079 | N184: -72169.6 | O184: 2021-12-31
A185: N/A | B185: IPD014 | C185: =IFERROR(INDEX(Mapping!B:C,MATCH(InUTMC013!B186,Mapping!C:C,0),2),InUTMC013!B186) -> I-CASH | D185: 5062665883 | E185: 2021-12-28 | F185: RE | G185: UTP*2112T00176 | I185: -4715.85 | J185: 0 | K185: 0 | L185: -4715.85 | M185: 1.0179 | N185: -4632.92 | O185: 2021-12-31
A186: N/A | B186: IPD014 | C186: =IFERROR(INDEX(Mapping!B:C,MATCH(InUTMC013!B187,Mapping!C:C,0),2),InUTMC013!B187) -> I-CASH | D186: 5062665883 | E186: 2021-12-28 | F186: RE | G186: UTP*2112T00177 | I186: -7465.66 | J186: 0 | K186: 0 | L186: -7465.66 | M186: 1.0179 | N186: -7334.37 | O186: 2021-12-31
A187: N/A | B187: IPD014 | C187: =IFERROR(INDEX(Mapping!B:C,MATCH(InUTMC013!B188,Mapping!C:C,0),2),InUTMC013!B188) -> I-CASH | D187: 5062665883 | E187: 2021-12-28 | F187: RE | G187: UTP*2112T00178 | I187: -24870.5 | J187: 0 | K187: 0 | L187: -24870.5 | M187: 1.0179 | N187: -24433.15 | O187: 2021-12-31
A188: N/A | B188: IPD014 | C188: =IFERROR(INDEX(Mapping!B:C,MATCH(InUTMC013!B189,Mapping!C:C,0),2),InUTMC013!B189) -> I-CASH | D188: 5062665883 | E188: 2021-12-28 | F188: RE | G188: UTP*2112T00179 | I188: -2646.09 | J188: 0 | K188: 0 | L188: -2646.09 | M188: 1.0179 | N188: -2599.56 | O188: 2021-12-31
A189: N/A | B189: IPD014 | C189: =IFERROR(INDEX(Mapping!B:C,MATCH(InUTMC013!B190,Mapping!C:C,0),2),InUTMC013!B190) -> I-CASH | D189: 5062665883 | E189: 2021-12-28 | F189: RE | G189: UTP*2112T00180 | I189: -39799.89 | J189: 0 | K189: 0 | L189: -39799.89 | M189: 1.0179 | N189: -39100 | O189: 2021-12-31
A190: N/A | B190: IPD014 | C190: =IFERROR(INDEX(Mapping!B:C,MATCH(InUTMC013!B191,Mapping!C:C,0),2),InUTMC013!B191) -> I-CASH | D190: 5061243756 | E190: 2021-12-28 | F190: RE | G190: UTP*2112T00182 | I190: -43242.36 | J190: 0 | K190: 0 | L190: -43242.36 | M190: 1.0179 | N190: -42481.93 | O190: 2021-12-31
A191: N/A | B191: IPD014 | C191: =IFERROR(INDEX(Mapping!B:C,MATCH(InUTMC013!B192,Mapping!C:C,0),2),InUTMC013!B192) -> I-CASH | D191: 5061243756 | E191: 2021-12-28 | F191: RE | G191: UTP*2112T00183 | I191: -217835.31 | J191: 0 | K191: 0 | L191: -217835.31 | M191: 1.0179 | N191: -214004.63 | O191: 2021-12-31
A192: N/A | B192: IPD014 | C192: =IFERROR(INDEX(Mapping!B:C,MATCH(InUTMC013!B193,Mapping!C:C,0),2),InUTMC013!B193) -> I-INCOME | D192: 5061243756 | E192: 2021-12-28 | F192: RE | G192: UTP*2112T00185 | I192: -49282.82 | J192: 0 | K192: 0 | L192: -49282.82 | M192: 1.0926 | N192: -45106 | O192: 2021-12-31
A193: N/A | B193: IPD014 | C193: =IFERROR(INDEX(Mapping!B:C,MATCH(InUTMC013!B194,Mapping!C:C,0),2),InUTMC013!B194) -> I-INCOME | D193: 5061243756 | E193: 2021-12-30 | F193: RE | G193: UTP*2112T00258 | I193: -29650.11 | J193: 0 | K193: 0 | L193: -29650.11 | M193: 1.0941 | N193: -27100 | O193: 2021-12-31
A194: N/A | B194: IPD014 | C194: =IFERROR(INDEX(Mapping!B:C,MATCH(InUTMC013!B195,Mapping!C:C,0),2),InUTMC013!B195) -> NGSEFB | D194: 5182355271 | E194: 2021-12-30 | F194: RE | G194: UTP*2112T00261 | I194: -13639.11 | J194: 0 | K194: 0 | L194: -13639.11 | M194: 1.029 | N194: -13254.72 | O194: 2021-12-31
B195: IPD014 | C195: =IFERROR(INDEX(Mapping!B:C,MATCH(InUTMC013!B196,Mapping!C:C,0),2),InUTMC013!B196) -> NGSEFB | D195: 5182877123 | E195: 2021-12-31 | F195: RE | G195: UTP*2112T00263 | I195: -38708.15 | J195: 0 | K195: 0 | L195: -38708.15 | M195: 1.0222 | N195: -37867.49 | O195: 2021-12-31
A196: N/A | B196: IPD014 | C196: =IFERROR(INDEX(Mapping!B:C,MATCH(InUTMC013!B197,Mapping!C:C,0),2),InUTMC013!B197) -> NGSSGFB | D196: IFAS | E196: 2021-12-31 | F196: RE | G196: UTP*2112T00264 | I196: -4981.35 | J196: 0 | K196: 0 | L196: -4981.35 | M196: 1.246 | N196: -3997.87 | O196: 2021-12-31
A197: N/A | B197: IPD014 | C197: =IFERROR(INDEX(Mapping!B:C,MATCH(InUTMC013!B198,Mapping!C:C,0),2),InUTMC013!B198) -> NGSEFB | D197: 5182355271 | E197: 2021-12-31 | F197: RE | G197: UTP*2112T00266 | I197: -1022.2 | J197: 0 | K197: 0 | L197: -1022.2 | M197: 1.0222 | N197: -1000 | O197: 2021-12-31

Sheet UTMC014

Sheet UTMC015
B1: IPD014 | C1: =IFERROR(INDEX(Mapping!B:C,MATCH(InUTMC015!B2,Mapping!C:C,0),2),InUTMC015!B2) -> I-CASH | D1: 5062821432 | E1: 5000000 | F1: 4929376.11 | G1: 5042580.87 | H1: 5018104.88 | I1: 2021-12-31
B2: IPD014 | C2: =IFERROR(INDEX(Mapping!B:C,MATCH(InUTMC015!B3,Mapping!C:C,0),2),InUTMC015!B3) -> I-CASH | D2: 5062883074 | E2: 500000 | F2: 494241.03 | G2: 504905.61 | H2: 503137.3685 | I2: 2021-12-31
B3: IPD014 | C3: =IFERROR(INDEX(Mapping!B:C,MATCH(InUTMC015!B4,Mapping!C:C,0),2),InUTMC015!B4) -> I-INCOME | D3: 5062785551 | E3: 5000000 | F3: 4643739.34 | G3: 5193457.49 | H3: 5081179.586 | I3: 2021-12-31
B4: IPD014 | C4: =IFERROR(INDEX(Mapping!B:C,MATCH(InUTMC015!B5,Mapping!C:C,0),2),InUTMC015!B5) -> I-INCOME | D4: 5062854826 | E4: 55000000 | F4: 50609666.75 | G4: 56130106.49 | H4: 55377097.36 | I4: 2021-12-31
B5: IPD014 | C5: =IFERROR(INDEX(Mapping!B:C,MATCH(InUTMC015!B6,Mapping!C:C,0),2),InUTMC015!B6) -> I-INCOME2H | D5: 5182862353 | E5: 1000 | F5: 1000.24 | G5: 1000.24 | H5: 1014.1433 | I5: 2021-12-31
B6: IPD014 | C6: =IFERROR(INDEX(Mapping!B:C,MATCH(InUTMC015!B7,Mapping!C:C,0),2),InUTMC015!B7) -> I-INCOME2I | D6: 5182862353 | E6: 1000 | F6: 1001 | G6: 1001 | H6: 998.8979 | I6: 2021-12-31
B7: IPD014 | C7: =IFERROR(INDEX(Mapping!B:C,MATCH(InUTMC015!B8,Mapping!C:C,0),2),InUTMC015!B8) -> I-INCOME2I | D7: 5182877605 | E7: 25000000 | F7: 25010056.62 | G7: 25024985.01 | H7: 24957535.5 | I7: 2021-12-31
B8: IPD014 | C8: =IFERROR(INDEX(Mapping!B:C,MATCH(InUTMC015!B9,Mapping!C:C,0),2),InUTMC015!B9) -> I-INCOME2I | D8: 5182877616 | E8: 5000000 | F8: 5002011.32 | G8: 5004997 | H8: 4991507.096 | I8: 2021-12-31
B9: IPD014 | C9: =IFERROR(INDEX(Mapping!B:C,MATCH(InUTMC015!B10,Mapping!C:C,0),2),InUTMC015!B10) -> I-INCOME2R | D9: 5182862353 | E9: 1000 | F9: 1001 | G9: 1001 | H9: 998.3974 | I9: 2021-12-31
B10: IPD014 | C10: =IFERROR(INDEX(Mapping!B:C,MATCH(InUTMC015!B11,Mapping!C:C,0),2),InUTMC015!B11) -> I-INCOME2S | D10: 5182862353 | E10: 1000 | F10: 1001 | G10: 1001 | H10: 999.8989 | I10: 2021-12-31
B11: IPD014 | C11: =IFERROR(INDEX(Mapping!B:C,MATCH(InUTMC015!B12,Mapping!C:C,0),2),InUTMC015!B12) -> NGSEFA | D11: 5182862353 | E11: 1000 | F11: 1000 | G11: 1000 | H11: 1032.8 | I11: 2021-12-31
B12: IPD014 | C12: =IFERROR(INDEX(Mapping!B:C,MATCH(InUTMC015!B13,Mapping!C:C,0),2),InUTMC015!B13) -> NGSEFB | D12: 5182877123 | E12: 9259340.44 | F12: 9263103.2 | G12: 9260639.3 | H12: 9468744.088 | I12: 2021-12-31
B13: IPD014 | C13: =IFERROR(INDEX(Mapping!B:C,MATCH(InUTMC015!B14,Mapping!C:C,0),2),InUTMC015!B14) -> NRBF1 | D13: 5182823996 | E13: 277454.94 | F13: 269811.99 | G13: 281736.83 | H13: 279498.2405 | I13: 2021-12-31
A14: N/A | B14: IPD014 | C14: =IFERROR(INDEX(Mapping!B:C,MATCH(InUTMC015!B15,Mapping!C:C,0),2),InUTMC015!B15) -> I-CASH | D14: 3300000411 | E14: -829.43 | F14: 0 | G14: 0 | H14: 0 | I14: 2021-12-31
A15: N/A | B15: IPD014 | C15: =IFERROR(INDEX(Mapping!B:C,MATCH(InUTMC015!B16,Mapping!C:C,0),2),InUTMC015!B16) -> I-CASH | D15: 3300000613 | E15: -1463181.74 | F15: 0 | G15: 0 | H15: 0 | I15: 2021-12-31
A16: N/A | B16: IPD014 | C16: =IFERROR(INDEX(Mapping!B:C,MATCH(InUTMC015!B17,Mapping!C:C,0),2),InUTMC015!B17) -> I-CASH | D16: 3300001012 | E16: 3977145.47 | F16: 3945977.71 | G16: 4060856.91 | H16: 4017005.309 | I16: 2021-12-31
A17: N/A | B17: IPD014 | C17: =IFERROR(INDEX(Mapping!B:C,MATCH(InUTMC015!B18,Mapping!C:C,0),2),InUTMC015!B18) -> I-CASH | D17: 3300001029 | E17: 142658.77 | F17: 242010.64 | G17: 250789.4 | H17: 246366.8314 | I17: 2021-12-31
A18: N/A | B18: IPD014 | C18: =IFERROR(INDEX(Mapping!B:C,MATCH(InUTMC015!B19,Mapping!C:C,0),2),InUTMC015!B19) -> I-CASH | D18: 3300001214 | E18: -114157.95 | F18: 0 | G18: 0 | H18: 0 | I18: 2021-12-31
A19: N/A | B19: IPD014 | C19: =IFERROR(INDEX(Mapping!B:C,MATCH(InUTMC015!B20,Mapping!C:C,0),2),InUTMC015!B20) -> I-CASH | D19: 3300001221 | E19: -2656199.14 | F19: 20341.33 | G19: 21065.3 | H19: 20707.4739 | I19: 2021-12-31
A20: N/A | B20: IPD014 | C20: =IFERROR(INDEX(Mapping!B:C,MATCH(InUTMC015!B21,Mapping!C:C,0),2),InUTMC015!B21) -> I-CASH | D20: 3300001423 | E20: -309046.47 | F20: 10169.68 | G20: 10532.64 | H20: 10352.7343 | I20: 2021-12-31
A21: N/A | B21: IPD014 | C21: =IFERROR(INDEX(Mapping!B:C,MATCH(InUTMC015!B22,Mapping!C:C,0),2),InUTMC015!B22) -> I-CASH | D21: 3300001625 | E21: 895619.99 | F21: 1814326.93 | G21: 1873548.12 | H21: 1846984.815 | I21: 2021-12-31
A22: N/A | B22: IPD014 | C22: =IFERROR(INDEX(Mapping!B:C,MATCH(InUTMC015!B23,Mapping!C:C,0),2),InUTMC015!B23) -> I-CASH | D22: 3300001827 | E22: 69974241.02 | F22: 68476338.99 | G22: 70177177.18 | H22: 69708913.09 | I22: 2021-12-31
A23: N/A | B23: IPD014 | C23: =IFERROR(INDEX(Mapping!B:C,MATCH(InUTMC015!B24,Mapping!C:C,0),2),InUTMC015!B24) -> I-CASH | D23: 3300002428 | E23: 45000000 | F23: 50783862.85 | G23: 52038581.56 | H23: 51697972.38 | I23: 2021-12-31
A24: N/A | B24: IPD014 | C24: =IFERROR(INDEX(Mapping!B:C,MATCH(InUTMC015!B25,Mapping!C:C,0),2),InUTMC015!B25) -> I-CASH | D24: 5061234342 | E24: 1384500 | F24: 1679488.69 | G24: 1719324.99 | H24: 1709719.486 | I24: 2021-12-31
A25: N/A | B25: IPD014 | C25: =IFERROR(INDEX(Mapping!B:C,MATCH(InUTMC015!B26,Mapping!C:C,0),2),InUTMC015!B26) -> I-CASH | D25: 5061243756 | E25: 8513575.642 | F25: 10216968.75 | G25: 10461451.44 | H25: 10400874.18 | I25: 2021-12-31
A26: N/A | B26: IPD014 | C26: =IFERROR(INDEX(Mapping!B:C,MATCH(InUTMC015!B27,Mapping!C:C,0),2),InUTMC015!B27) -> I-CASH | D26: 5061250355 | E26: -549515.69 | F26: 0 | G26: 0.04 | H26: 0 | I26: 2021-12-31
A27: N/A | B27: IPD014 | C27: =IFERROR(INDEX(Mapping!B:C,MATCH(InUTMC015!B28,Mapping!C:C,0),2),InUTMC015!B28) -> I-CASH | D27: 5061258922 | E27: 70430422.21 | F27: 72887520.19 | G27: 74626727.91 | H27: 74199495.55 | I27: 2021-12-31
A28: N/A | B28: IPD014 | C28: =IFERROR(INDEX(Mapping!B:C,MATCH(InUTMC015!B29,Mapping!C:C,0),2),InUTMC015!B29) -> I-CASH | D28: 5061302641 | E28: 2349750 | F28: 3066039.57 | G28: 3136655.19 | H28: 3121228.282 | I28: 2021-12-31
A29: N/A | B29: IPD014 | C29: =IFERROR(INDEX(Mapping!B:C,MATCH(InUTMC015!B30,Mapping!C:C,0),2),InUTMC015!B30) -> I-CASH | D29: 5061356225 | E29: 2000000 | F29: 2284069.45 | G29: 2351566.9 | H29: 2325182.7 | I29: 2021-12-31
A30: N/A | B30: IPD014 | C30: =IFERROR(INDEX(Mapping!B:C,MATCH(InUTMC015!B31,Mapping!C:C,0),2),InUTMC015!B31) -> I-CASH | D30: 5061447572 | E30: -43296.36 | F30: 0 | G30: 0 | H30: 0 | I30: 2021-12-31
A31: N/A | B31: IPD014 | C31: =IFERROR(INDEX(Mapping!B:C,MATCH(InUTMC015!B32,Mapping!C:C,0),2),InUTMC015!B32) -> I-CASH | D31: 5061467536 | E31: 11654854.94 | F31: 21947838.2 | G31: 22512772.05 | H31: 22342899.29 | I31: 2021-12-31
A32: N/A | B32: IPD014 | C32: =IFERROR(INDEX(Mapping!B:C,MATCH(InUTMC015!B33,Mapping!C:C,0),2),InUTMC015!B33) -> I-CASH | D32: 5061539171 | E32: 24892.01 | F32: 29849.4 | G32: 30642.88 | H32: 30386.6893 | I32: 2021-12-31
A33: N/A | B33: IPD014 | C33: =IFERROR(INDEX(Mapping!B:C,MATCH(InUTMC015!B34,Mapping!C:C,0),2),InUTMC015!B34) -> I-CASH | D33: 5061725524 | E33: -1751743.52 | F33: 0 | G33: 0 | H33: 0 | I33: 2021-12-31
A34: N/A | B34: IPD014 | C34: =IFERROR(INDEX(Mapping!B:C,MATCH(InUTMC015!B35,Mapping!C:C,0),2),InUTMC015!B35) -> I-CASH | D34: 5061725595 | E34: 17410894.43 | F34: 19087342.26 | G34: 19549789.98 | H34: 19430914.42 | I34: 2021-12-31
A35: N/A | B35: IPD014 | C35: =IFERROR(INDEX(Mapping!B:C,MATCH(InUTMC015!B36,Mapping!C:C,0),2),InUTMC015!B36) -> I-CASH | D35: 5061875552 | E35: -36535.71 | F35: 0 | G35: 0 | H35: 0 | I35: 2021-12-31
A36: N/A | B36: IPD014 | C36: =IFERROR(INDEX(Mapping!B:C,MATCH(InUTMC015!B37,Mapping!C:C,0),2),InUTMC015!B37) -> I-CASH | D36: 5062424342 | E36: 500000 | F36: 515106.07 | G36: 533184.4 | H36: 524377.9793 | I36: 2021-12-31
A37: N/A | B37: IPD014 | C37: =IFERROR(INDEX(Mapping!B:C,MATCH(InUTMC015!B38,Mapping!C:C,0),2),InUTMC015!B38) -> I-CASH | D37: 5062512032 | E37: -58080.73 | F37: 0 | G37: 0 | H37: 0 | I37: 2021-12-31
A38: N/A | B38: IPD014 | C38: =IFERROR(INDEX(Mapping!B:C,MATCH(InUTMC015!B39,Mapping!C:C,0),2),InUTMC015!B39) -> I-CASH | D38: 5062527424 | E38: 6110.9854 | F38: 9856.82 | G38: 10085.13 | H38: 10034.2428 | I38: 2021-12-31
A39: N/A | B39: IPD014 | C39: =IFERROR(INDEX(Mapping!B:C,MATCH(InUTMC015!B40,Mapping!C:C,0),2),InUTMC015!B40) -> I-CASH | D39: 5062530334 | E39: 5000000 | F39: 0 | G39: 0 | H39: 0 | I39: 2021-12-31
A40: N/A | B40: IPD014 | C40: =IFERROR(INDEX(Mapping!B:C,MATCH(InUTMC015!B41,Mapping!C:C,0),2),InUTMC015!B41) -> I-CASH | D40: 5062536565 | E40: 488450 | F40: 508290.94 | G40: 526936.16 | H40: 517440.1769 | I40: 2021-12-31
A41: N/A | B41: IPD014 | C41: =IFERROR(INDEX(Mapping!B:C,MATCH(InUTMC015!B42,Mapping!C:C,0),2),InUTMC015!B42) -> I-CASH | D41: 5062547164 | E41: 5407406.78 | F41: 494434.6 | G41: 504907.52 | H41: 503334.4228 | I41: 2021-12-31
A42: N/A | B42: IPD014 | C42: =IFERROR(INDEX(Mapping!B:C,MATCH(InUTMC015!B43,Mapping!C:C,0),2),InUTMC015!B43) -> I-CASH | D42: 5062565155 | E42: 288284.15 | F42: 331298.82 | G42: 339792.64 | H42: 337262.1988 | I42: 2021-12-31
A43: N/A | B43: IPD014 | C43: =IFERROR(INDEX(Mapping!B:C,MATCH(InUTMC015!B44,Mapping!C:C,0),2),InUTMC015!B44) -> I-CASH | D43: 5062565193 | E43: 7232000 | F43: 7234696.94 | G43: 7421489.39 | H43: 7364921.485 | I43: 2021-12-31
A44: N/A | B44: IPD014 | C44: =IFERROR(INDEX(Mapping!B:C,MATCH(InUTMC015!B45,Mapping!C:C,0),2),InUTMC015!B45) -> I-CASH | D44: 5062570461 | E44: 2478581.45 | F44: 2487922.57 | G44: 2549504.13 | H44: 2532705.176 | I44: 2021-12-31
A45: N/A | B45: IPD014 | C45: =IFERROR(INDEX(Mapping!B:C,MATCH(InUTMC015!B46,Mapping!C:C,0),2),InUTMC015!B46) -> I-CASH | D45: 5062570494 | E45: 2098587.42 | F45: 2120517.77 | G45: 2170416.21 | H45: 2158687.09 | I45: 2021-12-31
A46: N/A | B46: IPD014 | C46: =IFERROR(INDEX(Mapping!B:C,MATCH(InUTMC015!B47,Mapping!C:C,0),2),InUTMC015!B47) -> I-CASH | D46: 5062582856 | E46: -18421.87 | F46: 0 | G46: 0 | H46: 0 | I46: 2021-12-31
A47: N/A | B47: IPD014 | C47: =IFERROR(INDEX(Mapping!B:C,MATCH(InUTMC015!B48,Mapping!C:C,0),2),InUTMC015!B48) -> I-CASH | D47: 5062586465 | E47: 91320 | F47: 101536.95 | G47: 103938 | H47: 103364.6151 | I47: 2021-12-31
A48: N/A | B48: IPD014 | C48: =IFERROR(INDEX(Mapping!B:C,MATCH(InUTMC015!B49,Mapping!C:C,0),2),InUTMC015!B49) -> I-CASH | D48: 5062598505 | E48: -11137.37 | F48: 0 | G48: 0 | H48: 0 | I48: 2021-12-31
A49: N/A | B49: IPD014 | C49: =IFERROR(INDEX(Mapping!B:C,MATCH(InUTMC015!B50,Mapping!C:C,0),2),InUTMC015!B50) -> I-CASH | D49: 5062598554 | E49: 7000000 | F49: 7039258.85 | G49: 7202243.39 | H49: 7165965.509 | I49: 2021-12-31
A50: N/A | B50: IPD014 | C50: =IFERROR(INDEX(Mapping!B:C,MATCH(InUTMC015!B51,Mapping!C:C,0),2),InUTMC015!B51) -> I-CASH | D50: 5062628271 | E50: -1016472.06 | F50: 0 | G50: 0 | H50: 0 | I50: 2021-12-31
A51: N/A | B51: IPD014 | C51: =IFERROR(INDEX(Mapping!B:C,MATCH(InUTMC015!B52,Mapping!C:C,0),2),InUTMC015!B52) -> I-CASH | D51: 5062661481 | E51: 5000000 | F51: 4986698.5 | G51: 5111691.17 | H51: 5076459.073 | I51: 2021-12-31
A52: N/A | B52: IPD014 | C52: =IFERROR(INDEX(Mapping!B:C,MATCH(InUTMC015!B53,Mapping!C:C,0),2),InUTMC015!B53) -> I-CASH | D52: 5062665883 | E52: 240622.2103 | F52: 239714.59 | G52: 245548.43 | H52: 244029.4527 | I52: 2021-12-31
A53: N/A | B53: IPD014 | C53: =IFERROR(INDEX(Mapping!B:C,MATCH(InUTMC015!B54,Mapping!C:C,0),2),InUTMC015!B54) -> I-CASH | D53: 5062756683 | E53: 8100000 | F53: 8061134.9 | G53: 8265245.23 | H53: 8206235.328 | I53: 2021-12-31
A54: N/A | B54: IPD014 | C54: =IFERROR(INDEX(Mapping!B:C,MATCH(InUTMC015!B55,Mapping!C:C,0),2),InUTMC015!B55) -> I-CASH | D54: 5062775682 | E54: 3000000 | F54: 0 | G54: 0 | H54: 0 | I54: 2021-12-31
A55: N/A | B55: IPD014 | C55: =IFERROR(INDEX(Mapping!B:C,MATCH(InUTMC015!B56,Mapping!C:C,0),2),InUTMC015!B56) -> I-CASH | D55: 5062775751 | E55: 5000000 | F55: 0 | G55: 0 | H55: 0 | I55: 2021-12-31
A56: N/A | B56: IPD014 | C56: =IFERROR(INDEX(Mapping!B:C,MATCH(InUTMC015!B57,Mapping!C:C,0),2),InUTMC015!B57) -> I-CASH | D56: NIAM00001 | E56: -49500 | F56: 0 | G56: 0 | H56: 0 | I56: 2021-12-31
A57: N/A | B57: IPD014 | C57: =IFERROR(INDEX(Mapping!B:C,MATCH(InUTMC015!B58,Mapping!C:C,0),2),InUTMC015!B58) -> I-CASH | D57: NIAM00002 | E57: 5000000 | F57: 6533218.4 | G57: 6567359.46 | H57: 6650816.331 | I57: 2021-12-31
A58: N/A | B58: IPD014 | C58: =IFERROR(INDEX(Mapping!B:C,MATCH(InUTMC015!B59,Mapping!C:C,0),2),InUTMC015!B59) -> I-CASH | D58: NIAM00004 | E58: -38790.31 | F58: 0 | G58: 0 | H58: 0 | I58: 2021-12-31
A59: N/A | B59: IPD014 | C59: =IFERROR(INDEX(Mapping!B:C,MATCH(InUTMC015!B60,Mapping!C:C,0),2),InUTMC015!B60) -> I-CASH | D59: NIAM00005 | E59: -5374407.64 | F59: 0 | G59: -0.02 | H59: 0 | I59: 2021-12-31
A60: N/A | B60: IPD014 | C60: =IFERROR(INDEX(Mapping!B:C,MATCH(InUTMC015!B61,Mapping!C:C,0),2),InUTMC015!B61) -> I-INCOME | D60: 3300000815 | E60: -1873728.07 | F60: 0 | G60: -0.02 | H60: 0 | I60: 2021-12-31
A61: N/A | B61: IPD014 | C61: =IFERROR(INDEX(Mapping!B:C,MATCH(InUTMC015!B62,Mapping!C:C,0),2),InUTMC015!B62) -> I-INCOME | D61: 5061243756 | E61: 31146159.45 | F61: 30969831.65 | G61: 34906188.62 | H61: 33887189.79 | I61: 2021-12-31
A62: N/A | B62: IPD014 | C62: =IFERROR(INDEX(Mapping!B:C,MATCH(InUTMC015!B63,Mapping!C:C,0),2),InUTMC015!B63) -> I-INCOME | D62: 5061407194 | E62: 450000000 | F62: 416634464.3 | G62: 450000000 | H62: 455881430.8 | I62: 2021-12-31
A63: N/A | B63: IPD014 | C63: =IFERROR(INDEX(Mapping!B:C,MATCH(InUTMC015!B64,Mapping!C:C,0),2),InUTMC015!B64) -> I-INCOME | D63: 5061433296 | E63: -6980.87 | F63: 0 | G63: 0 | H63: 0 | I63: 2021-12-31
A64: N/A | B64: IPD014 | C64: =IFERROR(INDEX(Mapping!B:C,MATCH(InUTMC015!B65,Mapping!C:C,0),2),InUTMC015!B65) -> I-INCOME | D64: 5061539171 | E64: 315000 | F64: 330031.34 | G64: 358004.06 | H64: 361120.2923 | I64: 2021-12-31
A65: N/A | B65: IPD014 | C65: =IFERROR(INDEX(Mapping!B:C,MATCH(InUTMC015!B66,Mapping!C:C,0),2),InUTMC015!B66) -> I-INCOME | D65: 5061584432 | E65: -74421.57 | F65: 0 | G65: 0.01 | H65: 0 | I65: 2021-12-31
A66: N/A | B66: IPD014 | C66: =IFERROR(INDEX(Mapping!B:C,MATCH(InUTMC015!B67,Mapping!C:C,0),2),InUTMC015!B67) -> I-INCOME | D66: 5062354081 | E66: -25166.5656 | F66: 372944.11 | G66: 415965.03 | H66: 408075.4453 | I66: 2021-12-31
A67: N/A | B67: IPD014 | C67: =IFERROR(INDEX(Mapping!B:C,MATCH(InUTMC015!B68,Mapping!C:C,0),2),InUTMC015!B68) -> I-INCOME | D67: 5062357995 | E67: 100000 | F67: 103771.39 | G67: 113641.56 | H67: 113546.6549 | I67: 2021-12-31
A68: N/A | B68: IPD014 | C68: =IFERROR(INDEX(Mapping!B:C,MATCH(InUTMC015!B69,Mapping!C:C,0),2),InUTMC015!B69) -> I-INCOME | D68: 5062429334 | E68: 4850000 | F68: 4811817.65 | G68: 5388516.65 | H68: 5265090.873 | I68: 2021-12-31
A69: N/A | B69: IPD014 | C69: =IFERROR(INDEX(Mapping!B:C,MATCH(InUTMC015!B70,Mapping!C:C,0),2),InUTMC015!B70) -> I-INCOME | D69: 5062527424 | E69: 3889266.686 | F69: 2207847.1 | G69: 2504493.58 | H69: 2415826.296 | I69: 2021-12-31
A70: N/A | B70: IPD014 | C70: =IFERROR(INDEX(Mapping!B:C,MATCH(InUTMC015!B71,Mapping!C:C,0),2),InUTMC015!B71) -> I-INCOME | D70: 5062530334 | E70: 9033468.81 | F70: 12863018.71 | G70: 14695702.78 | H70: 14074715.07 | I70: 2021-12-31
A71: N/A | B71: IPD014 | C71: =IFERROR(INDEX(Mapping!B:C,MATCH(InUTMC015!B72,Mapping!C:C,0),2),InUTMC015!B72) -> I-INCOME | D71: 5062547164 | E71: 2195135.99 | F71: 6324177.77 | G71: 6970485.02 | H71: 6919915.316 | I71: 2021-12-31
A72: N/A | B72: IPD014 | C72: =IFERROR(INDEX(Mapping!B:C,MATCH(InUTMC015!B73,Mapping!C:C,0),2),InUTMC015!B73) -> I-INCOME | D72: 5062573544 | E72: 4497209.42 | F72: 4143832.27 | G72: 4735145.87 | H72: 4534181.27 | I72: 2021-12-31
A73: N/A | B73: IPD014 | C73: =IFERROR(INDEX(Mapping!B:C,MATCH(InUTMC015!B74,Mapping!C:C,0),2),InUTMC015!B74) -> I-INCOME | D73: 5062579115 | E73: 9010.12 | F73: 0 | G73: 0 | H73: 0 | I73: 2021-12-31
A74: N/A | B74: IPD014 | C74: =IFERROR(INDEX(Mapping!B:C,MATCH(InUTMC015!B75,Mapping!C:C,0),2),InUTMC015!B75) -> I-INCOME | D74: 5062582845 | E74: 5246744.13 | F74: 4834470.81 | G74: 5524336.66 | H74: 5289877.96 | I74: 2021-12-31
A75: N/A | B75: IPD014 | C75: =IFERROR(INDEX(Mapping!B:C,MATCH(InUTMC015!B76,Mapping!C:C,0),2),InUTMC015!B76) -> I-INCOME | D75: 5062586465 | E75: 100000 | F75: 92141.45 | G75: 105274.63 | H75: 100821.1745 | I75: 2021-12-31
A76: N/A | B76: IPD014 | C76: =IFERROR(INDEX(Mapping!B:C,MATCH(InUTMC015!B77,Mapping!C:C,0),2),InUTMC015!B77) -> I-INCOME | D76: 5062628271 | E76: 1000000 | F76: 0 | G76: 0 | H76: 0 | I76: 2021-12-31
A77: N/A | B77: IPD014 | C77: =IFERROR(INDEX(Mapping!B:C,MATCH(InUTMC015!B78,Mapping!C:C,0),2),InUTMC015!B78) -> I-INCOME | D77: 5062665883 | E77: 512749.6964 | F77: 447377.28 | G77: 503707.67 | H77: 489520.2196 | I77: 2021-12-31
A78: N/A | B78: IPD014 | C78: =IFERROR(INDEX(Mapping!B:C,MATCH(InUTMC015!B79,Mapping!C:C,0),2),InUTMC015!B79) -> I-INCOME | D78: 5062688995 | E78: 2646785.49 | F78: 2449006.87 | G78: 2748810.76 | H78: 2679703.317 | I78: 2021-12-31
A79: N/A | B79: IPD014 | C79: =IFERROR(INDEX(Mapping!B:C,MATCH(InUTMC015!B80,Mapping!C:C,0),2),InUTMC015!B80) -> I-INCOME | D79: 5062700161 | E79: 2000000 | F79: 1855118.1 | G79: 2100392.08 | H79: 2029870.225 | I79: 2021-12-31
A80: N/A | B80: IPD014 | C80: =IFERROR(INDEX(Mapping!B:C,MATCH(InUTMC015!B81,Mapping!C:C,0),2),InUTMC015!B81) -> I-INCOME | D80: 5062717531 | E80: 1161141.03 | F80: 1074567.13 | G80: 1205907.34 | H80: 1175791.354 | I80: 2021-12-31
A81: N/A | B81: IPD014 | C81: =IFERROR(INDEX(Mapping!B:C,MATCH(InUTMC015!B82,Mapping!C:C,0),2),InUTMC015!B82) -> I-INCOME | D81: 5062746721 | E81: 53000000 | F81: 48866240.99 | G81: 54977900.08 | H81: 53469440.89 | I81: 2021-12-31
A82: N/A | B82: IPD014 | C82: =IFERROR(INDEX(Mapping!B:C,MATCH(InUTMC015!B83,Mapping!C:C,0),2),InUTMC015!B83) -> I-INCOME | D82: 5062768676 | E82: 60000000 | F82: 55241209.26 | G82: 62301340.6 | H82: 60444931.17 | I82: 2021-12-31
A83: N/A | B83: IPD014 | C83: =IFERROR(INDEX(Mapping!B:C,MATCH(InUTMC015!B84,Mapping!C:C,0),2),InUTMC015!B84) -> I-INCOME | D83: 5062768692 | E83: 20000000 | F83: 18415367.4 | G83: 20767181.48 | H83: 20150095.01 | I83: 2021-12-31
A84: N/A | B84: IPD014 | C84: =IFERROR(INDEX(Mapping!B:C,MATCH(InUTMC015!B85,Mapping!C:C,0),2),InUTMC015!B85) -> I-INCOME | D84: 5062775682 | E84: 1000000 | F84: 3733189.43 | G84: 4137042.08 | H84: 4084855.874 | I84: 2021-12-31
A85: N/A | B85: IPD014 | C85: =IFERROR(INDEX(Mapping!B:C,MATCH(InUTMC015!B86,Mapping!C:C,0),2),InUTMC015!B86) -> I-INCOME | D85: 5062775751 | E85: 3500000 | F85: 7904178.86 | G85: 8748631.7 | H85: 8648752.509 | I85: 2021-12-31
A86: N/A | B86: IPD014 | C86: =IFERROR(INDEX(Mapping!B:C,MATCH(InUTMC015!B87,Mapping!C:C,0),2),InUTMC015!B87) -> I-INCOME | D86: NIAM00001 | E86: -170000 | F86: 0 | G86: 0 | H86: 0 | I86: 2021-12-31
A87: N/A | B87: IPD014 | C87: =IFERROR(INDEX(Mapping!B:C,MATCH(InUTMC015!B88,Mapping!C:C,0),2),InUTMC015!B88) -> I-INCOME | D87: NIAM00003 | E87: -123000 | F87: 0 | G87: 0 | H87: 0 | I87: 2021-12-31
A88: N/A | B88: IPD014 | C88: =IFERROR(INDEX(Mapping!B:C,MATCH(InUTMC015!B89,Mapping!C:C,0),2),InUTMC015!B89) -> I-INCOME | D88: NIAM00005 | E88: -2501615.7 | F88: 0 | G88: 0.01 | H88: 0 | I88: 2021-12-31
A89: N/A | B89: IPD014 | C89: =IFERROR(INDEX(Mapping!B:C,MATCH(InUTMC015!B90,Mapping!C:C,0),2),InUTMC015!B90) -> I-INCOME2R | D89: 5182355271 | E89: 200000 | F89: 200574.65 | G89: 200000 | H89: 200053.1548 | I89: 2021-12-31
A90: N/A | B90: IPD014 | C90: =IFERROR(INDEX(Mapping!B:C,MATCH(InUTMC015!B91,Mapping!C:C,0),2),InUTMC015!B91) -> I-INCOME2R | D90: 5182894224 | E90: 1015000 | F90: 1013585.45 | G90: 1016012.57 | H90: 1010950.128 | I90: 2021-12-31
A91: N/A | B91: IPD014 | C91: =IFERROR(INDEX(Mapping!B:C,MATCH(InUTMC015!B92,Mapping!C:C,0),2),InUTMC015!B92) -> I-INCOME2R | D91: 5182908303 | E91: 800000 | F91: 803937.77 | G91: 800803.13 | H91: 801847.5318 | I91: 2021-12-31
A92: N/A | B92: IPD014 | C92: =IFERROR(INDEX(Mapping!B:C,MATCH(InUTMC015!B93,Mapping!C:C,0),2),InUTMC015!B93) -> I-INCOME2S | D92: 5182910265 | E92: 40000000 | F92: 40192926.05 | G92: 40000000 | H92: 40148713.83 | I92: 2021-12-31
A93: N/A | B93: IPD014 | C93: =IFERROR(INDEX(Mapping!B:C,MATCH(InUTMC015!B94,Mapping!C:C,0),2),InUTMC015!B94) -> NGDBFM | D93: 5182549962 | E93: 10000 | F93: 10000 | G93: 10000 | H93: 10179 | I93: 2021-12-31
A94: N/A | B94: IPD014 | C94: =IFERROR(INDEX(Mapping!B:C,MATCH(InUTMC015!B95,Mapping!C:C,0),2),InUTMC015!B95) -> NGDBFM | D94: 5182579233 | E94: 0 | F94: 513233.62 | G94: 505483.79 | H94: 522420.5018 | I94: 2021-12-31
A95: N/A | B95: IPD014 | C95: =IFERROR(INDEX(Mapping!B:C,MATCH(InUTMC015!B96,Mapping!C:C,0),2),InUTMC015!B96) -> NGDBFM | D95: 5182769431 | E95: 25789820.27 | F95: 25199165.87 | G95: 25526122.73 | H95: 25650230.94 | I95: 2021-12-31
A96: N/A | B96: IPD014 | C96: =IFERROR(INDEX(Mapping!B:C,MATCH(InUTMC015!B97,Mapping!C:C,0),2),InUTMC015!B97) -> NGDBFM | D96: IFAS | E96: 190017.68 | F96: 180884.61 | G96: 184595.96 | H96: 184122.4445 | I96: 2021-12-31
A97: N/A | B97: IPD014 | C97: =IFERROR(INDEX(Mapping!B:C,MATCH(InUTMC015!B98,Mapping!C:C,0),2),InUTMC015!B98) -> NGDBFU | D97: 5182769431 | E97: 457936.56 | F97: 444459.43 | G97: 446103.93 | H97: 448859.5784 | I97: 2021-12-31
A98: N/A | B98: IPD014 | C98: =IFERROR(INDEX(Mapping!B:C,MATCH(InUTMC015!B99,Mapping!C:C,0),2),InUTMC015!B99) -> NGHM | D98: 5182355271 | E98: 16000 | F98: 10058.39 | G98: 16000 | H98: 16505.8181 | I98: 2021-12-31
A99: N/A | B99: IPD014 | C99: =IFERROR(INDEX(Mapping!B:C,MATCH(InUTMC015!B100,Mapping!C:C,0),2),InUTMC015!B100) -> NGHM | D99: 5182527451 | E99: 2268.82 | F99: 0 | G99: 0 | H99: 0 | I99: 2021-12-31
A100: N/A | B100: IPD014 | C100: =IFERROR(INDEX(Mapping!B:C,MATCH(InUTMC015!B101,Mapping!C:C,0),2),InUTMC015!B101) -> NGHM | D100: 5182579233 | E100: 1500000 | F100: 1075362.64 | G100: 1500000 | H100: 1764670.092 | I100: 2021-12-31
A101: N/A | B101: IPD014 | C101: =IFERROR(INDEX(Mapping!B:C,MATCH(InUTMC015!B102,Mapping!C:C,0),2),InUTMC015!B102) -> NGHM | D101: 5182666971 | E101: 72407.8 | F101: 43944.71 | G101: 71633.3 | H101: 72113.2691 | I101: 2021-12-31
A102: N/A | B102: IPD014 | C102: =IFERROR(INDEX(Mapping!B:C,MATCH(InUTMC015!B103,Mapping!C:C,0),2),InUTMC015!B103) -> NGHM | D102: IFAS | E102: 283428.2792 | F102: 309478.51 | G102: 456709.74 | H102: 507854.2349 | I102: 2021-12-31
A103: N/A | B103: IPD014 | C103: =IFERROR(INDEX(Mapping!B:C,MATCH(InUTMC015!B104,Mapping!C:C,0),2),InUTMC015!B104) -> NGHU | D103: 5182527451 | E103: 2560 | F103: 2040.99 | G103: 2509.8 | H103: 2520.4186 | I103: 2021-12-31
A104: N/A | B104: IPD014 | C104: =IFERROR(INDEX(Mapping!B:C,MATCH(InUTMC015!B105,Mapping!C:C,0),2),InUTMC015!B105) -> NGHU | D104: IFAS | E104: -11593.09 | F104: 2486.55 | G104: 2486.56 | H104: 3070.6406 | I104: 2021-12-31
A105: N/A | B105: IPD014 | C105: =IFERROR(INDEX(Mapping!B:C,MATCH(InUTMC015!B106,Mapping!C:C,0),2),InUTMC015!B106) -> NGSEFB | D105: 5182355271 | E105: 205014.45 | F105: 205332.22 | G105: 206555.65 | H105: 209890.5939 | I105: 2021-12-31
A106: N/A | B106: IPD014 | C106: =IFERROR(INDEX(Mapping!B:C,MATCH(InUTMC015!B107,Mapping!C:C,0),2),InUTMC015!B107) -> NGSEFB | D106: 5182527451 | E106: 218280.5 | F106: 216354.7 | G106: 216362.63 | H106: 221157.7742 | I106: 2021-12-31
A107: N/A | B107: IPD014 | C107: =IFERROR(INDEX(Mapping!B:C,MATCH(InUTMC015!B108,Mapping!C:C,0),2),InUTMC015!B108) -> NGSEFB | D107: 5182549962 | E107: 10000 | F107: 10000 | G107: 10000 | H107: 10222 | I107: 2021-12-31
A108: N/A | B108: IPD014 | C108: =IFERROR(INDEX(Mapping!B:C,MATCH(InUTMC015!B109,Mapping!C:C,0),2),InUTMC015!B109) -> NGSEFB | D108: 5182666971 | E108: -20.75 | F108: 0 | G108: 0 | H108: 0 | I108: 2021-12-31
A109: N/A | B109: IPD014 | C109: =IFERROR(INDEX(Mapping!B:C,MATCH(InUTMC015!B110,Mapping!C:C,0),2),InUTMC015!B110) -> NGSEFB | D109: IFAS | E109: 2775072.27 | F109: 2748094.14 | G109: 2758557.47 | H109: 2809101.83 | I109: 2021-12-31
A110: N/A | B110: IPD014 | C110: =IFERROR(INDEX(Mapping!B:C,MATCH(InUTMC015!B111,Mapping!C:C,0),2),InUTMC015!B111) -> NGSEFU | D110: IFAS | E110: 22556.83 | F110: 22360.97 | G110: 22470.73 | H110: 22868.5638 | I110: 2021-12-31
A111: N/A | B111: IPD014 | C111: =IFERROR(INDEX(Mapping!B:C,MATCH(InUTMC015!B112,Mapping!C:C,0),2),InUTMC015!B112) -> NGSSGFA | D111: 5182527451 | E111: 857565.9752 | F111: 734674.21 | G111: 872050.7 | H111: 919665.1761 | I111: 2021-12-31
A112: N/A | B112: IPD014 | C112: =IFERROR(INDEX(Mapping!B:C,MATCH(InUTMC015!B113,Mapping!C:C,0),2),InUTMC015!B113) -> NGSSGFA | D112: 5182547191 | E112: 9354194.14 | F112: 8003092.84 | G112: 8169831 | H112: 10018271.62 | I112: 2021-12-31
A113: N/A | B113: IPD014 | C113: =IFERROR(INDEX(Mapping!B:C,MATCH(InUTMC015!B114,Mapping!C:C,0),2),InUTMC015!B114) -> NGSSGFA | D113: 5182549962 | E113: 35000 | F113: 30001.6 | G113: 35000 | H113: 37556.0029 | I113: 2021-12-31
A114: N/A | B114: IPD014 | C114: =IFERROR(INDEX(Mapping!B:C,MATCH(InUTMC015!B115,Mapping!C:C,0),2),InUTMC015!B115) -> NGSSGFA | D114: IFAS | E114: 2642542.01 | F114: 4740626.43 | G114: 5686514.77 | H114: 5934316.165 | I114: 2021-12-31
A115: N/A | B115: IPD014 | C115: =IFERROR(INDEX(Mapping!B:C,MATCH(InUTMC015!B116,Mapping!C:C,0),2),InUTMC015!B116) -> NGSSGFB | D115: 5182355271 | E115: 573471.8 | F115: 488906.04 | G115: 588741.81 | H115: 609176.9258 | I115: 2021-12-31
A116: N/A | B116: IPD014 | C116: =IFERROR(INDEX(Mapping!B:C,MATCH(InUTMC015!B117,Mapping!C:C,0),2),InUTMC015!B117) -> NGSSGFB | D116: 5182527451 | E116: 513241.2 | F116: 428701.68 | G116: 523315.25 | H116: 534162.2932 | I116: 2021-12-31
A117: N/A | B117: IPD014 | C117: =IFERROR(INDEX(Mapping!B:C,MATCH(InUTMC015!B118,Mapping!C:C,0),2),InUTMC015!B118) -> NGSSGFB | D117: 5182547191 | E117: 900000 | F117: 826992.85 | G117: 900000 | H117: 1030433.091 | I117: 2021-12-31
A118: N/A | B118: IPD014 | C118: =IFERROR(INDEX(Mapping!B:C,MATCH(InUTMC015!B119,Mapping!C:C,0),2),InUTMC015!B119) -> NGSSGFB | D118: IFAS | E118: 5665796.336 | F118: 3628610.98 | G118: 4379344.24 | H118: 4521249.277 | I118: 2021-12-31
A119: N/A | B119: IPD014 | C119: =IFERROR(INDEX(Mapping!B:C,MATCH(InUTMC015!B120,Mapping!C:C,0),2),InUTMC015!B120) -> NRBF1 | D119: 5182369146 | E119: 407993254.9 | F119: 411892055.9 | G119: 423619315.9 | H119: 426678980.7 | I119: 2021-12-31
A120: N/A | B120: IPD014 | C120: =IFERROR(INDEX(Mapping!B:C,MATCH(InUTMC015!B121,Mapping!C:C,0),2),InUTMC015!B121) -> NRBF1 | D120: 5182579233 | E120: 500000 | F120: 0 | G120: 0 | H120: 0 | I120: 2021-12-31
A121: N/A | B121: IPD014 | C121: =IFERROR(INDEX(Mapping!B:C,MATCH(InUTMC015!B122,Mapping!C:C,0),2),InUTMC015!B122) -> NRBF1 | D121: 5182666971 | E121: 1050027.94 | F121: 1014808.01 | G121: 1079601.08 | H121: 1051239.617 | I121: 2021-12-31
A122: N/A | B122: IPD014 | C122: =IFERROR(INDEX(Mapping!B:C,MATCH(InUTMC015!B123,Mapping!C:C,0),2),InUTMC015!B123) -> NRBF1 | D122: IFAS | E122: 2045660.87 | F122: 2004503.44 | G122: 2123546.98 | H122: 2076465.113 | I122: 2021-12-31
A123: N/A | B123: IPD014 | C123: =IFERROR(INDEX(Mapping!B:C,MATCH(InUTMC015!B124,Mapping!C:C,0),2),InUTMC015!B124) -> NRBF2 | D123: 5182585591 | E123: 272450000 | F123: 272007887.3 | G123: 272450000 | H123: 263575642.8 | I123: 2021-12-31

Sheet UTMC016
A1: IPD014 | B1: =IFERROR(INDEX(Mapping!B:C,MATCH(InUTMC016!A2,Mapping!C:C,0),2),InUTMC016!A2) -> I-CASH | C1: 2021-12-01 | D1: 1.0237 | E1: 232346143.6
A2: IPD014 | B2: =IFERROR(INDEX(Mapping!B:C,MATCH(InUTMC016!A3,Mapping!C:C,0),2),InUTMC016!A3) -> I-INCOME | C2: 2021-12-01 | D2: 1.1054 | E2: 675512155
A3: IPD014 | B3: =IFERROR(INDEX(Mapping!B:C,MATCH(InUTMC016!A4,Mapping!C:C,0),2),InUTMC016!A4) -> I-INCOME2H | C3: 2021-12-01 | D3: 0.9985 | E3: 1000
A4: IPD014 | B4: =IFERROR(INDEX(Mapping!B:C,MATCH(InUTMC016!A5,Mapping!C:C,0),2),InUTMC016!A5) -> I-INCOME2I | C4: 2021-12-01 | D4: 0.9961 | E4: 29983010.79
A5: IPD014 | B5: =IFERROR(INDEX(Mapping!B:C,MATCH(InUTMC016!A6,Mapping!C:C,0),2),InUTMC016!A6) -> I-INCOME2R | C5: 2021-12-01 | D5: 0.9958 | E5: 1013569.83
A6: IPD014 | B6: =IFERROR(INDEX(Mapping!B:C,MATCH(InUTMC016!A7,Mapping!C:C,0),2),InUTMC016!A7) -> I-INCOME2S | C6: 2021-12-01 | D6: 0.997 | E6: 40193926.05
A7: IPD014 | B7: =IFERROR(INDEX(Mapping!B:C,MATCH(InUTMC016!A8,Mapping!C:C,0),2),InUTMC016!A8) -> NGDBFM | C7: 2021-12-01 | D7: 1.0217 | E7: 25884340.33
A8: IPD014 | B8: =IFERROR(INDEX(Mapping!B:C,MATCH(InUTMC016!A9,Mapping!C:C,0),2),InUTMC016!A9) -> NGDBFU | C8: 2021-12-01 | D8: 1.0007 | E8: 1060520.86
A9: IPD014 | B9: =IFERROR(INDEX(Mapping!B:C,MATCH(InUTMC016!A10,Mapping!C:C,0),2),InUTMC016!A10) -> NGHM | C9: 2021-12-01 | D9: 1.5864 | E9: 1431331.79
A10: IPD014 | B10: =IFERROR(INDEX(Mapping!B:C,MATCH(InUTMC016!A11,Mapping!C:C,0),2),InUTMC016!A11) -> NGHU | C10: 2021-12-01 | D10: 1.1786 | E10: 4527.54
A11: IPD014 | B11: =IFERROR(INDEX(Mapping!B:C,MATCH(InUTMC016!A12,Mapping!C:C,0),2),InUTMC016!A12) -> NGSEFA | C11: 2021-12-01 | D11: 0.9939 | E11: 1000
A12: IPD014 | B12: =IFERROR(INDEX(Mapping!B:C,MATCH(InUTMC016!A13,Mapping!C:C,0),2),InUTMC016!A13) -> NGSEFB | C12: 2021-12-01 | D12: 0.9851 | E12: 6736251.23
A13: IPD014 | B13: =IFERROR(INDEX(Mapping!B:C,MATCH(InUTMC016!A14,Mapping!C:C,0),2),InUTMC016!A14) -> NGSEFU | C13: 2021-12-01 | D13: 0.973 | E13: 22360.97
A14: IPD014 | B14: =IFERROR(INDEX(Mapping!B:C,MATCH(InUTMC016!A15,Mapping!C:C,0),2),InUTMC016!A15) -> NGSSGFA | C14: 2021-12-01 | D14: 1.2475 | E14: 12061063.21
A15: IPD014 | B15: =IFERROR(INDEX(Mapping!B:C,MATCH(InUTMC016!A16,Mapping!C:C,0),2),InUTMC016!A16) -> NGSSGFB | C15: 2021-12-01 | D15: 1.242 | E15: 5284311.96
A16: IPD014 | B16: =IFERROR(INDEX(Mapping!B:C,MATCH(InUTMC016!A17,Mapping!C:C,0),2),InUTMC016!A17) -> NRBF1 | C16: 2021-12-01 | D16: 1.0401 | E16: 403076889.1
A17: IPD014 | B17: =IFERROR(INDEX(Mapping!B:C,MATCH(InUTMC016!A18,Mapping!C:C,0),2),InUTMC016!A18) -> NRBF2 | C17: 2021-12-01 | D17: 0.9749 | E17: 272007887.3
A18: IPD014 | B18: =IFERROR(INDEX(Mapping!B:C,MATCH(InUTMC016!A19,Mapping!C:C,0),2),InUTMC016!A19) -> I-CASH | C18: 2021-12-02 | D18: 1.0238 | E18: 233069234.6
A19: IPD014 | B19: =IFERROR(INDEX(Mapping!B:C,MATCH(InUTMC016!A20,Mapping!C:C,0),2),InUTMC016!A20) -> I-INCOME | C19: 2021-12-02 | D19: 1.1055 | E19: 675502738.4
A20: IPD014 | B20: =IFERROR(INDEX(Mapping!B:C,MATCH(InUTMC016!A21,Mapping!C:C,0),2),InUTMC016!A21) -> I-INCOME2H | C20: 2021-12-02 | D20: 0.9958 | E20: 1000
A21: IPD014 | B21: =IFERROR(INDEX(Mapping!B:C,MATCH(InUTMC016!A22,Mapping!C:C,0),2),InUTMC016!A22) -> I-INCOME2I | C21: 2021-12-02 | D21: 0.9957 | E21: 29983010.79
A22: IPD014 | B22: =IFERROR(INDEX(Mapping!B:C,MATCH(InUTMC016!A23,Mapping!C:C,0),2),InUTMC016!A23) -> I-INCOME2R | C22: 2021-12-02 | D22: 0.9954 | E22: 1013569.83
A23: IPD014 | B23: =IFERROR(INDEX(Mapping!B:C,MATCH(InUTMC016!A24,Mapping!C:C,0),2),InUTMC016!A24) -> I-INCOME2S | C23: 2021-12-02 | D23: 0.9966 | E23: 40193926.05
A24: IPD014 | B24: =IFERROR(INDEX(Mapping!B:C,MATCH(InUTMC016!A25,Mapping!C:C,0),2),InUTMC016!A25) -> NGDBFM | C24: 2021-12-02 | D24: 1.0258 | E24: 25884340.33
A25: IPD014 | B25: =IFERROR(INDEX(Mapping!B:C,MATCH(InUTMC016!A26,Mapping!C:C,0),2),InUTMC016!A26) -> NGDBFU | C25: 2021-12-02 | D25: 1.0022 | E25: 1060520.86
A26: IPD014 | B26: =IFERROR(INDEX(Mapping!B:C,MATCH(InUTMC016!A27,Mapping!C:C,0),2),InUTMC016!A27) -> NGHM | C26: 2021-12-02 | D26: 1.5817 | E26: 1431331.79
A27: IPD014 | B27: =IFERROR(INDEX(Mapping!B:C,MATCH(InUTMC016!A28,Mapping!C:C,0),2),InUTMC016!A28) -> NGHU | C27: 2021-12-02 | D27: 1.1716 | E27: 4527.54
A28: IPD014 | B28: =IFERROR(INDEX(Mapping!B:C,MATCH(InUTMC016!A29,Mapping!C:C,0),2),InUTMC016!A29) -> NGSEFA | C28: 2021-12-02 | D28: 0.9952 | E28: 1000
A29: IPD014 | B29: =IFERROR(INDEX(Mapping!B:C,MATCH(InUTMC016!A30,Mapping!C:C,0),2),InUTMC016!A30) -> NGSEFB | C29: 2021-12-02 | D29: 0.9863 | E29: 8021452.85
A30: IPD014 | B30: =IFERROR(INDEX(Mapping!B:C,MATCH(InUTMC016!A31,Mapping!C:C,0),2),InUTMC016!A31) -> NGSEFU | C30: 2021-12-02 | D30: 0.9718 | E30: 22360.97
A31: IPD014 | B31: =IFERROR(INDEX(Mapping!B:C,MATCH(InUTMC016!A32,Mapping!C:C,0),2),InUTMC016!A32) -> NGSSGFA | C31: 2021-12-02 | D31: 1.2533 | E31: 12061063.21
A32: IPD014 | B32: =IFERROR(INDEX(Mapping!B:C,MATCH(InUTMC016!A33,Mapping!C:C,0),2),InUTMC016!A33) -> NGSSGFB | C32: 2021-12-02 | D32: 1.2477 | E32: 5235997.79
A33: IPD014 | B33: =IFERROR(INDEX(Mapping!B:C,MATCH(InUTMC016!A34,Mapping!C:C,0),2),InUTMC016!A34) -> NRBF1 | C33: 2021-12-02 | D33: 1.0402 | E33: 403076889.1
A34: IPD014 | B34: =IFERROR(INDEX(Mapping!B:C,MATCH(InUTMC016!A35,Mapping!C:C,0),2),InUTMC016!A35) -> NRBF2 | C34: 2021-12-02 | D34: 0.9751 | E34: 272007887.3
A35: IPD014 | B35: =IFERROR(INDEX(Mapping!B:C,MATCH(InUTMC016!A36,Mapping!C:C,0),2),InUTMC016!A36) -> I-CASH | C35: 2021-12-03 | D35: 1.0238 | E35: 268349562.7
A36: IPD014 | B36: =IFERROR(INDEX(Mapping!B:C,MATCH(InUTMC016!A37,Mapping!C:C,0),2),InUTMC016!A37) -> I-INCOME | C36: 2021-12-03 | D36: 1.1055 | E36: 675502738.4
A37: IPD014 | B37: =IFERROR(INDEX(Mapping!B:C,MATCH(InUTMC016!A38,Mapping!C:C,0),2),InUTMC016!A38) -> I-INCOME2H | C37: 2021-12-03 | D37: 0.9958 | E37: 1000
A38: IPD014 | B38: =IFERROR(INDEX(Mapping!B:C,MATCH(InUTMC016!A39,Mapping!C:C,0),2),InUTMC016!A39) -> I-INCOME2I | C38: 2021-12-03 | D38: 0.9957 | E38: 29983010.79
A39: IPD014 | B39: =IFERROR(INDEX(Mapping!B:C,MATCH(InUTMC016!A40,Mapping!C:C,0),2),InUTMC016!A40) -> I-INCOME2R | C39: 2021-12-03 | D39: 0.9954 | E39: 1013569.83
A40: IPD014 | B40: =IFERROR(INDEX(Mapping!B:C,MATCH(InUTMC016!A41,Mapping!C:C,0),2),InUTMC016!A41) -> I-INCOME2S | C40: 2021-12-03 | D40: 0.9966 | E40: 40193926.05
A41: IPD014 | B41: =IFERROR(INDEX(Mapping!B:C,MATCH(InUTMC016!A42,Mapping!C:C,0),2),InUTMC016!A42) -> NGDBFM | C41: 2021-12-03 | D41: 1.0258 | E41: 25884340.33
A42: IPD014 | B42: =IFERROR(INDEX(Mapping!B:C,MATCH(InUTMC016!A43,Mapping!C:C,0),2),InUTMC016!A43) -> NGDBFU | C42: 2021-12-03 | D42: 1.0022 | E42: 1060520.86
A43: IPD014 | B43: =IFERROR(INDEX(Mapping!B:C,MATCH(InUTMC016!A44,Mapping!C:C,0),2),InUTMC016!A44) -> NGHM | C43: 2021-12-03 | D43: 1.5817 | E43: 1431331.79
A44: IPD014 | B44: =IFERROR(INDEX(Mapping!B:C,MATCH(InUTMC016!A45,Mapping!C:C,0),2),InUTMC016!A45) -> NGHU | C44: 2021-12-03 | D44: 1.1716 | E44: 4527.54
A45: IPD014 | B45: =IFERROR(INDEX(Mapping!B:C,MATCH(InUTMC016!A46,Mapping!C:C,0),2),InUTMC016!A46) -> NGSEFA | C45: 2021-12-03 | D45: 0.9952 | E45: 1000
A46: IPD014 | B46: =IFERROR(INDEX(Mapping!B:C,MATCH(InUTMC016!A47,Mapping!C:C,0),2),InUTMC016!A47) -> NGSEFB | C46: 2021-12-03 | D46: 0.9863 | E46: 8021452.85
A47: IPD014 | B47: =IFERROR(INDEX(Mapping!B:C,MATCH(InUTMC016!A48,Mapping!C:C,0),2),InUTMC016!A48) -> NGSEFU | C47: 2021-12-03 | D47: 0.9718 | E47: 22360.97
A48: IPD014 | B48: =IFERROR(INDEX(Mapping!B:C,MATCH(InUTMC016!A49,Mapping!C:C,0),2),InUTMC016!A49) -> NGSSGFA | C48: 2021-12-03 | D48: 1.2533 | E48: 12061063.21
A49: IPD014 | B49: =IFERROR(INDEX(Mapping!B:C,MATCH(InUTMC016!A50,Mapping!C:C,0),2),InUTMC016!A50) -> NGSSGFB | C49: 2021-12-03 | D49: 1.2477 | E49: 5235997.79
A50: IPD014 | B50: =IFERROR(INDEX(Mapping!B:C,MATCH(InUTMC016!A51,Mapping!C:C,0),2),InUTMC016!A51) -> NRBF1 | C50: 2021-12-03 | D50: 1.0402 | E50: 403076889.1
A51: IPD014 | B51: =IFERROR(INDEX(Mapping!B:C,MATCH(InUTMC016!A52,Mapping!C:C,0),2),InUTMC016!A52) -> NRBF2 | C51: 2021-12-03 | D51: 0.9751 | E51: 272007887.3
A52: IPD014 | B52: =IFERROR(INDEX(Mapping!B:C,MATCH(InUTMC016!A53,Mapping!C:C,0),2),InUTMC016!A53) -> I-CASH | C52: 2021-12-06 | D52: 1.024 | E52: 268642517.2
A53: IPD014 | B53: =IFERROR(INDEX(Mapping!B:C,MATCH(InUTMC016!A54,Mapping!C:C,0),2),InUTMC016!A54) -> I-INCOME | C53: 2021-12-06 | D53: 1.1063 | E53: 675580263.7
A54: IPD014 | B54: =IFERROR(INDEX(Mapping!B:C,MATCH(InUTMC016!A55,Mapping!C:C,0),2),InUTMC016!A55) -> I-INCOME2H | C54: 2021-12-06 | D54: 0.9964 | E54: 1000
A55: IPD014 | B55: =IFERROR(INDEX(Mapping!B:C,MATCH(InUTMC016!A56,Mapping!C:C,0),2),InUTMC016!A56) -> I-INCOME2I | C55: 2021-12-06 | D55: 0.9968 | E55: 29983010.79
A56: IPD014 | B56: =IFERROR(INDEX(Mapping!B:C,MATCH(InUTMC016!A57,Mapping!C:C,0),2),InUTMC016!A57) -> I-INCOME2R | C56: 2021-12-06 | D56: 0.9965 | E56: 1013569.83
A57: IPD014 | B57: =IFERROR(INDEX(Mapping!B:C,MATCH(InUTMC016!A58,Mapping!C:C,0),2),InUTMC016!A58) -> I-INCOME2S | C57: 2021-12-06 | D57: 0.9977 | E57: 40193926.05
A58: IPD014 | B58: =IFERROR(INDEX(Mapping!B:C,MATCH(InUTMC016!A59,Mapping!C:C,0),2),InUTMC016!A59) -> NGDBFM | C58: 2021-12-06 | D58: 1.0282 | E58: 25884340.33
A59: IPD014 | B59: =IFERROR(INDEX(Mapping!B:C,MATCH(InUTMC016!A60,Mapping!C:C,0),2),InUTMC016!A60) -> NGDBFU | C59: 2021-12-06 | D59: 1.0042 | E59: 1060520.86
A60: IPD014 | B60: =IFERROR(INDEX(Mapping!B:C,MATCH(InUTMC016!A61,Mapping!C:C,0),2),InUTMC016!A61) -> NGHM | C60: 2021-12-06 | D60: 1.5951 | E60: 1431331.79
A61: IPD014 | B61: =IFERROR(INDEX(Mapping!B:C,MATCH(InUTMC016!A62,Mapping!C:C,0),2),InUTMC016!A62) -> NGHU | C61: 2021-12-06 | D61: 1.1817 | E61: 4527.54
A62: IPD014 | B62: =IFERROR(INDEX(Mapping!B:C,MATCH(InUTMC016!A63,Mapping!C:C,0),2),InUTMC016!A63) -> NGSEFA | C62: 2021-12-06 | D62: 1.0062 | E62: 1000
A63: IPD014 | B63: =IFERROR(INDEX(Mapping!B:C,MATCH(InUTMC016!A64,Mapping!C:C,0),2),InUTMC016!A64) -> NGSEFB | C63: 2021-12-06 | D63: 0.997 | E63: 9646839
A64: IPD014 | B64: =IFERROR(INDEX(Mapping!B:C,MATCH(InUTMC016!A65,Mapping!C:C,0),2),InUTMC016!A65) -> NGSEFU | C64: 2021-12-06 | D64: 0.9819 | E64: 22360.97
A65: IPD014 | B65: =IFERROR(INDEX(Mapping!B:C,MATCH(InUTMC016!A66,Mapping!C:C,0),2),InUTMC016!A66) -> NGSSGFA | C65: 2021-12-06 | D65: 1.2475 | E65: 12061063.21
A66: IPD014 | B66: =IFERROR(INDEX(Mapping!B:C,MATCH(InUTMC016!A67,Mapping!C:C,0),2),InUTMC016!A67) -> NGSSGFB | C66: 2021-12-06 | D66: 1.2419 | E66: 5236803.01
A67: IPD014 | B67: =IFERROR(INDEX(Mapping!B:C,MATCH(InUTMC016!A68,Mapping!C:C,0),2),InUTMC016!A68) -> NRBF1 | C67: 2021-12-06 | D67: 1.041 | E67: 403067207.8
A68: IPD014 | B68: =IFERROR(INDEX(Mapping!B:C,MATCH(InUTMC016!A69,Mapping!C:C,0),2),InUTMC016!A69) -> NRBF2 | C68: 2021-12-06 | D68: 0.9759 | E68: 272007887.3
A69: IPD014 | B69: =IFERROR(INDEX(Mapping!B:C,MATCH(InUTMC016!A70,Mapping!C:C,0),2),InUTMC016!A70) -> I-CASH | C69: 2021-12-07 | D69: 1.024 | E69: 306059181.1
A70: IPD014 | B70: =IFERROR(INDEX(Mapping!B:C,MATCH(InUTMC016!A71,Mapping!C:C,0),2),InUTMC016!A71) -> I-INCOME | C70: 2021-12-07 | D70: 1.1066 | E70: 675602317.3
A71: IPD014 | B71: =IFERROR(INDEX(Mapping!B:C,MATCH(InUTMC016!A72,Mapping!C:C,0),2),InUTMC016!A72) -> I-INCOME2H | C71: 2021-12-07 | D71: 0.9963 | E71: 1000
A72: IPD014 | B72: =IFERROR(INDEX(Mapping!B:C,MATCH(InUTMC016!A73,Mapping!C:C,0),2),InUTMC016!A73) -> I-INCOME2I | C72: 2021-12-07 | D72: 0.9967 | E72: 29983010.79
A73: IPD014 | B73: =IFERROR(INDEX(Mapping!B:C,MATCH(InUTMC016!A74,Mapping!C:C,0),2),InUTMC016!A74) -> I-INCOME2R | C73: 2021-12-07 | D73: 0.9964 | E73: 1013569.83
A74: IPD014 | B74: =IFERROR(INDEX(Mapping!B:C,MATCH(InUTMC016!A75,Mapping!C:C,0),2),InUTMC016!A75) -> I-INCOME2S | C74: 2021-12-07 | D74: 0.9977 | E74: 40193926.05
A75: IPD014 | B75: =IFERROR(INDEX(Mapping!B:C,MATCH(InUTMC016!A76,Mapping!C:C,0),2),InUTMC016!A76) -> NGDBFM | C75: 2021-12-07 | D75: 1.03 | E75: 25884340.33
A76: IPD014 | B76: =IFERROR(INDEX(Mapping!B:C,MATCH(InUTMC016!A77,Mapping!C:C,0),2),InUTMC016!A77) -> NGDBFU | C76: 2021-12-07 | D76: 1.0059 | E76: 1060520.86
A77: IPD014 | B77: =IFERROR(INDEX(Mapping!B:C,MATCH(InUTMC016!A78,Mapping!C:C,0),2),InUTMC016!A78) -> NGHM | C77: 2021-12-07 | D77: 1.6255 | E77: 1431331.79
A78: IPD014 | B78: =IFERROR(INDEX(Mapping!B:C,MATCH(InUTMC016!A79,Mapping!C:C,0),2),InUTMC016!A79) -> NGHU | C78: 2021-12-07 | D78: 1.2039 | E78: 4527.54
A79: IPD014 | B79: =IFERROR(INDEX(Mapping!B:C,MATCH(InUTMC016!A80,Mapping!C:C,0),2),InUTMC016!A80) -> NGSEFA | C79: 2021-12-07 | D79: 1.0212 | E79: 1000
A80: IPD014 | B80: =IFERROR(INDEX(Mapping!B:C,MATCH(InUTMC016!A81,Mapping!C:C,0),2),InUTMC016!A81) -> NGSEFB | C80: 2021-12-07 | D80: 1.0118 | E80: 9648903.53
A81: IPD014 | B81: =IFERROR(INDEX(Mapping!B:C,MATCH(InUTMC016!A82,Mapping!C:C,0),2),InUTMC016!A82) -> NGSEFU | C81: 2021-12-07 | D81: 0.9965 | E81: 22360.97
A82: IPD014 | B82: =IFERROR(INDEX(Mapping!B:C,MATCH(InUTMC016!A83,Mapping!C:C,0),2),InUTMC016!A83) -> NGSSGFA | C82: 2021-12-07 | D82: 1.2708 | E82: 12871576.27
A83: IPD014 | B83: =IFERROR(INDEX(Mapping!B:C,MATCH(InUTMC016!A84,Mapping!C:C,0),2),InUTMC016!A84) -> NGSSGFB | C83: 2021-12-07 | D83: 1.265 | E83: 5287481.89
A84: IPD014 | B84: =IFERROR(INDEX(Mapping!B:C,MATCH(InUTMC016!A85,Mapping!C:C,0),2),InUTMC016!A85) -> NRBF1 | C84: 2021-12-07 | D84: 1.0409 | E84: 403067207.8
A85: IPD014 | B85: =IFERROR(INDEX(Mapping!B:C,MATCH(InUTMC016!A86,Mapping!C:C,0),2),InUTMC016!A86) -> NRBF2 | C85: 2021-12-07 | D85: 0.9762 | E85: 272007887.3
A86: IPD014 | B86: =IFERROR(INDEX(Mapping!B:C,MATCH(InUTMC016!A87,Mapping!C:C,0),2),InUTMC016!A87) -> I-CASH | C86: 2021-12-08 | D86: 1.024 | E86: 305759181.1
A87: IPD014 | B87: =IFERROR(INDEX(Mapping!B:C,MATCH(InUTMC016!A88,Mapping!C:C,0),2),InUTMC016!A88) -> I-INCOME | C87: 2021-12-08 | D87: 1.107 | E87: 675551403.4
A88: IPD014 | B88: =IFERROR(INDEX(Mapping!B:C,MATCH(InUTMC016!A89,Mapping!C:C,0),2),InUTMC016!A89) -> I-INCOME2H | C88: 2021-12-08 | D88: 0.9981 | E88: 1000
A89: IPD014 | B89: =IFERROR(INDEX(Mapping!B:C,MATCH(InUTMC016!A90,Mapping!C:C,0),2),InUTMC016!A90) -> I-INCOME2I | C89: 2021-12-08 | D89: 0.9969 | E89: 29983010.79
A90: IPD014 | B90: =IFERROR(INDEX(Mapping!B:C,MATCH(InUTMC016!A91,Mapping!C:C,0),2),InUTMC016!A91) -> I-INCOME2R | C90: 2021-12-08 | D90: 0.9965 | E90: 1013569.83
A91: IPD014 | B91: =IFERROR(INDEX(Mapping!B:C,MATCH(InUTMC016!A92,Mapping!C:C,0),2),InUTMC016!A92) -> I-INCOME2S | C91: 2021-12-08 | D91: 0.9978 | E91: 40193926.05
A92: IPD014 | B92: =IFERROR(INDEX(Mapping!B:C,MATCH(InUTMC016!A93,Mapping!C:C,0),2),InUTMC016!A93) -> NGDBFM | C92: 2021-12-08 | D92: 1.0296 | E92: 25884340.33
A93: IPD014 | B93: =IFERROR(INDEX(Mapping!B:C,MATCH(InUTMC016!A94,Mapping!C:C,0),2),InUTMC016!A94) -> NGDBFU | C93: 2021-12-08 | D93: 1.0072 | E93: 1060520.86
A94: IPD014 | B94: =IFERROR(INDEX(Mapping!B:C,MATCH(InUTMC016!A95,Mapping!C:C,0),2),InUTMC016!A95) -> NGHM | C94: 2021-12-08 | D94: 1.6279 | E94: 1431331.79
A95: IPD014 | B95: =IFERROR(INDEX(Mapping!B:C,MATCH(InUTMC016!A96,Mapping!C:C,0),2),InUTMC016!A96) -> NGHU | C95: 2021-12-08 | D95: 1.2078 | E95: 4527.54
A96: IPD014 | B96: =IFERROR(INDEX(Mapping!B:C,MATCH(InUTMC016!A97,Mapping!C:C,0),2),InUTMC016!A97) -> NGSEFA | C96: 2021-12-08 | D96: 1.0217 | E96: 1000
A97: IPD014 | B97: =IFERROR(INDEX(Mapping!B:C,MATCH(InUTMC016!A98,Mapping!C:C,0),2),InUTMC016!A98) -> NGSEFB | C97: 2021-12-08 | D97: 1.0123 | E97: 9650044.28
A98: IPD014 | B98: =IFERROR(INDEX(Mapping!B:C,MATCH(InUTMC016!A99,Mapping!C:C,0),2),InUTMC016!A99) -> NGSEFU | C98: 2021-12-08 | D98: 0.9986 | E98: 22360.97
A99: IPD014 | B99: =IFERROR(INDEX(Mapping!B:C,MATCH(InUTMC016!A100,Mapping!C:C,0),2),InUTMC016!A100) -> NGSSGFA | C99: 2021-12-08 | D99: 1.2724 | E99: 12871576.27
A100: IPD014 | B100: =IFERROR(INDEX(Mapping!B:C,MATCH(InUTMC016!A101,Mapping!C:C,0),2),InUTMC016!A101) -> NGSSGFB | C100: 2021-12-08 | D100: 1.2666 | E100: 5287481.89
A101: IPD014 | B101: =IFERROR(INDEX(Mapping!B:C,MATCH(InUTMC016!A102,Mapping!C:C,0),2),InUTMC016!A102) -> NRBF1 | C101: 2021-12-08 | D101: 1.041 | E101: 403067207.8
A102: IPD014 | B102: =IFERROR(INDEX(Mapping!B:C,MATCH(InUTMC016!A103,Mapping!C:C,0),2),InUTMC016!A103) -> NRBF2 | C102: 2021-12-08 | D102: 0.9763 | E102: 272007887.3
A103: IPD014 | B103: =IFERROR(INDEX(Mapping!B:C,MATCH(InUTMC016!A104,Mapping!C:C,0),2),InUTMC016!A104) -> I-CASH | C103: 2021-12-09 | D103: 1.0241 | E103: 305749281.1
A104: IPD014 | B104: =IFERROR(INDEX(Mapping!B:C,MATCH(InUTMC016!A105,Mapping!C:C,0),2),InUTMC016!A105) -> I-INCOME | C104: 2021-12-09 | D104: 1.1058 | E104: 675596619.5
A105: IPD014 | B105: =IFERROR(INDEX(Mapping!B:C,MATCH(InUTMC016!A106,Mapping!C:C,0),2),InUTMC016!A106) -> I-INCOME2H | C105: 2021-12-09 | D105: 0.9998 | E105: 1000
A106: IPD014 | B106: =IFERROR(INDEX(Mapping!B:C,MATCH(InUTMC016!A107,Mapping!C:C,0),2),InUTMC016!A107) -> I-INCOME2I | C106: 2021-12-09 | D106: 0.9967 | E106: 29983010.79
A107: IPD014 | B107: =IFERROR(INDEX(Mapping!B:C,MATCH(InUTMC016!A108,Mapping!C:C,0),2),InUTMC016!A108) -> I-INCOME2R | C107: 2021-12-09 | D107: 0.9963 | E107: 1013569.83
A108: IPD014 | B108: =IFERROR(INDEX(Mapping!B:C,MATCH(InUTMC016!A109,Mapping!C:C,0),2),InUTMC016!A109) -> I-INCOME2S | C108: 2021-12-09 | D108: 0.9976 | E108: 40193926.05
A109: IPD014 | B109: =IFERROR(INDEX(Mapping!B:C,MATCH(InUTMC016!A110,Mapping!C:C,0),2),InUTMC016!A110) -> NGDBFM | C109: 2021-12-09 | D109: 1.0275 | E109: 25903284.1
A110: IPD014 | B110: =IFERROR(INDEX(Mapping!B:C,MATCH(InUTMC016!A111,Mapping!C:C,0),2),InUTMC016!A111) -> NGDBFU | C110: 2021-12-09 | D110: 1.0071 | E110: 1060520.86
A111: IPD014 | B111: =IFERROR(INDEX(Mapping!B:C,MATCH(InUTMC016!A112,Mapping!C:C,0),2),InUTMC016!A112) -> NGHM | C111: 2021-12-09 | D111: 1.6274 | E111: 1431331.79
A112: IPD014 | B112: =IFERROR(INDEX(Mapping!B:C,MATCH(InUTMC016!A113,Mapping!C:C,0),2),InUTMC016!A113) -> NGHU | C112: 2021-12-09 | D112: 1.2102 | E112: 4527.54
A113: IPD014 | B113: =IFERROR(INDEX(Mapping!B:C,MATCH(InUTMC016!A114,Mapping!C:C,0),2),InUTMC016!A114) -> NGSEFA | C113: 2021-12-09 | D113: 1.0223 | E113: 1000
A114: IPD014 | B114: =IFERROR(INDEX(Mapping!B:C,MATCH(InUTMC016!A115,Mapping!C:C,0),2),InUTMC016!A115) -> NGSEFB | C114: 2021-12-09 | D114: 1.0128 | E114: 9720588.79
A115: IPD014 | B115: =IFERROR(INDEX(Mapping!B:C,MATCH(InUTMC016!A116,Mapping!C:C,0),2),InUTMC016!A116) -> NGSEFU | C115: 2021-12-09 | D115: 1.0011 | E115: 22360.97
A116: IPD014 | B116: =IFERROR(INDEX(Mapping!B:C,MATCH(InUTMC016!A117,Mapping!C:C,0),2),InUTMC016!A117) -> NGSSGFA | C116: 2021-12-09 | D116: 1.2641 | E116: 12871576.27
A117: IPD014 | B117: =IFERROR(INDEX(Mapping!B:C,MATCH(InUTMC016!A118,Mapping!C:C,0),2),InUTMC016!A118) -> NGSSGFB | C117: 2021-12-09 | D117: 1.2584 | E117: 5314735.15
A118: IPD014 | B118: =IFERROR(INDEX(Mapping!B:C,MATCH(InUTMC016!A119,Mapping!C:C,0),2),InUTMC016!A119) -> NRBF1 | C118: 2021-12-09 | D118: 1.0405 | E118: 403067207.8
A119: IPD014 | B119: =IFERROR(INDEX(Mapping!B:C,MATCH(InUTMC016!A120,Mapping!C:C,0),2),InUTMC016!A120) -> NRBF2 | C119: 2021-12-09 | D119: 0.9759 | E119: 272007887.3
A120: IPD014 | B120: =IFERROR(INDEX(Mapping!B:C,MATCH(InUTMC016!A121,Mapping!C:C,0),2),InUTMC016!A121) -> I-CASH | C120: 2021-12-10 | D120: 1.0241 | E120: 305602682.7
A121: IPD014 | B121: =IFERROR(INDEX(Mapping!B:C,MATCH(InUTMC016!A122,Mapping!C:C,0),2),InUTMC016!A122) -> I-INCOME | C121: 2021-12-10 | D121: 1.1057 | E121: 675915389.8
A122: IPD014 | B122: =IFERROR(INDEX(Mapping!B:C,MATCH(InUTMC016!A123,Mapping!C:C,0),2),InUTMC016!A123) -> I-INCOME2H | C122: 2021-12-10 | D122: 1.0005 | E122: 1000
A123: IPD014 | B123: =IFERROR(INDEX(Mapping!B:C,MATCH(InUTMC016!A124,Mapping!C:C,0),2),InUTMC016!A124) -> I-INCOME2I | C123: 2021-12-10 | D123: 0.9962 | E123: 29983010.79
A124: IPD014 | B124: =IFERROR(INDEX(Mapping!B:C,MATCH(InUTMC016!A125,Mapping!C:C,0),2),InUTMC016!A125) -> I-INCOME2R | C124: 2021-12-10 | D124: 0.9959 | E124: 1013569.83
A125: IPD014 | B125: =IFERROR(INDEX(Mapping!B:C,MATCH(InUTMC016!A126,Mapping!C:C,0),2),InUTMC016!A126) -> I-INCOME2S | C125: 2021-12-10 | D125: 0.9972 | E125: 40193926.05
A126: IPD014 | B126: =IFERROR(INDEX(Mapping!B:C,MATCH(InUTMC016!A127,Mapping!C:C,0),2),InUTMC016!A127) -> NGDBFM | C126: 2021-12-10 | D126: 1.0259 | E126: 25903284.1
A127: IPD014 | B127: =IFERROR(INDEX(Mapping!B:C,MATCH(InUTMC016!A128,Mapping!C:C,0),2),InUTMC016!A128) -> NGDBFU | C127: 2021-12-10 | D127: 1.0066 | E127: 444459.43
A128: IPD014 | B128: =IFERROR(INDEX(Mapping!B:C,MATCH(InUTMC016!A129,Mapping!C:C,0),2),InUTMC016!A129) -> NGHM | C128: 2021-12-10 | D128: 1.631 | E128: 1431331.79
A129: IPD014 | B129: =IFERROR(INDEX(Mapping!B:C,MATCH(InUTMC016!A130,Mapping!C:C,0),2),InUTMC016!A130) -> NGHU | C129: 2021-12-10 | D129: 1.2142 | E129: 4527.54
A130: IPD014 | B130: =IFERROR(INDEX(Mapping!B:C,MATCH(InUTMC016!A131,Mapping!C:C,0),2),InUTMC016!A131) -> NGSEFA | C130: 2021-12-10 | D130: 1.0244 | E130: 1000
A131: IPD014 | B131: =IFERROR(INDEX(Mapping!B:C,MATCH(InUTMC016!A132,Mapping!C:C,0),2),InUTMC016!A132) -> NGSEFB | C131: 2021-12-10 | D131: 1.0149 | E131: 9722120.36
A132: IPD014 | B132: =IFERROR(INDEX(Mapping!B:C,MATCH(InUTMC016!A133,Mapping!C:C,0),2),InUTMC016!A133) -> NGSEFU | C132: 2021-12-10 | D132: 1.0043 | E132: 22360.97
A133: IPD014 | B133: =IFERROR(INDEX(Mapping!B:C,MATCH(InUTMC016!A134,Mapping!C:C,0),2),InUTMC016!A134) -> NGSSGFA | C133: 2021-12-10 | D133: 1.2647 | E133: 13266926.95
A134: IPD014 | B134: =IFERROR(INDEX(Mapping!B:C,MATCH(InUTMC016!A135,Mapping!C:C,0),2),InUTMC016!A135) -> NGSSGFB | C134: 2021-12-10 | D134: 1.259 | E134: 5374137.06
A135: IPD014 | B135: =IFERROR(INDEX(Mapping!B:C,MATCH(InUTMC016!A136,Mapping!C:C,0),2),InUTMC016!A136) -> NRBF1 | C135: 2021-12-10 | D135: 1.0407 | E135: 403067207.8
A136: IPD014 | B136: =IFERROR(INDEX(Mapping!B:C,MATCH(InUTMC016!A137,Mapping!C:C,0),2),InUTMC016!A137) -> NRBF2 | C136: 2021-12-10 | D136: 0.9762 | E136: 272007887.3
A137: IPD014 | B137: =IFERROR(INDEX(Mapping!B:C,MATCH(InUTMC016!A138,Mapping!C:C,0),2),InUTMC016!A138) -> I-CASH | C137: 2021-12-13 | D137: 1.0243 | E137: 304576207.4
A138: IPD014 | B138: =IFERROR(INDEX(Mapping!B:C,MATCH(InUTMC016!A139,Mapping!C:C,0),2),InUTMC016!A139) -> I-INCOME | C138: 2021-12-13 | D138: 1.1061 | E138: 675892821.2
A139: IPD014 | B139: =IFERROR(INDEX(Mapping!B:C,MATCH(InUTMC016!A140,Mapping!C:C,0),2),InUTMC016!A140) -> I-INCOME2H | C139: 2021-12-13 | D139: 0.9971 | E139: 1000
A140: IPD014 | B140: =IFERROR(INDEX(Mapping!B:C,MATCH(InUTMC016!A141,Mapping!C:C,0),2),InUTMC016!A141) -> I-INCOME2I | C140: 2021-12-13 | D140: 0.9964 | E140: 29983010.79
A141: IPD014 | B141: =IFERROR(INDEX(Mapping!B:C,MATCH(InUTMC016!A142,Mapping!C:C,0),2),InUTMC016!A142) -> I-INCOME2R | C141: 2021-12-13 | D141: 0.996 | E141: 1013569.83
A142: IPD014 | B142: =IFERROR(INDEX(Mapping!B:C,MATCH(InUTMC016!A143,Mapping!C:C,0),2),InUTMC016!A143) -> I-INCOME2S | C142: 2021-12-13 | D142: 0.9973 | E142: 40193926.05
A143: IPD014 | B143: =IFERROR(INDEX(Mapping!B:C,MATCH(InUTMC016!A144,Mapping!C:C,0),2),InUTMC016!A144) -> NGDBFM | C143: 2021-12-13 | D143: 1.0295 | E143: 25903284.1
A144: IPD014 | B144: =IFERROR(INDEX(Mapping!B:C,MATCH(InUTMC016!A145,Mapping!C:C,0),2),InUTMC016!A145) -> NGDBFU | C144: 2021-12-13 | D144: 1.0066 | E144: 444459.43
A145: IPD014 | B145: =IFERROR(INDEX(Mapping!B:C,MATCH(InUTMC016!A146,Mapping!C:C,0),2),InUTMC016!A146) -> NGHM | C145: 2021-12-13 | D145: 1.6369 | E145: 1431331.79
A146: IPD014 | B146: =IFERROR(INDEX(Mapping!B:C,MATCH(InUTMC016!A147,Mapping!C:C,0),2),InUTMC016!A147) -> NGHU | C146: 2021-12-13 | D146: 1.2134 | E146: 4527.54
A147: IPD014 | B147: =IFERROR(INDEX(Mapping!B:C,MATCH(InUTMC016!A148,Mapping!C:C,0),2),InUTMC016!A148) -> NGSEFA | C147: 2021-12-13 | D147: 1.0278 | E147: 1000
A148: IPD014 | B148: =IFERROR(INDEX(Mapping!B:C,MATCH(InUTMC016!A149,Mapping!C:C,0),2),InUTMC016!A149) -> NGSEFB | C148: 2021-12-13 | D148: 1.0181 | E148: 9980639.94
A149: IPD014 | B149: =IFERROR(INDEX(Mapping!B:C,MATCH(InUTMC016!A150,Mapping!C:C,0),2),InUTMC016!A150) -> NGSEFU | C149: 2021-12-13 | D149: 1.0039 | E149: 22360.97
A150: IPD014 | B150: =IFERROR(INDEX(Mapping!B:C,MATCH(InUTMC016!A151,Mapping!C:C,0),2),InUTMC016!A151) -> NGSSGFA | C150: 2021-12-13 | D150: 1.2594 | E150: 13266926.95
A151: IPD014 | B151: =IFERROR(INDEX(Mapping!B:C,MATCH(InUTMC016!A152,Mapping!C:C,0),2),InUTMC016!A152) -> NGSSGFB | C151: 2021-12-13 | D151: 1.2536 | E151: 5323664.53
A152: IPD014 | B152: =IFERROR(INDEX(Mapping!B:C,MATCH(InUTMC016!A153,Mapping!C:C,0),2),InUTMC016!A153) -> NRBF1 | C152: 2021-12-13 | D152: 1.041 | E152: 403067207.8
A153: IPD014 | B153: =IFERROR(INDEX(Mapping!B:C,MATCH(InUTMC016!A154,Mapping!C:C,0),2),InUTMC016!A154) -> NRBF2 | C153: 2021-12-13 | D153: 0.9764 | E153: 272007887.3
A154: IPD014 | B154: =IFERROR(INDEX(Mapping!B:C,MATCH(InUTMC016!A155,Mapping!C:C,0),2),InUTMC016!A155) -> I-CASH | C154: 2021-12-14 | D154: 1.0243 | E154: 303819229.3
A155: IPD014 | B155: =IFERROR(INDEX(Mapping!B:C,MATCH(InUTMC016!A156,Mapping!C:C,0),2),InUTMC016!A156) -> I-INCOME | C155: 2021-12-14 | D155: 1.1068 | E155: 675866871.2
A156: IPD014 | B156: =IFERROR(INDEX(Mapping!B:C,MATCH(InUTMC016!A157,Mapping!C:C,0),2),InUTMC016!A157) -> I-INCOME2H | C156: 2021-12-14 | D156: 0.9961 | E156: 1000
A157: IPD014 | B157: =IFERROR(INDEX(Mapping!B:C,MATCH(InUTMC016!A158,Mapping!C:C,0),2),InUTMC016!A158) -> I-INCOME2I | C157: 2021-12-14 | D157: 0.9966 | E157: 29983010.79
A158: IPD014 | B158: =IFERROR(INDEX(Mapping!B:C,MATCH(InUTMC016!A159,Mapping!C:C,0),2),InUTMC016!A159) -> I-INCOME2R | C158: 2021-12-14 | D158: 0.9962 | E158: 1013569.83
A159: IPD014 | B159: =IFERROR(INDEX(Mapping!B:C,MATCH(InUTMC016!A160,Mapping!C:C,0),2),InUTMC016!A160) -> I-INCOME2S | C159: 2021-12-14 | D159: 0.9976 | E159: 40193926.05
A160: IPD014 | B160: =IFERROR(INDEX(Mapping!B:C,MATCH(InUTMC016!A161,Mapping!C:C,0),2),InUTMC016!A161) -> NGDBFM | C160: 2021-12-14 | D160: 1.0307 | E160: 25903284.1
A161: IPD014 | B161: =IFERROR(INDEX(Mapping!B:C,MATCH(InUTMC016!A162,Mapping!C:C,0),2),InUTMC016!A162) -> NGDBFU | C161: 2021-12-14 | D161: 1.0066 | E161: 444459.43
A162: IPD014 | B162: =IFERROR(INDEX(Mapping!B:C,MATCH(InUTMC016!A163,Mapping!C:C,0),2),InUTMC016!A163) -> NGHM | C162: 2021-12-14 | D162: 1.6256 | E162: 1431331.79
A163: IPD014 | B163: =IFERROR(INDEX(Mapping!B:C,MATCH(InUTMC016!A164,Mapping!C:C,0),2),InUTMC016!A164) -> NGHU | C163: 2021-12-14 | D163: 1.2043 | E163: 4527.54
A164: IPD014 | B164: =IFERROR(INDEX(Mapping!B:C,MATCH(InUTMC016!A165,Mapping!C:C,0),2),InUTMC016!A165) -> NGSEFA | C164: 2021-12-14 | D164: 1.0244 | E164: 1000
A165: IPD014 | B165: =IFERROR(INDEX(Mapping!B:C,MATCH(InUTMC016!A166,Mapping!C:C,0),2),InUTMC016!A166) -> NGSEFB | C165: 2021-12-14 | D165: 1.0147 | E165: 10237216.79
A166: IPD014 | B166: =IFERROR(INDEX(Mapping!B:C,MATCH(InUTMC016!A167,Mapping!C:C,0),2),InUTMC016!A167) -> NGSEFU | C166: 2021-12-14 | D166: 0.9993 | E166: 22360.97
A167: IPD014 | B167: =IFERROR(INDEX(Mapping!B:C,MATCH(InUTMC016!A168,Mapping!C:C,0),2),InUTMC016!A168) -> NGSSGFA | C167: 2021-12-14 | D167: 1.2492 | E167: 13266926.95
A168: IPD014 | B168: =IFERROR(INDEX(Mapping!B:C,MATCH(InUTMC016!A169,Mapping!C:C,0),2),InUTMC016!A169) -> NGSSGFB | C168: 2021-12-14 | D168: 1.2435 | E168: 5323664.53
A169: IPD014 | B169: =IFERROR(INDEX(Mapping!B:C,MATCH(InUTMC016!A170,Mapping!C:C,0),2),InUTMC016!A170) -> NRBF1 | C169: 2021-12-14 | D169: 1.0411 | E169: 412672433
A170: IPD014 | B170: =IFERROR(INDEX(Mapping!B:C,MATCH(InUTMC016!A171,Mapping!C:C,0),2),InUTMC016!A171) -> NRBF2 | C170: 2021-12-14 | D170: 0.9765 | E170: 272007887.3
A171: IPD014 | B171: =IFERROR(INDEX(Mapping!B:C,MATCH(InUTMC016!A172,Mapping!C:C,0),2),InUTMC016!A172) -> I-CASH | C171: 2021-12-15 | D171: 1.0244 | E171: 303809475.1
A172: IPD014 | B172: =IFERROR(INDEX(Mapping!B:C,MATCH(InUTMC016!A173,Mapping!C:C,0),2),InUTMC016!A173) -> I-INCOME | C172: 2021-12-15 | D172: 1.1063 | E172: 675829802.3
A173: IPD014 | B173: =IFERROR(INDEX(Mapping!B:C,MATCH(InUTMC016!A174,Mapping!C:C,0),2),InUTMC016!A174) -> I-INCOME2H | C173: 2021-12-15 | D173: 0.9969 | E173: 1000
A174: IPD014 | B174: =IFERROR(INDEX(Mapping!B:C,MATCH(InUTMC016!A175,Mapping!C:C,0),2),InUTMC016!A175) -> I-INCOME2I | C174: 2021-12-15 | D174: 0.9969 | E174: 29983010.79
A175: IPD014 | B175: =IFERROR(INDEX(Mapping!B:C,MATCH(InUTMC016!A176,Mapping!C:C,0),2),InUTMC016!A176) -> I-INCOME2R | C175: 2021-12-15 | D175: 0.9965 | E175: 1013569.83
A176: IPD014 | B176: =IFERROR(INDEX(Mapping!B:C,MATCH(InUTMC016!A177,Mapping!C:C,0),2),InUTMC016!A177) -> I-INCOME2S | C176: 2021-12-15 | D176: 0.9979 | E176: 40193926.05
A177: IPD014 | B177: =IFERROR(INDEX(Mapping!B:C,MATCH(InUTMC016!A178,Mapping!C:C,0),2),InUTMC016!A178) -> NGDBFM | C177: 2021-12-15 | D177: 1.0287 | E177: 25903284.1
A178: IPD014 | B178: =IFERROR(INDEX(Mapping!B:C,MATCH(InUTMC016!A179,Mapping!C:C,0),2),InUTMC016!A179) -> NGDBFU | C178: 2021-12-15 | D178: 1.0051 | E178: 444459.43
A179: IPD014 | B179: =IFERROR(INDEX(Mapping!B:C,MATCH(InUTMC016!A180,Mapping!C:C,0),2),InUTMC016!A180) -> NGHM | C179: 2021-12-15 | D179: 1.6084 | E179: 1434440.47
A180: IPD014 | B180: =IFERROR(INDEX(Mapping!B:C,MATCH(InUTMC016!A181,Mapping!C:C,0),2),InUTMC016!A181) -> NGHU | C180: 2021-12-15 | D180: 1.1929 | E180: 4527.54
A181: IPD014 | B181: =IFERROR(INDEX(Mapping!B:C,MATCH(InUTMC016!A182,Mapping!C:C,0),2),InUTMC016!A182) -> NGSEFA | C181: 2021-12-15 | D181: 1.016 | E181: 1000
A182: IPD014 | B182: =IFERROR(INDEX(Mapping!B:C,MATCH(InUTMC016!A183,Mapping!C:C,0),2),InUTMC016!A183) -> NGSEFB | C182: 2021-12-15 | D182: 1.0063 | E182: 10709254.97
A183: IPD014 | B183: =IFERROR(INDEX(Mapping!B:C,MATCH(InUTMC016!A184,Mapping!C:C,0),2),InUTMC016!A184) -> NGSEFU | C183: 2021-12-15 | D183: 0.9915 | E183: 22360.97
